Workbook

Sheet Rekapitulace stavby
A1: Export VZ | D1: List obsahuje: | K1: 1) Rekapitulace stavby | W1: 2) Rekapitulace objektů stavby a soupisů prací | BA1: 3.0 | BT1: False | BU1: False | BV1: {C9E459E7-8CBB-4606-A8E1-178086A90787}
BS2: 0,01 | BT2: 21
BS3: 0,01 | BT3: 15
D4: REKAPITULACE STAVBY | AS4: v --- níže se nacházejí doplnkové a pomocné údaje k sestavám --- v | BE4: Návod na vyplnění | BS4: 0,001
D5: Kód: | K5: TOM443/323V3 | BE5: Měnit lze pouze buňky se žlutým podbarvením! 1) v Rekapitulaci stavby vyplňte údaje o Uchazeči (přenesou se do ostatních sestav i v jiných listech) 2) na vybraných listech vyplňte v sestavě Soupis prací ceny u položek Podrobnosti k vyplnění naleznete na poslední záložce s Pokyny pro vyplnění | BS5: 0,01
D6: Stavba: | K6: Město Sokolov - Záchytné parkoviště Michal | BS6: 0,1
D7: KSO: | AK7: CC-CZ: | AN7: 7941-26 | BS7: 1
D8: Místo: | K8: Sokolo | AK8: Datum: | AN8: 09.09.2014 | BS8: 1
BS9: 1
D10: Zadavatel: | AK10: IČ: | BS10: 0,1
E11: Město Sokolov | AK11: DIČ: | BS11: 0,1
BS12: 0,1
D13: Uchazeč: | AK13: IČ: | AN13: Vyplň údaj | BS13: 0,1
E14: Vyplň údaj | AK14: DIČ: | AN14: Vyplň údaj | BS14: 0,1
BS15: False
D16: Projektant: | AK16: IČ: | AN16: 18224920 | BS16: False
E17: BPO spol. s r.o., Lidická 1239, 363 17 Ostrov | AK17: DIČ: | AN17: CZ18224920 | BS17: True
BS18: 0,01
D19: Poznámka: | BS19: 0,01
E20: Soupis prací je sestaven s využitím položek Cenové soustavy ÚRS. Cenové a technické podmínky položek Cenové soustavy ÚRS jsou neomezeně dálkově k dispozici na www.cs-urs.cz. Položky soupisu prací, které nemají ve sloupci "Cenová soustava" uvedený žádný údaj, nepochází z Cenové soustavy ÚRS. | BS20: False
D23: Cena bez DPH | AK23: =ROUND($AG$51,2) -> 0
L25: Sazba daně | W25: Základ daně | AK25: Výše daně
D26: DPH | F26: základní | L26: 0.21 | W26: =ROUND($AZ$51,2) -> 0 | AK26: =ROUND($AV$51,2) -> 0
F27: snížená | L27: 0.15 | W27: =ROUND($BA$51,2) -> 0 | AK27: =ROUND($AW$51,2) -> 0
F28: zákl. přenesená | L28: 0.21 | W28: =ROUND($BB$51,2) -> 0 | AK28: 0
F29: sníž. přenesená | L29: 0.15 | W29: =ROUND($BC$51,2) -> 0 | AK29: 0
F30: nulová | L30: 0 | W30: =ROUND($BD$51,2) -> 0 | AK30: 0
D32: Cena s DPH | T32: v | X32: CZK | AK32: =ROUND(SUM($AK$23:$AK$30),2) -> 0
C39: REKAPITULACE OBJEKTŮ STAVBY A SOUPISŮ PRACÍ
C41: Kód: | L41: =$K$5 -> TOM443/323V3
C42: Stavba: | L42: =$K$6 -> Město Sokolov - Záchytné parkoviště Michal
C44: Místo: | L44: =IF($K$8="","",$K$8) -> Sokolo | AI44: Datum: | AM44: =IF($AN$8="","",$AN$8) -> 09.09.2014
C46: Zadavatel: | L46: =IF($E$11="","",$E$11) -> Město Sokolov | AI46: Projektant: | AM46: =IF($E$17="","",$E$17) -> BPO spol. s r.o., Lidická 1239, 363 17 Ostrov | AS46: Informatívní údaje z listů zakázek
C47: Uchazeč: | L47: =IF($E$14="Vyplň údaj","",$E$14) -> 
C49: Kód | I49: Objekt, Soupis prací | AG49: Cena bez DPH [CZK] | AN49: Cena s DPH [CZK] | AQ49: Typ | AS49: z toho Ostat. náklady [CZK] | AT49: DPH [CZK] | AU49: Normohodiny [h] | AV49: DPH základní [CZK] | AW49: DPH snížená [CZK] | AX49: DPH základní přenesená [CZK] | AY49: DPH snížená přenesená [CZK] | AZ49: Základna DPH základní | BA49: Základna DPH snížená | BB49: Základna DPH zákl. přenesená | BC49: Základna DPH sníž. přenesená | BD49: Základna DPH nulová
C51: Náklady stavby celkem | AG51: =ROUND($AG$52+$AG$56,2) -> 0 | AN51: =ROUND(SUM($AG$51,$AT$51),2) -> 0 | AS51: =ROUND($AS$52+$AS$56,2) -> 0 | AT51: =ROUND(SUM($AV$51:$AW$51),2) -> 0 | AU51: =ROUND($AU$52+$AU$56,5) -> 0 | AV51: =ROUND($AZ$51*$L$26,2) -> 0 | AW51: =ROUND($BA$51*$L$27,2) -> 0 | AX51: =ROUND($BB$51*$L$26,2) -> 0 | AY51: =ROUND($BC$51*$L$27,2) -> 0 | AZ51: =ROUND($AZ$52+$AZ$56,2) -> 0 | BA51: =ROUND($BA$52+$BA$56,2) -> 0 | BB51: =ROUND($BB$52+$BB$56,2) -> 0 | BC51: =ROUND($BC$52+$BC$56,2) -> 0 | BD51: =ROUND($BD$52+$BD$56,2) -> 0 | BS51: D | BT51: 0 | BU51: ###NOIMPORT### | BV51: IMPORT | BW51: {C9E459E7-8CBB-4606-A8E1-178086A90787} | BX51: {00000000-0000-0000-0000-000000000000}
D52: 1.E | J52: 1.ETAPA | AG52: =ROUND(SUM($AG$53:$AG$55),2) -> 0 | AN52: =ROUND(SUM($AG$52,$AT$52),2) -> 0 | AQ52: STA | AS52: =ROUND(SUM($AS$53:$AS$55),2) -> 0 | AT52: =ROUND(SUM($AV$52:$AW$52),2) -> 0 | AU52: =ROUND(SUM($AU$53:$AU$55),5) -> 0 | AV52: =ROUND($AZ$52*$L$26,2) -> 0 | AW52: =ROUND($BA$52*$L$27,2) -> 0 | AX52: =ROUND($BB$52*$L$26,2) -> 0 | AY52: =ROUND($BC$52*$L$27,2) -> 0 | AZ52: =ROUND(SUM($AZ$53:$AZ$55),2) -> 0 | BA52: =ROUND(SUM($BA$53:$BA$55),2) -> 0 | BB52: =ROUND(SUM($BB$53:$BB$55),2) -> 0 | BC52: =ROUND(SUM($BC$53:$BC$55),2) -> 0 | BD52: =ROUND(SUM($BD$53:$BD$55),2) -> 0 | BS52: D | BT52: 1 | BU52: ###NOIMPORT### | BV52: IMPORT | BW52: {41C10505-D7EA-4CD7-A62C-F0CC0570782F} | BX52: {C9E459E7-8CBB-4606-A8E1-178086A90787} | CM52: 2
A53: / | E53: SO122 | K53: SO 122 Úprava Mánesovy ulice | AG53: ='SO122 - SO 122 Úprava Má...'!$J$29 -> 0 | AN53: =ROUND(SUM($AG$53,$AT$53),2) -> 0 | AQ53: Soupis | AS53: 0 | AT53: =ROUND(SUM($AV$53:$AW$53),2) -> 0 | AU53: ='SO122 - SO 122 Úprava Má...'!$P$93 -> 0 | AV53: ='SO122 - SO 122 Úprava Má...'!$J$32 -> 0 | AW53: ='SO122 - SO 122 Úprava Má...'!$J$33 -> 0 | AX53: ='SO122 - SO 122 Úprava Má...'!$J$34 -> 0 | AY53: ='SO122 - SO 122 Úprava Má...'!$J$35 -> 0 | AZ53: ='SO122 - SO 122 Úprava Má...'!$F$32 -> 0 | BA53: ='SO122 - SO 122 Úprava Má...'!$F$33 -> 0 | BB53: ='SO122 - SO 122 Úprava Má...'!$F$34 -> 0 | BC53: ='SO122 - SO 122 Úprava Má...'!$F$35 -> 0 | BD53: ='SO122 - SO 122 Úprava Má...'!$F$36 -> 0 | BT53: 2 | BV53: IMPORT | BW53: {C55139DE-DF8F-4D43-9F39-B6B4DC65793D} | BX53: {41C10505-D7EA-4CD7-A62C-F0CC0570782F} | CL53: 822 25
A54: / | E54: SO511 | K54: SO 511 Přeložka VTL plynovodu | AG54: ='SO511 - SO 511 Přeložka ...'!$J$29 -> 0 | AN54: =ROUND(SUM($AG$54,$AT$54),2) -> 0 | AQ54: Soupis | AS54: 0 | AT54: =ROUND(SUM($AV$54:$AW$54),2) -> 0 | AU54: ='SO511 - SO 511 Přeložka ...'!$P$89 -> 0 | AV54: ='SO511 - SO 511 Přeložka ...'!$J$32 -> 0 | AW54: ='SO511 - SO 511 Přeložka ...'!$J$33 -> 0 | AX54: ='SO511 - SO 511 Přeložka ...'!$J$34 -> 0 | AY54: ='SO511 - SO 511 Přeložka ...'!$J$35 -> 0 | AZ54: ='SO511 - SO 511 Přeložka ...'!$F$32 -> 0 | BA54: ='SO511 - SO 511 Přeložka ...'!$F$33 -> 0 | BB54: ='SO511 - SO 511 Přeložka ...'!$F$34 -> 0 | BC54: ='SO511 - SO 511 Přeložka ...'!$F$35 -> 0 | BD54: ='SO511 - SO 511 Přeložka ...'!$F$36 -> 0 | BT54: 2 | BV54: IMPORT | BW54: {FF285C7C-12BB-4059-B31F-89B3DAE50A8D} | BX54: {41C10505-D7EA-4CD7-A62C-F0CC0570782F} | CL54: 827 52
A55: / | E55: VON-1E | K55: Vedlejší rozpočrové náklady (VRN) a Ostatní náklady (ON) | AG55: ='VON-1E - Vedlejší rozpočr...'!$J$29 -> 0 | AN55: =ROUND(SUM($AG$55,$AT$55),2) -> 0 | AQ55: Soupis | AS55: 0 | AT55: =ROUND(SUM($AV$55:$AW$55),2) -> 0 | AU55: ='VON-1E - Vedlejší rozpočr...'!$P$86 -> 0 | AV55: ='VON-1E - Vedlejší rozpočr...'!$J$32 -> 0 | AW55: ='VON-1E - Vedlejší rozpočr...'!$J$33 -> 0 | AX55: ='VON-1E - Vedlejší rozpočr...'!$J$34 -> 0 | AY55: ='VON-1E - Vedlejší rozpočr...'!$J$35 -> 0 | AZ55: ='VON-1E - Vedlejší rozpočr...'!$F$32 -> 0 | BA55: ='VON-1E - Vedlejší rozpočr...'!$F$33 -> 0 | BB55: ='VON-1E - Vedlejší rozpočr...'!$F$34 -> 0 | BC55: ='VON-1E - Vedlejší rozpočr...'!$F$35 -> 0 | BD55: ='VON-1E - Vedlejší rozpočr...'!$F$36 -> 0 | BT55: 2 | BV55: IMPORT | BW55: {35FD886D-B9A4-457C-9FC2-B59FD72BA824} | BX55: {41C10505-D7EA-4CD7-A62C-F0CC0570782F} | CL55: 822 29
D56: 2.E | J56: 2. ETAPA | AG56: =ROUND(SUM($AG$57:$AG$62),2) -> 0 | AN56: =ROUND(SUM($AG$56,$AT$56),2) -> 0 | AQ56: STA | AS56: =ROUND(SUM($AS$57:$AS$62),2) -> 0 | AT56: =ROUND(SUM($AV$56:$AW$56),2) -> 0 | AU56: =ROUND(SUM($AU$57:$AU$62),5) -> 0 | AV56: =ROUND($AZ$56*$L$26,2) -> 0 | AW56: =ROUND($BA$56*$L$27,2) -> 0 | AX56: =ROUND($BB$56*$L$26,2) -> 0 | AY56: =ROUND($BC$56*$L$27,2) -> 0 | AZ56: =ROUND(SUM($AZ$57:$AZ$62),2) -> 0 | BA56: =ROUND(SUM($BA$57:$BA$62),2) -> 0 | BB56: =ROUND(SUM($BB$57:$BB$62),2) -> 0 | BC56: =ROUND(SUM($BC$57:$BC$62),2) -> 0 | BD56: =ROUND(SUM($BD$57:$BD$62),2) -> 0 | BS56: D | BT56: 1 | BU56: ###NOIMPORT### | BV56: IMPORT | BW56: {25432198-016F-4DD2-AFEB-6AF1DEE1E65A} | BX56: {C9E459E7-8CBB-4606-A8E1-178086A90787} | CL56: 822 29 | CM56: 2
A57: / | E57: SO111 | K57: SO 111 Parkoviště | AG57: ='SO111 - SO 111 Parkoviště'!$J$29 -> 0 | AN57: =ROUND(SUM($AG$57,$AT$57),2) -> 0 | AQ57: Soupis | AS57: 0 | AT57: =ROUND(SUM($AV$57:$AW$57),2) -> 0 | AU57: ='SO111 - SO 111 Parkoviště'!$P$95 -> 0 | AV57: ='SO111 - SO 111 Parkoviště'!$J$32 -> 0 | AW57: ='SO111 - SO 111 Parkoviště'!$J$33 -> 0 | AX57: ='SO111 - SO 111 Parkoviště'!$J$34 -> 0 | AY57: ='SO111 - SO 111 Parkoviště'!$J$35 -> 0 | AZ57: ='SO111 - SO 111 Parkoviště'!$F$32 -> 0 | BA57: ='SO111 - SO 111 Parkoviště'!$F$33 -> 0 | BB57: ='SO111 - SO 111 Parkoviště'!$F$34 -> 0 | BC57: ='SO111 - SO 111 Parkoviště'!$F$35 -> 0 | BD57: ='SO111 - SO 111 Parkoviště'!$F$36 -> 0 | BT57: 2 | BV57: IMPORT | BW57: {574DB0AE-F8E1-4219-8846-1B43C4A81494} | BX57: {25432198-016F-4DD2-AFEB-6AF1DEE1E65A} | CL57: 822 29
A58: / | E58: SO132 | K58: SO 132 Napojení na silnici II/2009 | AG58: ='SO132 - SO 132 Napojení ...'!$J$29 -> 0 | AN58: =ROUND(SUM($AG$58,$AT$58),2) -> 0 | AQ58: Soupis | AS58: 0 | AT58: =ROUND(SUM($AV$58:$AW$58),2) -> 0 | AU58: ='SO132 - SO 132 Napojení ...'!$P$85 -> 0 | AV58: ='SO132 - SO 132 Napojení ...'!$J$32 -> 0 | AW58: ='SO132 - SO 132 Napojení ...'!$J$33 -> 0 | AX58: ='SO132 - SO 132 Napojení ...'!$J$34 -> 0 | AY58: ='SO132 - SO 132 Napojení ...'!$J$35 -> 0 | AZ58: ='SO132 - SO 132 Napojení ...'!$F$32 -> 0 | BA58: ='SO132 - SO 132 Napojení ...'!$F$33 -> 0 | BB58: ='SO132 - SO 132 Napojení ...'!$F$34 -> 0 | BC58: ='SO132 - SO 132 Napojení ...'!$F$35 -> 0 | BD58: ='SO132 - SO 132 Napojení ...'!$F$36 -> 0 | BT58: 2 | BV58: IMPORT | BW58: {0223295B-16F4-405E-8C53-14D4A07FB922} | BX58: {25432198-016F-4DD2-AFEB-6AF1DEE1E65A} | CL58: 822 29
A59: / | E59: SO311 | K59: SO 311 Dešťová kanalizace | AG59: ='SO311 - SO 311 Dešťová k...'!$J$29 -> 0 | AN59: =ROUND(SUM($AG$59,$AT$59),2) -> 0 | AQ59: Soupis | AS59: 0 | AT59: =ROUND(SUM($AV$59:$AW$59),2) -> 0 | AU59: ='SO311 - SO 311 Dešťová k...'!$P$92 -> 0 | AV59: ='SO311 - SO 311 Dešťová k...'!$J$32 -> 0 | AW59: ='SO311 - SO 311 Dešťová k...'!$J$33 -> 0 | AX59: ='SO311 - SO 311 Dešťová k...'!$J$34 -> 0 | AY59: ='SO311 - SO 311 Dešťová k...'!$J$35 -> 0 | AZ59: ='SO311 - SO 311 Dešťová k...'!$F$32 -> 0 | BA59: ='SO311 - SO 311 Dešťová k...'!$F$33 -> 0 | BB59: ='SO311 - SO 311 Dešťová k...'!$F$34 -> 0 | BC59: ='SO311 - SO 311 Dešťová k...'!$F$35 -> 0 | BD59: ='SO311 - SO 311 Dešťová k...'!$F$36 -> 0 | BT59: 2 | BV59: IMPORT | BW59: {D68EA3AE-4AEE-49AC-883A-298A897F9EC9} | BX59: {25432198-016F-4DD2-AFEB-6AF1DEE1E65A} | CL59: 827 21
A60: / | E60: SO411 | K60: SO 411 Veřejné osvětlení | AG60: ='SO411 - SO 411 Veřejné o...'!$J$29 -> 0 | AN60: =ROUND(SUM($AG$60,$AT$60),2) -> 0 | AQ60: Soupis | AS60: 0 | AT60: =ROUND(SUM($AV$60:$AW$60),2) -> 0 | AU60: ='SO411 - SO 411 Veřejné o...'!$P$87 -> 0 | AV60: ='SO411 - SO 411 Veřejné o...'!$J$32 -> 0 | AW60: ='SO411 - SO 411 Veřejné o...'!$J$33 -> 0 | AX60: ='SO411 - SO 411 Veřejné o...'!$J$34 -> 0 | AY60: ='SO411 - SO 411 Veřejné o...'!$J$35 -> 0 | AZ60: ='SO411 - SO 411 Veřejné o...'!$F$32 -> 0 | BA60: ='SO411 - SO 411 Veřejné o...'!$F$33 -> 0 | BB60: ='SO411 - SO 411 Veřejné o...'!$F$34 -> 0 | BC60: ='SO411 - SO 411 Veřejné o...'!$F$35 -> 0 | BD60: ='SO411 - SO 411 Veřejné o...'!$F$36 -> 0 | BT60: 2 | BV60: IMPORT | BW60: {D2AEBDF9-2F55-4F16-8AE2-41D3C550F250} | BX60: {25432198-016F-4DD2-AFEB-6AF1DEE1E65A} | CL60: 828 79
A61: / | E61: SO412 | K61: SO 412 Kamerový systém | AG61: ='SO412 - SO 412 Kamerový ...'!$J$29 -> 0 | AN61: =ROUND(SUM($AG$61,$AT$61),2) -> 0 | AQ61: Soupis | AS61: 0 | AT61: =ROUND(SUM($AV$61:$AW$61),2) -> 0 | AU61: ='SO412 - SO 412 Kamerový ...'!$P$89 -> 0 | AV61: ='SO412 - SO 412 Kamerový ...'!$J$32 -> 0 | AW61: ='SO412 - SO 412 Kamerový ...'!$J$33 -> 0 | AX61: ='SO412 - SO 412 Kamerový ...'!$J$34 -> 0 | AY61: ='SO412 - SO 412 Kamerový ...'!$J$35 -> 0 | AZ61: ='SO412 - SO 412 Kamerový ...'!$F$32 -> 0 | BA61: ='SO412 - SO 412 Kamerový ...'!$F$33 -> 0 | BB61: ='SO412 - SO 412 Kamerový ...'!$F$34 -> 0 | BC61: ='SO412 - SO 412 Kamerový ...'!$F$35 -> 0 | BD61: ='SO412 - SO 412 Kamerový ...'!$F$36 -> 0 | BT61: 2 | BV61: IMPORT | BW61: {5D7137B4-0918-4BA2-AA7F-99E993F990A9} | BX61: {25432198-016F-4DD2-AFEB-6AF1DEE1E65A} | CL61: 828 79
A62: / | E62: VON-2E | K62: Vedlejší rozpočrové náklady (VRN) a Ostatní náklady (ON) | AG62: ='VON-2E - Vedlejší rozpočr...'!$J$29 -> 0 | AN62: =ROUND(SUM($AG$62,$AT$62),2) -> 0 | AQ62: Soupis | AS62: 0 | AT62: =ROUND(SUM($AV$62:$AW$62),2) -> 0 | AU62: ='VON-2E - Vedlejší rozpočr...'!$P$89 -> 0 | AV62: ='VON-2E - Vedlejší rozpočr...'!$J$32 -> 0 | AW62: ='VON-2E - Vedlejší rozpočr...'!$J$33 -> 0 | AX62: ='VON-2E - Vedlejší rozpočr...'!$J$34 -> 0 | AY62: ='VON-2E - Vedlejší rozpočr...'!$J$35 -> 0 | AZ62: ='VON-2E - Vedlejší rozpočr...'!$F$32 -> 0 | BA62: ='VON-2E - Vedlejší rozpočr...'!$F$33 -> 0 | BB62: ='VON-2E - Vedlejší rozpočr...'!$F$34 -> 0 | BC62: ='VON-2E - Vedlejší rozpočr...'!$F$35 -> 0 | BD62: ='VON-2E - Vedlejší rozpočr...'!$F$36 -> 0 | BT62: 2 | BV62: IMPORT | BW62: {8C002770-634E-414C-A4A8-C1E29F904F84} | BX62: {25432198-016F-4DD2-AFEB-6AF1DEE1E65A} | CL62: 822 29

Sheet SO122 - SO 122 Úprava Má...
D1: List obsahuje: | F1: 1) Krycí list soupisu | G1: 2) Rekapitulace | J1: 3) Soupis prací | K1: Zpět na list: | L1: Rekapitulace stavby
AT2: {C55139DE-DF8F-4D43-9F39-B6B4DC65793D}
AT3: 2
D4: KRYCÍ LIST SOUPISU | M4: v --- níže se nacházejí doplnkové a pomocné údaje k sestavám --- v | AT4: False
D6: Stavba:
E7: ='Rekapitulace stavby'!$K$6 -> Město Sokolov - Záchytné parkoviště Michal
D8: Objekt:
E9: 1.E - 1.ETAPA
D10: Soupis:
E11: SO122 - SO 122 Úprava Mánesovy ulice
D13: KSO: | F13: 822 25 | I13: CC-CZ: | J13: 7941-26
D14: Místo: | F14: Sokolov | I14: Datum: | J14: ='Rekapitulace stavby'!$AN$8 -> 09.09.2014
D16: Zadavatel: | I16: IČ:
E17: Město Sokolov | I17: DIČ:
D19: Uchazeč: | I19: IČ: | J19: =IF('Rekapitulace stavby'!$AN$13="Vyplň údaj","",IF('Rekapitulace stavby'!$AN$13="","",'Rekapitulace stavby'!$AN$13)) -> 
E20: =IF('Rekapitulace stavby'!$E$14="Vyplň údaj","",IF('Rekapitulace stavby'!$E$14="","",'Rekapitulace stavby'!$E$14)) ->  | I20: DIČ: | J20: =IF('Rekapitulace stavby'!$AN$14="Vyplň údaj","",IF('Rekapitulace stavby'!$AN$14="","",'Rekapitulace stavby'!$AN$14)) -> 
D22: Projektant: | I22: IČ: | J22: 18224920
E23: BPO spol. s r.o., Lidická 1239, 363 17 Ostrov | I23: DIČ: | J23: CZ18224920
D25: Poznámka:
D29: Cena bez DPH | J29: =ROUND($J$93,2) -> 0
F31: Základ daně | I31: Sazba daně | J31: Výše daně
D32: DPH | E32: základní | F32: =ROUND(SUM($BE$93:$BE$540),2) -> 0 | I32: 0.21 | J32: =ROUND(SUM($BE$93:$BE$540)*$I$32,2) -> 0
E33: snížená | F33: =ROUND(SUM($BF$93:$BF$540),2) -> 0 | I33: 0.15 | J33: =ROUND(SUM($BF$93:$BF$540)*$I$33,2) -> 0
E34: zákl. přenesená | F34: =ROUND(SUM($BG$93:$BG$540),2) -> 0 | I34: 0.21 | J34: 0
E35: sníž. přenesená | F35: =ROUND(SUM($BH$93:$BH$540),2) -> 0 | I35: 0.15 | J35: 0
E36: nulová | F36: =ROUND(SUM($BI$93:$BI$540),2) -> 0 | I36: 0 | J36: 0
D38: Cena s DPH | G38: v | H38: CZK | J38: =ROUND(SUM($J$29:$J$36),2) -> 0
C44: REKAPITULACE ČLENĚNÍ SOUPISU PRACÍ
C46: Stavba:
E47: =$E$7 -> Město Sokolov - Záchytné parkoviště Michal
C48: Objekt:
E49: 1.E - 1.ETAPA
C50: Soupis:
E51: =$E$11 -> SO122 - SO 122 Úprava Mánesovy ulice
C53: Místo: | F53: =$F$14 -> Sokolov | I53: Datum: | J53: =IF($J$14="","",$J$14) -> 09.09.2014
C55: Zadavatel: | F55: =$E$17 -> Město Sokolov | I55: Projektant: | J55: =$E$23 -> BPO spol. s r.o., Lidická 1239, 363 17 Ostrov
C56: Uchazeč: | F56: =IF($E$20="","",$E$20) -> 
C58: Kód dílu - Popis | J58: Cena celkem [CZK]
C60: Náklady soupisu celkem | J60: =ROUND($J$93,2) -> 0 | AU60: -1
D61: HSV - Práce a dodávky HSV | J61: =ROUND($J$94,2) -> 0
D62: 1 - Zemní práce | J62: =ROUND($J$95,2) -> 0
D63: 11 - Zemní práce - přípravné a přidružené práce | J63: =ROUND($J$263,2) -> 0
D64: 45 - Vodorovné podkladní a vedlejší konstrukce inž. staveb | J64: =ROUND($J$294,2) -> 0
D65: 56 - Podkladní vrstvy komunikací, letišť a ploch | J65: =ROUND($J$301,2) -> 0
D66: 57 - Kryty pozemních komunikací letišť a ploch z kameniva nebo živičné | J66: =ROUND($J$324,2) -> 0
D67: 59 - Kryty pozemních komunikací, letišť a ploch dlážděných (předlažby) | J67: =ROUND($J$347,2) -> 0
D68: 8 - Trubní vedení | J68: =ROUND($J$369,2) -> 0
D69: 91 - Doplňující konstrukce a práce pozemních komunikací, letišť a ploch | J69: =ROUND($J$396,2) -> 0
D70: 93 - Různé dokončovací konstrukce a práce inženýrských staveb | J70: =ROUND($J$487,2) -> 0
D71: 99 - Přesun hmot a sutí | J71: =ROUND($J$503,2) -> 0
C78: SOUPIS PRACÍ
C80: Stavba:
E81: =$E$7 -> Město Sokolov - Záchytné parkoviště Michal
C82: Objekt:
E83: 1.E - 1.ETAPA
C84: Soupis:
E85: =$E$11 -> SO122 - SO 122 Úprava Mánesovy ulice
C87: Místo: | F87: =$F$14 -> Sokolov | I87: Datum: | J87: =IF($J$14="","",$J$14) -> 09.09.2014
C89: Zadavatel: | F89: =$E$17 -> Město Sokolov | I89: Projektant: | J89: =$E$23 -> BPO spol. s r.o., Lidická 1239, 363 17 Ostrov
C90: Uchazeč: | F90: =IF($E$20="","",$E$20) -> 
C92: PČ | D92: Typ | E92: Kód | F92: Popis | G92: MJ | H92: Množství | I92: J.cena [CZK] | J92: Cena celkem [CZK] | K92: Cenová soustava | M92: Poznámka | N92: DPH | O92: J. Nh [h] | P92: Nh celkem [h] | Q92: J. hmotnost [t] | R92: Hmotnost celkem [t] | S92: J. suť [t] | T92: Suť Celkem [t]
C93: Náklady soupisu celkem | J93: =$BK$93 -> 0 | P93: =$P$94 -> 0 | R93: =$R$94 -> 376.2821928 | T93: =$T$94 -> 265.44 | AT93: D | AU93: -1 | BK93: =$BK$94 -> 0
D94: D | E94: HSV | F94: Práce a dodávky HSV | J94: =$BK$94 -> 0 | P94: =$P$95+$P$263+$P$294+$P$301+$P$324+$P$347+$P$369+$P$396+$P$503 -> 0 | R94: =$R$95+$R$263+$R$294+$R$301+$R$324+$R$347+$R$369+$R$396+$R$503 -> 376.2821928 | T94: =$T$95+$T$263+$T$294+$T$301+$T$324+$T$347+$T$369+$T$396+$T$503 -> 265.44 | AR94: 1 | AT94: D | AU94: 0 | AY94: ROZPOCET | BK94: =$BK$95+$BK$263+$BK$294+$BK$301+$BK$324+$BK$347+$BK$369+$BK$396+$BK$503 -> 0
D95: D | E95: 1 | F95: Zemní práce | J95: =$BK$95 -> 0 | P95: =SUM($P$96:$P$262) -> 0 | R95: =SUM($R$96:$R$262) -> 16.135 | T95: =SUM($T$96:$T$262) -> 0 | AR95: 1 | AT95: D | AU95: 1 | AY95: ROZPOCET | BK95: =SUM($BK$96:$BK$262) -> 0
C96: 1 | D96: K | E96: 122102202 | F96: Odkopávky a prokopávky nezapažené pro silnice objemu do 1000 m3 v hornině tř. 1 a 2 | G96: m3 | H96: 160 | J96: =ROUND($I$96*$H$96,2) -> 0 | K96: CS ÚRS 2014 02 | N96: základní | Q96: 0 | R96: =$Q$96*$H$96 -> 0 | S96: 0 | T96: =$S$96*$H$96 -> 0 | AR96: 4 | AT96: K | AU96: 2 | AY96: ROZPOCET | BE96: =IF($N$96="základní",$J$96,0) -> 0 | BF96: =IF($N$96="snížená",$J$96,0) -> 0 | BG96: =IF($N$96="zákl. přenesená",$J$96,0) -> 0 | BH96: =IF($N$96="sníž. přenesená",$J$96,0) -> 0 | BI96: =IF($N$96="nulová",$J$96,0) -> 0 | BJ96: 1 | BK96: =ROUND($I$96*$H$96,2) -> 0 | BL96: 4 | BM96: 1486991135
D97: PP | F97: Odkopávky a prokopávky nezapažené pro silnice s přemístěním výkopku v příčných profilech na vzdálenost do 15 m nebo s naložením na dopravní prostředek v horninách tř. 1 a 2 přes 100 do 1 000 m3 | AT97: PP | AU97: 2
D98: PSC | F98: Poznámka k souboru cen: 1. Ceny jsou určeny pro vykopávky: a) příkopů pro silnice a to i tehdy, jsou-li vykopávky příkopů prováděny samostatně, b) v zemnících na suchu, jestliže tyto zemníky přímo souvisejí s odkopávkami nebo prokopávkami pro spodní stavbu silnic. Vykopávky v ostatních zemnících se oceňují podle kapitoly. 3*2 Zemníky Všeobecných podmínek tohoto katalogu. c) při zahlubování silnic pro mimoúrovňové křížení a pro vykopávky pod mosty provedenými v předepsaném předstihu. Část vykopávky mezi svislými rovinami proloženými vnějšími hranami mostu se oceňují: - při objemu do 1 000 m3 cenami pro množství do 100 m3 - při objemu přes 1 000 m3 cenami pro množství přes 100 do 1 000 m3. d) pro sejmutí podorničí s přihlédnutím k ustanovení čl. 3112 Všeobecných podmínek katalogu. 2. Ceny nelze použít pro odkopávky a prokopávky v zapažených prostorách; tyto zemní práce se oceňují podle čl. 3116 Všeobecných podmínek tohoto katalogu. 3. V cenách jsou započteny i náklady na vodorovné přemístění výkopku v příčných profilech na přilehlých svazích a příkopech. Vzdálenosti příčného přemístění se nezahrnují do střední vzdálenosti vodorovného přemístění výkopku. 4. Vodorovné přemístění výkopku z výkopiště na násypiště při jakékoliv šířce koruny se nepovažuje za vodorovné přemístění výkopku v příčném profilu, je-li při odkopávce nebo prokopávce mezi výkopištěm a násypištěm v příčném profilu dopravní nebo jiný pruh, na němž projekt vylučuje rušení provozu prováděním zemních prací. Takové přemístění výkopku se oceňuje podle čl. 3162 Všeobecných podmínek tohoto katalogu. 5. Přemístění výkopku v příčných profilech na vzdálenost přes 15 m se oceňuje cenami souboru cen 162 .0-1 . Vodorovné přemístění výkopku části A 01 Společné zemní práce tohoto katalogu | AT98: PSC | AU98: 2
D99: VV | F99: dle specifikace prací v technické zprávě | AT99: VV | AU99: 2 | AV99: 1 | AW99: -1 | AX99: 0 | AY99: ROZPOCET
D100: VV | F100: 640,0*0,25 | H100: 160 | AT100: VV | AU100: 2 | AV100: 2 | AW100: -1 | AX100: 1 | AY100: ROZPOCET
C101: 2 | D101: K | E101: 122202202 | F101: Odkopávky a prokopávky nezapažené pro silnice objemu do 1000 m3 v hornině tř. 3 | G101: m3 | H101: 480 | J101: =ROUND($I$101*$H$101,2) -> 0 | K101: CS ÚRS 2014 02 | N101: základní | Q101: 0 | R101: =$Q$101*$H$101 -> 0 | S101: 0 | T101: =$S$101*$H$101 -> 0 | AR101: 4 | AT101: K | AU101: 2 | AY101: ROZPOCET | BE101: =IF($N$101="základní",$J$101,0) -> 0 | BF101: =IF($N$101="snížená",$J$101,0) -> 0 | BG101: =IF($N$101="zákl. přenesená",$J$101,0) -> 0 | BH101: =IF($N$101="sníž. přenesená",$J$101,0) -> 0 | BI101: =IF($N$101="nulová",$J$101,0) -> 0 | BJ101: 1 | BK101: =ROUND($I$101*$H$101,2) -> 0 | BL101: 4 | BM101: 158353227
D102: PP | F102: Odkopávky a prokopávky nezapažené pro silnice s přemístěním výkopku v příčných profilech na vzdálenost do 15 m nebo s naložením na dopravní prostředek v hornině tř. 3 přes 100 do 1 000 m3 | AT102: PP | AU102: 2
D103: PSC | F103: Poznámka k souboru cen: 1. Ceny jsou určeny pro vykopávky: a) příkopů pro silnice a to i tehdy, jsou-li vykopávky příkopů prováděny samostatně, b) v zemnících na suchu, jestliže tyto zemníky přímo souvisejí s odkopávkami nebo prokopávkami pro spodní stavbu silnic. Vykopávky v ostatních zemnících se oceňují podle kapitoly. 3*2 Zemníky Všeobecných podmínek tohoto katalogu. c) při zahlubování silnic pro mimoúrovňové křížení a pro vykopávky pod mosty provedenými v předepsaném předstihu. Část vykopávky mezi svislými rovinami proloženými vnějšími hranami mostu se oceňují: - při objemu do 1 000 m3 cenami pro množství do 100 m3 - při objemu přes 1 000 m3 cenami pro množství přes 100 do 1 000 m3. d) pro sejmutí podorničí s přihlédnutím k ustanovení čl. 3112 Všeobecných podmínek katalogu. 2. Ceny nelze použít pro odkopávky a prokopávky v zapažených prostorách; tyto zemní práce se oceňují podle čl. 3116 Všeobecných podmínek tohoto katalogu. 3. V cenách jsou započteny i náklady na vodorovné přemístění výkopku v příčných profilech na přilehlých svazích a příkopech. Vzdálenosti příčného přemístění se nezahrnují do střední vzdálenosti vodorovného přemístění výkopku. 4. Vodorovné přemístění výkopku z výkopiště na násypiště při jakékoliv šířce koruny se nepovažuje za vodorovné přemístění výkopku v příčném profilu, je-li při odkopávce nebo prokopávce mezi výkopištěm a násypištěm v příčném profilu dopravní nebo jiný pruh, na němž projekt vylučuje rušení provozu prováděním zemních prací. Takové přemístění výkopku se oceňuje podle čl. 3162 Všeobecných podmínek tohoto katalogu. 5. Přemístění výkopku v příčných profilech na vzdálenost přes 15 m se oceňuje cenami souboru cen 162 .0-1 . Vodorovné přemístění výkopku části A 01 Společné zemní práce tohoto katalogu | AT103: PSC | AU103: 2
D104: VV | F104: dle specifikace prací v technické zprávě | AT104: VV | AU104: 2 | AV104: 1 | AW104: -1 | AX104: 0 | AY104: ROZPOCET
D105: VV | F105: 640,0*0,75 | H105: 480 | AT105: VV | AU105: 2 | AV105: 2 | AW105: -1 | AX105: 1 | AY105: ROZPOCET
C106: 3 | D106: K | E106: 122202209 | F106: Příplatek k odkopávkám a prokopávkám pro silnice v hornině tř. 3 za lepivost | G106: m3 | H106: 240 | J106: =ROUND($I$106*$H$106,2) -> 0 | K106: CS ÚRS 2014 02 | N106: základní | Q106: 0 | R106: =$Q$106*$H$106 -> 0 | S106: 0 | T106: =$S$106*$H$106 -> 0 | AR106: 4 | AT106: K | AU106: 2 | AY106: ROZPOCET | BE106: =IF($N$106="základní",$J$106,0) -> 0 | BF106: =IF($N$106="snížená",$J$106,0) -> 0 | BG106: =IF($N$106="zákl. přenesená",$J$106,0) -> 0 | BH106: =IF($N$106="sníž. přenesená",$J$106,0) -> 0 | BI106: =IF($N$106="nulová",$J$106,0) -> 0 | BJ106: 1 | BK106: =ROUND($I$106*$H$106,2) -> 0 | BL106: 4 | BM106: -931470782
D107: PP | F107: Odkopávky a prokopávky nezapažené pro silnice s přemístěním výkopku v příčných profilech na vzdálenost do 15 m nebo s naložením na dopravní prostředek v hornině tř. 3 Příplatek k cenám za lepivost horniny tř. 3 | AT107: PP | AU107: 2
D108: PSC | F108: Poznámka k souboru cen: 1. Ceny jsou určeny pro vykopávky: a) příkopů pro silnice a to i tehdy, jsou-li vykopávky příkopů prováděny samostatně, b) v zemnících na suchu, jestliže tyto zemníky přímo souvisejí s odkopávkami nebo prokopávkami pro spodní stavbu silnic. Vykopávky v ostatních zemnících se oceňují podle kapitoly. 3*2 Zemníky Všeobecných podmínek tohoto katalogu. c) při zahlubování silnic pro mimoúrovňové křížení a pro vykopávky pod mosty provedenými v předepsaném předstihu. Část vykopávky mezi svislými rovinami proloženými vnějšími hranami mostu se oceňují: - při objemu do 1 000 m3 cenami pro množství do 100 m3 - při objemu přes 1 000 m3 cenami pro množství přes 100 do 1 000 m3. d) pro sejmutí podorničí s přihlédnutím k ustanovení čl. 3112 Všeobecných podmínek katalogu. 2. Ceny nelze použít pro odkopávky a prokopávky v zapažených prostorách; tyto zemní práce se oceňují podle čl. 3116 Všeobecných podmínek tohoto katalogu. 3. V cenách jsou započteny i náklady na vodorovné přemístění výkopku v příčných profilech na přilehlých svazích a příkopech. Vzdálenosti příčného přemístění se nezahrnují do střední vzdálenosti vodorovného přemístění výkopku. 4. Vodorovné přemístění výkopku z výkopiště na násypiště při jakékoliv šířce koruny se nepovažuje za vodorovné přemístění výkopku v příčném profilu, je-li při odkopávce nebo prokopávce mezi výkopištěm a násypištěm v příčném profilu dopravní nebo jiný pruh, na němž projekt vylučuje rušení provozu prováděním zemních prací. Takové přemístění výkopku se oceňuje podle čl. 3162 Všeobecných podmínek tohoto katalogu. 5. Přemístění výkopku v příčných profilech na vzdálenost přes 15 m se oceňuje cenami souboru cen 162 .0-1 . Vodorovné přemístění výkopku části A 01 Společné zemní práce tohoto katalogu | AT108: PSC | AU108: 2
D109: VV | F109: lepivost 50% | AT109: VV | AU109: 2 | AV109: 1 | AW109: -1 | AX109: 0 | AY109: ROZPOCET
D110: VV | F110: pol.122202202 | AT110: VV | AU110: 2 | AV110: 1 | AW110: -1 | AX110: 0 | AY110: ROZPOCET
D111: VV | F111: 480,0*0,5 | H111: 240 | AT111: VV | AU111: 2 | AV111: 2 | AW111: -1 | AX111: 1 | AY111: ROZPOCET
C112: 4 | D112: K | E112: 132202101 | F112: Hloubení rýh š do 600 mm ručním nebo pneum nářadím v soudržných horninách tř. 3 | G112: m3 | H112: 18 | J112: =ROUND($I$112*$H$112,2) -> 0 | K112: CS ÚRS 2014 02 | N112: základní | Q112: 0 | R112: =$Q$112*$H$112 -> 0 | S112: 0 | T112: =$S$112*$H$112 -> 0 | AR112: 4 | AT112: K | AU112: 2 | AY112: ROZPOCET | BE112: =IF($N$112="základní",$J$112,0) -> 0 | BF112: =IF($N$112="snížená",$J$112,0) -> 0 | BG112: =IF($N$112="zákl. přenesená",$J$112,0) -> 0 | BH112: =IF($N$112="sníž. přenesená",$J$112,0) -> 0 | BI112: =IF($N$112="nulová",$J$112,0) -> 0 | BJ112: 1 | BK112: =ROUND($I$112*$H$112,2) -> 0 | BL112: 4 | BM112: -1703478443
D113: PP | F113: Hloubení zapažených i nezapažených rýh šířky do 600 mm ručním nebo pneumatickým nářadím s urovnáním dna do předepsaného profilu a spádu v horninách tř. 3 soudržných | AT113: PP | AU113: 2
D114: PSC | F114: Poznámka k souboru cen: 1. V cenách jsou započteny i náklady na přehození výkopku na přilehlém terénu na vzdálenost do 3 m od podélné osy rýhy nebo naložení výkopku na dopravní prostředek. 2. V cenách 10-2101 až 40-2102 jsou započteny i náklady na i svislý přesun horniny po házečkách do 2 metrů. | AT114: PSC | AU114: 2
D115: VV | F115: odkrytí podzemních kabelů pro montáž | AT115: VV | AU115: 2 | AV115: 1 | AW115: -1 | AX115: 0 | AY115: ROZPOCET
D116: VV | F116: půlených chrániček - dl.60 m | AT116: VV | AU116: 2 | AV116: 1 | AW116: -1 | AX116: 0 | AY116: ROZPOCET
D117: VV | F117: průměrná hl. výkopu 0,5 m | AT117: VV | AU117: 2 | AV117: 1 | AW117: -1 | AX117: 0 | AY117: ROZPOCET
D118: VV | F118: 0,6*0,5*60,0 | H118: 18 | AT118: VV | AU118: 2 | AV118: 2 | AW118: -1 | AX118: 1 | AY118: ROZPOCET
C119: 5 | D119: K | E119: 132202109 | F119: Příplatek za lepivost u hloubení rýh š do 600 mm ručním nebo pneum nářadím v hornině tř. 3 | G119: m3 | H119: 9 | J119: =ROUND($I$119*$H$119,2) -> 0 | K119: CS ÚRS 2014 02 | N119: základní | Q119: 0 | R119: =$Q$119*$H$119 -> 0 | S119: 0 | T119: =$S$119*$H$119 -> 0 | AR119: 4 | AT119: K | AU119: 2 | AY119: ROZPOCET | BE119: =IF($N$119="základní",$J$119,0) -> 0 | BF119: =IF($N$119="snížená",$J$119,0) -> 0 | BG119: =IF($N$119="zákl. přenesená",$J$119,0) -> 0 | BH119: =IF($N$119="sníž. přenesená",$J$119,0) -> 0 | BI119: =IF($N$119="nulová",$J$119,0) -> 0 | BJ119: 1 | BK119: =ROUND($I$119*$H$119,2) -> 0 | BL119: 4 | BM119: -149119233
D120: PP | F120: Hloubení zapažených i nezapažených rýh šířky do 600 mm ručním nebo pneumatickým nářadím s urovnáním dna do předepsaného profilu a spádu v horninách tř. 3 Příplatek k cenám za lepivost horniny tř. 3 | AT120: PP | AU120: 2
D121: PSC | F121: Poznámka k souboru cen: 1. V cenách jsou započteny i náklady na přehození výkopku na přilehlém terénu na vzdálenost do 3 m od podélné osy rýhy nebo naložení výkopku na dopravní prostředek. 2. V cenách 10-2101 až 40-2102 jsou započteny i náklady na i svislý přesun horniny po házečkách do 2 metrů. | AT121: PSC | AU121: 2
D122: VV | F122: lepivost 50% | AT122: VV | AU122: 2 | AV122: 1 | AW122: -1 | AX122: 0 | AY122: ROZPOCET
D123: VV | F123: pol.132202101 | AT123: VV | AU123: 2 | AV123: 1 | AW123: -1 | AX123: 0 | AY123: ROZPOCET
D124: VV | F124: 18,0*0,5 | H124: 9 | AT124: VV | AU124: 2 | AV124: 2 | AW124: -1 | AX124: 1 | AY124: ROZPOCET
C125: 6 | D125: K | E125: 132201201 | F125: Hloubení rýh š do 2000 mm v hornině tř. 3 objemu do 100 m3 | G125: m3 | H125: 30 | J125: =ROUND($I$125*$H$125,2) -> 0 | K125: CS ÚRS 2014 02 | N125: základní | Q125: 0 | R125: =$Q$125*$H$125 -> 0 | S125: 0 | T125: =$S$125*$H$125 -> 0 | AR125: 4 | AT125: K | AU125: 2 | AY125: ROZPOCET | BE125: =IF($N$125="základní",$J$125,0) -> 0 | BF125: =IF($N$125="snížená",$J$125,0) -> 0 | BG125: =IF($N$125="zákl. přenesená",$J$125,0) -> 0 | BH125: =IF($N$125="sníž. přenesená",$J$125,0) -> 0 | BI125: =IF($N$125="nulová",$J$125,0) -> 0 | BJ125: 1 | BK125: =ROUND($I$125*$H$125,2) -> 0 | BL125: 4 | BM125: -610646992
D126: PP | F126: Hloubení zapažených i nezapažených rýh šířky přes 600 do 2 000 mm s urovnáním dna do předepsaného profilu a spádu v hornině tř. 3 do 100 m3 | AT126: PP | AU126: 2
D127: PSC | F127: Poznámka k souboru cen: 1. V cenách jsou započteny i náklady na případné nutné přemístění výkopku ve výkopišti na vzdálenost do 3 m a na přehození výkopku na přilehlém terénu na vzdálenost do 5 m od okraje jámy nebo naložení na dopravní prostředek. 2. Hloubení rýh při lesnicko-technických melioracích se oceňuje: a) ve stržích cenami platnými pro objem výkopu do 100 m3, i když skutečný objem výkopu je větší, b) mimo strže pro příčná a podélná zpevnění dna a břehů pod obrysem výkopu pro koryta vodotečí, zejména pro konstrukce těles, stupňů, boků, předprahů, prahů, odháněk, výhonů a pro základy zdí, dlažeb, rovnanin, plůtků a hatí, pro jakoukoliv šířku rýhy, při objemu do 100 m3 cenami příslušnými pro objem výkopu do 100 m3 a při jakémkoliv objemu výkopu přes 100 m3 cenami příslušnými pro objem výkopu přes 100 do 1 000 m3. 3. Náklady na svislé přemístění výkopku nad 1 m hloubky se určí dle ustanovení článku č. 3161 všeobecných podmínek katalogu. 4. Předepisuje-li projekt hloubit rýhy 5 až 7 bez použití trhavin, oceňuje se toto hloubení: a) v suchu nebo mokru cenami 138 40-1201, 138 50-1201 a 138 60-1201 Dolamování hloubených vykopávek, b) v tekoucí vodě při jakékoliv její rychlosti individuálně. 5. Ceny nelze použít pro hloubení rýh a hloubky přes 16 m. Tyto práce se oceňují individuálně. | AT127: PSC | AU127: 2
D128: VV | F128: dle specifikace prací v technické zprávě | AT128: VV | AU128: 2 | AV128: 1 | AW128: -1 | AX128: 0 | AY128: ROZPOCET
D129: VV | F129: odvodnění uličních vpustí -dl.20 m | AT129: VV | AU129: 2 | AV129: 1 | AW129: -1 | AX129: 0 | AY129: ROZPOCET
D130: VV | F130: průměrná hl.1,2 m | AT130: VV | AU130: 2 | AV130: 1 | AW130: -1 | AX130: 0 | AY130: ROZPOCET
D131: VV | F131: 1,0*1,5*20,0 | H131: 30 | AT131: VV | AU131: 2 | AV131: 2 | AW131: -1 | AX131: 1 | AY131: ROZPOCET
C132: 7 | D132: K | E132: 132201209 | F132: Příplatek za lepivost k hloubení rýh š do 2000 mm v hornině tř. 3 | G132: m3 | H132: 15 | J132: =ROUND($I$132*$H$132,2) -> 0 | K132: CS ÚRS 2014 02 | N132: základní | Q132: 0 | R132: =$Q$132*$H$132 -> 0 | S132: 0 | T132: =$S$132*$H$132 -> 0 | AR132: 4 | AT132: K | AU132: 2 | AY132: ROZPOCET | BE132: =IF($N$132="základní",$J$132,0) -> 0 | BF132: =IF($N$132="snížená",$J$132,0) -> 0 | BG132: =IF($N$132="zákl. přenesená",$J$132,0) -> 0 | BH132: =IF($N$132="sníž. přenesená",$J$132,0) -> 0 | BI132: =IF($N$132="nulová",$J$132,0) -> 0 | BJ132: 1 | BK132: =ROUND($I$132*$H$132,2) -> 0 | BL132: 4 | BM132: -837648518
D133: PP | F133: Hloubení zapažených i nezapažených rýh šířky přes 600 do 2 000 mm s urovnáním dna do předepsaného profilu a spádu v hornině tř. 3 Příplatek k cenám za lepivost horniny tř. 3 | AT133: PP | AU133: 2
D134: PSC | F134: Poznámka k souboru cen: 1. V cenách jsou započteny i náklady na případné nutné přemístění výkopku ve výkopišti na vzdálenost do 3 m a na přehození výkopku na přilehlém terénu na vzdálenost do 5 m od okraje jámy nebo naložení na dopravní prostředek. 2. Hloubení rýh při lesnicko-technických melioracích se oceňuje: a) ve stržích cenami platnými pro objem výkopu do 100 m3, i když skutečný objem výkopu je větší, b) mimo strže pro příčná a podélná zpevnění dna a břehů pod obrysem výkopu pro koryta vodotečí, zejména pro konstrukce těles, stupňů, boků, předprahů, prahů, odháněk, výhonů a pro základy zdí, dlažeb, rovnanin, plůtků a hatí, pro jakoukoliv šířku rýhy, při objemu do 100 m3 cenami příslušnými pro objem výkopu do 100 m3 a při jakémkoliv objemu výkopu přes 100 m3 cenami příslušnými pro objem výkopu přes 100 do 1 000 m3. 3. Náklady na svislé přemístění výkopku nad 1 m hloubky se určí dle ustanovení článku č. 3161 všeobecných podmínek katalogu. 4. Předepisuje-li projekt hloubit rýhy 5 až 7 bez použití trhavin, oceňuje se toto hloubení: a) v suchu nebo mokru cenami 138 40-1201, 138 50-1201 a 138 60-1201 Dolamování hloubených vykopávek, b) v tekoucí vodě při jakékoliv její rychlosti individuálně. 5. Ceny nelze použít pro hloubení rýh a hloubky přes 16 m. Tyto práce se oceňují individuálně. | AT134: PSC | AU134: 2
D135: VV | F135: lepivost 50% | AT135: VV | AU135: 2 | AV135: 1 | AW135: -1 | AX135: 0 | AY135: ROZPOCET
D136: VV | F136: pol.132201201 | AT136: VV | AU136: 2 | AV136: 1 | AW136: -1 | AX136: 0 | AY136: ROZPOCET
D137: VV | F137: 30,0*0,5 | H137: 15 | AT137: VV | AU137: 2 | AV137: 2 | AW137: -1 | AX137: 1 | AY137: ROZPOCET
C138: 8 | D138: K | E138: 175101101 | F138: Obsypání potrubí bez prohození sypaniny z hornin tř. 1 až 4 uloženým do 3 m od kraje výkopu | G138: m3 | H138: 8.7 | J138: =ROUND($I$138*$H$138,2) -> 0 | K138: CS ÚRS 2014 02 | N138: základní | Q138: 0 | R138: =$Q$138*$H$138 -> 0 | S138: 0 | T138: =$S$138*$H$138 -> 0 | AR138: 4 | AT138: K | AU138: 2 | AY138: ROZPOCET | BE138: =IF($N$138="základní",$J$138,0) -> 0 | BF138: =IF($N$138="snížená",$J$138,0) -> 0 | BG138: =IF($N$138="zákl. přenesená",$J$138,0) -> 0 | BH138: =IF($N$138="sníž. přenesená",$J$138,0) -> 0 | BI138: =IF($N$138="nulová",$J$138,0) -> 0 | BJ138: 1 | BK138: =ROUND($I$138*$H$138,2) -> 0 | BL138: 4 | BM138: 1115734945
D139: PP | F139: Obsypání potrubí sypaninou z vhodných hornin tř. 1 až 4 nebo materiálem připraveným podél výkopu ve vzdálenosti do 3 m od jeho kraje, pro jakoukoliv hloubku výkopu a míru zhutnění bez prohození sypaniny | AT139: PP | AU139: 2
D140: PSC | F140: Poznámka k souboru cen: 1. Objem obsypu na 1 m délky potrubí se rovná šířce dna výkopu násobené součtem vnějšího průměru potrubí příp. i s obalem a projektované tloušťky obsypu nad, případně i pod potrubím. Pro odečítání objemu potrubí se započítávají všechny vestavěné konstrukce nebo uložené vedení i s jejich obklady a podklady (tento objem se nazývá objemem horniny vytlačené konstrukcí). 2. Míru zhutnění předepisuje projekt. 3. V cenách nejsou zahrnuty náklady na nakupovanou sypaninu. Tato se oceňuje ve specifikaci. | AT140: PSC | AU140: 2
D141: VV | F141: odvodnění uličních vpustí -dl.20 m | AT141: VV | AU141: 2 | AV141: 1 | AW141: -1 | AX141: 0 | AY141: ROZPOCET
D142: VV | F142: obsyp pískem 30 cm nad vrchol potrubí | AT142: VV | AU142: 2 | AV142: 1 | AW142: -1 | AX142: 0 | AY142: ROZPOCET
D143: VV | F143: (bez dodávky písku) | AT143: VV | AU143: 2 | AV143: 1 | AW143: -1 | AX143: 0 | AY143: ROZPOCET
D144: VV | F144: 1,0*(0,15+0,3)*20,0 | H144: 9 | AT144: VV | AU144: 2 | AV144: 2 | AW144: -1 | AX144: 0 | AY144: ROZPOCET
D145: VV | F145: Mezisoučet A | H145: 9 | AT145: VV | AU145: 2 | AV145: 3 | AW145: -1 | AX145: 0 | AY145: ROZPOCET
D146: VV | F146: méně potrubí | AT146: VV | AU146: 2 | AV146: 1 | AW146: -1 | AX146: 0 | AY146: ROZPOCET
D147: VV | F147: -3,14*0,075*0,075*20,0+0,053 | H147: -0.3 | AT147: VV | AU147: 2 | AV147: 2 | AW147: -1 | AX147: 0 | AY147: ROZPOCET
D148: VV | F148: Součet | H148: 8.7 | AT148: VV | AU148: 2 | AV148: 4 | AW148: -1 | AX148: 1 | AY148: ROZPOCET
C149: 9 | D149: M | E149: 583313450 | F149: kamenivo těžené drobné frakce 0-4 | G149: t | H149: 16.127 | J149: =ROUND($I$149*$H$149,2) -> 0 | K149: CS ÚRS 2014 02 | N149: základní | Q149: 1 | R149: =$Q$149*$H$149 -> 16.127 | S149: 0 | T149: =$S$149*$H$149 -> 0 | AR149: 8 | AT149: M | AU149: 2 | AY149: ROZPOCET | BE149: =IF($N$149="základní",$J$149,0) -> 0 | BF149: =IF($N$149="snížená",$J$149,0) -> 0 | BG149: =IF($N$149="zákl. přenesená",$J$149,0) -> 0 | BH149: =IF($N$149="sníž. přenesená",$J$149,0) -> 0 | BI149: =IF($N$149="nulová",$J$149,0) -> 0 | BJ149: 1 | BK149: =ROUND($I$149*$H$149,2) -> 0 | BL149: 4 | BM149: -491489098
D150: PP | F150: kamenivo přírodní těžené pro stavební účely PTK (drobné, hrubé, štěrkopísky) kamenivo těžené drobné D<=2 mm (ČSN EN 13043 ) D<=4 mm (ČSN EN 12620, ČSN EN 13139 ) d=0 mm, D<=6,3 mm (ČSN EN 13242) frakce 0-4 tříděná | AT150: PP | AU150: 2
D151: VV | F151: k pol.175101101 | AT151: VV | AU151: 2 | AV151: 1 | AW151: -1 | AX151: 0 | AY151: ROZPOCET
D152: VV | F152: hutnění 10%, ztratné 1% | AT152: VV | AU152: 2 | AV152: 1 | AW152: -1 | AX152: 0 | AY152: ROZPOCET
D153: VV | F153: 8,7*1,67*1,11 | H153: 16.127 | AT153: VV | AU153: 2 | AV153: 2 | AW153: -1 | AX153: 1 | AY153: ROZPOCET
C154: 10 | D154: K | E154: 174101101 | F154: Zásyp jam, šachet rýh nebo kolem objektů sypaninou se zhutněním | G154: m3 | H154: 24.4 | J154: =ROUND($I$154*$H$154,2) -> 0 | K154: CS ÚRS 2014 02 | N154: základní | Q154: 0 | R154: =$Q$154*$H$154 -> 0 | S154: 0 | T154: =$S$154*$H$154 -> 0 | AR154: 4 | AT154: K | AU154: 2 | AY154: ROZPOCET | BE154: =IF($N$154="základní",$J$154,0) -> 0 | BF154: =IF($N$154="snížená",$J$154,0) -> 0 | BG154: =IF($N$154="zákl. přenesená",$J$154,0) -> 0 | BH154: =IF($N$154="sníž. přenesená",$J$154,0) -> 0 | BI154: =IF($N$154="nulová",$J$154,0) -> 0 | BJ154: 1 | BK154: =ROUND($I$154*$H$154,2) -> 0 | BL154: 4 | BM154: 760769753
D155: PP | F155: Zásyp sypaninou z jakékoliv horniny s uložením výkopku ve vrstvách se zhutněním jam, šachet, rýh nebo kolem objektů v těchto vykopávkách | AT155: PP | AU155: 2
D156: PSC | F156: Poznámka k souboru cen: 1. Ceny 174 10- . . jsou určeny pro zhutněné zásypy s mírou zhutnění: a) z hornin soudržných do 100 % PS, b) z hornin nesoudržných do I(d) 0,9, c) z hornin kamenitých pro jakoukoliv míru zhutnění. 2. Je-li projektem předepsáno vyšší zhutnění, podle bodu a) a b) poznámky č 1., ocení se zásyp individuálně. 3. Ceny nelze použít pro zásyp rýh pro drenážní trativody pro lesnicko-technické meliorace a zemědělské. Zásyp těchto rýh se oceňuje cenami souboru cen 174 20-3 . části A 03 Zemní práce pro objekty oborů 831 až 833. Nezhutněný zásyp odvodňovacích kanálů z betonových a železobetonových trub v polních a lučních tratích se oceňuje cenou -1101 Zásyp sypaninou rýh bez ohledu na šířku kanálu; cena obsahuje i náklady na ruční nezhutněný zásyp výšky do 200 mm nad vrchol potrubí. 4. V cenách 10-1101, 10-1103, 20-1101 a 20-1103 je započteno přemístění sypaniny ze vzdálenosti 10 m od kraje výkopu nebo zasypávaného prostoru, měřeno k těžišti skládky. 5. V ceně 10-1102 je započteno přemístění sypaniny ze vzdálenosti 15 m od hrany zasypávaného prostoru, měřeno k těžišti skládky. 6. Objem zásypu je rozdíl objemu výkopu a objemu do něho vestavěných konstrukcí nebo uložených vedení i s jejich obklady a podklady (tento objem se nazývá objemem horniny vytlačené konstrukcí). Objem potrubí do DN 180, příp. i s obalem, se od objemu zásypu neodečítá. Pro stanovení objemu zásypu se od objemu výkopu odečítá i objem obsypu potrubí oceňovaný cenami souboru cen 175 10-11 Obsyp potrubí, přichází-li v úvahu . 7. Odklizení zbylého výkopku po provedení zásypu zářezů se šikmými stěnami pro podzemní vedení nebo zásypu jam a rýh pro podzemní vedení se oceňuje, je-li objem zbylého výkopku: a) do 1 m3 na 1 m vedení a jedná se o výkopek neulehlý - cenami souboru cen 167 10-110 Nakládání výkopku nebo sypaniny a 162 . 0-1 . Vodorovné přemístění výkopku. V případě, že se jedná o výkopek ulehlý - rozpojení a naložení výkopku cenami souboru cen 122 . 0-1 . souboru cen 162 . 0-1 . Vodorovné přemístění výkopku; b) přes 1 m3 na 1 m vedení, jestliže projekt předepíše, že se zbylý výkopek bude odklízet zároveň s prováděním vykopávky, pouze přemístění výkopku cenami souboru cen 162 . 0-1 . Vodorovné přemístění výkopku. Při zmíněném objemu zbylého výkopku se neoceňuje ani naložení ani rozpojení výkopku. Jestliže se zbylý výkopek neodklízí, nýbrž rozprostírá podél výkopu a nad výkopem, platí poznámka č. 8. 8. Rozprostření zbylého výkopku podél výkopu a nad výkopem po provedení zásypů zářezů se šikmými stěnami pro podzemní vedení nebo zásypu jam a rýh pro podzemní vedení se oceňuje: a) cenou 171 20-1101 Uložení sypaniny do nezhutněných násypů, není-li projektem předepsáno zhutnění rozprostřeného zbylého výkopku, b) cenou 171 10-1111 Uložení sypaniny do násypů z hornin sypkých, je-li předepsáno zhutnění rozprostřeného zbylého výkopku, a to v objemu vypočteném podle poznámky č.6, příp. zmenšeném o objem výkopku, který byl již odklizen. 9. Míru zhutnění předepisuje projekt. | AT156: PSC | AU156: 2
D157: VV | F157: odvodnění vpustí | AT157: VV | AU157: 2 | AV157: 1 | AW157: -1 | AX157: 0 | AY157: ROZPOCET
D158: VV | F158: výkop - pol.132201201 | AT158: VV | AU158: 2 | AV158: 1 | AW158: -1 | AX158: 0 | AY158: ROZPOCET
D159: VV | F159: 30,0 | H159: 30 | AT159: VV | AU159: 2 | AV159: 2 | AW159: -1 | AX159: 0 | AY159: ROZPOCET
D160: VV | F160: méně lože a obsyp potrubí | AT160: VV | AU160: 2 | AV160: 1 | AW160: -1 | AX160: 0 | AY160: ROZPOCET
D161: VV | F161: pol.451572111+175101101mezisoučet A | AT161: VV | AU161: 2 | AV161: 1 | AW161: -1 | AX161: 0 | AY161: ROZPOCET
D162: VV | F162: -(2,0+9,0) | H162: -11 | AT162: VV | AU162: 2 | AV162: 2 | AW162: -1 | AX162: 0 | AY162: ROZPOCET
D163: VV | F163: zásyp kabelových chráničet | AT163: VV | AU163: 2 | AV163: 1 | AW163: -1 | AX163: 0 | AY163: ROZPOCET
D164: VV | F164: pol.132202101 | AT164: VV | AU164: 2 | AV164: 1 | AW164: -1 | AX164: 0 | AY164: ROZPOCET
D165: VV | F165: 18,0 | H165: 18 | AT165: VV | AU165: 2 | AV165: 2 | AW165: -1 | AX165: 0 | AY165: ROZPOCET
D166: VV | F166: méně obetonování pol.899623151 (odd.93) | AT166: VV | AU166: 2 | AV166: 1 | AW166: -1 | AX166: 0 | AY166: ROZPOCET
D167: VV | F167: -12,6 | H167: -12.6 | AT167: VV | AU167: 2 | AV167: 2 | AW167: -1 | AX167: 0 | AY167: ROZPOCET
D168: VV | F168: Součet | H168: 24.4 | AT168: VV | AU168: 2 | AV168: 4 | AW168: -1 | AX168: 1 | AY168: ROZPOCET
C169: 11 | D169: K | E169: 162701105 | F169: Vodorovné přemístění do 10000 m výkopku/sypaniny z horniny tř. 1 až 4 | G169: m3 | H169: 605.6 | J169: =ROUND($I$169*$H$169,2) -> 0 | K169: CS ÚRS 2014 02 | N169: základní | Q169: 0 | R169: =$Q$169*$H$169 -> 0 | S169: 0 | T169: =$S$169*$H$169 -> 0 | AR169: 4 | AT169: K | AU169: 2 | AY169: ROZPOCET | BE169: =IF($N$169="základní",$J$169,0) -> 0 | BF169: =IF($N$169="snížená",$J$169,0) -> 0 | BG169: =IF($N$169="zákl. přenesená",$J$169,0) -> 0 | BH169: =IF($N$169="sníž. přenesená",$J$169,0) -> 0 | BI169: =IF($N$169="nulová",$J$169,0) -> 0 | BJ169: 1 | BK169: =ROUND($I$169*$H$169,2) -> 0 | BL169: 4 | BM169: 1542549526
D170: PP | F170: Vodorovné přemístění výkopku nebo sypaniny po suchu na obvyklém dopravním prostředku, bez naložení výkopku, avšak se složením bez rozhrnutí z horniny tř. 1 až 4 na vzdálenost přes 9 000 do 10 000 m | AT170: PP | AU170: 2
D171: PSC | F171: Poznámka k souboru cen: 1. Ceny nelze použít, předepisuje-li projekt přemístit výkopek na místo nepřístupné obvyklým dopravním prostředkům; toto přemístění se oceňuje individuálně. 2. V cenách jsou započteny i náhrady za jízdu loženého vozidla v terénu ve výkopišti nebo na násypišti. 3. V cenách nejsou započteny náklady na rozhrnutí výkopku na násypišti; toto rozhrnutí se oceňuje cenami souboru cen 171 . 0- . . Uložení sypaniny do násypů a 171 20-1201Uložení sypaniny na skládky. 4. Je-li na dopravní dráze pro vodorovné přemístění nějaká překážka, pro kterou je nutno překládat výkopek z jednoho obvyklého dopravního prostředku na jiný obvyklý doprav- ní prostředek, oceňuje se toto lomené vodorovné přemístění výkopku v každém úseku samostatně příslušnou cenou tohoto souboru cen a překládání výkopku cenami souboru cen 167 10-3 . Nakládání neulehlého výkopku z hromad s ohledem na ustanovení pozn. číslo 5. 5. Přemísťuje-li se výkopek z dočasných skládek vzdálených do 50 m, neoceňuje se nakládání výkopku, i když se provádí. Toto ustanovení neplatí, vylučuje-li projekt použití dozeru. 6. V cenách vodorovného přemístění sypaniny nejsou započteny náklady na dodávku materiálu, tyto se oceňují ve specifikaci. | AT171: PSC | AU171: 2
D172: VV | F172: přebytečná zemina | AT172: VV | AU172: 2 | AV172: 1 | AW172: -1 | AX172: 0 | AY172: ROZPOCET
D173: VV | F173: pol.122102202+122202202 | AT173: VV | AU173: 2 | AV173: 1 | AW173: -1 | AX173: 0 | AY173: ROZPOCET
D174: VV | F174: 160,0+480,0 | H174: 640 | AT174: VV | AU174: 2 | AV174: 2 | AW174: -1 | AX174: 0 | AY174: ROZPOCET
D175: VV | F175: pol.132201201 | AT175: VV | AU175: 2 | AV175: 1 | AW175: -1 | AX175: 0 | AY175: ROZPOCET
D176: VV | F176: 30,0 | H176: 30 | AT176: VV | AU176: 2 | AV176: 2 | AW176: -1 | AX176: 0 | AY176: ROZPOCET
D177: VV | F177: méně | AT177: VV | AU177: 2 | AV177: 1 | AW177: -1 | AX177: 0 | AY177: ROZPOCET
D178: VV | F178: pol.17110103+174101101 | AT178: VV | AU178: 2 | AV178: 1 | AW178: -1 | AX178: 0 | AY178: ROZPOCET
D179: VV | F179: -(40,0+24,4) | H179: -64.4 | AT179: VV | AU179: 2 | AV179: 2 | AW179: -1 | AX179: 0 | AY179: ROZPOCET
D180: VV | F180: Součet | H180: 605.6 | AT180: VV | AU180: 2 | AV180: 4 | AW180: -1 | AX180: 1 | AY180: ROZPOCET
C181: 12 | D181: K | E181: 162701109 | F181: Příplatek k vodorovnému přemístění výkopku/sypaniny z horniny tř. 1 až 4 ZKD 1000 m přes 10000 m | G181: m3 | H181: 3028 | J181: =ROUND($I$181*$H$181,2) -> 0 | K181: CS ÚRS 2014 02 | N181: základní | Q181: 0 | R181: =$Q$181*$H$181 -> 0 | S181: 0 | T181: =$S$181*$H$181 -> 0 | AR181: 4 | AT181: K | AU181: 2 | AY181: ROZPOCET | BE181: =IF($N$181="základní",$J$181,0) -> 0 | BF181: =IF($N$181="snížená",$J$181,0) -> 0 | BG181: =IF($N$181="zákl. přenesená",$J$181,0) -> 0 | BH181: =IF($N$181="sníž. přenesená",$J$181,0) -> 0 | BI181: =IF($N$181="nulová",$J$181,0) -> 0 | BJ181: 1 | BK181: =ROUND($I$181*$H$181,2) -> 0 | BL181: 4 | BM181: -408150175
D182: PP | F182: Vodorovné přemístění výkopku nebo sypaniny po suchu na obvyklém dopravním prostředku, bez naložení výkopku, avšak se složením bez rozhrnutí z horniny tř. 1 až 4 na vzdálenost Příplatek k ceně za každých dalších i započatých 1 000 m | AT182: PP | AU182: 2
D183: PSC | F183: Poznámka k souboru cen: 1. Ceny nelze použít, předepisuje-li projekt přemístit výkopek na místo nepřístupné obvyklým dopravním prostředkům; toto přemístění se oceňuje individuálně. 2. V cenách jsou započteny i náhrady za jízdu loženého vozidla v terénu ve výkopišti nebo na násypišti. 3. V cenách nejsou započteny náklady na rozhrnutí výkopku na násypišti; toto rozhrnutí se oceňuje cenami souboru cen 171 . 0- . . Uložení sypaniny do násypů a 171 20-1201Uložení sypaniny na skládky. 4. Je-li na dopravní dráze pro vodorovné přemístění nějaká překážka, pro kterou je nutno překládat výkopek z jednoho obvyklého dopravního prostředku na jiný obvyklý doprav- ní prostředek, oceňuje se toto lomené vodorovné přemístění výkopku v každém úseku samostatně příslušnou cenou tohoto souboru cen a překládání výkopku cenami souboru cen 167 10-3 . Nakládání neulehlého výkopku z hromad s ohledem na ustanovení pozn. číslo 5. 5. Přemísťuje-li se výkopek z dočasných skládek vzdálených do 50 m, neoceňuje se nakládání výkopku, i když se provádí. Toto ustanovení neplatí, vylučuje-li projekt použití dozeru. 6. V cenách vodorovného přemístění sypaniny nejsou započteny náklady na dodávku materiálu, tyto se oceňují ve specifikaci. | AT183: PSC | AU183: 2
D184: VV | F184: celkem 15 km | AT184: VV | AU184: 2 | AV184: 1 | AW184: -1 | AX184: 0 | AY184: ROZPOCET
D185: VV | F185: 605,6*(15-10) | H185: 3028 | AT185: VV | AU185: 2 | AV185: 2 | AW185: -1 | AX185: 1 | AY185: ROZPOCET
C186: 13 | D186: K | E186: 162301101 | F186: Vodorovné přemístění do 500 m výkopku/sypaniny z horniny tř. 1 až 4 | G186: m3 | H186: 72 | J186: =ROUND($I$186*$H$186,2) -> 0 | K186: CS ÚRS 2014 02 | N186: základní | Q186: 0 | R186: =$Q$186*$H$186 -> 0 | S186: 0 | T186: =$S$186*$H$186 -> 0 | AR186: 4 | AT186: K | AU186: 2 | AY186: ROZPOCET | BE186: =IF($N$186="základní",$J$186,0) -> 0 | BF186: =IF($N$186="snížená",$J$186,0) -> 0 | BG186: =IF($N$186="zákl. přenesená",$J$186,0) -> 0 | BH186: =IF($N$186="sníž. přenesená",$J$186,0) -> 0 | BI186: =IF($N$186="nulová",$J$186,0) -> 0 | BJ186: 1 | BK186: =ROUND($I$186*$H$186,2) -> 0 | BL186: 4 | BM186: 508777458
D187: PP | F187: Vodorovné přemístění výkopku nebo sypaniny po suchu na obvyklém dopravním prostředku, bez naložení výkopku, avšak se složením bez rozhrnutí z horniny tř. 1 až 4 na vzdálenost přes 50 do 500 m | AT187: PP | AU187: 2
D188: PSC | F188: Poznámka k souboru cen: 1. Ceny nelze použít, předepisuje-li projekt přemístit výkopek na místo nepřístupné obvyklým dopravním prostředkům; toto přemístění se oceňuje individuálně. 2. V cenách jsou započteny i náhrady za jízdu loženého vozidla v terénu ve výkopišti nebo na násypišti. 3. V cenách nejsou započteny náklady na rozhrnutí výkopku na násypišti; toto rozhrnutí se oceňuje cenami souboru cen 171 . 0- . . Uložení sypaniny do násypů a 171 20-1201Uložení sypaniny na skládky. 4. Je-li na dopravní dráze pro vodorovné přemístění nějaká překážka, pro kterou je nutno překládat výkopek z jednoho obvyklého dopravního prostředku na jiný obvyklý doprav- ní prostředek, oceňuje se toto lomené vodorovné přemístění výkopku v každém úseku samostatně příslušnou cenou tohoto souboru cen a překládání výkopku cenami souboru cen 167 10-3 . Nakládání neulehlého výkopku z hromad s ohledem na ustanovení pozn. číslo 5. 5. Přemísťuje-li se výkopek z dočasných skládek vzdálených do 50 m, neoceňuje se nakládání výkopku, i když se provádí. Toto ustanovení neplatí, vylučuje-li projekt použití dozeru. 6. V cenách vodorovného přemístění sypaniny nejsou započteny náklady na dodávku materiálu, tyto se oceňují ve specifikaci. | AT188: PSC | AU188: 2
D189: VV | F189: ornice z meziskládky k místu rozprostření | AT189: VV | AU189: 2 | AV189: 1 | AW189: -1 | AX189: 0 | AY189: ROZPOCET
D190: VV | F190: pol.181301102+182301122 | AT190: VV | AU190: 2 | AV190: 1 | AW190: -1 | AX190: 0 | AY190: ROZPOCET
D191: VV | F191: (180,0+300,0)*0,15 | H191: 72 | AT191: VV | AU191: 2 | AV191: 2 | AW191: -1 | AX191: 1 | AY191: ROZPOCET
C192: 14 | D192: K | E192: 167101101 | F192: Nakládání výkopku z hornin tř. 1 až 4 do 100 m3 | G192: m3 | H192: 72 | J192: =ROUND($I$192*$H$192,2) -> 0 | K192: CS ÚRS 2014 02 | N192: základní | Q192: 0 | R192: =$Q$192*$H$192 -> 0 | S192: 0 | T192: =$S$192*$H$192 -> 0 | AR192: 4 | AT192: K | AU192: 2 | AY192: ROZPOCET | BE192: =IF($N$192="základní",$J$192,0) -> 0 | BF192: =IF($N$192="snížená",$J$192,0) -> 0 | BG192: =IF($N$192="zákl. přenesená",$J$192,0) -> 0 | BH192: =IF($N$192="sníž. přenesená",$J$192,0) -> 0 | BI192: =IF($N$192="nulová",$J$192,0) -> 0 | BJ192: 1 | BK192: =ROUND($I$192*$H$192,2) -> 0 | BL192: 4 | BM192: -1235290639
D193: PP | F193: Nakládání, skládání a překládání neulehlého výkopku nebo sypaniny nakládání, množství do 100 m3, z hornin tř. 1 až 4 | AT193: PP | AU193: 2
D194: PSC | F194: Poznámka k souboru cen: 1. Ceny -1101, -1151, -1102, -1152, -1103, -1153, jsou určeny pro nakládání, skládání a překládání na obvyklý nebo z obvyklého dopravního prostředku. Pro nakládání z lodi nebo na loď jsou určeny ceny -1105 a -1155. 2. Ceny -1105 a -1155 jsou určeny pro nakládání, překládání a vykládání na vzdálenost a) do 20 m vodorovně; vodorovná vzdálenost se měří od těžnice lodi k těžnici druhé lodi, nebo k těžišti hromady na břehu nebo k těžišti dopravního prostředku na suchu, b) do 4 m svisle; svislá vzdálenost se měří od pracovní hladiny vody k úrovni srovna- ného terénu v místě hromady nebo v místě dopravní plochy pro dopravní prostředek na suchu. Uvedenou svislou vzdálenost 4 m lze zvětšit, a to nejvýše do 6 m, jestliže je vodorovná vzdálenost uvedená v bodu a) kratší než 20 m nejméně o trojnásobek zvětšení výšky přes 4 m. 3. Množství měrných jednotek se určí v rostlém stavu horniny. | AT194: PSC | AU194: 2
D195: VV | F195: ornice z meziskládky k místu rozprostření | AT195: VV | AU195: 2 | AV195: 1 | AW195: -1 | AX195: 0 | AY195: ROZPOCET
D196: VV | F196: dle pol.162301101 | AT196: VV | AU196: 2 | AV196: 1 | AW196: -1 | AX196: 0 | AY196: ROZPOCET
D197: VV | F197: 72,0 | H197: 72 | AT197: VV | AU197: 2 | AV197: 2 | AW197: -1 | AX197: 1 | AY197: ROZPOCET
C198: 15 | D198: K | E198: 171101103 | F198: Uložení sypaniny z hornin soudržných do násypů zhutněných do 100 % PS | G198: m3 | H198: 40 | J198: =ROUND($I$198*$H$198,2) -> 0 | K198: CS ÚRS 2014 02 | N198: základní | Q198: 0 | R198: =$Q$198*$H$198 -> 0 | S198: 0 | T198: =$S$198*$H$198 -> 0 | AR198: 4 | AT198: K | AU198: 2 | AY198: ROZPOCET | BE198: =IF($N$198="základní",$J$198,0) -> 0 | BF198: =IF($N$198="snížená",$J$198,0) -> 0 | BG198: =IF($N$198="zákl. přenesená",$J$198,0) -> 0 | BH198: =IF($N$198="sníž. přenesená",$J$198,0) -> 0 | BI198: =IF($N$198="nulová",$J$198,0) -> 0 | BJ198: 1 | BK198: =ROUND($I$198*$H$198,2) -> 0 | BL198: 4 | BM198: 1583081247
D199: PP | F199: Uložení sypaniny do násypů s rozprostřením sypaniny ve vrstvách a s hrubým urovnáním zhutněných s uzavřením povrchu násypu z hornin soudržných s předepsanou mírou zhutnění v procentech výsledků zkoušek Proctor-Standard (dále jen PS) přes 96 do 100 % PS | AT199: PP | AU199: 2
D200: PSC | F200: Poznámka k souboru cen: 1. Ceny lze použít i pro sypaniny odebírané z hald, pro hlušinu apod. 2. Cenu 20-1101 lze použít i pro: a) rozprostření zbylého výkopu na místě po zásypu jam a rýh pro podzemní vedení a zářezů pro podzemní vedení; toto množství se určí v m3 uloženého výkopku, měřeného v rostlém stavu, b) uložení výkopku do násypů pod vodou. 3. Ceny lze použít i pro uložení sypaniny s předepsaným zhutněním na trvalé skládky, do koryt vodotečí a do prohlubní terénu. 4. Cenu 10-1131 lze použít i pro ukládání sypaniny z hornin nesoudržných i soudržných společně bez možnosti jejich roztřídění. 5. Ceny -1121 a -1131 lze použít jen tehdy, jestliže objem násypů, oceňovaných těmito cenami, měřený podle ustanovení čl. 3571 Všeobecných podmínek katalogu nepřesáhne 100 000 m3na objektu. Násypy, jejichž součet objemů přesáhne 100 000 m3 na objektu, se ocení individuálně. 6. Ceny jsou určeny pro míru zhutnění určenou projektem: a) pro ceny -1101 až -1105 v % výsledku zkoušky PS, b) pro ceny -1111 a -1112 relativní ulehlostí I(d), c) pro ceny -1121 a -1131 stanovením technologie. 7. Ceny nelze použít: a) pro uložení sypaniny do hrází; uložení netříděné sypaniny do hrází se oceňuje cenami souboru cen 171 uložení netříděných sypanin do hrází části A 03, případně cenovými normativy podle části A 31, b) pro uložení sypaniny do ochranných valů nebo těch jejich částí, jejichž šířka je menší než 3 m. Toto uložení se oceňuje cenami souboru cen 175 10-11 Obsyp objektů. 8. Cena 20-1101 neplatí pro uložení výkopku nebo ornice při vykopávkách pro podzemní vedení podél hrany výkopu, z něhož byl výkopek získán a to ani tehdy, jestliže se výkopek po vyhození z výkopiště na povrch území ještě dále přemísťuje na hromady . podél výkopu. 9. Horninami soudržnými se rozumějí takové horniny, u nichž zdrojem pevnosti jsou molekulární a chemické vazby mezi částicemi horniny. Jde o horniny, které jsou schopny plastických deformací. 10. Horninami nesoudržnými se rozumějí horniny, u nichž hlavním zdrojem pevnosti ve smyku je pouze tření mezi jednotlivými oddělenými pevnými částicemi horniny. 11. Horninami sypkými se rozumějí horniny III. skupiny podle ČSN 72 1002 se zrnem do 125 mm. Množství zrn velikosti přes 125 mm může být nejvýše 5 % objemu. 12. Horninami kamenitými se rozumějí nestmelené úlomkovité horniny skalní a sypké se zrny přes 125 mm. Množství zrn velikosti přes 125 mm musí být vyšší než 5 % objemu. 13. Ceny pro uložení soudržných hornin lze použít, jestliže jejich přirozená vlhkost při ukládání do násypu není vyšší než 2 % optimální vlhkosti dle zkoušky PS na neredukovaný materiál. Je-li vlhkost při ukládání sypaniny do násypu vyšší, ocení se uložení sypaniny individuálně. 14. Zajišťuje-li se předepsané zhutnění násypu přesypáním podle čl. 120 ČSN 73 3050, ocení se odstranění přesypané části cenami 122 . 0-71 Odkopávky nebo prokopávky při pozemkových úpravách | AT200: PSC | AU200: 2
D201: VV | F201: dle specifikace prací v technické zprávě | AT201: VV | AU201: 2 | AV201: 1 | AW201: -1 | AX201: 0 | AY201: ROZPOCET
D202: VV | F202: 40,0 | H202: 40 | AT202: VV | AU202: 2 | AV202: 2 | AW202: -1 | AX202: 1 | AY202: ROZPOCET
C203: 16 | D203: K | E203: 171201201 | F203: Uložení sypaniny na skládky | G203: m3 | H203: 605.6 | J203: =ROUND($I$203*$H$203,2) -> 0 | K203: CS ÚRS 2014 02 | N203: základní | Q203: 0 | R203: =$Q$203*$H$203 -> 0 | S203: 0 | T203: =$S$203*$H$203 -> 0 | AR203: 4 | AT203: K | AU203: 2 | AY203: ROZPOCET | BE203: =IF($N$203="základní",$J$203,0) -> 0 | BF203: =IF($N$203="snížená",$J$203,0) -> 0 | BG203: =IF($N$203="zákl. přenesená",$J$203,0) -> 0 | BH203: =IF($N$203="sníž. přenesená",$J$203,0) -> 0 | BI203: =IF($N$203="nulová",$J$203,0) -> 0 | BJ203: 1 | BK203: =ROUND($I$203*$H$203,2) -> 0 | BL203: 4 | BM203: 1912856486
D204: PP | F204: Uložení sypaniny na skládky | AT204: PP | AU204: 2
D205: PSC | F205: Poznámka k souboru cen: 1. Cena -1201 je určena i pro: a) uložení výkopku nebo ornice na dočasné skládky předepsané projektem tak, že na 1 m2 projektem určené plochy této skládky připadá přes 2 m3 výkopku nebo ornice; v opačném případě se uložení neoceňuje. Množství výkopku nebo ornice připadající na 1 m2 skládky se určí jako podíl množství výkopku nebo ornice, měřeného v rostlém stavu a projektem určené plochy dočasné skládky; b) zasypání koryt vodotečí a prohlubní v terénu bez předepsaného zhutnění sypaniny; c) uložení výkopku pod vodou do prohlubní ve dně vodotečí nebo nádrží. 2. Cenu -1201 nelze použít pro uložení výkopku nebo ornice: a) při vykopávkách pro podzemní vedení podél hrany výkopu, z něhož byl výkopek získán, a to ani tehdy, jestliže se výkopek po vyhození z výkopu na povrch území ještě dále přemisťuje na hromady podél výkopu; b) na dočasné skládky, které nejsou předepsány projektem; c) na dočasné skládky předepsané projektem tak, že na 1 m2 projektem určené plochy této skládky připadají nejvýše 2 m3 výkopku nebo ornice (viz. též poznámku č. 1 a); d) na dočasné skládky, oceňuje-li se cenou 121 10-1101 Sejmutí ornice nebo lesní půdy do 50 m, nebo oceňuje-li se vodorovné přemístění výkopku do 20 m a 50 m cenami 162 20-1101, 162 20-1102, 162 20-1151 a 162 20-1152. V těchto případech se uložení výkopku nebo ornice na dočasnou skládku neoceňuje. e) na trvalé skládky s předepsaným zhutněním; toto uložení výkopku se oceňuje cenami souboru cen 171 . 0- . . Uložení sypaniny do násypů. 3. V ceně -1201 jsou započteny i náklady na rozprostření sypaniny ve vrstvách s hrubým urovnáním na skládce. 4. V ceně -1201 nejsou započteny náklady na získání skládek ani na poplatky za skládku. 5. Množství jednotek uložení výkopku (sypaniny) se určí v m3 uloženého výkopku (sypaniny),v rostlém stavu zpravidla ve výkopišti. 6. Cenu -1211 lze po dohodě upravit podle místních podmínek. | AT205: PSC | AU205: 2
D206: VV | F206: dle pol.162701105 | AT206: VV | AU206: 2 | AV206: 1 | AW206: -1 | AX206: 0 | AY206: ROZPOCET
D207: VV | F207: 605,6 | H207: 605.6 | AT207: VV | AU207: 2 | AV207: 2 | AW207: -1 | AX207: 1 | AY207: ROZPOCET
C208: 17 | D208: K | E208: 1712012_R | F208: Poplatek za uložení odpadu ze sypaniny na skládce (skládkovné) | G208: t | H208: 908.4 | J208: =ROUND($I$208*$H$208,2) -> 0 | N208: základní | Q208: 0 | R208: =$Q$208*$H$208 -> 0 | S208: 0 | T208: =$S$208*$H$208 -> 0 | AR208: 4 | AT208: K | AU208: 2 | AY208: ROZPOCET | BE208: =IF($N$208="základní",$J$208,0) -> 0 | BF208: =IF($N$208="snížená",$J$208,0) -> 0 | BG208: =IF($N$208="zákl. přenesená",$J$208,0) -> 0 | BH208: =IF($N$208="sníž. přenesená",$J$208,0) -> 0 | BI208: =IF($N$208="nulová",$J$208,0) -> 0 | BJ208: 1 | BK208: =ROUND($I$208*$H$208,2) -> 0 | BL208: 4 | BM208: -479769795
D209: PP | F209: Poplatek za uložení odpadu ze sypaniny na skládce (skládkovné) | AT209: PP | AU209: 2
D210: PSC | F210: Poznámka k souboru cen: 1. Cena -1201 je určena i pro: a) uložení výkopku nebo ornice na dočasné skládky předepsané projektem tak, že na 1 m2 projektem určené plochy této skládky připadá přes 2 m3 výkopku nebo ornice; v opačném případě se uložení neoceňuje. Množství výkopku nebo ornice připadající na 1 m2 skládky se určí jako podíl množství výkopku nebo ornice, měřeného v rostlém stavu a projektem určené plochy dočasné skládky; b) zasypání koryt vodotečí a prohlubní v terénu bez předepsaného zhutnění sypaniny; c) uložení výkopku pod vodou do prohlubní ve dně vodotečí nebo nádrží. 2. Cenu -1201 nelze použít pro uložení výkopku nebo ornice: a) při vykopávkách pro podzemní vedení podél hrany výkopu, z něhož byl výkopek získán, a to ani tehdy, jestliže se výkopek po vyhození z výkopu na povrch území ještě dále přemisťuje na hromady podél výkopu; b) na dočasné skládky, které nejsou předepsány projektem; c) na dočasné skládky předepsané projektem tak, že na 1 m2 projektem určené plochy této skládky připadají nejvýše 2 m3 výkopku nebo ornice (viz. též poznámku č. 1 a); d) na dočasné skládky, oceňuje-li se cenou 121 10-1101 Sejmutí ornice nebo lesní půdy do 50 m, nebo oceňuje-li se vodorovné přemístění výkopku do 20 m a 50 m cenami 162 20-1101, 162 20-1102, 162 20-1151 a 162 20-1152. V těchto případech se uložení výkopku nebo ornice na dočasnou skládku neoceňuje. e) na trvalé skládky s předepsaným zhutněním; toto uložení výkopku se oceňuje cenami souboru cen 171 . 0- . . Uložení sypaniny do násypů. 3. V ceně -1201 jsou započteny i náklady na rozprostření sypaniny ve vrstvách s hrubým urovnáním na skládce. 4. V ceně -1201 nejsou započteny náklady na získání skládek ani na poplatky za skládku. 5. Množství jednotek uložení výkopku (sypaniny) se určí v m3 uloženého výkopku (sypaniny),v rostlém stavu zpravidla ve výkopišti. 6. Cenu -1211 lze po dohodě upravit podle místních podmínek. | AT210: PSC | AU210: 2
D211: VV | F211: 605,6*1,5 | H211: 908.4 | AT211: VV | AU211: 2 | AV211: 2 | AW211: -1 | AX211: 1 | AY211: ROZPOCET
C212: 18 | D212: K | E212: 181951102 | F212: Úprava pláně v hornině tř. 1 až 4 se zhutněním | G212: m2 | H212: 715 | J212: =ROUND($I$212*$H$212,2) -> 0 | K212: CS ÚRS 2014 02 | N212: základní | Q212: 0 | R212: =$Q$212*$H$212 -> 0 | S212: 0 | T212: =$S$212*$H$212 -> 0 | AR212: 4 | AT212: K | AU212: 2 | AY212: ROZPOCET | BE212: =IF($N$212="základní",$J$212,0) -> 0 | BF212: =IF($N$212="snížená",$J$212,0) -> 0 | BG212: =IF($N$212="zákl. přenesená",$J$212,0) -> 0 | BH212: =IF($N$212="sníž. přenesená",$J$212,0) -> 0 | BI212: =IF($N$212="nulová",$J$212,0) -> 0 | BJ212: 1 | BK212: =ROUND($I$212*$H$212,2) -> 0 | BL212: 4 | BM212: 900643108
D213: PP | F213: Úprava pláně vyrovnáním výškových rozdílů v hornině tř. 1 až 4 se zhutněním | AT213: PP | AU213: 2
D214: PSC | F214: Poznámka k souboru cen: 1. Ceny jsou určeny pro urovnání všech nově zřizovaných ploch (v zářezech i na násypech) vodorovných nebo ve sklonu do 1:5 pod zpevnění ploch jakéhokoliv druhu, pod humusování, (ne však pro plochy zásypu rýh pro podzemní vedení), drnování apod. a dále, předepíše-li projekt urovnání pláně z jiného důvodu. 2. Ceny nelze použít pro urovnání lavic (berem) šířky do 3 m přerušujících svahy, pro urovnání dna silničních a železničních příkopů pro jakoukoliv šířku dna; toto urovnání se oceňuje cenami souboru cen 182 .0-1 Svahování. 3. Urovnání ploch ve sklonu přes 1 : 5 se oceňuje cenami souboru cen 182 . 0-11 Svahování trvalých svahů do projektovaných profilů. 4. Náklady na urovnání dna a stěn při čištění příkopů pozemních komunikací jsou započteny v cenách souborů cen 938 90-2 . Čištění příkopů komunikací v suchu nebo ve vodě části A02 Zemní práce pro objekty oborů 821 až 828. 5. Míru zhutnění určuje projekt. Ceny se zhutněním jsou určeny pro jakoukoliv míru zhutnění. | AT214: PSC | AU214: 2
D215: VV | F215: živičná plocha | AT215: VV | AU215: 2 | AV215: 1 | AW215: -1 | AX215: 0 | AY215: ROZPOCET
D216: VV | F216: 620,0 | H216: 620 | AT216: VV | AU216: 2 | AV216: 2 | AW216: -1 | AX216: 0 | AY216: ROZPOCET
D217: VV | F217: chodníky | AT217: VV | AU217: 2 | AV217: 1 | AW217: -1 | AX217: 0 | AY217: ROZPOCET
D218: VV | F218: 85,0+10,0 | H218: 95 | AT218: VV | AU218: 2 | AV218: 2 | AW218: -1 | AX218: 0 | AY218: ROZPOCET
D219: VV | F219: Součet | H219: 715 | AT219: VV | AU219: 2 | AV219: 4 | AW219: -1 | AX219: 1 | AY219: ROZPOCET
C220: 19 | D220: K | E220: 181951101 | F220: Úprava pláně v hornině tř. 1 až 4 bez zhutnění | G220: m2 | H220: 180 | J220: =ROUND($I$220*$H$220,2) -> 0 | K220: CS ÚRS 2014 02 | N220: základní | Q220: 0 | R220: =$Q$220*$H$220 -> 0 | S220: 0 | T220: =$S$220*$H$220 -> 0 | AR220: 4 | AT220: K | AU220: 2 | AY220: ROZPOCET | BE220: =IF($N$220="základní",$J$220,0) -> 0 | BF220: =IF($N$220="snížená",$J$220,0) -> 0 | BG220: =IF($N$220="zákl. přenesená",$J$220,0) -> 0 | BH220: =IF($N$220="sníž. přenesená",$J$220,0) -> 0 | BI220: =IF($N$220="nulová",$J$220,0) -> 0 | BJ220: 1 | BK220: =ROUND($I$220*$H$220,2) -> 0 | BL220: 4 | BM220: -75179793
D221: PP | F221: Úprava pláně vyrovnáním výškových rozdílů v hornině tř. 1 až 4 bez zhutnění | AT221: PP | AU221: 2
D222: PSC | F222: Poznámka k souboru cen: 1. Ceny jsou určeny pro urovnání všech nově zřizovaných ploch (v zářezech i na násypech) vodorovných nebo ve sklonu do 1:5 pod zpevnění ploch jakéhokoliv druhu, pod humusování, (ne však pro plochy zásypu rýh pro podzemní vedení), drnování apod. a dále, předepíše-li projekt urovnání pláně z jiného důvodu. 2. Ceny nelze použít pro urovnání lavic (berem) šířky do 3 m přerušujících svahy, pro urovnání dna silničních a železničních příkopů pro jakoukoliv šířku dna; toto urovnání se oceňuje cenami souboru cen 182 .0-1 Svahování. 3. Urovnání ploch ve sklonu přes 1 : 5 se oceňuje cenami souboru cen 182 . 0-11 Svahování trvalých svahů do projektovaných profilů. 4. Náklady na urovnání dna a stěn při čištění příkopů pozemních komunikací jsou započteny v cenách souborů cen 938 90-2 . Čištění příkopů komunikací v suchu nebo ve vodě části A02 Zemní práce pro objekty oborů 821 až 828. 5. Míru zhutnění určuje projekt. Ceny se zhutněním jsou určeny pro jakoukoliv míru zhutnění. | AT222: PSC | AU222: 2
C223: 20 | D223: K | E223: 182101101 | F223: Svahování v zářezech v hornině tř. 1 až 4 | G223: m2 | H223: 300 | J223: =ROUND($I$223*$H$223,2) -> 0 | K223: CS ÚRS 2014 02 | N223: základní | Q223: 0 | R223: =$Q$223*$H$223 -> 0 | S223: 0 | T223: =$S$223*$H$223 -> 0 | AR223: 4 | AT223: K | AU223: 2 | AY223: ROZPOCET | BE223: =IF($N$223="základní",$J$223,0) -> 0 | BF223: =IF($N$223="snížená",$J$223,0) -> 0 | BG223: =IF($N$223="zákl. přenesená",$J$223,0) -> 0 | BH223: =IF($N$223="sníž. přenesená",$J$223,0) -> 0 | BI223: =IF($N$223="nulová",$J$223,0) -> 0 | BJ223: 1 | BK223: =ROUND($I$223*$H$223,2) -> 0 | BL223: 4 | BM223: -1103057914
D224: PP | F224: Svahování trvalých svahů do projektovaných profilů s potřebným přemístěním výkopku při svahování v zářezech v hornině tř. 1 až 4 | AT224: PP | AU224: 2
D225: PSC | F225: Poznámka k souboru cen: 1. Ceny jsou určeny pro svahování všech nově zřizovaných ploch výkopů nebo násypů ve sklonu přes 1 : 5 a pro úpravu lavic (berem) šířky do 3 m přerušujících svahy, pod jakékoliv zpevnění ploch, pod humusování, drnování apod., pro úpravy dna a stěn silničních a železničních příkopů a pro úpravy dna šířky do 1 m melioračních kanálů a vodotečí. 2. Ceny nelze použít pro urovnání stěn příkopů při čištění; toto urovnání se oceňuje cenami souboru cen 938 90-2 . čištění příkopů komunikací v suchu nebo ve vodě A02 Zemní práce pro objekty oborů 821 až 828. 3. Úprava ploch vodorovných nebo ve sklonu do 1 : 5 s výjimkou ustanovení v poznámce č. 1 se oceňuje cenami souboru cen 181 *0-11 Úprava pláně vyrovnáním výškových rozdílů. | AT225: PSC | AU225: 2
C226: 21 | D226: K | E226: 181301102 | F226: Rozprostření ornice tl vrstvy do 150 mm pl do 500 m2 v rovině nebo ve svahu do 1:5 | G226: m2 | H226: 180 | J226: =ROUND($I$226*$H$226,2) -> 0 | K226: CS ÚRS 2014 02 | N226: základní | Q226: 0 | R226: =$Q$226*$H$226 -> 0 | S226: 0 | T226: =$S$226*$H$226 -> 0 | AR226: 4 | AT226: K | AU226: 2 | AY226: ROZPOCET | BE226: =IF($N$226="základní",$J$226,0) -> 0 | BF226: =IF($N$226="snížená",$J$226,0) -> 0 | BG226: =IF($N$226="zákl. přenesená",$J$226,0) -> 0 | BH226: =IF($N$226="sníž. přenesená",$J$226,0) -> 0 | BI226: =IF($N$226="nulová",$J$226,0) -> 0 | BJ226: 1 | BK226: =ROUND($I$226*$H$226,2) -> 0 | BL226: 4 | BM226: -1854305224
D227: PP | F227: Rozprostření a urovnání ornice v rovině nebo ve svahu sklonu do 1:5 při souvislé ploše do 500 m2, tl. vrstvy přes 100 do 150 mm | AT227: PP | AU227: 2
D228: PSC | F228: Poznámka k souboru cen: 1. V ceně jsou započteny i náklady na případné nutné přemístění hromad nebo dočasných skládek na místo spotřeby ze vzdálenosti do 30 m. 2. V ceně nejsou započteny náklady na získání ornice; toto získání se oceňuje cenami souboru cen 121 10-11 Sejmutí ornice. 3. Případné nakládání ornice, v souvislosti s pozn. č. 3 se oceňuje cenami souboru cen 167 10-11 Nakládání, skládání a překládání neulehlého výkopku nebo sypaniny. 4. Jsou-li hromady nebo dočasné skládky ornice umístěny podle projektu ve vzdálenosti přes 30 m od místa spotřeby, oceňuje se její přemístění cenami souboru cen 162 . 0-1 . Vodorovné přemístění výkopku, přičemž se vzdálenost 30 m, uvedená v popisu cen, neodečítá. | AT228: PSC | AU228: 2
D229: VV | F229: dle pol.181951101 | AT229: VV | AU229: 2 | AV229: 1 | AW229: -1 | AX229: 0 | AY229: ROZPOCET
D230: VV | F230: 180,0 | H230: 180 | AT230: VV | AU230: 2 | AV230: 2 | AW230: -1 | AX230: 1 | AY230: ROZPOCET
C231: 22 | D231: K | E231: 182301122 | F231: Rozprostření ornice pl do 500 m2 ve svahu přes 1:5 tl vrstvy do 150 mm | G231: m2 | H231: 300 | J231: =ROUND($I$231*$H$231,2) -> 0 | K231: CS ÚRS 2014 02 | N231: základní | Q231: 0 | R231: =$Q$231*$H$231 -> 0 | S231: 0 | T231: =$S$231*$H$231 -> 0 | AR231: 4 | AT231: K | AU231: 2 | AY231: ROZPOCET | BE231: =IF($N$231="základní",$J$231,0) -> 0 | BF231: =IF($N$231="snížená",$J$231,0) -> 0 | BG231: =IF($N$231="zákl. přenesená",$J$231,0) -> 0 | BH231: =IF($N$231="sníž. přenesená",$J$231,0) -> 0 | BI231: =IF($N$231="nulová",$J$231,0) -> 0 | BJ231: 1 | BK231: =ROUND($I$231*$H$231,2) -> 0 | BL231: 4 | BM231: -1800236986
... 309 more rows

Sheet SO511 - SO 511 Přeložka ...
D1: List obsahuje: | F1: 1) Krycí list soupisu | G1: 2) Rekapitulace | J1: 3) Soupis prací | K1: Zpět na list: | L1: Rekapitulace stavby
AT2: {FF285C7C-12BB-4059-B31F-89B3DAE50A8D}
AT3: 2
D4: KRYCÍ LIST SOUPISU | M4: v --- níže se nacházejí doplnkové a pomocné údaje k sestavám --- v | AT4: False
D6: Stavba:
E7: ='Rekapitulace stavby'!$K$6 -> Město Sokolov - Záchytné parkoviště Michal
D8: Objekt:
E9: 1.E - 1.ETAPA
D10: Soupis:
E11: SO511 - SO 511 Přeložka VTL plynovodu
D13: KSO: | F13: 827 52 | I13: CC-CZ: | J13: 7941-26
D14: Místo: | F14: Sokolov | I14: Datum: | J14: ='Rekapitulace stavby'!$AN$8 -> 09.09.2014
D16: Zadavatel: | I16: IČ:
E17: Město Sokolov | I17: DIČ:
D19: Uchazeč: | I19: IČ: | J19: =IF('Rekapitulace stavby'!$AN$13="Vyplň údaj","",IF('Rekapitulace stavby'!$AN$13="","",'Rekapitulace stavby'!$AN$13)) -> 
E20: =IF('Rekapitulace stavby'!$E$14="Vyplň údaj","",IF('Rekapitulace stavby'!$E$14="","",'Rekapitulace stavby'!$E$14)) ->  | I20: DIČ: | J20: =IF('Rekapitulace stavby'!$AN$14="Vyplň údaj","",IF('Rekapitulace stavby'!$AN$14="","",'Rekapitulace stavby'!$AN$14)) -> 
D22: Projektant: | I22: IČ: | J22: 18224920
E23: BPO spol. s r.o., Lidická 1239, 363 17 Ostrov | I23: DIČ: | J23: CZ18224920
D25: Poznámka:
D29: Cena bez DPH | J29: =ROUND($J$89,2) -> 0
F31: Základ daně | I31: Sazba daně | J31: Výše daně
D32: DPH | E32: základní | F32: =ROUND(SUM($BE$89:$BE$274),2) -> 0 | I32: 0.21 | J32: =ROUND(SUM($BE$89:$BE$274)*$I$32,2) -> 0
E33: snížená | F33: =ROUND(SUM($BF$89:$BF$274),2) -> 0 | I33: 0.15 | J33: =ROUND(SUM($BF$89:$BF$274)*$I$33,2) -> 0
E34: zákl. přenesená | F34: =ROUND(SUM($BG$89:$BG$274),2) -> 0 | I34: 0.21 | J34: 0
E35: sníž. přenesená | F35: =ROUND(SUM($BH$89:$BH$274),2) -> 0 | I35: 0.15 | J35: 0
E36: nulová | F36: =ROUND(SUM($BI$89:$BI$274),2) -> 0 | I36: 0 | J36: 0
D38: Cena s DPH | G38: v | H38: CZK | J38: =ROUND(SUM($J$29:$J$36),2) -> 0
C44: REKAPITULACE ČLENĚNÍ SOUPISU PRACÍ
C46: Stavba:
E47: =$E$7 -> Město Sokolov - Záchytné parkoviště Michal
C48: Objekt:
E49: 1.E - 1.ETAPA
C50: Soupis:
E51: =$E$11 -> SO511 - SO 511 Přeložka VTL plynovodu
C53: Místo: | F53: =$F$14 -> Sokolov | I53: Datum: | J53: =IF($J$14="","",$J$14) -> 09.09.2014
C55: Zadavatel: | F55: =$E$17 -> Město Sokolov | I55: Projektant: | J55: =$E$23 -> BPO spol. s r.o., Lidická 1239, 363 17 Ostrov
C56: Uchazeč: | F56: =IF($E$20="","",$E$20) -> 
C58: Kód dílu - Popis | J58: Cena celkem [CZK]
C60: Náklady soupisu celkem | J60: =ROUND($J$89,2) -> 0 | AU60: -1
D61: HSV - Práce a dodávky HSV | J61: =ROUND($J$90,2) -> 0
D62: 1 - Zemní práce | J62: =ROUND($J$91,2) -> 0
D63: 8 - Trubní vedení | J63: =ROUND($J$167,2) -> 0
D64: 9 - Ostatní konstrukce a práce-bourání | J64: =ROUND($J$175,2) -> 0
D65: 99 - Přesun hmot | J65: =ROUND($J$176,2) -> 0
D66: M - Práce a dodávky M | J66: =ROUND($J$180,2) -> 0
D67: 23-M - Montáže potrubí | J67: =ROUND($J$181,2) -> 0
C74: SOUPIS PRACÍ
C76: Stavba:
E77: =$E$7 -> Město Sokolov - Záchytné parkoviště Michal
C78: Objekt:
E79: 1.E - 1.ETAPA
C80: Soupis:
E81: =$E$11 -> SO511 - SO 511 Přeložka VTL plynovodu
C83: Místo: | F83: =$F$14 -> Sokolov | I83: Datum: | J83: =IF($J$14="","",$J$14) -> 09.09.2014
C85: Zadavatel: | F85: =$E$17 -> Město Sokolov | I85: Projektant: | J85: =$E$23 -> BPO spol. s r.o., Lidická 1239, 363 17 Ostrov
C86: Uchazeč: | F86: =IF($E$20="","",$E$20) -> 
C88: PČ | D88: Typ | E88: Kód | F88: Popis | G88: MJ | H88: Množství | I88: J.cena [CZK] | J88: Cena celkem [CZK] | K88: Cenová soustava | M88: Poznámka | N88: DPH | O88: J. Nh [h] | P88: Nh celkem [h] | Q88: J. hmotnost [t] | R88: Hmotnost celkem [t] | S88: J. suť [t] | T88: Suť Celkem [t]
C89: Náklady soupisu celkem | J89: =$BK$89 -> 0 | P89: =$P$90+$P$180 -> 0 | R89: =$R$90+$R$180 -> 17.14475831 | T89: =$T$90+$T$180 -> 0 | AT89: D | AU89: -1 | BK89: =$BK$90+$BK$180 -> 0
D90: D | E90: HSV | F90: Práce a dodávky HSV | J90: =$BK$90 -> 0 | P90: =$P$91+$P$167+$P$175 -> 0 | R90: =$R$91+$R$167+$R$175 -> 15.56717714 | T90: =$T$91+$T$167+$T$175 -> 0 | AR90: 1 | AT90: D | AU90: 0 | AY90: ROZPOCET | BK90: =$BK$91+$BK$167+$BK$175 -> 0
D91: D | E91: 1 | F91: Zemní práce | J91: =$BK$91 -> 0 | P91: =SUM($P$92:$P$166) -> 0 | R91: =SUM($R$92:$R$166) -> 15.52444514 | T91: =SUM($T$92:$T$166) -> 0 | AR91: 1 | AT91: D | AU91: 1 | AY91: ROZPOCET | BK91: =SUM($BK$92:$BK$166) -> 0
C92: 1 | D92: K | E92: 115101201 | F92: Čerpání vody na dopravní výšku do 10 m průměrný přítok do 500 l/min | G92: hod | H92: 24 | J92: =ROUND($I$92*$H$92,2) -> 0 | K92: CS ÚRS 2014 02 | N92: základní | Q92: 0 | R92: =$Q$92*$H$92 -> 0 | S92: 0 | T92: =$S$92*$H$92 -> 0 | AR92: 4 | AT92: K | AU92: 2 | AY92: ROZPOCET | BE92: =IF($N$92="základní",$J$92,0) -> 0 | BF92: =IF($N$92="snížená",$J$92,0) -> 0 | BG92: =IF($N$92="zákl. přenesená",$J$92,0) -> 0 | BH92: =IF($N$92="sníž. přenesená",$J$92,0) -> 0 | BI92: =IF($N$92="nulová",$J$92,0) -> 0 | BJ92: 1 | BK92: =ROUND($I$92*$H$92,2) -> 0 | BL92: 4 | BM92: -816998484
D93: PP | F93: Čerpání vody na dopravní výšku do 10 m s uvažovaným průměrným přítokem do 500 l/min | AT93: PP | AU93: 2
D94: PSC | F94: Poznámka k souboru cen: 1. Ceny jsou určeny pro čerpání ve dne, v noci, v pracovní dny i ve dnech pracovního klidu 2. Ceny nelze použít pro čerpání vody při snižování hladiny podzemní vody soustavou čerpacích jehel; toto snižování hladiny vody se oceňuje cenami souborů cen: a) 115 20-12 Čerpací jehla, b) 115 20-13 Montáž a demontáž zařízení čerpací a odsávací stanice, c) 115 20-14 Montáž, opotřebení a demontáž sběrného potrubí, d) 115 20-15 Montáž a demontáž odpadního potrubí, e) 115 20-16 Odsávání a čerpání vody sběrným potrubím. 3. V cenách jsou započteny i náklady na odpadní potrubí v délce do 20 m, na lešení pod čerpadla a pod odpadní potrubí. Pro převedení vody na vzdálenost větší než 20 m se použijí položky souboru cen 115 00-11 Převedení vody potrubím tohoto katalogu. 4. V cenách nejsou započteny náklady na zřízení čerpacích jímek nebo projektovaných studní: a) kopaných; tyto se oceňují příslušnými cenami části A 02 Zemní práce pro objekty oborů 821 až 828, b) vrtaných; tyto se oceňují příslušnými cenami katalogu 800-2 Zvláštní zakládání objektů. 5. Doba, po kterou nejsou čerpadla v činnosti, se neoceňuje. Výjimkou je přerušení čerpání vody na dobu do 15 minut jednotlivě; toto přerušení se od doby čerpání neodečítá. 6. Dopravní výškou vody se rozumí svislá vzdálenost mezi hladinou vody v jímce sníženou čerpáním a vodorovnou rovinou proloženou osou nejvyššího bodu výtlačného potrubí. 7. Množství jednotek se určuje v hodinách doby, po kterou je jednotlivé čerpadlo, popř. celý soubor čerpadel v činnosti. 8. Počet měrných jednotek se určí samostatně za každé čerpací místo (jámu, studnu, šachtu) | AT94: PSC | AU94: 2
D95: VV | F95: 24 | H95: 24 | AT95: VV | AU95: 2 | AV95: 2 | AW95: -1 | AX95: 1 | AY95: ROZPOCET
C96: 2 | D96: K | E96: 115101301 | F96: Pohotovost čerpací soupravy pro dopravní výšku do 10 m přítok do 500 l/min | G96: den | H96: 3 | J96: =ROUND($I$96*$H$96,2) -> 0 | K96: CS ÚRS 2014 02 | N96: základní | Q96: 0 | R96: =$Q$96*$H$96 -> 0 | S96: 0 | T96: =$S$96*$H$96 -> 0 | AR96: 4 | AT96: K | AU96: 2 | AY96: ROZPOCET | BE96: =IF($N$96="základní",$J$96,0) -> 0 | BF96: =IF($N$96="snížená",$J$96,0) -> 0 | BG96: =IF($N$96="zákl. přenesená",$J$96,0) -> 0 | BH96: =IF($N$96="sníž. přenesená",$J$96,0) -> 0 | BI96: =IF($N$96="nulová",$J$96,0) -> 0 | BJ96: 1 | BK96: =ROUND($I$96*$H$96,2) -> 0 | BL96: 4 | BM96: -710837555
D97: PP | F97: Pohotovost záložní čerpací soupravy pro dopravní výšku do 10 m s uvažovaným průměrným přítokem do 500 l/min | AT97: PP | AU97: 2
D98: PSC | F98: Poznámka k souboru cen: 1. V ceně nejsou započteny náklady na sací a výtlačné potrubí, příp. na odpadní žlaby a náklady na lešení pod čerpadlo a pod potrubí nebo pod odpadní žlaby, na energii a na záložní zdroje energie. 2. Oceňují se všechny kalendářní dny od skončení montáže do započetí demontáže čerpací soupravy s odečtením kalendářních dnů, ve kterých je tato souprava v činnosti. 3. Pohotovost záložní čerpací soupravy se oceňuje jen se souhlasem investora a to tehdy, mohla-li by porucha v čerpání ohrozit bezpečnost pracujících nebo budované dílo, příp. termín výstavby. 4. Dopravní výškou vody se rozumí svislá vzdálenost mezi hladinou vody v jímce sníženou čerpáním a vodorovnou rovinou, proloženou osou nejvyššího bodu výtlačného potrubí. 5. Počet měrných jednotek se určí samostatně za každé čerpací místo (jámu, studnu, šachtu) 6. Pokud projekt předepíše zřízení samostatného sacího nebo výtlačného potrubí, oceňují se tyto náklady cenami souboru cen 115 00-11 Převedení vody potrubím. | AT98: PSC | AU98: 2
D99: VV | F99: 3 | H99: 3 | AT99: VV | AU99: 2 | AV99: 2 | AW99: -1 | AX99: 1 | AY99: ROZPOCET
C100: 3 | D100: K | E100: 119001421 | F100: Dočasné zajištění kabelů a kabelových tratí ze 3 volně ložených kabelů | G100: m | H100: 3 | J100: =ROUND($I$100*$H$100,2) -> 0 | K100: CS ÚRS 2014 02 | N100: základní | Q100: 0.0358698 | R100: =$Q$100*$H$100 -> 0.1076094 | S100: 0 | T100: =$S$100*$H$100 -> 0 | AR100: 4 | AT100: K | AU100: 2 | AY100: ROZPOCET | BE100: =IF($N$100="základní",$J$100,0) -> 0 | BF100: =IF($N$100="snížená",$J$100,0) -> 0 | BG100: =IF($N$100="zákl. přenesená",$J$100,0) -> 0 | BH100: =IF($N$100="sníž. přenesená",$J$100,0) -> 0 | BI100: =IF($N$100="nulová",$J$100,0) -> 0 | BJ100: 1 | BK100: =ROUND($I$100*$H$100,2) -> 0 | BL100: 4 | BM100: -31952464
D101: PP | F101: Dočasné zajištění podzemního potrubí nebo vedení ve výkopišti ve stavu i poloze , ve kterých byla na začátku zemních prací a to s podepřením, vzepřením nebo vyvěšením, příp. s ochranným bedněním, se zřízením a odstraněním za jišťovací konstrukce, s opotřebením hmot kabelů a kabelových tratí z volně ložených kabelů a to do 3 kabelů | AT101: PP | AU101: 2
D102: PSC | F102: Poznámka k souboru cen: 1. Ceny nelze použít pro dočasné zajištění potrubí v provozu pod tlakem přes 1 MPa a potrubí nebo jiných vedení v provozu u nichž investor zakazuje použít při vykopávce kovové nástroje nebo nářadí. 2. Ztížení vykopávky v blízkosti vedení, potrubí a stok ve výkopišti nebo podél jeho stěn se oceňuje cenami souboru cen 120 00- . . a 130 00- . . Příplatky za ztížení vykopávky. Dočasné zajištění potrubí větších rozměrů než DN 500 se oceňuje individuálně. | AT102: PSC | AU102: 2
D103: VV | F103: 3 | H103: 3 | AT103: VV | AU103: 2 | AV103: 2 | AW103: -1 | AX103: 1 | AY103: ROZPOCET
C104: 4 | D104: K | E104: 121101101 | F104: Sejmutí ornice s přemístěním na vzdálenost do 50 m | G104: m3 | H104: 37.6 | J104: =ROUND($I$104*$H$104,2) -> 0 | K104: CS ÚRS 2014 02 | N104: základní | Q104: 0 | R104: =$Q$104*$H$104 -> 0 | S104: 0 | T104: =$S$104*$H$104 -> 0 | AR104: 4 | AT104: K | AU104: 2 | AY104: ROZPOCET | BE104: =IF($N$104="základní",$J$104,0) -> 0 | BF104: =IF($N$104="snížená",$J$104,0) -> 0 | BG104: =IF($N$104="zákl. přenesená",$J$104,0) -> 0 | BH104: =IF($N$104="sníž. přenesená",$J$104,0) -> 0 | BI104: =IF($N$104="nulová",$J$104,0) -> 0 | BJ104: 1 | BK104: =ROUND($I$104*$H$104,2) -> 0 | BL104: 4 | BM104: -1632024929
D105: PP | F105: Sejmutí ornice nebo lesní půdy s vodorovným přemístěním na hromady v místě upotřebení nebo na dočasné či trvalé skládky se složením, na vzdálenost do 50 m | AT105: PP | AU105: 2
D106: PSC | F106: Poznámka k souboru cen: 1. V cenách jsou započteny i náklady na příp. nutné naložení sejmuté ornice na dopravní prostředek. 2. V cenách nejsou započteny náklady na odstranění nevhodných přimísenin (kamenů, kořenů apod.); tyto práce se ocení individuálně. 3. Množství ornice odebírané ze skládek se do objemu vykopávek pro volbu cen podle množství nezapočítává. Ceny souboru cen 122 . 0-11 Odkopávky a prokopávky nezapažené, se volí pro ornici odebíranou z projektovaných dočasných skládek; a) na staveništi podle součtu objemu ze všech skládek, b) mimo staveniště podle objemu každé skládky zvlášť. 4. Uložení ornice na skládky se oceňuje podle ustanovení v poznámkách č. 1 a 2 k ceně 171 20-1201 Uložení sypaniny na skládky. Složení ornice na hromady v místě upotřebení se neoceňuje. 5. Odebírá-li se ornice z projektované dočasné skládky, oceňuje se její naložení a přemístění podle čl. 3172 Všeobecných podmínek tohoto katalogu. 6. Přemísťuje-li se ornice na vzdálenost větší něž 250 m, vzdálenost 50 m se pro určení vzdálenosti vodorovného přemístění neodečítá a ocení se sejmutí a přemístění bez ohledu na ustanovení pozn. č. 1 takto: a) sejmutí ornice na vzdálenost 50m cenou 121 10-1101; b) naložení příslušnou cenou souboru cen 167 10- . . c) vodorovné přemístění cenami souboru cen 162 . 0- . . Vodorovné přemístění výkopku. 7. Sejmutí podorničí se oceňuje cenami odkopávek s přihlédnutím k ustanovení čl. 3112 Všeobecných podmínek tohoto katalogu. | AT106: PSC | AU106: 2
D107: VV | F107: 41*4*0,2+6*2*0,2*2 | H107: 37.6 | AT107: VV | AU107: 2 | AV107: 2 | AW107: -1 | AX107: 1 | AY107: ROZPOCET
C108: 5 | D108: K | E108: 130001101 | F108: Příplatek za ztížení vykopávky v blízkosti podzemního vedení | G108: m3 | H108: 1.92 | J108: =ROUND($I$108*$H$108,2) -> 0 | K108: CS ÚRS 2014 02 | N108: základní | Q108: 0 | R108: =$Q$108*$H$108 -> 0 | S108: 0 | T108: =$S$108*$H$108 -> 0 | AR108: 4 | AT108: K | AU108: 2 | AY108: ROZPOCET | BE108: =IF($N$108="základní",$J$108,0) -> 0 | BF108: =IF($N$108="snížená",$J$108,0) -> 0 | BG108: =IF($N$108="zákl. přenesená",$J$108,0) -> 0 | BH108: =IF($N$108="sníž. přenesená",$J$108,0) -> 0 | BI108: =IF($N$108="nulová",$J$108,0) -> 0 | BJ108: 1 | BK108: =ROUND($I$108*$H$108,2) -> 0 | BL108: 4 | BM108: -1917712098
D109: PP | F109: Příplatek k cenám hloubených vykopávek za ztížení vykopávky v blízkosti podzemního vedení nebo výbušnin pro jakoukoliv třídu horniny | AT109: PP | AU109: 2
D110: PSC | F110: Poznámka k souboru cen: 1. Cena je určena: a) i pro soubor cen 123 . 0-21 Vykopávky zářezů se šikmými stěnami pro podzemní vedení části A 02, b) pro podzemní vedení procházející hloubenou vykopávkou nebo uložené ve stěně výkopu při jakékoliv hloubce vedení pod původním terénem nebo jeho výšce nade dnem výkopu a jakémkoliv směru vedení ke stranám výkopu; c) pro výbušniny nezaložené dodavatelem. 2. Cenu lze použít i tehdy, narazí-li se na vedení nebo výbušninu až při vykopávce a to pro zbývající objem výkopu, který je projektantem nebo investorem označen, v němž by toto nebo jiné nepředvídané vedení nebo výbušnina mohlo být uloženo. Toto ustanovení neplatí pro objem hornin tř. 6 a 7. 3. Cenu nelze použít pro ztížení vykopávky v blízkosti podzemních vedení nebo výbušnin, u nichž je projektem zakázáno použít při vykopávce kovové nástroje nebo nářadí. 4. Množství ztížení vykopávky v blízkosti a) podzemního vedení, jehož půdorysná a výšková poloha - je v projektu uvedena, se určí jako objem myšleného hranolu, jehož průřez je pravidelný čtyřúhelník jehož horní vodorovná a obě svislé strany jsou ve vzdálenosti 0,5 m a dolní vodorovná hrana ve vzdálenosti 1 m od přilehlého vnějšího líce vedení, příp. jeho obalu a délka se rovná osové délce vedení ve výkopišti nebo délce vedení ve stěně výkopu. Vymezí-li projekt větší prostor, v němž je nutno při vykopávce postupovat opatrně, lze použít cena pro celý objem výkopu v tomto prostoru. Od takto zjištěného množství se odečítá objem vedení i s příp. se vyskytujícím obalem; - není v projektu uvedena, avšak která podle projektu nebo sdělení investora jsou pravděpodobně ve výkopišti uložena, se rovná objemu výkopu, který je projektantem nebo investorem označen. b) výbušniny, určí vždy projektant nebo investor, ať je v projektu uvedeno či neuvedeno. 5. Je-li vedení uloženo ve výkopišti tak, že se vykopávka v celém výše popsaném objemu nevykopává, např. blízko stěn nebo dna výkopu, oceňuje se ztížení vykopávky jen pro tu část objemu, v níž se ztížená vykopávka provádí. 6. Jsou-li ve výkopišti dvě vedení položena tak blízko sebe, že se výše uvedené objemy pro obě vedení pronikají, určí se množství ztížení vykopávky tak, aby se pronik započetl jen jednou. 7. Objem ztížení vykopávky se od celkového objemu výkopu neodečítá. 8. Dočasné zajištění různých podzemních vedení ve výkopišti se oceňuje cenami souboru cen 119 00-14 Dočasné zajištění podzemního potrubí nebo vedení ve výkopišti. | AT110: PSC | AU110: 2
D111: VV | F111: 3*0,8*0,8 | H111: 1.92 | AT111: VV | AU111: 2 | AV111: 2 | AW111: -1 | AX111: 1 | AY111: ROZPOCET
C112: 6 | D112: K | E112: 131201201 | F112: Hloubení jam zapažených v hornině tř. 3 objemu do 100 m3 | G112: m3 | H112: 68.79 | J112: =ROUND($I$112*$H$112,2) -> 0 | K112: CS ÚRS 2014 02 | N112: základní | Q112: 0 | R112: =$Q$112*$H$112 -> 0 | S112: 0 | T112: =$S$112*$H$112 -> 0 | AR112: 4 | AT112: K | AU112: 2 | AY112: ROZPOCET | BE112: =IF($N$112="základní",$J$112,0) -> 0 | BF112: =IF($N$112="snížená",$J$112,0) -> 0 | BG112: =IF($N$112="zákl. přenesená",$J$112,0) -> 0 | BH112: =IF($N$112="sníž. přenesená",$J$112,0) -> 0 | BI112: =IF($N$112="nulová",$J$112,0) -> 0 | BJ112: 1 | BK112: =ROUND($I$112*$H$112,2) -> 0 | BL112: 4 | BM112: -1197057986
D113: PP | F113: Hloubení zapažených jam a zářezů s urovnáním dna do předepsaného profilu a spádu v hornině tř. 3 do 100 m3 | AT113: PP | AU113: 2
D114: PSC | F114: Poznámka k souboru cen: 1. V cenách jsou započteny i náklady na případné nutné přemístění výkopku ve výkopišti a na přehození výkopku na přilehlém terénu na vzdálenost do 3 m od okraje jámy nebo naložení na dopravní prostředek. 2. Hloubení zapažených jam hloubky přes 16 m se oceňuje individuálně. 3. Náklady na svislé přemístění výkopku nad 1 m hloubky se určí dle ustanovení článku č. 3161 všeobecných podmínek katalogu. | AT114: PSC | AU114: 2
D115: VV | F115: 68,79 | H115: 68.79 | AT115: VV | AU115: 2 | AV115: 2 | AW115: -1 | AX115: 1 | AY115: ROZPOCET
C116: 7 | D116: K | E116: 131201209 | F116: Příplatek za lepivost u hloubení jam zapažených v hornině tř. 3 | G116: m3 | H116: 22.93 | J116: =ROUND($I$116*$H$116,2) -> 0 | K116: CS ÚRS 2014 02 | N116: základní | Q116: 0 | R116: =$Q$116*$H$116 -> 0 | S116: 0 | T116: =$S$116*$H$116 -> 0 | AR116: 4 | AT116: K | AU116: 2 | AY116: ROZPOCET | BE116: =IF($N$116="základní",$J$116,0) -> 0 | BF116: =IF($N$116="snížená",$J$116,0) -> 0 | BG116: =IF($N$116="zákl. přenesená",$J$116,0) -> 0 | BH116: =IF($N$116="sníž. přenesená",$J$116,0) -> 0 | BI116: =IF($N$116="nulová",$J$116,0) -> 0 | BJ116: 1 | BK116: =ROUND($I$116*$H$116,2) -> 0 | BL116: 4 | BM116: 1693705910
D117: PP | F117: Hloubení zapažených jam a zářezů s urovnáním dna do předepsaného profilu a spádu Příplatek k cenám za lepivost horniny tř. 3 | AT117: PP | AU117: 2
D118: PSC | F118: Poznámka k souboru cen: 1. V cenách jsou započteny i náklady na případné nutné přemístění výkopku ve výkopišti a na přehození výkopku na přilehlém terénu na vzdálenost do 3 m od okraje jámy nebo naložení na dopravní prostředek. 2. Hloubení zapažených jam hloubky přes 16 m se oceňuje individuálně. 3. Náklady na svislé přemístění výkopku nad 1 m hloubky se určí dle ustanovení článku č. 3161 všeobecných podmínek katalogu. | AT118: PSC | AU118: 2
D119: VV | F119: 68,79/3 | H119: 22.93 | AT119: VV | AU119: 2 | AV119: 2 | AW119: -1 | AX119: 1 | AY119: ROZPOCET
C120: 8 | D120: K | E120: 132201201 | F120: Hloubení rýh š do 2000 mm v hornině tř. 3 objemu do 100 m3 | G120: m3 | H120: 46.56 | J120: =ROUND($I$120*$H$120,2) -> 0 | K120: CS ÚRS 2014 02 | N120: základní | Q120: 0 | R120: =$Q$120*$H$120 -> 0 | S120: 0 | T120: =$S$120*$H$120 -> 0 | AR120: 4 | AT120: K | AU120: 2 | AY120: ROZPOCET | BE120: =IF($N$120="základní",$J$120,0) -> 0 | BF120: =IF($N$120="snížená",$J$120,0) -> 0 | BG120: =IF($N$120="zákl. přenesená",$J$120,0) -> 0 | BH120: =IF($N$120="sníž. přenesená",$J$120,0) -> 0 | BI120: =IF($N$120="nulová",$J$120,0) -> 0 | BJ120: 1 | BK120: =ROUND($I$120*$H$120,2) -> 0 | BL120: 4 | BM120: -1955776558
D121: PP | F121: Hloubení zapažených i nezapažených rýh šířky přes 600 do 2 000 mm s urovnáním dna do předepsaného profilu a spádu v hornině tř. 3 do 100 m3 | AT121: PP | AU121: 2
D122: PSC | F122: Poznámka k souboru cen: 1. V cenách jsou započteny i náklady na případné nutné přemístění výkopku ve výkopišti na vzdálenost do 3 m a na přehození výkopku na přilehlém terénu na vzdálenost do 5 m od okraje jámy nebo naložení na dopravní prostředek. 2. Hloubení rýh při lesnicko-technických melioracích se oceňuje: a) ve stržích cenami platnými pro objem výkopu do 100 m3, i když skutečný objem výkopu je větší, b) mimo strže pro příčná a podélná zpevnění dna a břehů pod obrysem výkopu pro koryta vodotečí, zejména pro konstrukce těles, stupňů, boků, předprahů, prahů, odháněk, výhonů a pro základy zdí, dlažeb, rovnanin, plůtků a hatí, pro jakoukoliv šířku rýhy, při objemu do 100 m3 cenami příslušnými pro objem výkopu do 100 m3 a při jakémkoliv objemu výkopu přes 100 m3 cenami příslušnými pro objem výkopu přes 100 do 1 000 m3. 3. Náklady na svislé přemístění výkopku nad 1 m hloubky se určí dle ustanovení článku č. 3161 všeobecných podmínek katalogu. 4. Předepisuje-li projekt hloubit rýhy 5 až 7 bez použití trhavin, oceňuje se toto hloubení: a) v suchu nebo mokru cenami 138 40-1201, 138 50-1201 a 138 60-1201 Dolamování hloubených vykopávek, b) v tekoucí vodě při jakékoliv její rychlosti individuálně. 5. Ceny nelze použít pro hloubení rýh a hloubky přes 16 m. Tyto práce se oceňují individuálně. | AT122: PSC | AU122: 2
D123: VV | F123: 11*0,8*1,2+6*2*1,5*2 | H123: 46.56 | AT123: VV | AU123: 2 | AV123: 2 | AW123: -1 | AX123: 1 | AY123: ROZPOCET
C124: 9 | D124: K | E124: 132201209 | F124: Příplatek za lepivost k hloubení rýh š do 2000 mm v hornině tř. 3 | G124: m3 | H124: 15.52 | J124: =ROUND($I$124*$H$124,2) -> 0 | K124: CS ÚRS 2014 02 | N124: základní | Q124: 0 | R124: =$Q$124*$H$124 -> 0 | S124: 0 | T124: =$S$124*$H$124 -> 0 | AR124: 4 | AT124: K | AU124: 2 | AY124: ROZPOCET | BE124: =IF($N$124="základní",$J$124,0) -> 0 | BF124: =IF($N$124="snížená",$J$124,0) -> 0 | BG124: =IF($N$124="zákl. přenesená",$J$124,0) -> 0 | BH124: =IF($N$124="sníž. přenesená",$J$124,0) -> 0 | BI124: =IF($N$124="nulová",$J$124,0) -> 0 | BJ124: 1 | BK124: =ROUND($I$124*$H$124,2) -> 0 | BL124: 4 | BM124: -607889111
D125: PP | F125: Hloubení zapažených i nezapažených rýh šířky přes 600 do 2 000 mm s urovnáním dna do předepsaného profilu a spádu v hornině tř. 3 Příplatek k cenám za lepivost horniny tř. 3 | AT125: PP | AU125: 2
D126: PSC | F126: Poznámka k souboru cen: 1. V cenách jsou započteny i náklady na případné nutné přemístění výkopku ve výkopišti na vzdálenost do 3 m a na přehození výkopku na přilehlém terénu na vzdálenost do 5 m od okraje jámy nebo naložení na dopravní prostředek. 2. Hloubení rýh při lesnicko-technických melioracích se oceňuje: a) ve stržích cenami platnými pro objem výkopu do 100 m3, i když skutečný objem výkopu je větší, b) mimo strže pro příčná a podélná zpevnění dna a břehů pod obrysem výkopu pro koryta vodotečí, zejména pro konstrukce těles, stupňů, boků, předprahů, prahů, odháněk, výhonů a pro základy zdí, dlažeb, rovnanin, plůtků a hatí, pro jakoukoliv šířku rýhy, při objemu do 100 m3 cenami příslušnými pro objem výkopu do 100 m3 a při jakémkoliv objemu výkopu přes 100 m3 cenami příslušnými pro objem výkopu přes 100 do 1 000 m3. 3. Náklady na svislé přemístění výkopku nad 1 m hloubky se určí dle ustanovení článku č. 3161 všeobecných podmínek katalogu. 4. Předepisuje-li projekt hloubit rýhy 5 až 7 bez použití trhavin, oceňuje se toto hloubení: a) v suchu nebo mokru cenami 138 40-1201, 138 50-1201 a 138 60-1201 Dolamování hloubených vykopávek, b) v tekoucí vodě při jakékoliv její rychlosti individuálně. 5. Ceny nelze použít pro hloubení rýh a hloubky přes 16 m. Tyto práce se oceňují individuálně. | AT126: PSC | AU126: 2
D127: VV | F127: 46,560/3 | H127: 15.52 | AT127: VV | AU127: 2 | AV127: 2 | AW127: -1 | AX127: 1 | AY127: ROZPOCET
C128: 10 | D128: K | E128: 151101101 | F128: Zřízení příložného pažení a rozepření stěn rýh hl do 2 m | G128: m2 | H128: 54.4 | J128: =ROUND($I$128*$H$128,2) -> 0 | K128: CS ÚRS 2014 02 | N128: základní | Q128: 0.00069551 | R128: =$Q$128*$H$128 -> 0.037835744 | S128: 0 | T128: =$S$128*$H$128 -> 0 | AR128: 4 | AT128: K | AU128: 2 | AY128: ROZPOCET | BE128: =IF($N$128="základní",$J$128,0) -> 0 | BF128: =IF($N$128="snížená",$J$128,0) -> 0 | BG128: =IF($N$128="zákl. přenesená",$J$128,0) -> 0 | BH128: =IF($N$128="sníž. přenesená",$J$128,0) -> 0 | BI128: =IF($N$128="nulová",$J$128,0) -> 0 | BJ128: 1 | BK128: =ROUND($I$128*$H$128,2) -> 0 | BL128: 4 | BM128: -1543321838
D129: PP | F129: Zřízení pažení a rozepření stěn rýh pro podzemní vedení pro všechny šířky rýhy příložné pro jakoukoliv mezerovitost, hloubky do 2 m | AT129: PP | AU129: 2
D130: PSC | F130: Poznámka k souboru cen: 1. Ceny jsou určeny pro roubení a rozepření stěn i jiných výkopů se svislými stěnami, pokud jsou tyto výkopy pro podzemní vedení rozměru do 1 250 mm. 2. Plocha mezer mezi pažinami příložného pažení se od plochy příložného pažení neodečítá; nezapažené plochy u pažení zátažného nebo hnaného se od plochy pažení odečítají. 3. Předepisuje-li projekt: a) ponechat pažení ve výkopu, oceňuje se toto pažení cenami souboru cen 151 . 0-19 Pažení stěn s ponecháním a rozepření stěn cenami souboru cen 151 . 0-13 Zřízení rozepření zapažených stěn výkopů, b) vzepření stěn, oceňuje se toto odstranění pažení stěn výkopu cenami souboru cen 151 . 0-12 Pažení stěn a vzepření stěn cenami souboru cen 151 . 0-14 odstranění vzepření stěn, c) kotvení stěn, oceňuje se toto Odstranění pažení stěn cenami souboru cen 151 . 0-12 Pažení stěn a kotvení stěn příslušnými cenami katalogu 800-2 Zvláštní zakládání objektů. | AT130: PSC | AU130: 2
D131: VV | F131: 2*6*1,7*2+2*2*1,7*2 | H131: 54.4 | AT131: VV | AU131: 2 | AV131: 2 | AW131: -1 | AX131: 1 | AY131: ROZPOCET
C132: 11 | D132: K | E132: 151101111 | F132: Odstranění příložného pažení a rozepření stěn rýh hl do 2 m | G132: m2 | H132: 54.4 | J132: =ROUND($I$132*$H$132,2) -> 0 | K132: CS ÚRS 2014 02 | N132: základní | Q132: 0 | R132: =$Q$132*$H$132 -> 0 | S132: 0 | T132: =$S$132*$H$132 -> 0 | AR132: 4 | AT132: K | AU132: 2 | AY132: ROZPOCET | BE132: =IF($N$132="základní",$J$132,0) -> 0 | BF132: =IF($N$132="snížená",$J$132,0) -> 0 | BG132: =IF($N$132="zákl. přenesená",$J$132,0) -> 0 | BH132: =IF($N$132="sníž. přenesená",$J$132,0) -> 0 | BI132: =IF($N$132="nulová",$J$132,0) -> 0 | BJ132: 1 | BK132: =ROUND($I$132*$H$132,2) -> 0 | BL132: 4 | BM132: 1753418865
D133: PP | F133: Odstranění pažení a rozepření stěn rýh pro podzemní vedení s uložením materiálu na vzdálenost do 3 m od kraje výkopu příložné, hloubky do 2 m | AT133: PP | AU133: 2
D134: VV | F134: 54,4 | H134: 54.4 | AT134: VV | AU134: 2 | AV134: 2 | AW134: -1 | AX134: 1 | AY134: ROZPOCET
C135: 12 | D135: K | E135: 161101101 | F135: Svislé přemístění výkopku z horniny tř. 1 až 4 hl výkopu do 2,5 m | G135: m3 | H135: 3.696 | J135: =ROUND($I$135*$H$135,2) -> 0 | K135: CS ÚRS 2014 02 | N135: základní | Q135: 0 | R135: =$Q$135*$H$135 -> 0 | S135: 0 | T135: =$S$135*$H$135 -> 0 | AR135: 4 | AT135: K | AU135: 2 | AY135: ROZPOCET | BE135: =IF($N$135="základní",$J$135,0) -> 0 | BF135: =IF($N$135="snížená",$J$135,0) -> 0 | BG135: =IF($N$135="zákl. přenesená",$J$135,0) -> 0 | BH135: =IF($N$135="sníž. přenesená",$J$135,0) -> 0 | BI135: =IF($N$135="nulová",$J$135,0) -> 0 | BJ135: 1 | BK135: =ROUND($I$135*$H$135,2) -> 0 | BL135: 4 | BM135: 871801220
D136: PP | F136: Svislé přemístění výkopku bez naložení do dopravní nádoby avšak s vyprázdněním dopravní nádoby na hromadu nebo do dopravního prostředku z horniny tř. 1 až 4, při hloubce výkopu přes 1 do 2,5 m | AT136: PP | AU136: 2
D137: PSC | F137: Poznámka k souboru cen: 1. Ceny -1151 až -1158 lze použít i pro svislé přemístění materiálu a stavební suti z konstrukcí ze zdiva cihelného nebo kamenného, z betonu prostého, prokládaného, železového i předpjatého, pokud tyto konstrukce byly vybourány ve výkopišti. 2. Ceny pro hloubku přes 1 do 2,5 m, přes 2,5 m do 4 m atd. jsou určeny pro svislé přemístění výkopku od 0 do 2,5 m, od 0 do 4 m atd. 3. Množství materiálu i stavební suti z rozbouraných konstrukcí pro přemístění se rovná objemu konstrukcí před rozbouráním. | AT137: PSC | AU137: 2
D138: VV | F138: 3,696 | H138: 3.696 | AT138: VV | AU138: 2 | AV138: 2 | AW138: -1 | AX138: 1 | AY138: ROZPOCET
C139: 13 | D139: K | E139: 162701105 | F139: Vodorovné přemístění do 10000 m výkopku/sypaniny z horniny tř. 1 až 4 | G139: m3 | H139: 3.696 | J139: =ROUND($I$139*$H$139,2) -> 0 | K139: CS ÚRS 2014 02 | N139: základní | Q139: 0 | R139: =$Q$139*$H$139 -> 0 | S139: 0 | T139: =$S$139*$H$139 -> 0 | AR139: 4 | AT139: K | AU139: 2 | AY139: ROZPOCET | BE139: =IF($N$139="základní",$J$139,0) -> 0 | BF139: =IF($N$139="snížená",$J$139,0) -> 0 | BG139: =IF($N$139="zákl. přenesená",$J$139,0) -> 0 | BH139: =IF($N$139="sníž. přenesená",$J$139,0) -> 0 | BI139: =IF($N$139="nulová",$J$139,0) -> 0 | BJ139: 1 | BK139: =ROUND($I$139*$H$139,2) -> 0 | BL139: 4 | BM139: 1570147616
D140: PP | F140: Vodorovné přemístění výkopku nebo sypaniny po suchu na obvyklém dopravním prostředku, bez naložení výkopku, avšak se složením bez rozhrnutí z horniny tř. 1 až 4 na vzdálenost přes 9 000 do 10 000 m | AT140: PP | AU140: 2
D141: PSC | F141: Poznámka k souboru cen: 1. Ceny nelze použít, předepisuje-li projekt přemístit výkopek na místo nepřístupné obvyklým dopravním prostředkům; toto přemístění se oceňuje individuálně. 2. V cenách jsou započteny i náhrady za jízdu loženého vozidla v terénu ve výkopišti nebo na násypišti. 3. V cenách nejsou započteny náklady na rozhrnutí výkopku na násypišti; toto rozhrnutí se oceňuje cenami souboru cen 171 . 0- . . Uložení sypaniny do násypů a 171 20-1201Uložení sypaniny na skládky. 4. Je-li na dopravní dráze pro vodorovné přemístění nějaká překážka, pro kterou je nutno překládat výkopek z jednoho obvyklého dopravního prostředku na jiný obvyklý doprav- ní prostředek, oceňuje se toto lomené vodorovné přemístění výkopku v každém úseku samostatně příslušnou cenou tohoto souboru cen a překládání výkopku cenami souboru cen 167 10-3 . Nakládání neulehlého výkopku z hromad s ohledem na ustanovení pozn. číslo 5. 5. Přemísťuje-li se výkopek z dočasných skládek vzdálených do 50 m, neoceňuje se nakládání výkopku, i když se provádí. Toto ustanovení neplatí, vylučuje-li projekt použití dozeru. 6. V cenách vodorovného přemístění sypaniny nejsou započteny náklady na dodávku materiálu, tyto se oceňují ve specifikaci. | AT141: PSC | AU141: 2
D142: VV | F142: 3,696 | H142: 3.696 | AT142: VV | AU142: 2 | AV142: 2 | AW142: -1 | AX142: 1 | AY142: ROZPOCET
C143: 14 | D143: K | E143: 162701109 | F143: Příplatek k vodorovnému přemístění výkopku/sypaniny z horniny tř. 1 až 4 ZKD 1000 m přes 10000 m | G143: m3 | H143: 18.48 | J143: =ROUND($I$143*$H$143,2) -> 0 | K143: CS ÚRS 2014 02 | N143: základní | Q143: 0 | R143: =$Q$143*$H$143 -> 0 | S143: 0 | T143: =$S$143*$H$143 -> 0 | AR143: 4 | AT143: K | AU143: 2 | AY143: ROZPOCET | BE143: =IF($N$143="základní",$J$143,0) -> 0 | BF143: =IF($N$143="snížená",$J$143,0) -> 0 | BG143: =IF($N$143="zákl. přenesená",$J$143,0) -> 0 | BH143: =IF($N$143="sníž. přenesená",$J$143,0) -> 0 | BI143: =IF($N$143="nulová",$J$143,0) -> 0 | BJ143: 1 | BK143: =ROUND($I$143*$H$143,2) -> 0 | BL143: 4 | BM143: 1378729727
D144: PP | F144: Vodorovné přemístění výkopku nebo sypaniny po suchu na obvyklém dopravním prostředku, bez naložení výkopku, avšak se složením bez rozhrnutí z horniny tř. 1 až 4 na vzdálenost Příplatek k ceně za každých dalších i započatých 1 000 m | AT144: PP | AU144: 2
D145: PSC | F145: Poznámka k souboru cen: 1. Ceny nelze použít, předepisuje-li projekt přemístit výkopek na místo nepřístupné obvyklým dopravním prostředkům; toto přemístění se oceňuje individuálně. 2. V cenách jsou započteny i náhrady za jízdu loženého vozidla v terénu ve výkopišti nebo na násypišti. 3. V cenách nejsou započteny náklady na rozhrnutí výkopku na násypišti; toto rozhrnutí se oceňuje cenami souboru cen 171 . 0- . . Uložení sypaniny do násypů a 171 20-1201Uložení sypaniny na skládky. 4. Je-li na dopravní dráze pro vodorovné přemístění nějaká překážka, pro kterou je nutno překládat výkopek z jednoho obvyklého dopravního prostředku na jiný obvyklý doprav- ní prostředek, oceňuje se toto lomené vodorovné přemístění výkopku v každém úseku samostatně příslušnou cenou tohoto souboru cen a překládání výkopku cenami souboru cen 167 10-3 . Nakládání neulehlého výkopku z hromad s ohledem na ustanovení pozn. číslo 5. 5. Přemísťuje-li se výkopek z dočasných skládek vzdálených do 50 m, neoceňuje se nakládání výkopku, i když se provádí. Toto ustanovení neplatí, vylučuje-li projekt použití dozeru. 6. V cenách vodorovného přemístění sypaniny nejsou započteny náklady na dodávku materiálu, tyto se oceňují ve specifikaci. | AT145: PSC | AU145: 2
D146: VV | F146: celkem 15 km | AT146: VV | AU146: 2 | AV146: 1 | AW146: -1 | AX146: 0 | AY146: ROZPOCET
D147: VV | F147: 3,696*(15-10) | H147: 18.48 | AT147: VV | AU147: 2 | AV147: 2 | AW147: -1 | AX147: 1 | AY147: ROZPOCET
C148: 15 | D148: K | E148: 10001001 | F148: Poplatek za uložení odpadu ze sypaniny na skládce (skládkovné) | G148: t | H148: 5.544 | J148: =ROUND($I$148*$H$148,2) -> 0 | N148: základní | Q148: 0 | R148: =$Q$148*$H$148 -> 0 | S148: 0 | T148: =$S$148*$H$148 -> 0 | AR148: 4 | AT148: K | AU148: 2 | AY148: ROZPOCET | BE148: =IF($N$148="základní",$J$148,0) -> 0 | BF148: =IF($N$148="snížená",$J$148,0) -> 0 | BG148: =IF($N$148="zákl. přenesená",$J$148,0) -> 0 | BH148: =IF($N$148="sníž. přenesená",$J$148,0) -> 0 | BI148: =IF($N$148="nulová",$J$148,0) -> 0 | BJ148: 1 | BK148: =ROUND($I$148*$H$148,2) -> 0 | BL148: 4 | BM148: -1427526688
D149: PP | F149: Uložení sypaniny poplatek za uložení sypaniny na skládce (skládkovné) | AT149: PP | AU149: 2
D150: PSC | F150: Poznámka k souboru cen: 1. Cena -1201 je určena i pro: a) uložení výkopku nebo ornice na dočasné skládky předepsané projektem tak, že na 1 m2 projektem určené plochy této skládky připadá přes 2 m3 výkopku nebo ornice; v opačném případě se uložení neoceňuje. Množství výkopku nebo ornice připadající na 1 m2 skládky se určí jako podíl množství výkopku nebo ornice, měřeného v rostlém stavu a projektem určené plochy dočasné skládky; b) zasypání koryt vodotečí a prohlubní v terénu bez předepsaného zhutnění sypaniny; c) uložení výkopku pod vodou do prohlubní ve dně vodotečí nebo nádrží. 2. Cenu -1201 nelze použít pro uložení výkopku nebo ornice: a) při vykopávkách pro podzemní vedení podél hrany výkopu, z něhož byl výkopek získán, a to ani tehdy, jestliže se výkopek po vyhození z výkopu na povrch území ještě dále přemisťuje na hromady podél výkopu; b) na dočasné skládky, které nejsou předepsány projektem; c) na dočasné skládky předepsané projektem tak, že na 1 m2 projektem určené plochy této skládky připadají nejvýše 2 m3 výkopku nebo ornice (viz. též poznámku č. 1 a); d) na dočasné skládky, oceňuje-li se cenou 121 10-1101 Sejmutí ornice nebo lesní půdy do 50 m, nebo oceňuje-li se vodorovné přemístění výkopku do 20 m a 50 m cenami 162 20-1101, 162 20-1102, 162 20-1151 a 162 20-1152. V těchto případech se uložení výkopku nebo ornice na dočasnou skládku neoceňuje. e) na trvalé skládky s předepsaným zhutněním; toto uložení výkopku se oceňuje cenami souboru cen 171 . 0- . . Uložení sypaniny do násypů. 3. V ceně -1201 jsou započteny i náklady na rozprostření sypaniny ve vrstvách s hrubým urovnáním na skládce. 4. V ceně -1201 nejsou započteny náklady na získání skládek ani na poplatky za skládku. 5. Množství jednotek uložení výkopku (sypaniny) se určí v m3 uloženého výkopku (sypaniny),v rostlém stavu zpravidla ve výkopišti. 6. Cenu -1211 lze po dohodě upravit podle místních podmínek. | AT150: PSC | AU150: 2
D151: VV | F151: 3,696*1,5 | H151: 5.544 | AT151: VV | AU151: 2 | AV151: 2 | AW151: -1 | AX151: 1 | AY151: ROZPOCET
C152: 16 | D152: K | E152: 174201101 | F152: Zásyp jam, šachet rýh nebo kolem objektů sypaninou bez zhutnění | G152: m3 | H152: 103.854 | J152: =ROUND($I$152*$H$152,2) -> 0 | K152: CS ÚRS 2014 02 | N152: základní | Q152: 0 | R152: =$Q$152*$H$152 -> 0 | S152: 0 | T152: =$S$152*$H$152 -> 0 | AR152: 4 | AT152: K | AU152: 2 | AY152: ROZPOCET | BE152: =IF($N$152="základní",$J$152,0) -> 0 | BF152: =IF($N$152="snížená",$J$152,0) -> 0 | BG152: =IF($N$152="zákl. přenesená",$J$152,0) -> 0 | BH152: =IF($N$152="sníž. přenesená",$J$152,0) -> 0 | BI152: =IF($N$152="nulová",$J$152,0) -> 0 | BJ152: 1 | BK152: =ROUND($I$152*$H$152,2) -> 0 | BL152: 4 | BM152: -1517256114
D153: PP | F153: Zásyp sypaninou z jakékoliv horniny s uložením výkopku ve vrstvách bez zhutnění jam, šachet, rýh nebo kolem objektů v těchto vykopávkách | AT153: PP | AU153: 2
D154: PSC | F154: Poznámka k souboru cen: 1. Ceny 174 10- . . jsou určeny pro zhutněné zásypy s mírou zhutnění: a) z hornin soudržných do 100 % PS, b) z hornin nesoudržných do I(d) 0,9, c) z hornin kamenitých pro jakoukoliv míru zhutnění. 2. Je-li projektem předepsáno vyšší zhutnění, podle bodu a) a b) poznámky č 1., ocení se zásyp individuálně. 3. Ceny nelze použít pro zásyp rýh pro drenážní trativody pro lesnicko-technické meliorace a zemědělské. Zásyp těchto rýh se oceňuje cenami souboru cen 174 20-3 . části A 03 Zemní práce pro objekty oborů 831 až 833. Nezhutněný zásyp odvodňovacích kanálů z betonových a železobetonových trub v polních a lučních tratích se oceňuje cenou -1101 Zásyp sypaninou rýh bez ohledu na šířku kanálu; cena obsahuje i náklady na ruční nezhutněný zásyp výšky do 200 mm nad vrchol potrubí. 4. V cenách 10-1101, 10-1103, 20-1101 a 20-1103 je započteno přemístění sypaniny ze vzdálenosti 10 m od kraje výkopu nebo zasypávaného prostoru, měřeno k těžišti skládky. 5. V ceně 10-1102 je započteno přemístění sypaniny ze vzdálenosti 15 m od hrany zasypávaného prostoru, měřeno k těžišti skládky. 6. Objem zásypu je rozdíl objemu výkopu a objemu do něho vestavěných konstrukcí nebo uložených vedení i s jejich obklady a podklady (tento objem se nazývá objemem horniny vytlačené konstrukcí). Objem potrubí do DN 180, příp. i s obalem, se od objemu zásypu neodečítá. Pro stanovení objemu zásypu se od objemu výkopu odečítá i objem obsypu potrubí oceňovaný cenami souboru cen 175 10-11 Obsyp potrubí, přichází-li v úvahu . 7. Odklizení zbylého výkopku po provedení zásypu zářezů se šikmými stěnami pro podzemní vedení nebo zásypu jam a rýh pro podzemní vedení se oceňuje, je-li objem zbylého výkopku: a) do 1 m3 na 1 m vedení a jedná se o výkopek neulehlý - cenami souboru cen 167 10-110 Nakládání výkopku nebo sypaniny a 162 . 0-1 . Vodorovné přemístění výkopku. V případě, že se jedná o výkopek ulehlý - rozpojení a naložení výkopku cenami souboru cen 122 . 0-1 . souboru cen 162 . 0-1 . Vodorovné přemístění výkopku; b) přes 1 m3 na 1 m vedení, jestliže projekt předepíše, že se zbylý výkopek bude odklízet zároveň s prováděním vykopávky, pouze přemístění výkopku cenami souboru cen 162 . 0-1 . Vodorovné přemístění výkopku. Při zmíněném objemu zbylého výkopku se neoceňuje ani naložení ani rozpojení výkopku. Jestliže se zbylý výkopek neodklízí, nýbrž rozprostírá podél výkopu a nad výkopem, platí poznámka č. 8. 8. Rozprostření zbylého výkopku podél výkopu a nad výkopem po provedení zásypů zářezů se šikmými stěnami pro podzemní vedení nebo zásypu jam a rýh pro podzemní vedení se oceňuje: a) cenou 171 20-1101 Uložení sypaniny do nezhutněných násypů, není-li projektem předepsáno zhutnění rozprostřeného zbylého výkopku, b) cenou 171 10-1111 Uložení sypaniny do násypů z hornin sypkých, je-li předepsáno zhutnění rozprostřeného zbylého výkopku, a to v objemu vypočteném podle poznámky č.6, příp. zmenšeném o objem výkopku, který byl již odklizen. 9. Míru zhutnění předepisuje projekt. | AT154: PSC | AU154: 2
D155: VV | F155: 68,790+46,560-23*0,8*0,42-3,14*0,2*0,2*30 | H155: 103.854 | AT155: VV | AU155: 2 | AV155: 2 | AW155: -1 | AX155: 1 | AY155: ROZPOCET
C156: 17 | D156: K | E156: 175101101 | F156: Obsypání potrubí bez prohození sypaniny z hornin tř. 1 až 4 uloženým do 3 m od kraje výkopu | G156: m3 | H156: 8.014 | J156: =ROUND($I$156*$H$156,2) -> 0 | K156: CS ÚRS 2014 02 | N156: základní | Q156: 0 | R156: =$Q$156*$H$156 -> 0 | S156: 0 | T156: =$S$156*$H$156 -> 0 | AR156: 4 | AT156: K | AU156: 2 | AY156: ROZPOCET | BE156: =IF($N$156="základní",$J$156,0) -> 0 | BF156: =IF($N$156="snížená",$J$156,0) -> 0 | BG156: =IF($N$156="zákl. přenesená",$J$156,0) -> 0 | BH156: =IF($N$156="sníž. přenesená",$J$156,0) -> 0 | BI156: =IF($N$156="nulová",$J$156,0) -> 0 | BJ156: 1 | BK156: =ROUND($I$156*$H$156,2) -> 0 | BL156: 4 | BM156: -1609172378
D157: PP | F157: Obsypání potrubí sypaninou z vhodných hornin tř. 1 až 4 nebo materiálem připraveným podél výkopu ve vzdálenosti do 3 m od jeho kraje, pro jakoukoliv hloubku výkopu a míru zhutnění bez prohození sypaniny | AT157: PP | AU157: 2
D158: PSC | F158: Poznámka k souboru cen: 1. Objem obsypu na 1 m délky potrubí se rovná šířce dna výkopu násobené součtem vnějšího průměru potrubí příp. i s obalem a projektované tloušťky obsypu nad, případně i pod potrubím. Pro odečítání objemu potrubí se započítávají všechny vestavěné konstrukce nebo uložené vedení i s jejich obklady a podklady (tento objem se nazývá objemem horniny vytlačené konstrukcí). 2. Míru zhutnění předepisuje projekt. 3. V cenách nejsou zahrnuty náklady na nakupovanou sypaninu. Tato se oceňuje ve specifikaci. | AT158: PSC | AU158: 2
D159: VV | F159: 11*0,8*0,42-3,14*0,1*0,1*23+6*1*0,42*2 | H159: 8.014 | AT159: VV | AU159: 2 | AV159: 2 | AW159: -1 | AX159: 1 | AY159: ROZPOCET
C160: 18 | D160: M | E160: 583373100 | F160: štěrkopísek frakce 0-4 třída B | G160: t | H160: 15.379 | J160: =ROUND($I$160*$H$160,2) -> 0 | K160: CS ÚRS 2014 02 | N160: základní | Q160: 1 | R160: =$Q$160*$H$160 -> 15.379 | S160: 0 | T160: =$S$160*$H$160 -> 0 | AR160: 8 | AT160: M | AU160: 2 | AY160: ROZPOCET | BE160: =IF($N$160="základní",$J$160,0) -> 0 | BF160: =IF($N$160="snížená",$J$160,0) -> 0 | BG160: =IF($N$160="zákl. přenesená",$J$160,0) -> 0 | BH160: =IF($N$160="sníž. přenesená",$J$160,0) -> 0 | BI160: =IF($N$160="nulová",$J$160,0) -> 0 | BJ160: 1 | BK160: =ROUND($I$160*$H$160,2) -> 0 | BL160: 4 | BM160: -383907385
D161: PP | F161: kamenivo přírodní těžené pro stavební účely PTK (drobné, hrubé, štěrkopísky) štěrkopísky ČSN 72 1511-2 frakce 0-4 Horní Řasnice | AT161: PP | AU161: 2
D162: VV | F162: 8,014*1,01*1,9 | H162: 15.379 | AT162: VV | AU162: 2 | AV162: 2 | AW162: -1 | AX162: 1 | AY162: ROZPOCET
C163: 19 | D163: K | E163: 181301103 | F163: Rozprostření ornice tl vrstvy do 200 mm pl do 500 m2 v rovině nebo ve svahu do 1:5 | G163: m2 | H163: 44 | J163: =ROUND($I$163*$H$163,2) -> 0 | K163: CS ÚRS 2014 02 | N163: základní | Q163: 0 | R163: =$Q$163*$H$163 -> 0 | S163: 0 | T163: =$S$163*$H$163 -> 0 | AR163: 4 | AT163: K | AU163: 2 | AY163: ROZPOCET | BE163: =IF($N$163="základní",$J$163,0) -> 0 | BF163: =IF($N$163="snížená",$J$163,0) -> 0 | BG163: =IF($N$163="zákl. přenesená",$J$163,0) -> 0 | BH163: =IF($N$163="sníž. přenesená",$J$163,0) -> 0 | BI163: =IF($N$163="nulová",$J$163,0) -> 0 | BJ163: 1 | BK163: =ROUND($I$163*$H$163,2) -> 0 | BL163: 4 | BM163: -1279705119
D164: PP | F164: Rozprostření a urovnání ornice v rovině nebo ve svahu sklonu do 1:5 při souvislé ploše do 500 m2, tl. vrstvy přes 150 do 200 mm | AT164: PP | AU164: 2
D165: PSC | F165: Poznámka k souboru cen: 1. V ceně jsou započteny i náklady na případné nutné přemístění hromad nebo dočasných skládek na místo spotřeby ze vzdálenosti do 30 m. 2. V ceně nejsou započteny náklady na získání ornice; toto získání se oceňuje cenami souboru cen 121 10-11 Sejmutí ornice. 3. Případné nakládání ornice, v souvislosti s pozn. č. 3 se oceňuje cenami souboru cen 167 10-11 Nakládání, skládání a překládání neulehlého výkopku nebo sypaniny. 4. Jsou-li hromady nebo dočasné skládky ornice umístěny podle projektu ve vzdálenosti přes 30 m od místa spotřeby, oceňuje se její přemístění cenami souboru cen 162 . 0-1 . Vodorovné přemístění výkopku, přičemž se vzdálenost 30 m, uvedená v popisu cen, neodečítá. | AT165: PSC | AU165: 2
D166: VV | F166: 11*4 | H166: 44 | AT166: VV | AU166: 2 | AV166: 2 | AW166: -1 | AX166: 1 | AY166: ROZPOCET
D167: D | E167: 8 | F167: Trubní vedení | J167: =$BK$167 -> 0 | P167: =SUM($P$168:$P$174) -> 0 | R167: =SUM($R$168:$R$174) -> 0.042732 | T167: =SUM($T$168:$T$174) -> 0 | AR167: 1 | AT167: D | AU167: 1 | AY167: ROZPOCET | BK167: =SUM($BK$168:$BK$174) -> 0
C168: 20 | D168: K | E168: 894401211 | F168: Osazení betonových dílců pro šachty skruží rovných | G168: kus | H168: 3 | J168: =ROUND($I$168*$H$168,2) -> 0 | K168: CS ÚRS 2014 02 | N168: základní | Q168: 0.014244 | R168: =$Q$168*$H$168 -> 0.042732 | S168: 0 | T168: =$S$168*$H$168 -> 0 | AR168: 4 | AT168: K | AU168: 2 | AY168: ROZPOCET | BE168: =IF($N$168="základní",$J$168,0) -> 0 | BF168: =IF($N$168="snížená",$J$168,0) -> 0 | BG168: =IF($N$168="zákl. přenesená",$J$168,0) -> 0 | BH168: =IF($N$168="sníž. přenesená",$J$168,0) -> 0 | BI168: =IF($N$168="nulová",$J$168,0) -> 0 | BJ168: 1 | BK168: =ROUND($I$168*$H$168,2) -> 0 | BL168: 4 | BM168: 1327677899
D169: PP | F169: Osazení betonových dílců pro šachty skruží rovných | AT169: PP | AU169: 2
D170: PSC | F170: Poznámka k souboru cen: 1. V cenách nejsou započteny náklady na dodání betonových dílců; dílce se oceňují ve specifikaci. | AT170: PSC | AU170: 2
D171: VV | F171: 3 | H171: 3 | AT171: VV | AU171: 2 | AV171: 2 | AW171: -1 | AX171: 1 | AY171: ROZPOCET
C172: 21 | D172: M | E172: 900010001 | F172: Skruž betonová 80-60 | G172: kus | H172: 3 | J172: =ROUND($I$172*$H$172,2) -> 0 | N172: základní | Q172: 0 | R172: =$Q$172*$H$172 -> 0 | S172: 0 | T172: =$S$172*$H$172 -> 0 | AR172: 8 | AT172: M | AU172: 2 | AY172: ROZPOCET | BE172: =IF($N$172="základní",$J$172,0) -> 0 | BF172: =IF($N$172="snížená",$J$172,0) -> 0 | BG172: =IF($N$172="zákl. přenesená",$J$172,0) -> 0 | BH172: =IF($N$172="sníž. přenesená",$J$172,0) -> 0 | BI172: =IF($N$172="nulová",$J$172,0) -> 0 | BJ172: 1 | BK172: =ROUND($I$172*$H$172,2) -> 0 | BL172: 4 | BM172: 1288996104
D173: PP | F173: Skruž betonová 80*60 | AT173: PP | AU173: 2
D174: VV | F174: 3 | H174: 3 | AT174: VV | AU174: 2 | AV174: 2 | AW174: -1 | AX174: 1 | AY174: ROZPOCET
D175: D | E175: 9 | F175: Ostatní konstrukce a práce-bourání | J175: =$BK$175 -> 0 | P175: =$P$176 -> 0 | R175: =$R$176 -> 0 | T175: =$T$176 -> 0 | AR175: 1 | AT175: D | AU175: 1 | AY175: ROZPOCET | BK175: =$BK$176 -> 0
D176: D | E176: 99 | F176: Přesun hmot | J176: =$BK$176 -> 0 | P176: =SUM($P$177:$P$179) -> 0 | R176: =SUM($R$177:$R$179) -> 0 | T176: =SUM($T$177:$T$179) -> 0 | AR176: 1 | AT176: D | AU176: 2 | AY176: ROZPOCET | BK176: =SUM($BK$177:$BK$179) -> 0
C177: 22 | D177: K | E177: 998272201 | F177: Přesun hmot pro trubní vedení z ocelových trub svařovaných otevřený výkop | G177: t | H177: 15.579 | J177: =ROUND($I$177*$H$177,2) -> 0 | K177: CS ÚRS 2014 02 | N177: základní | Q177: 0 | R177: =$Q$177*$H$177 -> 0 | S177: 0 | T177: =$S$177*$H$177 -> 0 | AR177: 4 | AT177: K | AU177: 3 | AY177: ROZPOCET | BE177: =IF($N$177="základní",$J$177,0) -> 0 | BF177: =IF($N$177="snížená",$J$177,0) -> 0 | BG177: =IF($N$177="zákl. přenesená",$J$177,0) -> 0 | BH177: =IF($N$177="sníž. přenesená",$J$177,0) -> 0 | BI177: =IF($N$177="nulová",$J$177,0) -> 0 | BJ177: 1 | BK177: =ROUND($I$177*$H$177,2) -> 0 | BL177: 4 | BM177: 1407845079
D178: PP | F178: Přesun hmot pro trubní vedení z ocelových trub svařovaných pro vodovody, plynovody, teplovody, shybky, produktovody v otevřeném výkopu dopravní vzdálenost do 15 m | AT178: PP | AU178: 3
D179: PSC | F179: Poznámka k souboru cen: 1. Tyto ceny jsou určeny pro konstrukce na trubním vedení, které mají stejnou materiálovou charakteristiku (jsou z oceli), nelze je však použít pro vlastní ocelové potrubí, jehož montáž se oceňuje podle katalogu 23-M Montáže potrubí. 2. Cenu -2201 lze použít i pro potrubí uložené nad zemí. 3. Položky přesunu hmot nelze užít pro zeminu, sypaniny, štěrkopísek, kamenivo ap. Případná manipulace s tímto materiálem se oceňuje souborem cen 162 .0-11 Vodorovné přemístění výkopku nebo sypaniny katalogu 800-1 Zemní práce. | AT179: PSC | AU179: 3
D180: D | E180: M | F180: Práce a dodávky M | J180: =$BK$180 -> 0 | P180: =$P$181 -> 0 | R180: =$R$181 -> 1.577581163 | T180: =$T$181 -> 0 | AR180: 3 | AT180: D | AU180: 0 | AY180: ROZPOCET | BK180: =$BK$181 -> 0
D181: D | E181: 23-M | F181: Montáže potrubí | J181: =$BK$181 -> 0 | P181: =SUM($P$182:$P$274) -> 0 | R181: =SUM($R$182:$R$274) -> 1.577581163 | T181: =SUM($T$182:$T$274) -> 0 | AR181: 3 | AT181: D | AU181: 1 | AY181: ROZPOCET | BK181: =SUM($BK$182:$BK$274) -> 0
C182: 23 | D182: K | E182: 230011101 | F182: Montáž potrubí trouby ocelové hladké tř.11-13 D 219 mm, tl 6,3 mm | G182: m | H182: 41 | J182: =ROUND($I$182*$H$182,2) -> 0 | K182: CS ÚRS 2014 02 | N182: základní | Q182: 0.000152964 | R182: =$Q$182*$H$182 -> 0.006271524 | S182: 0 | T182: =$S$182*$H$182 -> 0 | AR182: 64 | AT182: K | AU182: 2 | AY182: ROZPOCET | BE182: =IF($N$182="základní",$J$182,0) -> 0 | BF182: =IF($N$182="snížená",$J$182,0) -> 0 | BG182: =IF($N$182="zákl. přenesená",$J$182,0) -> 0 | BH182: =IF($N$182="sníž. přenesená",$J$182,0) -> 0 | BI182: =IF($N$182="nulová",$J$182,0) -> 0 | BJ182: 1 | BK182: =ROUND($I$182*$H$182,2) -> 0 | BL182: 64 | BM182: -215219828
D183: PP | F183: Montáž potrubí z trub ocelových hladkých tř. 11 až 13 D 219 mm, tl. 6,3 mm | AT183: PP | AU183: 2
D184: VV | F184: 41 | H184: 41 | AT184: VV | AU184: 2 | AV184: 2 | AW184: -1 | AX184: 1 | AY184: ROZPOCET
C185: 24 | D185: M | E185: 142000001 | F185: trubka ocelová bezešvá D219 tl 4,5 mm, izol. PE N-v, mat. L245 NB s at.3.1, ČSN EN 102 08, 102 04, DIN 30670 | G185: m | H185: 41.41 | J185: =ROUND($I$185*$H$185,2) -> 0 | N185: základní | Q185: 0.0331 | R185: =$Q$185*$H$185 -> 1.370671 | S185: 0 | T185: =$S$185*$H$185 -> 0 | AR185: 128 | AT185: M | AU185: 2 | AY185: ROZPOCET | BE185: =IF($N$185="základní",$J$185,0) -> 0 | BF185: =IF($N$185="snížená",$J$185,0) -> 0 | BG185: =IF($N$185="zákl. přenesená",$J$185,0) -> 0 | BH185: =IF($N$185="sníž. přenesená",$J$185,0) -> 0 | BI185: =IF($N$185="nulová",$J$185,0) -> 0 | BJ185: 1 | BK185: =ROUND($I$185*$H$185,2) -> 0 | BL185: 128 | BM185: 1736475221
D186: VV | F186: 41*1,01 | H186: 41.41 | AT186: VV | AU186: 2 | AV186: 2 | AW186: -1 | AX186: 1 | AY186: ROZPOCET
C187: 25 | D187: K | E187: 230024101 | F187: Montáž trubní díly přivařovací tř.11-13 do 50 kg D 219 mm tl 6,3 mm | G187: kus | H187: 3 | J187: =ROUND($I$187*$H$187,2) -> 0 | K187: CS ÚRS 2014 02 | N187: základní | Q187: 0.00091619 | R187: =$Q$187*$H$187 -> 0.00274857 | S187: 0 | T187: =$S$187*$H$187 -> 0 | AR187: 64 | AT187: K | AU187: 2 | AY187: ROZPOCET | BE187: =IF($N$187="základní",$J$187,0) -> 0 | BF187: =IF($N$187="snížená",$J$187,0) -> 0 | BG187: =IF($N$187="zákl. přenesená",$J$187,0) -> 0 | BH187: =IF($N$187="sníž. přenesená",$J$187,0) -> 0 | BI187: =IF($N$187="nulová",$J$187,0) -> 0 | BJ187: 1 | BK187: =ROUND($I$187*$H$187,2) -> 0 | BL187: 64 | BM187: 1906886865
D188: PP | F188: Montáž trubních dílů přivařovacích hmotnosti přes 10 do 50 kg tř. 11 až 13 D 219 mm, tl. 6,3 mm | AT188: PP | AU188: 2
D189: VV | F189: 3 | H189: 3 | AT189: VV | AU189: 2 | AV189: 2 | AW189: -1 | AX189: 1 | AY189: ROZPOCET
C190: 26 | D190: M | E190: 316530212 | F190: Trubkový oblouk DN 200 - 5 D - 45° mat. L 245 NB, izol. PE N-v; s at. 3.1; ČSN EN 102 08; 102 04;DIN 30 670 | G190: kus | H190: 2 | J190: =ROUND($I$190*$H$190,2) -> 0 | N190: základní | Q190: 0 | R190: =$Q$190*$H$190 -> 0 | S190: 0 | T190: =$S$190*$H$190 -> 0 | AR190: 128 | AT190: M | AU190: 2 | AY190: ROZPOCET | BE190: =IF($N$190="základní",$J$190,0) -> 0 | BF190: =IF($N$190="snížená",$J$190,0) -> 0 | BG190: =IF($N$190="zákl. přenesená",$J$190,0) -> 0 | BH190: =IF($N$190="sníž. přenesená",$J$190,0) -> 0 | BI190: =IF($N$190="nulová",$J$190,0) -> 0 | BJ190: 1 | BK190: =ROUND($I$190*$H$190,2) -> 0 | BL190: 128 | BM190: -164692863
D191: PP | F191: Trubkový oblouk DN 200 - 5 D - 45° mat. L 245 NB, izol. PE N-v; s at. 3.1; ČSN EN 102 08; 102 04;DIN 30 670 | AT191: PP | AU191: 2
D192: VV | F192: 2 | H192: 2 | AT192: VV | AU192: 2 | AV192: 2 | AW192: -1 | AX192: 1 | AY192: ROZPOCET
C193: 27 | D193: M | E193: 316530213 | F193: Trubkový oblouk DN 200 - 5 D - 48° mat. L 245 NB, izol. PE N-v; s at. 3.1; ČSN EN 102 08; 102 04;DIN 30 670 | G193: kus | H193: 1 | J193: =ROUND($I$193*$H$193,2) -> 0 | N193: základní | Q193: 0 | R193: =$Q$193*$H$193 -> 0 | S193: 0 | T193: =$S$193*$H$193 -> 0 | AR193: 128 | AT193: M | AU193: 2 | AY193: ROZPOCET | BE193: =IF($N$193="základní",$J$193,0) -> 0 | BF193: =IF($N$193="snížená",$J$193,0) -> 0 | BG193: =IF($N$193="zákl. přenesená",$J$193,0) -> 0 | BH193: =IF($N$193="sníž. přenesená",$J$193,0) -> 0 | BI193: =IF($N$193="nulová",$J$193,0) -> 0 | BJ193: 1 | BK193: =ROUND($I$193*$H$193,2) -> 0 | BL193: 128 | BM193: 2024625257
D194: PP | F194: Trubkový oblouk DN 200 - 5 D - 48° mat. L 245 NB, izol. PE N-v; s at. 3.1; ČSN EN 102 08; 102 04;DIN 30 670 | AT194: PP | AU194: 2
D195: VV | F195: 1 | H195: 1 | AT195: VV | AU195: 2 | AV195: 2 | AW195: -1 | AX195: 1 | AY195: ROZPOCET
C196: 28 | D196: K | E196: 230082100 | F196: Demontáž potrubí do šrotu do 50 kg D 219 mm, tl 6,3 mm | G196: kus | H196: 13.667 | J196: =ROUND($I$196*$H$196,2) -> 0 | K196: CS ÚRS 2014 02 | N196: základní | Q196: 0.000175188 | R196: =$Q$196*$H$196 -> 0.002394294396 | S196: 0 | T196: =$S$196*$H$196 -> 0 | AR196: 64 | AT196: K | AU196: 2 | AY196: ROZPOCET | BE196: =IF($N$196="základní",$J$196,0) -> 0 | BF196: =IF($N$196="snížená",$J$196,0) -> 0 | BG196: =IF($N$196="zákl. přenesená",$J$196,0) -> 0 | BH196: =IF($N$196="sníž. přenesená",$J$196,0) -> 0 | BI196: =IF($N$196="nulová",$J$196,0) -> 0 | BJ196: 1 | BK196: =ROUND($I$196*$H$196,2) -> 0 | BL196: 64 | BM196: 1151624337
D197: PP | F197: Demontáž ocelového potrubí do šrotu hmotnosti přes 10 do 50 kg připojovací rozměr D 219, tl. 6,3 mm | AT197: PP | AU197: 2
D198: VV | F198: 41/3 | H198: 13.667 | AT198: VV | AU198: 2 | AV198: 2 | AW198: -1 | AX198: 1 | AY198: ROZPOCET
C199: 29 | D199: M | E199: 286530021 | F199: Výstražná fólie | G199: m | H199: 12 | J199: =ROUND($I$199*$H$199,2) -> 0 | N199: základní | Q199: 0 | R199: =$Q$199*$H$199 -> 0 | S199: 0 | T199: =$S$199*$H$199 -> 0 | AR199: 128 | AT199: M | AU199: 2 | AY199: ROZPOCET | BE199: =IF($N$199="základní",$J$199,0) -> 0 | BF199: =IF($N$199="snížená",$J$199,0) -> 0 | BG199: =IF($N$199="zákl. přenesená",$J$199,0) -> 0 | BH199: =IF($N$199="sníž. přenesená",$J$199,0) -> 0 | BI199: =IF($N$199="nulová",$J$199,0) -> 0 | BJ199: 1 | BK199: =ROUND($I$199*$H$199,2) -> 0 | BL199: 128 | BM199: -1153716435
D200: PP | F200: Výstražná fólie | AT200: PP | AU200: 2
D201: VV | F201: 12 | H201: 12 | AT201: VV | AU201: 2 | AV201: 2 | AW201: -1 | AX201: 1 | AY201: ROZPOCET
C202: 30 | D202: K | E202: 230120049 | F202: Čištění potrubí profukováním nebo proplachováním DN 200 | G202: m | H202: 41 | J202: =ROUND($I$202*$H$202,2) -> 0 | K202: CS ÚRS 2014 02 | N202: základní | Q202: 0 | R202: =$Q$202*$H$202 -> 0 | S202: 0 | T202: =$S$202*$H$202 -> 0 | AR202: 64 | AT202: K | AU202: 2 | AY202: ROZPOCET | BE202: =IF($N$202="základní",$J$202,0) -> 0 | BF202: =IF($N$202="snížená",$J$202,0) -> 0 | BG202: =IF($N$202="zákl. přenesená",$J$202,0) -> 0 | BH202: =IF($N$202="sníž. přenesená",$J$202,0) -> 0 | BI202: =IF($N$202="nulová",$J$202,0) -> 0 | BJ202: 1 | BK202: =ROUND($I$202*$H$202,2) -> 0 | BL202: 64 | BM202: 685778386
D203: PP | F203: Čištění potrubí profukováním nebo proplachováním DN 200 | AT203: PP | AU203: 2
D204: VV | F204: 41 | H204: 41 | AT204: VV | AU204: 2 | AV204: 2 | AW204: -1 | AX204: 1 | AY204: ROZPOCET
C205: 31 | D205: K | E205: 230120R49 | F205: Odplynění potrubí DN 200 vzduchem | G205: kus | H205: 1000 | J205: =ROUND($I$205*$H$205,2) -> 0 | N205: základní | Q205: 0 | R205: =$Q$205*$H$205 -> 0 | S205: 0 | T205: =$S$205*$H$205 -> 0 | AR205: 128 | AT205: K | AU205: 2 | AY205: ROZPOCET | BE205: =IF($N$205="základní",$J$205,0) -> 0 | BF205: =IF($N$205="snížená",$J$205,0) -> 0 | BG205: =IF($N$205="zákl. přenesená",$J$205,0) -> 0 | BH205: =IF($N$205="sníž. přenesená",$J$205,0) -> 0 | BI205: =IF($N$205="nulová",$J$205,0) -> 0 | BJ205: 1 | BK205: =ROUND($I$205*$H$205,2) -> 0 | BL205: 128 | BM205: -1624735404
D206: PP | F206: Odplynění potrubí DN 200 vzduchem | AT206: PP | AU206: 2
D207: VV | F207: 1000 | H207: 1000 | AT207: VV | AU207: 2 | AV207: 2 | AW207: -1 | AX207: 1 | AY207: ROZPOCET
C208: 32 | D208: K | E208: 2301610R1 | F208: Prozáření svaru iridiem | G208: kus | H208: 11 | J208: =ROUND($I$208*$H$208,2) -> 0 | N208: základní | Q208: 0 | R208: =$Q$208*$H$208 -> 0 | S208: 0 | T208: =$S$208*$H$208 -> 0 | AR208: 64 | AT208: K | AU208: 2 | AY208: ROZPOCET | BE208: =IF($N$208="základní",$J$208,0) -> 0 | BF208: =IF($N$208="snížená",$J$208,0) -> 0 | BG208: =IF($N$208="zákl. přenesená",$J$208,0) -> 0 | BH208: =IF($N$208="sníž. přenesená",$J$208,0) -> 0 | BI208: =IF($N$208="nulová",$J$208,0) -> 0 | BJ208: 1 | BK208: =ROUND($I$208*$H$208,2) -> 0 | BL208: 64 | BM208: -2125548857
D209: PP | F209: Prozáření svaru iridiem | AT209: PP | AU209: 2
D210: VV | F210: 11 | H210: 11 | AT210: VV | AU210: 2 | AV210: 2 | AW210: -1 | AX210: 1 | AY210: ROZPOCET
C211: 33 | D211: K | E211: 230200125 | F211: Nasunutí potrubní sekce do ocelové chráničky DN 400 | G211: m | H211: 30 | J211: =ROUND($I$211*$H$211,2) -> 0 | K211: CS ÚRS 2014 02 | N211: základní | Q211: 0.0063393925 | R211: =$Q$211*$H$211 -> 0.190181775 | S211: 0 | T211: =$S$211*$H$211 -> 0 | AR211: 64 | AT211: K | AU211: 2 | AY211: ROZPOCET | BE211: =IF($N$211="základní",$J$211,0) -> 0 | BF211: =IF($N$211="snížená",$J$211,0) -> 0 | BG211: =IF($N$211="zákl. přenesená",$J$211,0) -> 0 | BH211: =IF($N$211="sníž. přenesená",$J$211,0) -> 0 | BI211: =IF($N$211="nulová",$J$211,0) -> 0 | BJ211: 1 | BK211: =ROUND($I$211*$H$211,2) -> 0 | BL211: 64 | BM211: 1743215071
D212: PP | F212: Nasunutí potrubní sekce do ocelové chráničky jmenovitá světlost nasouvaného potrubí DN 400 | AT212: PP | AU212: 2
D213: PSC | F213: Poznámka k souboru cen: 1. .V cenách jsou započteny i náklady na středící objímky. 2. .V cenách není započten materiál na utěsnění konců. | AT213: PSC | AU213: 2
D214: VV | F214: 30 | H214: 30 | AT214: VV | AU214: 2 | AV214: 2 | AW214: -1 | AX214: 1 | AY214: ROZPOCET
C215: 34 | D215: M | E215: 143332300 | F215: chránička trubka ocelová spirálově svařovaná hladká černá D426 tl 8 mm, mat. tř. A, ČSN EN 102 08, 102 04 | G215: m | H215: 30.3 | J215: =ROUND($I$215*$H$215,2) -> 0 | N215: základní | Q215: 0 | R215: =$Q$215*$H$215 -> 0 | S215: 0 | T215: =$S$215*$H$215 -> 0 | AR215: 128 | AT215: M | AU215: 2 | AY215: ROZPOCET | BE215: =IF($N$215="základní",$J$215,0) -> 0 | BF215: =IF($N$215="snížená",$J$215,0) -> 0 | BG215: =IF($N$215="zákl. přenesená",$J$215,0) -> 0 | BH215: =IF($N$215="sníž. přenesená",$J$215,0) -> 0 | BI215: =IF($N$215="nulová",$J$215,0) -> 0 | BJ215: 1 | BK215: =ROUND($I$215*$H$215,2) -> 0 | BL215: 128 | BM215: 413218130
D216: VV | F216: 30*1,01 | H216: 30.3 | AT216: VV | AU216: 2 | AV216: 2 | AW216: -1 | AX216: 1 | AY216: ROZPOCET
C217: 35 | D217: M | E217: 286530179 | F217: manžety na chráničky 220x426 | G217: kus | H217: 2 | J217: =ROUND($I$217*$H$217,2) -> 0 | N217: základní | Q217: 0 | R217: =$Q$217*$H$217 -> 0 | S217: 0 | T217: =$S$217*$H$217 -> 0 | AR217: 128 | AT217: M | AU217: 2 | AY217: ROZPOCET | BE217: =IF($N$217="základní",$J$217,0) -> 0 | BF217: =IF($N$217="snížená",$J$217,0) -> 0 | BG217: =IF($N$217="zákl. přenesená",$J$217,0) -> 0 | BH217: =IF($N$217="sníž. přenesená",$J$217,0) -> 0 | BI217: =IF($N$217="nulová",$J$217,0) -> 0 | BJ217: 1 | BK217: =ROUND($I$217*$H$217,2) -> 0 | BL217: 128 | BM217: 1154062576
D218: PP | F218: manžety na chráničky 220x426 | AT218: PP | AU218: 2
D219: VV | F219: 2 | H219: 2 | AT219: VV | AU219: 2 | AV219: 2 | AW219: -1 | AX219: 1 | AY219: ROZPOCET
C220: 36 | D220: M | E220: 286530181 | F220: Objímka středící DN 400/200 | G220: kus | H220: 15 | J220: =ROUND($I$220*$H$220,2) -> 0 | N220: základní | Q220: 0 | R220: =$Q$220*$H$220 -> 0 | S220: 0 | T220: =$S$220*$H$220 -> 0 | AR220: 128 | AT220: M | AU220: 2 | AY220: ROZPOCET | BE220: =IF($N$220="základní",$J$220,0) -> 0 | BF220: =IF($N$220="snížená",$J$220,0) -> 0 | BG220: =IF($N$220="zákl. přenesená",$J$220,0) -> 0 | BH220: =IF($N$220="sníž. přenesená",$J$220,0) -> 0 | BI220: =IF($N$220="nulová",$J$220,0) -> 0 | BJ220: 1 | BK220: =ROUND($I$220*$H$220,2) -> 0 | BL220: 128 | BM220: 447830886
D221: PP | F221: Objímka středící DN 400/200 | AT221: PP | AU221: 2
D222: VV | F222: 15 | H222: 15 | AT222: VV | AU222: 2 | AV222: 2 | AW222: -1 | AX222: 1 | AY222: ROZPOCET
C223: 37 | D223: K | E223: 230220011 | F223: Montáž orientačního sloupku ON 13 2970 | G223: kus | H223: 1 | J223: =ROUND($I$223*$H$223,2) -> 0 | K223: CS ÚRS 2014 02 | N223: základní | Q223: 0 | R223: =$Q$223*$H$223 -> 0 | S223: 0 | T223: =$S$223*$H$223 -> 0 | AR223: 64 | AT223: K | AU223: 2 | AY223: ROZPOCET | BE223: =IF($N$223="základní",$J$223,0) -> 0 | BF223: =IF($N$223="snížená",$J$223,0) -> 0 | BG223: =IF($N$223="zákl. přenesená",$J$223,0) -> 0 | BH223: =IF($N$223="sníž. přenesená",$J$223,0) -> 0 | BI223: =IF($N$223="nulová",$J$223,0) -> 0 | BJ223: 1 | BK223: =ROUND($I$223*$H$223,2) -> 0 | BL223: 64 | BM223: -1103219808
D224: PP | F224: Montáž příslušenství plynovodů sloupku orientačního | AT224: PP | AU224: 2
D225: PSC | F225: Poznámka k souboru cen: 1. V ceně -0006 jsou započteny i náklady na podkladní betonovou desku. 2. V ceně -0011 nejsou započteny náklady na osazení štítku s nápisem a nátěr. | AT225: PSC | AU225: 2
D226: VV | F226: 1 | H226: 1 | AT226: VV | AU226: 2 | AV226: 2 | AW226: -1 | AX226: 1 | AY226: ROZPOCET
C227: 38 | D227: M | E227: 31653004R | F227: Orientační sloupky plastové vyztužené oc. trubkou | G227: kus | H227: 1 | J227: =ROUND($I$227*$H$227,2) -> 0 | N227: základní | Q227: 0 | R227: =$Q$227*$H$227 -> 0 | S227: 0 | T227: =$S$227*$H$227 -> 0 | AR227: 128 | AT227: M | AU227: 2 | AY227: ROZPOCET | BE227: =IF($N$227="základní",$J$227,0) -> 0 | BF227: =IF($N$227="snížená",$J$227,0) -> 0 | BG227: =IF($N$227="zákl. přenesená",$J$227,0) -> 0 | BH227: =IF($N$227="sníž. přenesená",$J$227,0) -> 0 | BI227: =IF($N$227="nulová",$J$227,0) -> 0 | BJ227: 1 | BK227: =ROUND($I$227*$H$227,2) -> 0 | BL227: 128 | BM227: 538083400
D228: PP | F228: Orientační sloupky plastové vyztužené oc. trubkou | AT228: PP | AU228: 2
D229: VV | F229: 1 | H229: 1 | AT229: VV | AU229: 2 | AV229: 2 | AW229: -1 | AX229: 1 | AY229: ROZPOCET
C230: 39 | D230: K | E230: 230220031 | F230: Montáž čichačky na chráničku PN 38 6724 | G230: kus | H230: 2 | J230: =ROUND($I$230*$H$230,2) -> 0 | K230: CS ÚRS 2014 02 | N230: základní | Q230: 0 | R230: =$Q$230*$H$230 -> 0 | S230: 0 | T230: =$S$230*$H$230 -> 0 | AR230: 64 | AT230: K | AU230: 2 | AY230: ROZPOCET | BE230: =IF($N$230="základní",$J$230,0) -> 0 | BF230: =IF($N$230="snížená",$J$230,0) -> 0 | BG230: =IF($N$230="zákl. přenesená",$J$230,0) -> 0 | BH230: =IF($N$230="sníž. přenesená",$J$230,0) -> 0 | BI230: =IF($N$230="nulová",$J$230,0) -> 0 | BJ230: 1 | BK230: =ROUND($I$230*$H$230,2) -> 0 | BL230: 64 | BM230: -1576788668
D231: PP | F231: Montáž příslušenství plynovodů čichačky na chráničku plynovodu | AT231: PP | AU231: 2
... 43 more rows

Sheet VON-1E - Vedlejší rozpočr...
D1: List obsahuje: | F1: 1) Krycí list soupisu | G1: 2) Rekapitulace | J1: 3) Soupis prací | K1: Zpět na list: | L1: Rekapitulace stavby
AT2: {35FD886D-B9A4-457C-9FC2-B59FD72BA824}
AT3: 2
D4: KRYCÍ LIST SOUPISU | M4: v --- níže se nacházejí doplnkové a pomocné údaje k sestavám --- v | AT4: False
D6: Stavba:
E7: ='Rekapitulace stavby'!$K$6 -> Město Sokolov - Záchytné parkoviště Michal
D8: Objekt:
E9: 1.E - 1.ETAPA
D10: Soupis:
E11: VON-1E - Vedlejší rozpočrové náklady (VRN) a Ostatní náklady (ON)
D13: KSO: | F13: 822 29 | I13: CC-CZ: | J13: 7941-26
D14: Místo: | F14: Sokolov | I14: Datum: | J14: ='Rekapitulace stavby'!$AN$8 -> 09.09.2014
D16: Zadavatel: | I16: IČ:
E17: Město Sokolov | I17: DIČ:
D19: Uchazeč: | I19: IČ: | J19: =IF('Rekapitulace stavby'!$AN$13="Vyplň údaj","",IF('Rekapitulace stavby'!$AN$13="","",'Rekapitulace stavby'!$AN$13)) -> 
E20: =IF('Rekapitulace stavby'!$E$14="Vyplň údaj","",IF('Rekapitulace stavby'!$E$14="","",'Rekapitulace stavby'!$E$14)) ->  | I20: DIČ: | J20: =IF('Rekapitulace stavby'!$AN$14="Vyplň údaj","",IF('Rekapitulace stavby'!$AN$14="","",'Rekapitulace stavby'!$AN$14)) -> 
D22: Projektant: | I22: IČ: | J22: 18224920
E23: BPO spol. s r.o., Lidická 1239, 363 17 Ostrov | I23: DIČ: | J23: CZ18224920
D25: Poznámka:
D29: Cena bez DPH | J29: =ROUND($J$86,2) -> 0
F31: Základ daně | I31: Sazba daně | J31: Výše daně
D32: DPH | E32: základní | F32: =ROUND(SUM($BE$86:$BE$103),2) -> 0 | I32: 0.21 | J32: =ROUND(SUM($BE$86:$BE$103)*$I$32,2) -> 0
E33: snížená | F33: =ROUND(SUM($BF$86:$BF$103),2) -> 0 | I33: 0.15 | J33: =ROUND(SUM($BF$86:$BF$103)*$I$33,2) -> 0
E34: zákl. přenesená | F34: =ROUND(SUM($BG$86:$BG$103),2) -> 0 | I34: 0.21 | J34: 0
E35: sníž. přenesená | F35: =ROUND(SUM($BH$86:$BH$103),2) -> 0 | I35: 0.15 | J35: 0
E36: nulová | F36: =ROUND(SUM($BI$86:$BI$103),2) -> 0 | I36: 0 | J36: 0
D38: Cena s DPH | G38: v | H38: CZK | J38: =ROUND(SUM($J$29:$J$36),2) -> 0
C44: REKAPITULACE ČLENĚNÍ SOUPISU PRACÍ
C46: Stavba:
E47: =$E$7 -> Město Sokolov - Záchytné parkoviště Michal
C48: Objekt:
E49: 1.E - 1.ETAPA
C50: Soupis:
E51: =$E$11 -> VON-1E - Vedlejší rozpočrové náklady (VRN) a Ostatní náklady (ON)
C53: Místo: | F53: =$F$14 -> Sokolov | I53: Datum: | J53: =IF($J$14="","",$J$14) -> 09.09.2014
C55: Zadavatel: | F55: =$E$17 -> Město Sokolov | I55: Projektant: | J55: =$E$23 -> BPO spol. s r.o., Lidická 1239, 363 17 Ostrov
C56: Uchazeč: | F56: =IF($E$20="","",$E$20) -> 
C58: Kód dílu - Popis | J58: Cena celkem [CZK]
C60: Náklady soupisu celkem | J60: =ROUND($J$86,2) -> 0 | AU60: -1
D61: VRN - Vedlejší rozpočtové náklady | J61: =ROUND($J$87,2) -> 0
D62: VRN 02 - Vedlejší rozpočtové náklady pro SO 122 | J62: =ROUND($J$88,2) -> 0
D63: VRN 07 - Vedlejší rozpočtové náklady pro SO 511 | J63: =ROUND($J$91,2) -> 0
D64: ON - Ostatní náklady | J64: =ROUND($J$94,2) -> 0
C71: SOUPIS PRACÍ
C73: Stavba:
E74: =$E$7 -> Město Sokolov - Záchytné parkoviště Michal
C75: Objekt:
E76: 1.E - 1.ETAPA
C77: Soupis:
E78: =$E$11 -> VON-1E - Vedlejší rozpočrové náklady (VRN) a Ostatní náklady (ON)
C80: Místo: | F80: =$F$14 -> Sokolov | I80: Datum: | J80: =IF($J$14="","",$J$14) -> 09.09.2014
C82: Zadavatel: | F82: =$E$17 -> Město Sokolov | I82: Projektant: | J82: =$E$23 -> BPO spol. s r.o., Lidická 1239, 363 17 Ostrov
C83: Uchazeč: | F83: =IF($E$20="","",$E$20) -> 
C85: PČ | D85: Typ | E85: Kód | F85: Popis | G85: MJ | H85: Množství | I85: J.cena [CZK] | J85: Cena celkem [CZK] | K85: Cenová soustava | M85: Poznámka | N85: DPH | O85: J. Nh [h] | P85: Nh celkem [h] | Q85: J. hmotnost [t] | R85: Hmotnost celkem [t] | S85: J. suť [t] | T85: Suť Celkem [t]
C86: Náklady soupisu celkem | J86: =$BK$86 -> 0 | P86: =$P$87+$P$94 -> 0 | R86: =$R$87+$R$94 -> 0 | T86: =$T$87+$T$94 -> 0 | AT86: D | AU86: -1 | BK86: =$BK$87+$BK$94 -> 0
D87: D | E87: VRN | F87: Vedlejší rozpočtové náklady | J87: =$BK$87 -> 0 | P87: =$P$88+$P$91 -> 0 | R87: =$R$88+$R$91 -> 0 | T87: =$T$88+$T$91 -> 0 | AR87: 5 | AT87: D | AU87: 0 | AY87: ROZPOCET | BK87: =$BK$88+$BK$91 -> 0
D88: D | E88: VRN 02 | F88: Vedlejší rozpočtové náklady pro SO 122 | J88: =$BK$88 -> 0 | P88: =SUM($P$89:$P$90) -> 0 | R88: =SUM($R$89:$R$90) -> 0 | T88: =SUM($T$89:$T$90) -> 0 | AR88: 5 | AT88: D | AU88: 1 | AY88: ROZPOCET | BK88: =SUM($BK$89:$BK$90) -> 0
C89: 1 | D89: K | E89: 01 | F89: Zařízení staveniště | G89: % | J89: =ROUND($I$89*$H$89,2) -> 0 | N89: základní | Q89: 0 | R89: =$Q$89*$H$89 -> 0 | S89: 0 | T89: =$S$89*$H$89 -> 0 | AR89: 4 | AT89: K | AU89: 2 | AY89: ROZPOCET | BE89: =IF($N$89="základní",$J$89,0) -> 0 | BF89: =IF($N$89="snížená",$J$89,0) -> 0 | BG89: =IF($N$89="zákl. přenesená",$J$89,0) -> 0 | BH89: =IF($N$89="sníž. přenesená",$J$89,0) -> 0 | BI89: =IF($N$89="nulová",$J$89,0) -> 0 | BJ89: 1 | BK89: =ROUND($I$89*$H$89,2) -> 0 | BL89: 4 | BM89: -666287452
D90: PP | F90: Zařízení staveniště | AT90: PP | AU90: 2
D91: D | E91: VRN 07 | F91: Vedlejší rozpočtové náklady pro SO 511 | J91: =$BK$91 -> 0 | P91: =SUM($P$92:$P$93) -> 0 | R91: =SUM($R$92:$R$93) -> 0 | T91: =SUM($T$92:$T$93) -> 0 | AR91: 1 | AT91: D | AU91: 1 | AY91: ROZPOCET | BK91: =SUM($BK$92:$BK$93) -> 0
C92: 2 | D92: K | E92: 01 | F92: Zařízení staveniště | G92: % | J92: =ROUND($I$92*$H$92,2) -> 0 | N92: základní | Q92: 0 | R92: =$Q$92*$H$92 -> 0 | S92: 0 | T92: =$S$92*$H$92 -> 0 | AR92: 4 | AT92: K | AU92: 2 | AY92: ROZPOCET | BE92: =IF($N$92="základní",$J$92,0) -> 0 | BF92: =IF($N$92="snížená",$J$92,0) -> 0 | BG92: =IF($N$92="zákl. přenesená",$J$92,0) -> 0 | BH92: =IF($N$92="sníž. přenesená",$J$92,0) -> 0 | BI92: =IF($N$92="nulová",$J$92,0) -> 0 | BJ92: 1 | BK92: =ROUND($I$92*$H$92,2) -> 0 | BL92: 4 | BM92: -1372573530
D93: PP | F93: Zařízení staveniště | AT93: PP | AU93: 2
D94: D | E94: ON | F94: Ostatní náklady | J94: =$BK$94 -> 0 | P94: =SUM($P$95:$P$103) -> 0 | R94: =SUM($R$95:$R$103) -> 0 | T94: =SUM($T$95:$T$103) -> 0 | AR94: 4 | AT94: D | AU94: 0 | AY94: ROZPOCET | BK94: =SUM($BK$95:$BK$103) -> 0
C95: 3 | D95: K | E95: O-01 | F95: Velkoplošný informační billboard navržený v soulady s pravidly ROP SZ o velikosti min. 5,1m x 2,4 m | G95: kus | H95: 1 | J95: =ROUND($I$95*$H$95,2) -> 0 | N95: základní | Q95: 0 | R95: =$Q$95*$H$95 -> 0 | S95: 0 | T95: =$S$95*$H$95 -> 0 | AR95: 512 | AT95: K | AU95: 1 | AY95: ROZPOCET | BE95: =IF($N$95="základní",$J$95,0) -> 0 | BF95: =IF($N$95="snížená",$J$95,0) -> 0 | BG95: =IF($N$95="zákl. přenesená",$J$95,0) -> 0 | BH95: =IF($N$95="sníž. přenesená",$J$95,0) -> 0 | BI95: =IF($N$95="nulová",$J$95,0) -> 0 | BJ95: 1 | BK95: =ROUND($I$95*$H$95,2) -> 0 | BL95: 512 | BM95: -1456198615
C96: 4 | D96: K | E96: O-02 | F96: Koordinační a kompletační činnost dodavatele | G96: Kč | H96: 1 | J96: =ROUND($I$96*$H$96,2) -> 0 | N96: základní | Q96: 0 | R96: =$Q$96*$H$96 -> 0 | S96: 0 | T96: =$S$96*$H$96 -> 0 | AR96: 512 | AT96: K | AU96: 1 | AY96: ROZPOCET | BE96: =IF($N$96="základní",$J$96,0) -> 0 | BF96: =IF($N$96="snížená",$J$96,0) -> 0 | BG96: =IF($N$96="zákl. přenesená",$J$96,0) -> 0 | BH96: =IF($N$96="sníž. přenesená",$J$96,0) -> 0 | BI96: =IF($N$96="nulová",$J$96,0) -> 0 | BJ96: 1 | BK96: =ROUND($I$96*$H$96,2) -> 0 | BL96: 512 | BM96: -842696635
C97: 5 | D97: K | E97: O-03 | F97: Geodetické práce a zaměření skutečného procedení stavby + geodetický plán | G97: kč | H97: 1 | J97: =ROUND($I$97*$H$97,2) -> 0 | N97: základní | Q97: 0 | R97: =$Q$97*$H$97 -> 0 | S97: 0 | T97: =$S$97*$H$97 -> 0 | AR97: 512 | AT97: K | AU97: 1 | AY97: ROZPOCET | BE97: =IF($N$97="základní",$J$97,0) -> 0 | BF97: =IF($N$97="snížená",$J$97,0) -> 0 | BG97: =IF($N$97="zákl. přenesená",$J$97,0) -> 0 | BH97: =IF($N$97="sníž. přenesená",$J$97,0) -> 0 | BI97: =IF($N$97="nulová",$J$97,0) -> 0 | BJ97: 1 | BK97: =ROUND($I$97*$H$97,2) -> 0 | BL97: 512 | BM97: 1434158380
C98: 6 | D98: K | E98: O-04 | F98: Vytýčení stávajících inženýrských sítí na staveništi a jejich ověření u správců | G98: Kč | H98: 1 | J98: =ROUND($I$98*$H$98,2) -> 0 | N98: základní | Q98: 0 | R98: =$Q$98*$H$98 -> 0 | S98: 0 | T98: =$S$98*$H$98 -> 0 | AR98: 512 | AT98: K | AU98: 1 | AY98: ROZPOCET | BE98: =IF($N$98="základní",$J$98,0) -> 0 | BF98: =IF($N$98="snížená",$J$98,0) -> 0 | BG98: =IF($N$98="zákl. přenesená",$J$98,0) -> 0 | BH98: =IF($N$98="sníž. přenesená",$J$98,0) -> 0 | BI98: =IF($N$98="nulová",$J$98,0) -> 0 | BJ98: 1 | BK98: =ROUND($I$98*$H$98,2) -> 0 | BL98: 512 | BM98: 1011816811
C99: 7 | D99: K | E99: O-05 | F99: Zkoušky hutnění | G99: Kč | H99: 1 | J99: =ROUND($I$99*$H$99,2) -> 0 | N99: základní | Q99: 0 | R99: =$Q$99*$H$99 -> 0 | S99: 0 | T99: =$S$99*$H$99 -> 0 | AR99: 512 | AT99: K | AU99: 1 | AY99: ROZPOCET | BE99: =IF($N$99="základní",$J$99,0) -> 0 | BF99: =IF($N$99="snížená",$J$99,0) -> 0 | BG99: =IF($N$99="zákl. přenesená",$J$99,0) -> 0 | BH99: =IF($N$99="sníž. přenesená",$J$99,0) -> 0 | BI99: =IF($N$99="nulová",$J$99,0) -> 0 | BJ99: 1 | BK99: =ROUND($I$99*$H$99,2) -> 0 | BL99: 512 | BM99: -1482214643
C100: 8 | D100: K | E100: O-06 | F100: Zpracování dokumentace skutečného provádění stavby | G100: Kč | H100: 1 | J100: =ROUND($I$100*$H$100,2) -> 0 | N100: základní | Q100: 0 | R100: =$Q$100*$H$100 -> 0 | S100: 0 | T100: =$S$100*$H$100 -> 0 | AR100: 512 | AT100: K | AU100: 1 | AY100: ROZPOCET | BE100: =IF($N$100="základní",$J$100,0) -> 0 | BF100: =IF($N$100="snížená",$J$100,0) -> 0 | BG100: =IF($N$100="zákl. přenesená",$J$100,0) -> 0 | BH100: =IF($N$100="sníž. přenesená",$J$100,0) -> 0 | BI100: =IF($N$100="nulová",$J$100,0) -> 0 | BJ100: 1 | BK100: =ROUND($I$100*$H$100,2) -> 0 | BL100: 512 | BM100: -551753705
C101: 9 | D101: K | E101: O-07 | F101: Opatření k zajištění bezpečnosti účastníků realizace akce a veřejnosti (zejména zajištění staveniště, bezpečnostní tabulky, osvětlení výkopů) | G101: Kč | H101: 1 | J101: =ROUND($I$101*$H$101,2) -> 0 | N101: základní | Q101: 0 | R101: =$Q$101*$H$101 -> 0 | S101: 0 | T101: =$S$101*$H$101 -> 0 | AR101: 512 | AT101: K | AU101: 1 | AY101: ROZPOCET | BE101: =IF($N$101="základní",$J$101,0) -> 0 | BF101: =IF($N$101="snížená",$J$101,0) -> 0 | BG101: =IF($N$101="zákl. přenesená",$J$101,0) -> 0 | BH101: =IF($N$101="sníž. přenesená",$J$101,0) -> 0 | BI101: =IF($N$101="nulová",$J$101,0) -> 0 | BJ101: 1 | BK101: =ROUND($I$101*$H$101,2) -> 0 | BL101: 512 | BM101: 426153643
C102: 10 | D102: K | E102: O-08 | F102: Dopravně inženýrská opatření (DIO) včetně projednání s Policií ČR - DI | G102: Kč | H102: 1 | J102: =ROUND($I$102*$H$102,2) -> 0 | N102: základní | Q102: 0 | R102: =$Q$102*$H$102 -> 0 | S102: 0 | T102: =$S$102*$H$102 -> 0 | AR102: 512 | AT102: K | AU102: 1 | AY102: ROZPOCET | BE102: =IF($N$102="základní",$J$102,0) -> 0 | BF102: =IF($N$102="snížená",$J$102,0) -> 0 | BG102: =IF($N$102="zákl. přenesená",$J$102,0) -> 0 | BH102: =IF($N$102="sníž. přenesená",$J$102,0) -> 0 | BI102: =IF($N$102="nulová",$J$102,0) -> 0 | BJ102: 1 | BK102: =ROUND($I$102*$H$102,2) -> 0 | BL102: 512 | BM102: 868944941
C103: 11 | D103: K | E103: O-09 | F103: Revize plynovodu | G103: Kč | H103: 1 | J103: =ROUND($I$103*$H$103,2) -> 0 | N103: základní | Q103: 0 | R103: =$Q$103*$H$103 -> 0 | S103: 0 | T103: =$S$103*$H$103 -> 0 | AR103: 512 | AT103: K | AU103: 1 | AY103: ROZPOCET | BE103: =IF($N$103="základní",$J$103,0) -> 0 | BF103: =IF($N$103="snížená",$J$103,0) -> 0 | BG103: =IF($N$103="zákl. přenesená",$J$103,0) -> 0 | BH103: =IF($N$103="sníž. přenesená",$J$103,0) -> 0 | BI103: =IF($N$103="nulová",$J$103,0) -> 0 | BJ103: 1 | BK103: =ROUND($I$103*$H$103,2) -> 0 | BL103: 512 | BM103: -821076763

Sheet SO111 - SO 111 Parkoviště
D1: List obsahuje: | F1: 1) Krycí list soupisu | G1: 2) Rekapitulace | J1: 3) Soupis prací | K1: Zpět na list: | L1: Rekapitulace stavby
AT2: {574DB0AE-F8E1-4219-8846-1B43C4A81494}
AT3: 2
D4: KRYCÍ LIST SOUPISU | M4: v --- níže se nacházejí doplnkové a pomocné údaje k sestavám --- v | AT4: False
D6: Stavba:
E7: ='Rekapitulace stavby'!$K$6 -> Město Sokolov - Záchytné parkoviště Michal
D8: Objekt:
E9: 2.E - 2. ETAPA
D10: Soupis:
E11: SO111 - SO 111 Parkoviště
D13: KSO: | F13: 822 29 | I13: CC-CZ: | J13: 7641-26
D14: Místo: | F14: Sokolov | I14: Datum: | J14: ='Rekapitulace stavby'!$AN$8 -> 09.09.2014
D16: Zadavatel: | I16: IČ:
E17: Město Sokolov | I17: DIČ:
D19: Uchazeč: | I19: IČ: | J19: =IF('Rekapitulace stavby'!$AN$13="Vyplň údaj","",IF('Rekapitulace stavby'!$AN$13="","",'Rekapitulace stavby'!$AN$13)) -> 
E20: =IF('Rekapitulace stavby'!$E$14="Vyplň údaj","",IF('Rekapitulace stavby'!$E$14="","",'Rekapitulace stavby'!$E$14)) ->  | I20: DIČ: | J20: =IF('Rekapitulace stavby'!$AN$14="Vyplň údaj","",IF('Rekapitulace stavby'!$AN$14="","",'Rekapitulace stavby'!$AN$14)) -> 
D22: Projektant: | I22: IČ: | J22: 18224920
E23: BPO spol. s r.o., Lidická 1239, 363 17 Ostrov | I23: DIČ: | J23: CZ18224920
D25: Poznámka:
D29: Cena bez DPH | J29: =ROUND($J$95,2) -> 0
F31: Základ daně | I31: Sazba daně | J31: Výše daně
D32: DPH | E32: základní | F32: =ROUND(SUM($BE$95:$BE$739),2) -> 0 | I32: 0.21 | J32: =ROUND(SUM($BE$95:$BE$739)*$I$32,2) -> 0
E33: snížená | F33: =ROUND(SUM($BF$95:$BF$739),2) -> 0 | I33: 0.15 | J33: =ROUND(SUM($BF$95:$BF$739)*$I$33,2) -> 0
E34: zákl. přenesená | F34: =ROUND(SUM($BG$95:$BG$739),2) -> 0 | I34: 0.21 | J34: 0
E35: sníž. přenesená | F35: =ROUND(SUM($BH$95:$BH$739),2) -> 0 | I35: 0.15 | J35: 0
E36: nulová | F36: =ROUND(SUM($BI$95:$BI$739),2) -> 0 | I36: 0 | J36: 0
D38: Cena s DPH | G38: v | H38: CZK | J38: =ROUND(SUM($J$29:$J$36),2) -> 0
C44: REKAPITULACE ČLENĚNÍ SOUPISU PRACÍ
C46: Stavba:
E47: =$E$7 -> Město Sokolov - Záchytné parkoviště Michal
C48: Objekt:
E49: 2.E - 2. ETAPA
C50: Soupis:
E51: =$E$11 -> SO111 - SO 111 Parkoviště
C53: Místo: | F53: =$F$14 -> Sokolov | I53: Datum: | J53: =IF($J$14="","",$J$14) -> 09.09.2014
C55: Zadavatel: | F55: =$E$17 -> Město Sokolov | I55: Projektant: | J55: =$E$23 -> BPO spol. s r.o., Lidická 1239, 363 17 Ostrov
C56: Uchazeč: | F56: =IF($E$20="","",$E$20) -> 
C58: Kód dílu - Popis | J58: Cena celkem [CZK]
C60: Náklady soupisu celkem | J60: =ROUND($J$95,2) -> 0 | AU60: -1
D61: HSV - Práce a dodávky HSV | J61: =ROUND($J$96,2) -> 0
D62: 1 - Zemní práce | J62: =ROUND($J$97,2) -> 0
D63: 11 - Zemní práce - přípravné a přidružené práce | J63: =ROUND($J$394,2) -> 0
D64: 45 - Vodorovné podkladní a vedlejší konstrukce inž. staveb | J64: =ROUND($J$403,2) -> 0
D65: 2 - Zakládání | J65: =ROUND($J$410,2) -> 0
D66: 56 - Podkladní vrstvy komunikací, letišť a ploch | J66: =ROUND($J$431,2) -> 0
D67: 57 - Kryty pozemních komunikací letišť a ploch z kameniva nebo živičné | J67: =ROUND($J$464,2) -> 0
D68: 59 - Kryty pozemních komunikací, letišť a ploch dlážděných (předlažby) | J68: =ROUND($J$481,2) -> 0
D69: 8 - Trubní vedení | J69: =ROUND($J$503,2) -> 0
D70: 91 - Doplňující konstrukce a práce pozemních komunikací, letišť a ploch | J70: =ROUND($J$537,2) -> 0
D71: 93 - Různé dokončovací konstrukce a práce inženýrských staveb | J71: =ROUND($J$676,2) -> 0
D72: 97 - Prorážení otvorů a ostatní bourací práce | J72: =ROUND($J$723,2) -> 0
D73: 99 - Přesun hmot | J73: =ROUND($J$736,2) -> 0
C80: SOUPIS PRACÍ
C82: Stavba:
E83: =$E$7 -> Město Sokolov - Záchytné parkoviště Michal
C84: Objekt:
E85: 2.E - 2. ETAPA
C86: Soupis:
E87: =$E$11 -> SO111 - SO 111 Parkoviště
C89: Místo: | F89: =$F$14 -> Sokolov | I89: Datum: | J89: =IF($J$14="","",$J$14) -> 09.09.2014
C91: Zadavatel: | F91: =$E$17 -> Město Sokolov | I91: Projektant: | J91: =$E$23 -> BPO spol. s r.o., Lidická 1239, 363 17 Ostrov
C92: Uchazeč: | F92: =IF($E$20="","",$E$20) -> 
C94: PČ | D94: Typ | E94: Kód | F94: Popis | G94: MJ | H94: Množství | I94: J.cena [CZK] | J94: Cena celkem [CZK] | K94: Cenová soustava | M94: Poznámka | N94: DPH | O94: J. Nh [h] | P94: Nh celkem [h] | Q94: J. hmotnost [t] | R94: Hmotnost celkem [t] | S94: J. suť [t] | T94: Suť Celkem [t]
C95: Náklady soupisu celkem | J95: =$BK$95 -> 0 | P95: =$P$96 -> 0 | R95: =$R$96 -> 2474.967695 | T95: =$T$96 -> 3.9 | AT95: D | AU95: -1 | BK95: =$BK$96 -> 0
D96: D | E96: HSV | F96: Práce a dodávky HSV | J96: =$BK$96 -> 0 | P96: =$P$97+$P$394+$P$403+$P$410+$P$431+$P$464+$P$481+$P$503+$P$537+$P$676+$P$723+$P$736 -> 0 | R96: =$R$97+$R$394+$R$403+$R$410+$R$431+$R$464+$R$481+$R$503+$R$537+$R$676+$R$723+$R$736 -> 2474.967695 | T96: =$T$97+$T$394+$T$403+$T$410+$T$431+$T$464+$T$481+$T$503+$T$537+$T$676+$T$723+$T$736 -> 3.9 | AR96: 1 | AT96: D | AU96: 0 | AY96: ROZPOCET | BK96: =$BK$97+$BK$394+$BK$403+$BK$410+$BK$431+$BK$464+$BK$481+$BK$503+$BK$537+$BK$676+$BK$723+$BK$736 -> 0
D97: D | E97: 1 | F97: Zemní práce | J97: =$BK$97 -> 0 | P97: =SUM($P$98:$P$393) -> 0 | R97: =SUM($R$98:$R$393) -> 31.54596 | T97: =SUM($T$98:$T$393) -> 0 | AR97: 1 | AT97: D | AU97: 1 | AY97: ROZPOCET | BK97: =SUM($BK$98:$BK$393) -> 0
C98: 1 | D98: K | E98: 121101103 | F98: Sejmutí ornice s přemístěním na vzdálenost do 250 m | G98: m3 | H98: 1170 | J98: =ROUND($I$98*$H$98,2) -> 0 | K98: CS ÚRS 2014 02 | N98: základní | Q98: 0 | R98: =$Q$98*$H$98 -> 0 | S98: 0 | T98: =$S$98*$H$98 -> 0 | AR98: 4 | AT98: K | AU98: 2 | AY98: ROZPOCET | BE98: =IF($N$98="základní",$J$98,0) -> 0 | BF98: =IF($N$98="snížená",$J$98,0) -> 0 | BG98: =IF($N$98="zákl. přenesená",$J$98,0) -> 0 | BH98: =IF($N$98="sníž. přenesená",$J$98,0) -> 0 | BI98: =IF($N$98="nulová",$J$98,0) -> 0 | BJ98: 1 | BK98: =ROUND($I$98*$H$98,2) -> 0 | BL98: 4 | BM98: -173594638
D99: PP | F99: Sejmutí ornice nebo lesní půdy s vodorovným přemístěním na hromady v místě upotřebení nebo na dočasné či trvalé skládky se složením, na vzdálenost přes 100 do 250 m | AT99: PP | AU99: 2
D100: PSC | F100: Poznámka k souboru cen: 1. V cenách jsou započteny i náklady na příp. nutné naložení sejmuté ornice na dopravní prostředek. 2. V cenách nejsou započteny náklady na odstranění nevhodných přimísenin (kamenů, kořenů apod.); tyto práce se ocení individuálně. 3. Množství ornice odebírané ze skládek se do objemu vykopávek pro volbu cen podle množství nezapočítává. Ceny souboru cen 122 . 0-11 Odkopávky a prokopávky nezapažené, se volí pro ornici odebíranou z projektovaných dočasných skládek; a) na staveništi podle součtu objemu ze všech skládek, b) mimo staveniště podle objemu každé skládky zvlášť. 4. Uložení ornice na skládky se oceňuje podle ustanovení v poznámkách č. 1 a 2 k ceně 171 20-1201 Uložení sypaniny na skládky. Složení ornice na hromady v místě upotřebení se neoceňuje. 5. Odebírá-li se ornice z projektované dočasné skládky, oceňuje se její naložení a přemístění podle čl. 3172 Všeobecných podmínek tohoto katalogu. 6. Přemísťuje-li se ornice na vzdálenost větší něž 250 m, vzdálenost 50 m se pro určení vzdálenosti vodorovného přemístění neodečítá a ocení se sejmutí a přemístění bez ohledu na ustanovení pozn. č. 1 takto: a) sejmutí ornice na vzdálenost 50m cenou 121 10-1101; b) naložení příslušnou cenou souboru cen 167 10- . . c) vodorovné přemístění cenami souboru cen 162 . 0- . . Vodorovné přemístění výkopku. 7. Sejmutí podorničí se oceňuje cenami odkopávek s přihlédnutím k ustanovení čl. 3112 Všeobecných podmínek tohoto katalogu. | AT100: PSC | AU100: 2
D101: VV | F101: tl. vrstvy 150 mm | AT101: VV | AU101: 2 | AV101: 1 | AW101: -1 | AX101: 0 | AY101: ROZPOCET
D102: VV | F102: 7800,0*0,15 | H102: 1170 | AT102: VV | AU102: 2 | AV102: 2 | AW102: -1 | AX102: 1 | AY102: ROZPOCET
C103: 2 | D103: K | E103: 122102204 | F103: Odkopávky a prokopávky nezapažené pro silnice objemu přes 5000 m3 v hornině tř. 1 a 2 | G103: m3 | H103: 1297.5 | J103: =ROUND($I$103*$H$103,2) -> 0 | K103: CS ÚRS 2014 02 | N103: základní | Q103: 0 | R103: =$Q$103*$H$103 -> 0 | S103: 0 | T103: =$S$103*$H$103 -> 0 | AR103: 4 | AT103: K | AU103: 2 | AY103: ROZPOCET | BE103: =IF($N$103="základní",$J$103,0) -> 0 | BF103: =IF($N$103="snížená",$J$103,0) -> 0 | BG103: =IF($N$103="zákl. přenesená",$J$103,0) -> 0 | BH103: =IF($N$103="sníž. přenesená",$J$103,0) -> 0 | BI103: =IF($N$103="nulová",$J$103,0) -> 0 | BJ103: 1 | BK103: =ROUND($I$103*$H$103,2) -> 0 | BL103: 4 | BM103: -713500443
D104: PP | F104: Odkopávky a prokopávky nezapažené pro silnice s přemístěním výkopku v příčných profilech na vzdálenost do 15 m nebo s naložením na dopravní prostředek v horninách tř. 1 a 2 přes 5 000 m3 | AT104: PP | AU104: 2
D105: PSC | F105: Poznámka k souboru cen: 1. Ceny jsou určeny pro vykopávky: a) příkopů pro silnice a to i tehdy, jsou-li vykopávky příkopů prováděny samostatně, b) v zemnících na suchu, jestliže tyto zemníky přímo souvisejí s odkopávkami nebo prokopávkami pro spodní stavbu silnic. Vykopávky v ostatních zemnících se oceňují podle kapitoly. 3*2 Zemníky Všeobecných podmínek tohoto katalogu. c) při zahlubování silnic pro mimoúrovňové křížení a pro vykopávky pod mosty provedenými v předepsaném předstihu. Část vykopávky mezi svislými rovinami proloženými vnějšími hranami mostu se oceňují: - při objemu do 1 000 m3 cenami pro množství do 100 m3 - při objemu přes 1 000 m3 cenami pro množství přes 100 do 1 000 m3. d) pro sejmutí podorničí s přihlédnutím k ustanovení čl. 3112 Všeobecných podmínek katalogu. 2. Ceny nelze použít pro odkopávky a prokopávky v zapažených prostorách; tyto zemní práce se oceňují podle čl. 3116 Všeobecných podmínek tohoto katalogu. 3. V cenách jsou započteny i náklady na vodorovné přemístění výkopku v příčných profilech na přilehlých svazích a příkopech. Vzdálenosti příčného přemístění se nezahrnují do střední vzdálenosti vodorovného přemístění výkopku. 4. Vodorovné přemístění výkopku z výkopiště na násypiště při jakékoliv šířce koruny se nepovažuje za vodorovné přemístění výkopku v příčném profilu, je-li při odkopávce nebo prokopávce mezi výkopištěm a násypištěm v příčném profilu dopravní nebo jiný pruh, na němž projekt vylučuje rušení provozu prováděním zemních prací. Takové přemístění výkopku se oceňuje podle čl. 3162 Všeobecných podmínek tohoto katalogu. 5. Přemístění výkopku v příčných profilech na vzdálenost přes 15 m se oceňuje cenami souboru cen 162 .0-1 . Vodorovné přemístění výkopku části A 01 Společné zemní práce tohoto katalogu | AT105: PSC | AU105: 2
D106: VV | F106: dle specifikace prací v technické zprávě | AT106: VV | AU106: 2 | AV106: 1 | AW106: -1 | AX106: 0 | AY106: ROZPOCET
D107: VV | F107: 25% celkových odkopávek | AT107: VV | AU107: 2 | AV107: 1 | AW107: -1 | AX107: 0 | AY107: ROZPOCET
D108: VV | F108: 5190,0*0,25 | H108: 1297.5 | AT108: VV | AU108: 2 | AV108: 2 | AW108: -1 | AX108: 1 | AY108: ROZPOCET
C109: 3 | D109: K | E109: 122202204 | F109: Odkopávky a prokopávky nezapažené pro silnice objemu přes 5000 m3 v hornině tř. 3 | G109: m3 | H109: 3892.5 | J109: =ROUND($I$109*$H$109,2) -> 0 | K109: CS ÚRS 2014 02 | N109: základní | Q109: 0 | R109: =$Q$109*$H$109 -> 0 | S109: 0 | T109: =$S$109*$H$109 -> 0 | AR109: 4 | AT109: K | AU109: 2 | AY109: ROZPOCET | BE109: =IF($N$109="základní",$J$109,0) -> 0 | BF109: =IF($N$109="snížená",$J$109,0) -> 0 | BG109: =IF($N$109="zákl. přenesená",$J$109,0) -> 0 | BH109: =IF($N$109="sníž. přenesená",$J$109,0) -> 0 | BI109: =IF($N$109="nulová",$J$109,0) -> 0 | BJ109: 1 | BK109: =ROUND($I$109*$H$109,2) -> 0 | BL109: 4 | BM109: -1268200233
D110: PP | F110: Odkopávky a prokopávky nezapažené pro silnice s přemístěním výkopku v příčných profilech na vzdálenost do 15 m nebo s naložením na dopravní prostředek v hornině tř. 3 přes 5 000 m3 | AT110: PP | AU110: 2
D111: PSC | F111: Poznámka k souboru cen: 1. Ceny jsou určeny pro vykopávky: a) příkopů pro silnice a to i tehdy, jsou-li vykopávky příkopů prováděny samostatně, b) v zemnících na suchu, jestliže tyto zemníky přímo souvisejí s odkopávkami nebo prokopávkami pro spodní stavbu silnic. Vykopávky v ostatních zemnících se oceňují podle kapitoly. 3*2 Zemníky Všeobecných podmínek tohoto katalogu. c) při zahlubování silnic pro mimoúrovňové křížení a pro vykopávky pod mosty provedenými v předepsaném předstihu. Část vykopávky mezi svislými rovinami proloženými vnějšími hranami mostu se oceňují: - při objemu do 1 000 m3 cenami pro množství do 100 m3 - při objemu přes 1 000 m3 cenami pro množství přes 100 do 1 000 m3. d) pro sejmutí podorničí s přihlédnutím k ustanovení čl. 3112 Všeobecných podmínek katalogu. 2. Ceny nelze použít pro odkopávky a prokopávky v zapažených prostorách; tyto zemní práce se oceňují podle čl. 3116 Všeobecných podmínek tohoto katalogu. 3. V cenách jsou započteny i náklady na vodorovné přemístění výkopku v příčných profilech na přilehlých svazích a příkopech. Vzdálenosti příčného přemístění se nezahrnují do střední vzdálenosti vodorovného přemístění výkopku. 4. Vodorovné přemístění výkopku z výkopiště na násypiště při jakékoliv šířce koruny se nepovažuje za vodorovné přemístění výkopku v příčném profilu, je-li při odkopávce nebo prokopávce mezi výkopištěm a násypištěm v příčném profilu dopravní nebo jiný pruh, na němž projekt vylučuje rušení provozu prováděním zemních prací. Takové přemístění výkopku se oceňuje podle čl. 3162 Všeobecných podmínek tohoto katalogu. 5. Přemístění výkopku v příčných profilech na vzdálenost přes 15 m se oceňuje cenami souboru cen 162 .0-1 . Vodorovné přemístění výkopku části A 01 Společné zemní práce tohoto katalogu | AT111: PSC | AU111: 2
D112: VV | F112: dle specifikace prací v technické zprávě | AT112: VV | AU112: 2 | AV112: 1 | AW112: -1 | AX112: 0 | AY112: ROZPOCET
D113: VV | F113: 75% celkových odkopávek | AT113: VV | AU113: 2 | AV113: 1 | AW113: -1 | AX113: 0 | AY113: ROZPOCET
D114: VV | F114: 5190,0*0,75 | H114: 3892.5 | AT114: VV | AU114: 2 | AV114: 2 | AW114: -1 | AX114: 1 | AY114: ROZPOCET
C115: 4 | D115: K | E115: 132201102 | F115: Hloubení rýh š do 600 mm v hornině tř. 3 objemu přes 100 m3 | G115: m3 | H115: 50.4 | J115: =ROUND($I$115*$H$115,2) -> 0 | K115: CS ÚRS 2014 02 | N115: základní | Q115: 0 | R115: =$Q$115*$H$115 -> 0 | S115: 0 | T115: =$S$115*$H$115 -> 0 | AR115: 4 | AT115: K | AU115: 2 | AY115: ROZPOCET | BE115: =IF($N$115="základní",$J$115,0) -> 0 | BF115: =IF($N$115="snížená",$J$115,0) -> 0 | BG115: =IF($N$115="zákl. přenesená",$J$115,0) -> 0 | BH115: =IF($N$115="sníž. přenesená",$J$115,0) -> 0 | BI115: =IF($N$115="nulová",$J$115,0) -> 0 | BJ115: 1 | BK115: =ROUND($I$115*$H$115,2) -> 0 | BL115: 4 | BM115: -687836108
D116: PP | F116: Hloubení zapažených i nezapažených rýh šířky do 600 mm s urovnáním dna do předepsaného profilu a spádu v hornině tř. 3 přes 100 m3 | AT116: PP | AU116: 2
D117: PSC | F117: Poznámka k souboru cen: 1. V cenách jsou započteny i náklady na přehození výkopku na přilehlém terénu na vzdálenost do 3 m od podélné osy rýhy nebo naložení na dopravní prostředek. 2. Ceny jsou určeny pro rýhy: a) šířky přes 200 do 300 mm a hloubky do 750 mm, b) šířky přes 300 do 400 mm a hloubky do 1 000 mm, c) šířky přes 400 do 500 mm a hloubky do 1 250 mm, d) šířky přes 500 do 600 mm a hloubky do 1 500 mm. 3. Náklady na svislé přemístění výkopku nad 1 m hloubky se určí dle ustanovení článku č. 3161 všeobecných podmínek katalogu. | AT117: PSC | AU117: 2
D118: VV | F118: rýha pro drenáž | AT118: VV | AU118: 2 | AV118: 1 | AW118: -1 | AX118: 0 | AY118: ROZPOCET
D119: VV | F119: 0,3*0,3*560,0 | H119: 50.4 | AT119: VV | AU119: 2 | AV119: 2 | AW119: -1 | AX119: 1 | AY119: ROZPOCET
C120: 5 | D120: K | E120: 132201109 | F120: Příplatek za lepivost k hloubení rýh š do 600 mm v hornině tř. 3 | G120: m3 | H120: 25.2 | J120: =ROUND($I$120*$H$120,2) -> 0 | K120: CS ÚRS 2014 02 | N120: základní | Q120: 0 | R120: =$Q$120*$H$120 -> 0 | S120: 0 | T120: =$S$120*$H$120 -> 0 | AR120: 4 | AT120: K | AU120: 2 | AY120: ROZPOCET | BE120: =IF($N$120="základní",$J$120,0) -> 0 | BF120: =IF($N$120="snížená",$J$120,0) -> 0 | BG120: =IF($N$120="zákl. přenesená",$J$120,0) -> 0 | BH120: =IF($N$120="sníž. přenesená",$J$120,0) -> 0 | BI120: =IF($N$120="nulová",$J$120,0) -> 0 | BJ120: 1 | BK120: =ROUND($I$120*$H$120,2) -> 0 | BL120: 4 | BM120: -772221652
D121: PP | F121: Hloubení zapažených i nezapažených rýh šířky do 600 mm s urovnáním dna do předepsaného profilu a spádu v hornině tř. 3 Příplatek k cenám za lepivost horniny tř. 3 | AT121: PP | AU121: 2
D122: PSC | F122: Poznámka k souboru cen: 1. V cenách jsou započteny i náklady na přehození výkopku na přilehlém terénu na vzdálenost do 3 m od podélné osy rýhy nebo naložení na dopravní prostředek. 2. Ceny jsou určeny pro rýhy: a) šířky přes 200 do 300 mm a hloubky do 750 mm, b) šířky přes 300 do 400 mm a hloubky do 1 000 mm, c) šířky přes 400 do 500 mm a hloubky do 1 250 mm, d) šířky přes 500 do 600 mm a hloubky do 1 500 mm. 3. Náklady na svislé přemístění výkopku nad 1 m hloubky se určí dle ustanovení článku č. 3161 všeobecných podmínek katalogu. | AT122: PSC | AU122: 2
D123: VV | F123: lepivost 50% | AT123: VV | AU123: 2 | AV123: 1 | AW123: -1 | AX123: 0 | AY123: ROZPOCET
D124: VV | F124: pol.132201102 | AT124: VV | AU124: 2 | AV124: 1 | AW124: -1 | AX124: 0 | AY124: ROZPOCET
D125: VV | F125: 50,4*0,5 | H125: 25.2 | AT125: VV | AU125: 2 | AV125: 2 | AW125: -1 | AX125: 1 | AY125: ROZPOCET
C126: 6 | D126: K | E126: 132202101 | F126: Hloubení rýh š do 600 mm ručním nebo pneum nářadím v soudržných horninách tř. 3 | G126: m3 | H126: 36 | J126: =ROUND($I$126*$H$126,2) -> 0 | K126: CS ÚRS 2014 02 | N126: základní | Q126: 0 | R126: =$Q$126*$H$126 -> 0 | S126: 0 | T126: =$S$126*$H$126 -> 0 | AR126: 4 | AT126: K | AU126: 2 | AY126: ROZPOCET | BE126: =IF($N$126="základní",$J$126,0) -> 0 | BF126: =IF($N$126="snížená",$J$126,0) -> 0 | BG126: =IF($N$126="zákl. přenesená",$J$126,0) -> 0 | BH126: =IF($N$126="sníž. přenesená",$J$126,0) -> 0 | BI126: =IF($N$126="nulová",$J$126,0) -> 0 | BJ126: 1 | BK126: =ROUND($I$126*$H$126,2) -> 0 | BL126: 4 | BM126: -1894621645
D127: PP | F127: Hloubení zapažených i nezapažených rýh šířky do 600 mm ručním nebo pneumatickým nářadím s urovnáním dna do předepsaného profilu a spádu v horninách tř. 3 soudržných | AT127: PP | AU127: 2
D128: PSC | F128: Poznámka k souboru cen: 1. V cenách jsou započteny i náklady na přehození výkopku na přilehlém terénu na vzdálenost do 3 m od podélné osy rýhy nebo naložení výkopku na dopravní prostředek. 2. V cenách 10-2101 až 40-2102 jsou započteny i náklady na i svislý přesun horniny po házečkách do 2 metrů. | AT128: PSC | AU128: 2
D129: VV | F129: odkrytí podzemních kabelů pro montáž | AT129: VV | AU129: 2 | AV129: 1 | AW129: -1 | AX129: 0 | AY129: ROZPOCET
D130: VV | F130: půlených chrániček - dl.75 m | AT130: VV | AU130: 2 | AV130: 1 | AW130: -1 | AX130: 0 | AY130: ROZPOCET
D131: VV | F131: průměrná hl. výkopu 0,5 m | AT131: VV | AU131: 2 | AV131: 1 | AW131: -1 | AX131: 0 | AY131: ROZPOCET
D132: VV | F132: 0,6*0,5*75,0 | H132: 22.5 | AT132: VV | AU132: 2 | AV132: 2 | AW132: -1 | AX132: 0 | AY132: ROZPOCET
D133: VV | F133: odkrytí výtlačného potrubí splaškové | AT133: VV | AU133: 2 | AV133: 1 | AW133: -1 | AX133: 0 | AY133: ROZPOCET
D134: VV | F134: kanalizace pro zateplení - dl.15 m | AT134: VV | AU134: 2 | AV134: 1 | AW134: -1 | AX134: 0 | AY134: ROZPOCET
D135: VV | F135: průměrná hl. výkopu 1,5 m | AT135: VV | AU135: 2 | AV135: 1 | AW135: -1 | AX135: 0 | AY135: ROZPOCET
D136: VV | F136: 0,6*1,5*15,0 | H136: 13.5 | AT136: VV | AU136: 2 | AV136: 2 | AW136: -1 | AX136: 0 | AY136: ROZPOCET
D137: VV | F137: Součet | H137: 36 | AT137: VV | AU137: 2 | AV137: 4 | AW137: -1 | AX137: 1 | AY137: ROZPOCET
C138: 7 | D138: K | E138: 132202109 | F138: Příplatek za lepivost u hloubení rýh š do 600 mm ručním nebo pneum nářadím v hornině tř. 3 | G138: m3 | H138: 18 | J138: =ROUND($I$138*$H$138,2) -> 0 | K138: CS ÚRS 2014 02 | N138: základní | Q138: 0 | R138: =$Q$138*$H$138 -> 0 | S138: 0 | T138: =$S$138*$H$138 -> 0 | AR138: 4 | AT138: K | AU138: 2 | AY138: ROZPOCET | BE138: =IF($N$138="základní",$J$138,0) -> 0 | BF138: =IF($N$138="snížená",$J$138,0) -> 0 | BG138: =IF($N$138="zákl. přenesená",$J$138,0) -> 0 | BH138: =IF($N$138="sníž. přenesená",$J$138,0) -> 0 | BI138: =IF($N$138="nulová",$J$138,0) -> 0 | BJ138: 1 | BK138: =ROUND($I$138*$H$138,2) -> 0 | BL138: 4 | BM138: 569178530
D139: PP | F139: Hloubení zapažených i nezapažených rýh šířky do 600 mm ručním nebo pneumatickým nářadím s urovnáním dna do předepsaného profilu a spádu v horninách tř. 3 Příplatek k cenám za lepivost horniny tř. 3 | AT139: PP | AU139: 2
D140: PSC | F140: Poznámka k souboru cen: 1. V cenách jsou započteny i náklady na přehození výkopku na přilehlém terénu na vzdálenost do 3 m od podélné osy rýhy nebo naložení výkopku na dopravní prostředek. 2. V cenách 10-2101 až 40-2102 jsou započteny i náklady na i svislý přesun horniny po házečkách do 2 metrů. | AT140: PSC | AU140: 2
D141: VV | F141: lepivost 50% | AT141: VV | AU141: 2 | AV141: 1 | AW141: -1 | AX141: 0 | AY141: ROZPOCET
D142: VV | F142: pol.132202101 | AT142: VV | AU142: 2 | AV142: 1 | AW142: -1 | AX142: 0 | AY142: ROZPOCET
D143: VV | F143: 36,0*0,5 | H143: 18 | AT143: VV | AU143: 2 | AV143: 2 | AW143: -1 | AX143: 1 | AY143: ROZPOCET
C144: 8 | D144: K | E144: 132101203 | F144: Hloubení rýh š do 2000 mm v hornině tř. 1 a 2 objemu do 5000 m3 | G144: m3 | H144: 26 | J144: =ROUND($I$144*$H$144,2) -> 0 | K144: CS ÚRS 2014 02 | N144: základní | Q144: 0 | R144: =$Q$144*$H$144 -> 0 | S144: 0 | T144: =$S$144*$H$144 -> 0 | AR144: 4 | AT144: K | AU144: 2 | AY144: ROZPOCET | BE144: =IF($N$144="základní",$J$144,0) -> 0 | BF144: =IF($N$144="snížená",$J$144,0) -> 0 | BG144: =IF($N$144="zákl. přenesená",$J$144,0) -> 0 | BH144: =IF($N$144="sníž. přenesená",$J$144,0) -> 0 | BI144: =IF($N$144="nulová",$J$144,0) -> 0 | BJ144: 1 | BK144: =ROUND($I$144*$H$144,2) -> 0 | BL144: 4 | BM144: 1618538753
D145: PP | F145: Hloubení zapažených i nezapažených rýh šířky přes 600 do 2 000 mm s urovnáním dna do předepsaného profilu a spádu v horninách tř. 1 a 2 přes 1 000 do 5 000 m3 | AT145: PP | AU145: 2
D146: PSC | F146: Poznámka k souboru cen: 1. V cenách jsou započteny i náklady na případné nutné přemístění výkopku ve výkopišti na vzdálenost do 3 m a na přehození výkopku na přilehlém terénu na vzdálenost do 5 m od okraje jámy nebo naložení na dopravní prostředek. 2. Hloubení rýh při lesnicko-technických melioracích se oceňuje: a) ve stržích cenami platnými pro objem výkopu do 100 m3, i když skutečný objem výkopu je větší, b) mimo strže pro příčná a podélná zpevnění dna a břehů pod obrysem výkopu pro koryta vodotečí, zejména pro konstrukce těles, stupňů, boků, předprahů, prahů, odháněk, výhonů a pro základy zdí, dlažeb, rovnanin, plůtků a hatí, pro jakoukoliv šířku rýhy, při objemu do 100 m3 cenami příslušnými pro objem výkopu do 100 m3 a při jakémkoliv objemu výkopu přes 100 m3 cenami příslušnými pro objem výkopu přes 100 do 1 000 m3. 3. Náklady na svislé přemístění výkopku nad 1 m hloubky se určí dle ustanovení článku č. 3161 všeobecných podmínek katalogu. 4. Předepisuje-li projekt hloubit rýhy 5 až 7 bez použití trhavin, oceňuje se toto hloubení: a) v suchu nebo mokru cenami 138 40-1201, 138 50-1201 a 138 60-1201 Dolamování hloubených vykopávek, b) v tekoucí vodě při jakékoliv její rychlosti individuálně. 5. Ceny nelze použít pro hloubení rýh a hloubky přes 16 m. Tyto práce se oceňují individuálně. | AT146: PSC | AU146: 2
D147: VV | F147: 25% z celkového výkopku | AT147: VV | AU147: 2 | AV147: 1 | AW147: -1 | AX147: 0 | AY147: ROZPOCET
D148: VV | F148: rýha pro propustky | AT148: VV | AU148: 2 | AV148: 1 | AW148: -1 | AX148: 0 | AY148: ROZPOCET
D149: VV | F149: (2,8+1,0)/2*0,9*8,0*0,25 | H149: 3.42 | AT149: VV | AU149: 2 | AV149: 2 | AW149: -1 | AX149: 0 | AY149: ROZPOCET
D150: VV | F150: (3,2+1,2)/2*1,0*20,0*0,25 | H150: 11 | AT150: VV | AU150: 2 | AV150: 2 | AW150: -1 | AX150: 0 | AY150: ROZPOCET
D151: VV | F151: 0,08 | H151: 0.08 | AT151: VV | AU151: 2 | AV151: 2 | AW151: -1 | AX151: 0 | AY151: ROZPOCET
D152: VV | F152: Mezisoučet A | H152: 14.5 | AT152: VV | AU152: 2 | AV152: 3 | AW152: -1 | AX152: 0 | AY152: ROZPOCET
D153: VV | F153: rýhy pro odvodnění vpustí | AT153: VV | AU153: 2 | AV153: 1 | AW153: -1 | AX153: 0 | AY153: ROZPOCET
D154: VV | F154: průměrná hl. výkopu 1,5 m | AT154: VV | AU154: 2 | AV154: 1 | AW154: -1 | AX154: 0 | AY154: ROZPOCET
D155: VV | F155: 1,0*1,5*30,0*0,25+0,25 | H155: 11.5 | AT155: VV | AU155: 2 | AV155: 2 | AW155: -1 | AX155: 0 | AY155: ROZPOCET
D156: VV | F156: Mezisoučet B | H156: 11.5 | AT156: VV | AU156: 2 | AV156: 3 | AW156: -1 | AX156: 0 | AY156: ROZPOCET
D157: VV | F157: Součet | H157: 26 | AT157: VV | AU157: 2 | AV157: 4 | AW157: -1 | AX157: 1 | AY157: ROZPOCET
C158: 9 | D158: K | E158: 132201203 | F158: Hloubení rýh š do 2000 mm v hornině tř. 3 objemu do 5000 m3 | G158: m3 | H158: 77.5 | J158: =ROUND($I$158*$H$158,2) -> 0 | K158: CS ÚRS 2014 02 | N158: základní | Q158: 0 | R158: =$Q$158*$H$158 -> 0 | S158: 0 | T158: =$S$158*$H$158 -> 0 | AR158: 4 | AT158: K | AU158: 2 | AY158: ROZPOCET | BE158: =IF($N$158="základní",$J$158,0) -> 0 | BF158: =IF($N$158="snížená",$J$158,0) -> 0 | BG158: =IF($N$158="zákl. přenesená",$J$158,0) -> 0 | BH158: =IF($N$158="sníž. přenesená",$J$158,0) -> 0 | BI158: =IF($N$158="nulová",$J$158,0) -> 0 | BJ158: 1 | BK158: =ROUND($I$158*$H$158,2) -> 0 | BL158: 4 | BM158: -1594622436
D159: PP | F159: Hloubení zapažených i nezapažených rýh šířky přes 600 do 2 000 mm s urovnáním dna do předepsaného profilu a spádu v hornině tř. 3 přes 1 000 do 5 000 m3 | AT159: PP | AU159: 2
D160: PSC | F160: Poznámka k souboru cen: 1. V cenách jsou započteny i náklady na případné nutné přemístění výkopku ve výkopišti na vzdálenost do 3 m a na přehození výkopku na přilehlém terénu na vzdálenost do 5 m od okraje jámy nebo naložení na dopravní prostředek. 2. Hloubení rýh při lesnicko-technických melioracích se oceňuje: a) ve stržích cenami platnými pro objem výkopu do 100 m3, i když skutečný objem výkopu je větší, b) mimo strže pro příčná a podélná zpevnění dna a břehů pod obrysem výkopu pro koryta vodotečí, zejména pro konstrukce těles, stupňů, boků, předprahů, prahů, odháněk, výhonů a pro základy zdí, dlažeb, rovnanin, plůtků a hatí, pro jakoukoliv šířku rýhy, při objemu do 100 m3 cenami příslušnými pro objem výkopu do 100 m3 a při jakémkoliv objemu výkopu přes 100 m3 cenami příslušnými pro objem výkopu přes 100 do 1 000 m3. 3. Náklady na svislé přemístění výkopku nad 1 m hloubky se určí dle ustanovení článku č. 3161 všeobecných podmínek katalogu. 4. Předepisuje-li projekt hloubit rýhy 5 až 7 bez použití trhavin, oceňuje se toto hloubení: a) v suchu nebo mokru cenami 138 40-1201, 138 50-1201 a 138 60-1201 Dolamování hloubených vykopávek, b) v tekoucí vodě při jakékoliv její rychlosti individuálně. 5. Ceny nelze použít pro hloubení rýh a hloubky přes 16 m. Tyto práce se oceňují individuálně. | AT160: PSC | AU160: 2
D161: VV | F161: 75% z celkového výkopku | AT161: VV | AU161: 2 | AV161: 1 | AW161: -1 | AX161: 0 | AY161: ROZPOCET
D162: VV | F162: rýha pro propustky | AT162: VV | AU162: 2 | AV162: 1 | AW162: -1 | AX162: 0 | AY162: ROZPOCET
D163: VV | F163: (2,8+1,0)/2*0,9*8,0*0,75 | H163: 10.26 | AT163: VV | AU163: 2 | AV163: 2 | AW163: -1 | AX163: 0 | AY163: ROZPOCET
D164: VV | F164: (3,2+1,2)/2*1,0*20,0*0,75 | H164: 33 | AT164: VV | AU164: 2 | AV164: 2 | AW164: -1 | AX164: 0 | AY164: ROZPOCET
D165: VV | F165: 0,24 | H165: 0.24 | AT165: VV | AU165: 2 | AV165: 2 | AW165: -1 | AX165: 0 | AY165: ROZPOCET
D166: VV | F166: Mezisoučet A | H166: 43.5 | AT166: VV | AU166: 2 | AV166: 3 | AW166: -1 | AX166: 0 | AY166: ROZPOCET
D167: VV | F167: rýhy pro odvodnění vpustí | AT167: VV | AU167: 2 | AV167: 1 | AW167: -1 | AX167: 0 | AY167: ROZPOCET
D168: VV | F168: průměrná hl. výkopu 1,5 m | AT168: VV | AU168: 2 | AV168: 1 | AW168: -1 | AX168: 0 | AY168: ROZPOCET
D169: VV | F169: 1,0*1,5*30,0*0,75+0,25 | H169: 34 | AT169: VV | AU169: 2 | AV169: 2 | AW169: -1 | AX169: 0 | AY169: ROZPOCET
D170: VV | F170: Mezisoučet B | H170: 34 | AT170: VV | AU170: 2 | AV170: 3 | AW170: -1 | AX170: 0 | AY170: ROZPOCET
D171: VV | F171: Součet | H171: 77.5 | AT171: VV | AU171: 2 | AV171: 4 | AW171: -1 | AX171: 1 | AY171: ROZPOCET
C172: 10 | D172: K | E172: 132201209 | F172: Příplatek za lepivost k hloubení rýh š do 2000 mm v hornině tř. 3 | G172: m3 | H172: 38.75 | J172: =ROUND($I$172*$H$172,2) -> 0 | K172: CS ÚRS 2014 02 | N172: základní | Q172: 0 | R172: =$Q$172*$H$172 -> 0 | S172: 0 | T172: =$S$172*$H$172 -> 0 | AR172: 4 | AT172: K | AU172: 2 | AY172: ROZPOCET | BE172: =IF($N$172="základní",$J$172,0) -> 0 | BF172: =IF($N$172="snížená",$J$172,0) -> 0 | BG172: =IF($N$172="zákl. přenesená",$J$172,0) -> 0 | BH172: =IF($N$172="sníž. přenesená",$J$172,0) -> 0 | BI172: =IF($N$172="nulová",$J$172,0) -> 0 | BJ172: 1 | BK172: =ROUND($I$172*$H$172,2) -> 0 | BL172: 4 | BM172: -1692566981
D173: PP | F173: Hloubení zapažených i nezapažených rýh šířky přes 600 do 2 000 mm s urovnáním dna do předepsaného profilu a spádu v hornině tř. 3 Příplatek k cenám za lepivost horniny tř. 3 | AT173: PP | AU173: 2
D174: PSC | F174: Poznámka k souboru cen: 1. V cenách jsou započteny i náklady na případné nutné přemístění výkopku ve výkopišti na vzdálenost do 3 m a na přehození výkopku na přilehlém terénu na vzdálenost do 5 m od okraje jámy nebo naložení na dopravní prostředek. 2. Hloubení rýh při lesnicko-technických melioracích se oceňuje: a) ve stržích cenami platnými pro objem výkopu do 100 m3, i když skutečný objem výkopu je větší, b) mimo strže pro příčná a podélná zpevnění dna a břehů pod obrysem výkopu pro koryta vodotečí, zejména pro konstrukce těles, stupňů, boků, předprahů, prahů, odháněk, výhonů a pro základy zdí, dlažeb, rovnanin, plůtků a hatí, pro jakoukoliv šířku rýhy, při objemu do 100 m3 cenami příslušnými pro objem výkopu do 100 m3 a při jakémkoliv objemu výkopu přes 100 m3 cenami příslušnými pro objem výkopu přes 100 do 1 000 m3. 3. Náklady na svislé přemístění výkopku nad 1 m hloubky se určí dle ustanovení článku č. 3161 všeobecných podmínek katalogu. 4. Předepisuje-li projekt hloubit rýhy 5 až 7 bez použití trhavin, oceňuje se toto hloubení: a) v suchu nebo mokru cenami 138 40-1201, 138 50-1201 a 138 60-1201 Dolamování hloubených vykopávek, b) v tekoucí vodě při jakékoliv její rychlosti individuálně. 5. Ceny nelze použít pro hloubení rýh a hloubky přes 16 m. Tyto práce se oceňují individuálně. | AT174: PSC | AU174: 2
D175: VV | F175: lepivost 50% | AT175: VV | AU175: 2 | AV175: 1 | AW175: -1 | AX175: 0 | AY175: ROZPOCET
D176: VV | F176: pol.132201203 | AT176: VV | AU176: 2 | AV176: 1 | AW176: -1 | AX176: 0 | AY176: ROZPOCET
D177: VV | F177: 77,5*0,5 | H177: 38.75 | AT177: VV | AU177: 2 | AV177: 2 | AW177: -1 | AX177: 1 | AY177: ROZPOCET
C178: 11 | D178: K | E178: 171101103 | F178: Uložení sypaniny z hornin soudržných do násypů zhutněných do 100 % PS | G178: m3 | H178: 180 | J178: =ROUND($I$178*$H$178,2) -> 0 | K178: CS ÚRS 2014 02 | N178: základní | Q178: 0 | R178: =$Q$178*$H$178 -> 0 | S178: 0 | T178: =$S$178*$H$178 -> 0 | AR178: 4 | AT178: K | AU178: 2 | AY178: ROZPOCET | BE178: =IF($N$178="základní",$J$178,0) -> 0 | BF178: =IF($N$178="snížená",$J$178,0) -> 0 | BG178: =IF($N$178="zákl. přenesená",$J$178,0) -> 0 | BH178: =IF($N$178="sníž. přenesená",$J$178,0) -> 0 | BI178: =IF($N$178="nulová",$J$178,0) -> 0 | BJ178: 1 | BK178: =ROUND($I$178*$H$178,2) -> 0 | BL178: 4 | BM178: -199604850
D179: PP | F179: Uložení sypaniny do násypů s rozprostřením sypaniny ve vrstvách a s hrubým urovnáním zhutněných s uzavřením povrchu násypu z hornin soudržných s předepsanou mírou zhutnění v procentech výsledků zkoušek Proctor-Standard (dále jen PS) přes 96 do 100 % PS | AT179: PP | AU179: 2
D180: PSC | F180: Poznámka k souboru cen: 1. Ceny lze použít i pro sypaniny odebírané z hald, pro hlušinu apod. 2. Cenu 20-1101 lze použít i pro: a) rozprostření zbylého výkopu na místě po zásypu jam a rýh pro podzemní vedení a zářezů pro podzemní vedení; toto množství se určí v m3 uloženého výkopku, měřeného v rostlém stavu, b) uložení výkopku do násypů pod vodou. 3. Ceny lze použít i pro uložení sypaniny s předepsaným zhutněním na trvalé skládky, do koryt vodotečí a do prohlubní terénu. 4. Cenu 10-1131 lze použít i pro ukládání sypaniny z hornin nesoudržných i soudržných společně bez možnosti jejich roztřídění. 5. Ceny -1121 a -1131 lze použít jen tehdy, jestliže objem násypů, oceňovaných těmito cenami, měřený podle ustanovení čl. 3571 Všeobecných podmínek katalogu nepřesáhne 100 000 m3na objektu. Násypy, jejichž součet objemů přesáhne 100 000 m3 na objektu, se ocení individuálně. 6. Ceny jsou určeny pro míru zhutnění určenou projektem: a) pro ceny -1101 až -1105 v % výsledku zkoušky PS, b) pro ceny -1111 a -1112 relativní ulehlostí I(d), c) pro ceny -1121 a -1131 stanovením technologie. 7. Ceny nelze použít: a) pro uložení sypaniny do hrází; uložení netříděné sypaniny do hrází se oceňuje cenami souboru cen 171 uložení netříděných sypanin do hrází části A 03, případně cenovými normativy podle části A 31, b) pro uložení sypaniny do ochranných valů nebo těch jejich částí, jejichž šířka je menší než 3 m. Toto uložení se oceňuje cenami souboru cen 175 10-11 Obsyp objektů. 8. Cena 20-1101 neplatí pro uložení výkopku nebo ornice při vykopávkách pro podzemní vedení podél hrany výkopu, z něhož byl výkopek získán a to ani tehdy, jestliže se výkopek po vyhození z výkopiště na povrch území ještě dále přemísťuje na hromady . podél výkopu. 9. Horninami soudržnými se rozumějí takové horniny, u nichž zdrojem pevnosti jsou molekulární a chemické vazby mezi částicemi horniny. Jde o horniny, které jsou schopny plastických deformací. 10. Horninami nesoudržnými se rozumějí horniny, u nichž hlavním zdrojem pevnosti ve smyku je pouze tření mezi jednotlivými oddělenými pevnými částicemi horniny. 11. Horninami sypkými se rozumějí horniny III. skupiny podle ČSN 72 1002 se zrnem do 125 mm. Množství zrn velikosti přes 125 mm může být nejvýše 5 % objemu. 12. Horninami kamenitými se rozumějí nestmelené úlomkovité horniny skalní a sypké se zrny přes 125 mm. Množství zrn velikosti přes 125 mm musí být vyšší než 5 % objemu. 13. Ceny pro uložení soudržných hornin lze použít, jestliže jejich přirozená vlhkost při ukládání do násypu není vyšší než 2 % optimální vlhkosti dle zkoušky PS na neredukovaný materiál. Je-li vlhkost při ukládání sypaniny do násypu vyšší, ocení se uložení sypaniny individuálně. 14. Zajišťuje-li se předepsané zhutnění násypu přesypáním podle čl. 120 ČSN 73 3050, ocení se odstranění přesypané části cenami 122 . 0-71 Odkopávky nebo prokopávky při pozemkových úpravách | AT180: PSC | AU180: 2
D181: VV | F181: dle specifikace prací v technické zprávě | AT181: VV | AU181: 2 | AV181: 1 | AW181: -1 | AX181: 0 | AY181: ROZPOCET
D182: VV | F182: 180,0 | H182: 180 | AT182: VV | AU182: 2 | AV182: 2 | AW182: -1 | AX182: 1 | AY182: ROZPOCET
C183: 12 | D183: K | E183: 175101101 | F183: Obsypání potrubí bez prohození sypaniny z hornin tř. 1 až 4 uloženým do 3 m od kraje výkopu | G183: m3 | H183: 44 | J183: =ROUND($I$183*$H$183,2) -> 0 | K183: CS ÚRS 2014 02 | N183: základní | Q183: 0 | R183: =$Q$183*$H$183 -> 0 | S183: 0 | T183: =$S$183*$H$183 -> 0 | AR183: 4 | AT183: K | AU183: 2 | AY183: ROZPOCET | BE183: =IF($N$183="základní",$J$183,0) -> 0 | BF183: =IF($N$183="snížená",$J$183,0) -> 0 | BG183: =IF($N$183="zákl. přenesená",$J$183,0) -> 0 | BH183: =IF($N$183="sníž. přenesená",$J$183,0) -> 0 | BI183: =IF($N$183="nulová",$J$183,0) -> 0 | BJ183: 1 | BK183: =ROUND($I$183*$H$183,2) -> 0 | BL183: 4 | BM183: -460544949
D184: PP | F184: Obsypání potrubí sypaninou z vhodných hornin tř. 1 až 4 nebo materiálem připraveným podél výkopu ve vzdálenosti do 3 m od jeho kraje, pro jakoukoliv hloubku výkopu a míru zhutnění bez prohození sypaniny | AT184: PP | AU184: 2
D185: PSC | F185: Poznámka k souboru cen: 1. Objem obsypu na 1 m délky potrubí se rovná šířce dna výkopu násobené součtem vnějšího průměru potrubí příp. i s obalem a projektované tloušťky obsypu nad, případně i pod potrubím. Pro odečítání objemu potrubí se započítávají všechny vestavěné konstrukce nebo uložené vedení i s jejich obklady a podklady (tento objem se nazývá objemem horniny vytlačené konstrukcí). 2. Míru zhutnění předepisuje projekt. 3. V cenách nejsou zahrnuty náklady na nakupovanou sypaninu. Tato se oceňuje ve specifikaci. | AT185: PSC | AU185: 2
D186: VV | F186: obsyp zeminou | AT186: VV | AU186: 2 | AV186: 1 | AW186: -1 | AX186: 0 | AY186: ROZPOCET
D187: VV | F187: obsyp propustku dl.8 m | AT187: VV | AU187: 2 | AV187: 1 | AW187: -1 | AX187: 0 | AY187: ROZPOCET
D188: VV | F188: 2,0 | H188: 2 | AT188: VV | AU188: 2 | AV188: 2 | AW188: -1 | AX188: 0 | AY188: ROZPOCET
D189: VV | F189: obsyp propustku dl.20 m | AT189: VV | AU189: 2 | AV189: 1 | AW189: -1 | AX189: 0 | AY189: ROZPOCET
D190: VV | F190: 25,0 | H190: 25 | AT190: VV | AU190: 2 | AV190: 2 | AW190: -1 | AX190: 0 | AY190: ROZPOCET
D191: VV | F191: Mezisoučet A | H191: 27 | AT191: VV | AU191: 2 | AV191: 3 | AW191: -1 | AX191: 0 | AY191: ROZPOCET
D192: VV | F192: obsyp pískem do 30 cm nad vrchol potrubí | AT192: VV | AU192: 2 | AV192: 1 | AW192: -1 | AX192: 0 | AY192: ROZPOCET
D193: VV | F193: rýhy pro odvodnění vpustí | AT193: VV | AU193: 2 | AV193: 1 | AW193: -1 | AX193: 0 | AY193: ROZPOCET
D194: VV | F194: 1,0*(0,15+0,3)*30,0 | H194: 13.5 | AT194: VV | AU194: 2 | AV194: 2 | AW194: -1 | AX194: 0 | AY194: ROZPOCET
D195: VV | F195: obsyp výtlačného potrubí splaškové | AT195: VV | AU195: 2 | AV195: 1 | AW195: -1 | AX195: 0 | AY195: ROZPOCET
D196: VV | F196: kanalizace pro zateplení - dl.15 m | AT196: VV | AU196: 2 | AV196: 1 | AW196: -1 | AX196: 0 | AY196: ROZPOCET
D197: VV | F197: 0,6*(0,2+0,3)*15,0 | H197: 4.5 | AT197: VV | AU197: 2 | AV197: 2 | AW197: -1 | AX197: 0 | AY197: ROZPOCET
D198: VV | F198: Mezisoučet B | H198: 18 | AT198: VV | AU198: 2 | AV198: 3 | AW198: -1 | AX198: 0 | AY198: ROZPOCET
D199: VV | F199: méně potrubí | AT199: VV | AU199: 2 | AV199: 1 | AW199: -1 | AX199: 0 | AY199: ROZPOCET
D200: VV | F200: -3,14*0,075*0,075*30,0 | H200: -0.53 | AT200: VV | AU200: 2 | AV200: 2 | AW200: -1 | AX200: 0 | AY200: ROZPOCET
D201: VV | F201: -3,14*0,1*0,1*15,0+0,001 | H201: -0.47 | AT201: VV | AU201: 2 | AV201: 2 | AW201: -1 | AX201: 0 | AY201: ROZPOCET
D202: VV | F202: Mezisoučet C | H202: -1 | AT202: VV | AU202: 2 | AV202: 3 | AW202: -1 | AX202: 0 | AY202: ROZPOCET
D203: VV | F203: Součet | H203: 44 | AT203: VV | AU203: 2 | AV203: 4 | AW203: -1 | AX203: 1 | AY203: ROZPOCET
C204: 13 | D204: K | E204: 175101109 | F204: Příplatek k obsypání potrubí sypaninou uloženou do 3 m od kraje výkopu za prohození sypaniny | G204: m3 | H204: 27 | J204: =ROUND($I$204*$H$204,2) -> 0 | K204: CS ÚRS 2014 02 | N204: základní | Q204: 0 | R204: =$Q$204*$H$204 -> 0 | S204: 0 | T204: =$S$204*$H$204 -> 0 | AR204: 4 | AT204: K | AU204: 2 | AY204: ROZPOCET | BE204: =IF($N$204="základní",$J$204,0) -> 0 | BF204: =IF($N$204="snížená",$J$204,0) -> 0 | BG204: =IF($N$204="zákl. přenesená",$J$204,0) -> 0 | BH204: =IF($N$204="sníž. přenesená",$J$204,0) -> 0 | BI204: =IF($N$204="nulová",$J$204,0) -> 0 | BJ204: 1 | BK204: =ROUND($I$204*$H$204,2) -> 0 | BL204: 4 | BM204: 1606473538
D205: PP | F205: Obsypání potrubí sypaninou z vhodných hornin tř. 1 až 4 nebo materiálem připraveným podél výkopu ve vzdálenosti do 3 m od jeho kraje, pro jakoukoliv hloubku výkopu a míru zhutnění Příplatek k ceně za prohození sypaniny | AT205: PP | AU205: 2
D206: PSC | F206: Poznámka k souboru cen: 1. Objem obsypu na 1 m délky potrubí se rovná šířce dna výkopu násobené součtem vnějšího průměru potrubí příp. i s obalem a projektované tloušťky obsypu nad, případně i pod potrubím. Pro odečítání objemu potrubí se započítávají všechny vestavěné konstrukce nebo uložené vedení i s jejich obklady a podklady (tento objem se nazývá objemem horniny vytlačené konstrukcí). 2. Míru zhutnění předepisuje projekt. 3. V cenách nejsou zahrnuty náklady na nakupovanou sypaninu. Tato se oceňuje ve specifikaci. | AT206: PSC | AU206: 2
D207: VV | F207: pol.175101101 mezisoučet A | AT207: VV | AU207: 2 | AV207: 1 | AW207: -1 | AX207: 0 | AY207: ROZPOCET
D208: VV | F208: 27,0 | H208: 27 | AT208: VV | AU208: 2 | AV208: 2 | AW208: -1 | AX208: 1 | AY208: ROZPOCET
C209: 14 | D209: M | E209: 583313450 | F209: kamenivo těžené drobné frakce 0-4 | G209: t | H209: 31.513 | J209: =ROUND($I$209*$H$209,2) -> 0 | K209: CS ÚRS 2014 02 | N209: základní | Q209: 1 | R209: =$Q$209*$H$209 -> 31.513 | S209: 0 | T209: =$S$209*$H$209 -> 0 | AR209: 8 | AT209: M | AU209: 2 | AY209: ROZPOCET | BE209: =IF($N$209="základní",$J$209,0) -> 0 | BF209: =IF($N$209="snížená",$J$209,0) -> 0 | BG209: =IF($N$209="zákl. přenesená",$J$209,0) -> 0 | BH209: =IF($N$209="sníž. přenesená",$J$209,0) -> 0 | BI209: =IF($N$209="nulová",$J$209,0) -> 0 | BJ209: 1 | BK209: =ROUND($I$209*$H$209,2) -> 0 | BL209: 4 | BM209: -1508507353
D210: PP | F210: kamenivo přírodní těžené pro stavební účely PTK (drobné, hrubé, štěrkopísky) kamenivo těžené drobné D<=2 mm (ČSN EN 13043 ) D<=4 mm (ČSN EN 12620, ČSN EN 13139 ) d=0 mm, D<=6,3 mm (ČSN EN 13242) frakce 0-4 tříděná | AT210: PP | AU210: 2
D211: VV | F211: hutnění 10%, ztratné 1% | AT211: VV | AU211: 2 | AV211: 1 | AW211: -1 | AX211: 0 | AY211: ROZPOCET
D212: VV | F212: k pol.175101101 mezisoučet B+C | AT212: VV | AU212: 2 | AV212: 1 | AW212: -1 | AX212: 0 | AY212: ROZPOCET
D213: VV | F213: (18,0-1,0)*1,67*1,11 | H213: 31.513 | AT213: VV | AU213: 2 | AV213: 2 | AW213: -1 | AX213: 1 | AY213: ROZPOCET
C214: 15 | D214: K | E214: 174101101 | F214: Zásyp jam, šachet rýh nebo kolem objektů sypaninou se zhutněním | G214: m3 | H214: 45 | J214: =ROUND($I$214*$H$214,2) -> 0 | K214: CS ÚRS 2014 02 | N214: základní | Q214: 0 | R214: =$Q$214*$H$214 -> 0 | S214: 0 | T214: =$S$214*$H$214 -> 0 | AR214: 4 | AT214: K | AU214: 2 | AY214: ROZPOCET | BE214: =IF($N$214="základní",$J$214,0) -> 0 | BF214: =IF($N$214="snížená",$J$214,0) -> 0 | BG214: =IF($N$214="zákl. přenesená",$J$214,0) -> 0 | BH214: =IF($N$214="sníž. přenesená",$J$214,0) -> 0 | BI214: =IF($N$214="nulová",$J$214,0) -> 0 | BJ214: 1 | BK214: =ROUND($I$214*$H$214,2) -> 0 | BL214: 4 | BM214: 1368200195
D215: PP | F215: Zásyp sypaninou z jakékoliv horniny s uložením výkopku ve vrstvách se zhutněním jam, šachet, rýh nebo kolem objektů v těchto vykopávkách | AT215: PP | AU215: 2
D216: PSC | F216: Poznámka k souboru cen: 1. Ceny 174 10- . . jsou určeny pro zhutněné zásypy s mírou zhutnění: a) z hornin soudržných do 100 % PS, b) z hornin nesoudržných do I(d) 0,9, c) z hornin kamenitých pro jakoukoliv míru zhutnění. 2. Je-li projektem předepsáno vyšší zhutnění, podle bodu a) a b) poznámky č 1., ocení se zásyp individuálně. 3. Ceny nelze použít pro zásyp rýh pro drenážní trativody pro lesnicko-technické meliorace a zemědělské. Zásyp těchto rýh se oceňuje cenami souboru cen 174 20-3 . části A 03 Zemní práce pro objekty oborů 831 až 833. Nezhutněný zásyp odvodňovacích kanálů z betonových a železobetonových trub v polních a lučních tratích se oceňuje cenou -1101 Zásyp sypaninou rýh bez ohledu na šířku kanálu; cena obsahuje i náklady na ruční nezhutněný zásyp výšky do 200 mm nad vrchol potrubí. 4. V cenách 10-1101, 10-1103, 20-1101 a 20-1103 je započteno přemístění sypaniny ze vzdálenosti 10 m od kraje výkopu nebo zasypávaného prostoru, měřeno k těžišti skládky. 5. V ceně 10-1102 je započteno přemístění sypaniny ze vzdálenosti 15 m od hrany zasypávaného prostoru, měřeno k těžišti skládky. 6. Objem zásypu je rozdíl objemu výkopu a objemu do něho vestavěných konstrukcí nebo uložených vedení i s jejich obklady a podklady (tento objem se nazývá objemem horniny vytlačené konstrukcí). Objem potrubí do DN 180, příp. i s obalem, se od objemu zásypu neodečítá. Pro stanovení objemu zásypu se od objemu výkopu odečítá i objem obsypu potrubí oceňovaný cenami souboru cen 175 10-11 Obsyp potrubí, přichází-li v úvahu . 7. Odklizení zbylého výkopku po provedení zásypu zářezů se šikmými stěnami pro podzemní vedení nebo zásypu jam a rýh pro podzemní vedení se oceňuje, je-li objem zbylého výkopku: a) do 1 m3 na 1 m vedení a jedná se o výkopek neulehlý - cenami souboru cen 167 10-110 Nakládání výkopku nebo sypaniny a 162 . 0-1 . Vodorovné přemístění výkopku. V případě, že se jedná o výkopek ulehlý - rozpojení a naložení výkopku cenami souboru cen 122 . 0-1 . souboru cen 162 . 0-1 . Vodorovné přemístění výkopku; b) přes 1 m3 na 1 m vedení, jestliže projekt předepíše, že se zbylý výkopek bude odklízet zároveň s prováděním vykopávky, pouze přemístění výkopku cenami souboru cen 162 . 0-1 . Vodorovné přemístění výkopku. Při zmíněném objemu zbylého výkopku se neoceňuje ani naložení ani rozpojení výkopku. Jestliže se zbylý výkopek neodklízí, nýbrž rozprostírá podél výkopu a nad výkopem, platí poznámka č. 8. 8. Rozprostření zbylého výkopku podél výkopu a nad výkopem po provedení zásypů zářezů se šikmými stěnami pro podzemní vedení nebo zásypu jam a rýh pro podzemní vedení se oceňuje: a) cenou 171 20-1101 Uložení sypaniny do nezhutněných násypů, není-li projektem předepsáno zhutnění rozprostřeného zbylého výkopku, b) cenou 171 10-1111 Uložení sypaniny do násypů z hornin sypkých, je-li předepsáno zhutnění rozprostřeného zbylého výkopku, a to v objemu vypočteném podle poznámky č.6, příp. zmenšeném o objem výkopku, který byl již odklizen. 9. Míru zhutnění předepisuje projekt. | AT216: PSC | AU216: 2
D217: VV | F217: zásyp rýhy pro | AT217: VV | AU217: 2 | AV217: 1 | AW217: -1 | AX217: 0 | AY217: ROZPOCET
D218: VV | F218: odvodnění vpustí | AT218: VV | AU218: 2 | AV218: 1 | AW218: -1 | AX218: 0 | AY218: ROZPOCET
D219: VV | F219: výkop - pol.132101203 mezisoučet B | AT219: VV | AU219: 2 | AV219: 1 | AW219: -1 | AX219: 0 | AY219: ROZPOCET
D220: VV | F220: 11,5 | H220: 11.5 | AT220: VV | AU220: 2 | AV220: 2 | AW220: -1 | AX220: 0 | AY220: ROZPOCET
D221: VV | F221: výkop - pol.132201203 mezisoučet B | AT221: VV | AU221: 2 | AV221: 1 | AW221: -1 | AX221: 0 | AY221: ROZPOCET
D222: VV | F222: 34,0 | H222: 34 | AT222: VV | AU222: 2 | AV222: 2 | AW222: -1 | AX222: 0 | AY222: ROZPOCET
D223: VV | F223: rýhy pro | AT223: VV | AU223: 2 | AV223: 1 | AW223: -1 | AX223: 0 | AY223: ROZPOCET
D224: VV | F224: odkrytí výtlačného potrubí splaškové | AT224: VV | AU224: 2 | AV224: 1 | AW224: -1 | AX224: 0 | AY224: ROZPOCET
D225: VV | F225: kanalizace pro zateplení - dl.15 m | AT225: VV | AU225: 2 | AV225: 1 | AW225: -1 | AX225: 0 | AY225: ROZPOCET
D226: VV | F226: průměrná hl. výkopu 1,5 m | AT226: VV | AU226: 2 | AV226: 1 | AW226: -1 | AX226: 0 | AY226: ROZPOCET
D227: VV | F227: 0,6*1,5*15,0 | H227: 13.5 | AT227: VV | AU227: 2 | AV227: 2 | AW227: -1 | AX227: 0 | AY227: ROZPOCET
D228: VV | F228: méně lože a obsyp potrubí | AT228: VV | AU228: 2 | AV228: 1 | AW228: -1 | AX228: 0 | AY228: ROZPOCET
D229: VV | F229: pol.451572111+175101101mezisoučet B | AT229: VV | AU229: 2 | AV229: 1 | AW229: -1 | AX229: 0 | AY229: ROZPOCET
D230: VV | F230: -(3,0+18,0) | H230: -21 | AT230: VV | AU230: 2 | AV230: 2 | AW230: -1 | AX230: 0 | AY230: ROZPOCET
D231: VV | F231: zásyp rýh pro | AT231: VV | AU231: 2 | AV231: 1 | AW231: -1 | AX231: 0 | AY231: ROZPOCET
... 508 more rows

Sheet SO132 - SO 132 Napojení ...
D1: List obsahuje: | F1: 1) Krycí list soupisu | G1: 2) Rekapitulace | J1: 3) Soupis prací | K1: Zpět na list: | L1: Rekapitulace stavby
AT2: {0223295B-16F4-405E-8C53-14D4A07FB922}
AT3: 2
D4: KRYCÍ LIST SOUPISU | M4: v --- níže se nacházejí doplnkové a pomocné údaje k sestavám --- v | AT4: False
D6: Stavba:
E7: ='Rekapitulace stavby'!$K$6 -> Město Sokolov - Záchytné parkoviště Michal
D8: Objekt:
E9: 2.E - 2. ETAPA
D10: Soupis:
E11: SO132 - SO 132 Napojení na silnici II/2009
D13: KSO: | F13: 822 29 | I13: CC-CZ: | J13: 7941-26
D14: Místo: | F14: Sokolov | I14: Datum: | J14: ='Rekapitulace stavby'!$AN$8 -> 09.09.2014
D16: Zadavatel: | I16: IČ:
E17: Město Sokolov | I17: DIČ:
D19: Uchazeč: | I19: IČ: | J19: =IF('Rekapitulace stavby'!$AN$13="Vyplň údaj","",IF('Rekapitulace stavby'!$AN$13="","",'Rekapitulace stavby'!$AN$13)) -> 
E20: =IF('Rekapitulace stavby'!$E$14="Vyplň údaj","",IF('Rekapitulace stavby'!$E$14="","",'Rekapitulace stavby'!$E$14)) ->  | I20: DIČ: | J20: =IF('Rekapitulace stavby'!$AN$14="Vyplň údaj","",IF('Rekapitulace stavby'!$AN$14="","",'Rekapitulace stavby'!$AN$14)) -> 
D22: Projektant: | I22: IČ: | J22: 18224920
E23: BPO spol. s r.o., Lidická 1239, 363 17 Ostrov | I23: DIČ: | J23: CZ18224920
D25: Poznámka:
D29: Cena bez DPH | J29: =ROUND($J$85,2) -> 0
F31: Základ daně | I31: Sazba daně | J31: Výše daně
D32: DPH | E32: základní | F32: =ROUND(SUM($BE$85:$BE$152),2) -> 0 | I32: 0.21 | J32: =ROUND(SUM($BE$85:$BE$152)*$I$32,2) -> 0
E33: snížená | F33: =ROUND(SUM($BF$85:$BF$152),2) -> 0 | I33: 0.15 | J33: =ROUND(SUM($BF$85:$BF$152)*$I$33,2) -> 0
E34: zákl. přenesená | F34: =ROUND(SUM($BG$85:$BG$152),2) -> 0 | I34: 0.21 | J34: 0
E35: sníž. přenesená | F35: =ROUND(SUM($BH$85:$BH$152),2) -> 0 | I35: 0.15 | J35: 0
E36: nulová | F36: =ROUND(SUM($BI$85:$BI$152),2) -> 0 | I36: 0 | J36: 0
D38: Cena s DPH | G38: v | H38: CZK | J38: =ROUND(SUM($J$29:$J$36),2) -> 0
C44: REKAPITULACE ČLENĚNÍ SOUPISU PRACÍ
C46: Stavba:
E47: =$E$7 -> Město Sokolov - Záchytné parkoviště Michal
C48: Objekt:
E49: 2.E - 2. ETAPA
C50: Soupis:
E51: =$E$11 -> SO132 - SO 132 Napojení na silnici II/2009
C53: Místo: | F53: =$F$14 -> Sokolov | I53: Datum: | J53: =IF($J$14="","",$J$14) -> 09.09.2014
C55: Zadavatel: | F55: =$E$17 -> Město Sokolov | I55: Projektant: | J55: =$E$23 -> BPO spol. s r.o., Lidická 1239, 363 17 Ostrov
C56: Uchazeč: | F56: =IF($E$20="","",$E$20) -> 
C58: Kód dílu - Popis | J58: Cena celkem [CZK]
C60: Náklady soupisu celkem | J60: =ROUND($J$85,2) -> 0 | AU60: -1
D61: HSV - Práce a dodávky HSV | J61: =ROUND($J$86,2) -> 0
D62: 91 - Doplňující konstrukce a práce pozemních komunikací, letišť a ploch | J62: =ROUND($J$87,2) -> 0
D63: 99 - Přesun hmot | J63: =ROUND($J$149,2) -> 0
C70: SOUPIS PRACÍ
C72: Stavba:
E73: =$E$7 -> Město Sokolov - Záchytné parkoviště Michal
C74: Objekt:
E75: 2.E - 2. ETAPA
C76: Soupis:
E77: =$E$11 -> SO132 - SO 132 Napojení na silnici II/2009
C79: Místo: | F79: =$F$14 -> Sokolov | I79: Datum: | J79: =IF($J$14="","",$J$14) -> 09.09.2014
C81: Zadavatel: | F81: =$E$17 -> Město Sokolov | I81: Projektant: | J81: =$E$23 -> BPO spol. s r.o., Lidická 1239, 363 17 Ostrov
C82: Uchazeč: | F82: =IF($E$20="","",$E$20) -> 
C84: PČ | D84: Typ | E84: Kód | F84: Popis | G84: MJ | H84: Množství | I84: J.cena [CZK] | J84: Cena celkem [CZK] | K84: Cenová soustava | M84: Poznámka | N84: DPH | O84: J. Nh [h] | P84: Nh celkem [h] | Q84: J. hmotnost [t] | R84: Hmotnost celkem [t] | S84: J. suť [t] | T84: Suť Celkem [t]
C85: Náklady soupisu celkem | J85: =$BK$85 -> 0 | P85: =$P$86 -> 0 | R85: =$R$86 -> 0.44047111 | T85: =$T$86 -> 0 | AT85: D | AU85: -1 | BK85: =$BK$86 -> 0
D86: D | E86: HSV | F86: Práce a dodávky HSV | J86: =$BK$86 -> 0 | P86: =$P$87+$P$149 -> 0 | R86: =$R$87+$R$149 -> 0.44047111 | T86: =$T$87+$T$149 -> 0 | AR86: 1 | AT86: D | AU86: 0 | AY86: ROZPOCET | BK86: =$BK$87+$BK$149 -> 0
D87: D | E87: 91 | F87: Doplňující konstrukce a práce pozemních komunikací, letišť a ploch | J87: =$BK$87 -> 0 | P87: =SUM($P$88:$P$148) -> 0 | R87: =SUM($R$88:$R$148) -> 0.44047111 | T87: =SUM($T$88:$T$148) -> 0 | AR87: 1 | AT87: D | AU87: 1 | AY87: ROZPOCET | BK87: =SUM($BK$88:$BK$148) -> 0
C88: 1 | D88: K | E88: 914111111 | F88: Montáž svislé dopravní značky do velikosti 1 m2 objímkami na sloupek nebo konzolu | G88: kus | H88: 3 | J88: =ROUND($I$88*$H$88,2) -> 0 | K88: CS ÚRS 2014 02 | N88: základní | Q88: 0.0007 | R88: =$Q$88*$H$88 -> 0.0021 | S88: 0 | T88: =$S$88*$H$88 -> 0 | AR88: 4 | AT88: K | AU88: 2 | AY88: ROZPOCET | BE88: =IF($N$88="základní",$J$88,0) -> 0 | BF88: =IF($N$88="snížená",$J$88,0) -> 0 | BG88: =IF($N$88="zákl. přenesená",$J$88,0) -> 0 | BH88: =IF($N$88="sníž. přenesená",$J$88,0) -> 0 | BI88: =IF($N$88="nulová",$J$88,0) -> 0 | BJ88: 1 | BK88: =ROUND($I$88*$H$88,2) -> 0 | BL88: 4 | BM88: -1980142070
D89: PP | F89: Montáž svislé dopravní značky základní velikosti do 1 m2 objímkami na sloupky nebo konzoly | AT89: PP | AU89: 2
D90: PSC | F90: Poznámka k souboru cen: 1. V cenách jsou započteny i náklady na montáž značek včetně upevňovacího materiálu na předem připravenou nosnou konstrukci (sloupek, konzolu, sloup). 2. V cenách nejsou započteny náklady na: a) dodání značek, tyto se oceňují ve specifikaci, b) na montáž a dodávku ocelových nosných konstrukcí – sloupků, konzol, tyto se oceňují cenami souboru cen 914 51 Montáž sloupku a 914 53 Montáž konzol a nástavců, c) nátěry, tyto se oceňují jako práce PSV příslušnými cenami katalogu 800-783 Nátěry, d) naložení a odklizení výkopku, tyto se oceňují cenami části A 01 katalogu 800-1 Zemní práce. 3. Ceny nelze použít pro osazení a montáž svislých dopravních značek: a) světelných, tyto se oceňují cenami katalogu 21 M Elektromontáže – silnoproud, b) upevněných na lanech, nebo speciálních konstrukcích nesoucích více značek, tyto se oceňují individuálně. | AT90: PSC | AU90: 2
D91: VV | F91: všechny 3 značky na jeden sloupek | AT91: VV | AU91: 2 | AV91: 1 | AW91: -1 | AX91: 0 | AY91: ROZPOCET
D92: VV | F92: značka č.IP12 | AT92: VV | AU92: 2 | AV92: 1 | AW92: -1 | AX92: 0 | AY92: ROZPOCET
D93: VV | F93: 1,0 | H93: 1 | AT93: VV | AU93: 2 | AV93: 2 | AW93: -1 | AX93: 0 | AY93: ROZPOCET
D94: VV | F94: značka č.E12 | AT94: VV | AU94: 2 | AV94: 1 | AW94: -1 | AX94: 0 | AY94: ROZPOCET
D95: VV | F95: 1,0 | H95: 1 | AT95: VV | AU95: 2 | AV95: 2 | AW95: -1 | AX95: 0 | AY95: ROZPOCET
D96: VV | F96: značka č. E7b | AT96: VV | AU96: 2 | AV96: 1 | AW96: -1 | AX96: 0 | AY96: ROZPOCET
D97: VV | F97: 1,0 | H97: 1 | AT97: VV | AU97: 2 | AV97: 2 | AW97: -1 | AX97: 0 | AY97: ROZPOCET
D98: VV | F98: Součet | H98: 3 | AT98: VV | AU98: 2 | AV98: 4 | AW98: -1 | AX98: 1 | AY98: ROZPOCET
C99: 2 | D99: K | E99: 914111121 | F99: Montáž svislé dopravní značky do velikosti 2 m2 objímkami na sloupek nebo konzolu | G99: kus | H99: 2 | J99: =ROUND($I$99*$H$99,2) -> 0 | K99: CS ÚRS 2014 02 | N99: základní | Q99: 0.00105 | R99: =$Q$99*$H$99 -> 0.0021 | S99: 0 | T99: =$S$99*$H$99 -> 0 | AR99: 4 | AT99: K | AU99: 2 | AY99: ROZPOCET | BE99: =IF($N$99="základní",$J$99,0) -> 0 | BF99: =IF($N$99="snížená",$J$99,0) -> 0 | BG99: =IF($N$99="zákl. přenesená",$J$99,0) -> 0 | BH99: =IF($N$99="sníž. přenesená",$J$99,0) -> 0 | BI99: =IF($N$99="nulová",$J$99,0) -> 0 | BJ99: 1 | BK99: =ROUND($I$99*$H$99,2) -> 0 | BL99: 4 | BM99: -839293499
D100: PP | F100: Montáž svislé dopravní značky základní velikosti do 2 m2 objímkami na sloupky nebo konzoly | AT100: PP | AU100: 2
D101: PSC | F101: Poznámka k souboru cen: 1. V cenách jsou započteny i náklady na montáž značek včetně upevňovacího materiálu na předem připravenou nosnou konstrukci (sloupek, konzolu, sloup). 2. V cenách nejsou započteny náklady na: a) dodání značek, tyto se oceňují ve specifikaci, b) na montáž a dodávku ocelových nosných konstrukcí – sloupků, konzol, tyto se oceňují cenami souboru cen 914 51 Montáž sloupku a 914 53 Montáž konzol a nástavců, c) nátěry, tyto se oceňují jako práce PSV příslušnými cenami katalogu 800-783 Nátěry, d) naložení a odklizení výkopku, tyto se oceňují cenami části A 01 katalogu 800-1 Zemní práce. 3. Ceny nelze použít pro osazení a montáž svislých dopravních značek: a) světelných, tyto se oceňují cenami katalogu 21 M Elektromontáže – silnoproud, b) upevněných na lanech, nebo speciálních konstrukcích nesoucích více značek, tyto se oceňují individuálně. | AT101: PSC | AU101: 2
D102: VV | F102: značka IP 19 | AT102: VV | AU102: 2 | AV102: 1 | AW102: -1 | AX102: 0 | AY102: ROZPOCET
D103: VV | F103: 2,0 | H103: 2 | AT103: VV | AU103: 2 | AV103: 2 | AW103: -1 | AX103: 1 | AY103: ROZPOCET
C104: 3 | D104: K | E104: 914511112 | F104: Montáž sloupku dopravních značek délky do 3,5 m s betonovým základem a patkou | G104: kus | H104: 3 | J104: =ROUND($I$104*$H$104,2) -> 0 | K104: CS ÚRS 2014 02 | N104: základní | Q104: 0.112405 | R104: =$Q$104*$H$104 -> 0.337215 | S104: 0 | T104: =$S$104*$H$104 -> 0 | AR104: 4 | AT104: K | AU104: 2 | AY104: ROZPOCET | BE104: =IF($N$104="základní",$J$104,0) -> 0 | BF104: =IF($N$104="snížená",$J$104,0) -> 0 | BG104: =IF($N$104="zákl. přenesená",$J$104,0) -> 0 | BH104: =IF($N$104="sníž. přenesená",$J$104,0) -> 0 | BI104: =IF($N$104="nulová",$J$104,0) -> 0 | BJ104: 1 | BK104: =ROUND($I$104*$H$104,2) -> 0 | BL104: 4 | BM104: 371258826
D105: PP | F105: Montáž sloupku dopravních značek délky do 3,5 m do hliníkové patky | AT105: PP | AU105: 2
D106: PSC | F106: Poznámka k souboru cen: 1. V cenách jsou započteny i náklady na: a) vykopání jamek s odhozem výkopku na vzdálenost do 3 m, b) osazení sloupku včetně montáže a dodávky plastového víčka, 2. V cenách -1111 jsou započteny i náklady na betonový základ. 3. V cenách -1112 jsou započteny i náklady na hliníkovou patku s betonovým základem. 4. V cenách nejsou započteny náklady na: a) dodání sloupku, tyto se oceňují ve specifikaci b) naložení a odklizení výkopku, tyto se oceňují cenami části A01 katalogu 800-1 Zemní práce. | AT106: PSC | AU106: 2
C107: 4 | D107: M | E107: 404442320 | F107: značka svislá reflexní AL- 3M 500 x 500 mm | G107: kus | H107: 1 | J107: =ROUND($I$107*$H$107,2) -> 0 | K107: CS ÚRS 2014 02 | N107: základní | Q107: 0.0031 | R107: =$Q$107*$H$107 -> 0.0031 | S107: 0 | T107: =$S$107*$H$107 -> 0 | AR107: 8 | AT107: M | AU107: 2 | AY107: ROZPOCET | BE107: =IF($N$107="základní",$J$107,0) -> 0 | BF107: =IF($N$107="snížená",$J$107,0) -> 0 | BG107: =IF($N$107="zákl. přenesená",$J$107,0) -> 0 | BH107: =IF($N$107="sníž. přenesená",$J$107,0) -> 0 | BI107: =IF($N$107="nulová",$J$107,0) -> 0 | BJ107: 1 | BK107: =ROUND($I$107*$H$107,2) -> 0 | BL107: 4 | BM107: -1090484330
D108: PP | F108: výrobky a tabule orientační pro návěstí a zabezpečovací zařízení silniční značky dopravní svislé FeZn plech FeZn AL plech Al NK, 3M povrchová úprava reflexní fólií tř.1 čtvercové značky P2, P3, P8, IP1-7,IP10,E1,E2,E6,E9,E10,E12,IJ4 500 x 500 mm AL- 3M reflexní tř.1 | AT108: PP | AU108: 2
D109: VV | F109: k pol.914111111 | AT109: VV | AU109: 2 | AV109: 1 | AW109: -1 | AX109: 0 | AY109: ROZPOCET
D110: VV | F110: značka č.E12 s nápisem "Pro držitele parkovacích karet" | AT110: VV | AU110: 2 | AV110: 1 | AW110: -1 | AX110: 0 | AY110: ROZPOCET
D111: VV | F111: 1,0 | H111: 1 | AT111: VV | AU111: 2 | AV111: 2 | AW111: -1 | AX111: 1 | AY111: ROZPOCET
C112: 5 | D112: M | E112: 404442580 | F112: značka svislá reflexní AL- 3M 500 x 700 mm | G112: kus | H112: 1 | J112: =ROUND($I$112*$H$112,2) -> 0 | K112: CS ÚRS 2014 02 | N112: základní | Q112: 0.003 | R112: =$Q$112*$H$112 -> 0.003 | S112: 0 | T112: =$S$112*$H$112 -> 0 | AR112: 8 | AT112: M | AU112: 2 | AY112: ROZPOCET | BE112: =IF($N$112="základní",$J$112,0) -> 0 | BF112: =IF($N$112="snížená",$J$112,0) -> 0 | BG112: =IF($N$112="zákl. přenesená",$J$112,0) -> 0 | BH112: =IF($N$112="sníž. přenesená",$J$112,0) -> 0 | BI112: =IF($N$112="nulová",$J$112,0) -> 0 | BJ112: 1 | BK112: =ROUND($I$112*$H$112,2) -> 0 | BL112: 4 | BM112: 2077504348
D113: PP | F113: výrobky a tabule orientační pro návěstí a zabezpečovací zařízení silniční značky dopravní svislé FeZn plech FeZn AL plech Al NK, 3M povrchová úprava reflexní fólií tř.1 obdélníkové značky IP8,IP9,IP11,IP12, IP13,IS15, IJ1-15, E2,E12 500x700 mm AL- 3M reflexní tř.1 | AT113: PP | AU113: 2
D114: VV | F114: k pol.914111111 | AT114: VV | AU114: 2 | AV114: 1 | AW114: -1 | AX114: 0 | AY114: ROZPOCET
D115: VV | F115: značka č.IP12 | AT115: VV | AU115: 2 | AV115: 1 | AW115: -1 | AX115: 0 | AY115: ROZPOCET
D116: VV | F116: 1,0 | H116: 1 | AT116: VV | AU116: 2 | AV116: 2 | AW116: -1 | AX116: 1 | AY116: ROZPOCET
C117: 6 | D117: M | E117: 404442720 | F117: značka svislá reflexní AL- 3M 1000 x 1500 mm | G117: kus | H117: 2 | J117: =ROUND($I$117*$H$117,2) -> 0 | K117: CS ÚRS 2014 02 | N117: základní | Q117: 0.006 | R117: =$Q$117*$H$117 -> 0.012 | S117: 0 | T117: =$S$117*$H$117 -> 0 | AR117: 8 | AT117: M | AU117: 2 | AY117: ROZPOCET | BE117: =IF($N$117="základní",$J$117,0) -> 0 | BF117: =IF($N$117="snížená",$J$117,0) -> 0 | BG117: =IF($N$117="zákl. přenesená",$J$117,0) -> 0 | BH117: =IF($N$117="sníž. přenesená",$J$117,0) -> 0 | BI117: =IF($N$117="nulová",$J$117,0) -> 0 | BJ117: 1 | BK117: =ROUND($I$117*$H$117,2) -> 0 | BL117: 4 | BM117: 976012398
D118: PP | F118: výrobky a tabule orientační pro návěstí a zabezpečovací zařízení silniční značky dopravní svislé FeZn plech FeZn AL plech Al NK, 3M povrchová úprava reflexní fólií tř.1 obdélníkové značky IP14-24, IP28, IP29, IS9-11, IS23, IP25, IP27 1000x1500 mm AL- 3M reflexní tř.1 | AT118: PP | AU118: 2
D119: VV | F119: k pol.914111121 | AT119: VV | AU119: 2 | AV119: 1 | AW119: -1 | AX119: 0 | AY119: ROZPOCET
D120: VV | F120: značka č. IP 19 | AT120: VV | AU120: 2 | AV120: 1 | AW120: -1 | AX120: 0 | AY120: ROZPOCET
D121: VV | F121: 2,0 | H121: 2 | AT121: VV | AU121: 2 | AV121: 2 | AW121: -1 | AX121: 1 | AY121: ROZPOCET
C122: 7 | D122: M | E122: 404443180 | F122: značka svislá reflexní AL- 3M 500 X 300 mm | G122: kus | H122: 1 | J122: =ROUND($I$122*$H$122,2) -> 0 | K122: CS ÚRS 2014 02 | N122: základní | Q122: 0.004 | R122: =$Q$122*$H$122 -> 0.004 | S122: 0 | T122: =$S$122*$H$122 -> 0 | AR122: 8 | AT122: M | AU122: 2 | AY122: ROZPOCET | BE122: =IF($N$122="základní",$J$122,0) -> 0 | BF122: =IF($N$122="snížená",$J$122,0) -> 0 | BG122: =IF($N$122="zákl. přenesená",$J$122,0) -> 0 | BH122: =IF($N$122="sníž. přenesená",$J$122,0) -> 0 | BI122: =IF($N$122="nulová",$J$122,0) -> 0 | BJ122: 1 | BK122: =ROUND($I$122*$H$122,2) -> 0 | BL122: 4 | BM122: 1877887836
D123: PP | F123: výrobky a tabule orientační pro návěstí a zabezpečovací zařízení silniční značky dopravní svislé FeZn plech FeZn AL plech Al NK, 3M povrchová úprava reflexní fólií tř.1 obdélníkové značky IS 16a, 16b, 16c,16d,17,E7a,E7b,E12 500 X 300 mm AL- 3M reflexní tř.1 | AT123: PP | AU123: 2
D124: VV | F124: k pol.914111111 | AT124: VV | AU124: 2 | AV124: 1 | AW124: -1 | AX124: 0 | AY124: ROZPOCET
D125: VV | F125: značka č.E7b | AT125: VV | AU125: 2 | AV125: 1 | AW125: -1 | AX125: 0 | AY125: ROZPOCET
D126: VV | F126: 1,0 | H126: 1 | AT126: VV | AU126: 2 | AV126: 2 | AW126: -1 | AX126: 1 | AY126: ROZPOCET
C127: 8 | D127: M | E127: 404452300 | F127: sloupek Zn 70 - 350 | G127: kus | H127: 3 | J127: =ROUND($I$127*$H$127,2) -> 0 | K127: CS ÚRS 2014 02 | N127: základní | Q127: 0.0065 | R127: =$Q$127*$H$127 -> 0.0195 | S127: 0 | T127: =$S$127*$H$127 -> 0 | AR127: 8 | AT127: M | AU127: 2 | AY127: ROZPOCET | BE127: =IF($N$127="základní",$J$127,0) -> 0 | BF127: =IF($N$127="snížená",$J$127,0) -> 0 | BG127: =IF($N$127="zákl. přenesená",$J$127,0) -> 0 | BH127: =IF($N$127="sníž. přenesená",$J$127,0) -> 0 | BI127: =IF($N$127="nulová",$J$127,0) -> 0 | BJ127: 1 | BK127: =ROUND($I$127*$H$127,2) -> 0 | BL127: 4 | BM127: 974025368
D128: PP | F128: výrobky a tabule orientační pro návěstí a zabezpečovací zařízení silniční značky dopravní svislé sloupky Zn 70 - 350 | AT128: PP | AU128: 2
D129: VV | F129: k pol.914001111 | AT129: VV | AU129: 2 | AV129: 1 | AW129: -1 | AX129: 0 | AY129: ROZPOCET
D130: VV | F130: 3,0 | H130: 3 | AT130: VV | AU130: 2 | AV130: 2 | AW130: -1 | AX130: 1 | AY130: ROZPOCET
C131: 9 | D131: K | E131: 915111111 | F131: Vodorovné dopravní značení šířky 125 mm bílou barvou dělící čáry souvislé | G131: m | H131: 80 | J131: =ROUND($I$131*$H$131,2) -> 0 | K131: CS ÚRS 2014 02 | N131: základní | Q131: 7.5e-05 | R131: =$Q$131*$H$131 -> 0.006 | S131: 0 | T131: =$S$131*$H$131 -> 0 | AR131: 4 | AT131: K | AU131: 2 | AY131: ROZPOCET | BE131: =IF($N$131="základní",$J$131,0) -> 0 | BF131: =IF($N$131="snížená",$J$131,0) -> 0 | BG131: =IF($N$131="zákl. přenesená",$J$131,0) -> 0 | BH131: =IF($N$131="sníž. přenesená",$J$131,0) -> 0 | BI131: =IF($N$131="nulová",$J$131,0) -> 0 | BJ131: 1 | BK131: =ROUND($I$131*$H$131,2) -> 0 | BL131: 4 | BM131: 1503596380
D132: PP | F132: Vodorovné dopravní značení stříkané barvou dělící čára šířky 125 mm souvislá bílá základní | AT132: PP | AU132: 2
D133: PSC | F133: Poznámka k souboru cen: 1. Ceny jsou určeny pro dělící čáry bílé souvislé č. V1a, bílé přerušované č. V2a, žluté souvislé č. V12b, žluté přerušované č. V12c a vodící čáry bílé č. V4. 2. V cenách nejsou započteny náklady na: a) předznačení, tyto se oceňují cenami souboru cen 915 6.-11 Předznačení pro vodorovné značení, b) očištění vozovky, tyto se oceňují cenami souboru cen 938 90-9 . Odstranění bláta, prachu nebo hlinitého nánosu s povrchu podkladu nebo krytu části C 01 tohoto katalogu. 3. Množství měrných jednotek se u cen 915 11 a 915 12 určuje v m a u cen 915 13 v m2 stříkané plochy bez mezer. | AT133: PSC | AU133: 2
C134: 10 | D134: K | E134: 915111121 | F134: Vodorovné dopravní značení šířky 125 mm bílou barvou dělící čáry přerušované | G134: m | H134: 41 | J134: =ROUND($I$134*$H$134,2) -> 0 | K134: CS ÚRS 2014 02 | N134: základní | Q134: 2.52e-05 | R134: =$Q$134*$H$134 -> 0.0010332 | S134: 0 | T134: =$S$134*$H$134 -> 0 | AR134: 4 | AT134: K | AU134: 2 | AY134: ROZPOCET | BE134: =IF($N$134="základní",$J$134,0) -> 0 | BF134: =IF($N$134="snížená",$J$134,0) -> 0 | BG134: =IF($N$134="zákl. přenesená",$J$134,0) -> 0 | BH134: =IF($N$134="sníž. přenesená",$J$134,0) -> 0 | BI134: =IF($N$134="nulová",$J$134,0) -> 0 | BJ134: 1 | BK134: =ROUND($I$134*$H$134,2) -> 0 | BL134: 4 | BM134: 806283987
D135: PP | F135: Vodorovné dopravní značení stříkané barvou dělící čára šířky 125 mm přerušovaná bílá základní | AT135: PP | AU135: 2
D136: PSC | F136: Poznámka k souboru cen: 1. Ceny jsou určeny pro dělící čáry bílé souvislé č. V1a, bílé přerušované č. V2a, žluté souvislé č. V12b, žluté přerušované č. V12c a vodící čáry bílé č. V4. 2. V cenách nejsou započteny náklady na: a) předznačení, tyto se oceňují cenami souboru cen 915 6.-11 Předznačení pro vodorovné značení, b) očištění vozovky, tyto se oceňují cenami souboru cen 938 90-9 . Odstranění bláta, prachu nebo hlinitého nánosu s povrchu podkladu nebo krytu části C 01 tohoto katalogu. 3. Množství měrných jednotek se u cen 915 11 a 915 12 určuje v m a u cen 915 13 v m2 stříkané plochy bez mezer. | AT136: PSC | AU136: 2
C137: 11 | D137: K | E137: 915131111 | F137: Vodorovné dopravní značení bílou barvou přechody pro chodce, šipky, symboly | G137: m2 | H137: 82 | J137: =ROUND($I$137*$H$137,2) -> 0 | K137: CS ÚRS 2014 02 | N137: základní | Q137: 0.0006 | R137: =$Q$137*$H$137 -> 0.0492 | S137: 0 | T137: =$S$137*$H$137 -> 0 | AR137: 4 | AT137: K | AU137: 2 | AY137: ROZPOCET | BE137: =IF($N$137="základní",$J$137,0) -> 0 | BF137: =IF($N$137="snížená",$J$137,0) -> 0 | BG137: =IF($N$137="zákl. přenesená",$J$137,0) -> 0 | BH137: =IF($N$137="sníž. přenesená",$J$137,0) -> 0 | BI137: =IF($N$137="nulová",$J$137,0) -> 0 | BJ137: 1 | BK137: =ROUND($I$137*$H$137,2) -> 0 | BL137: 4 | BM137: 535054267
D138: PP | F138: Vodorovné dopravní značení stříkané barvou přechody pro chodce, šipky, symboly bílé základní | AT138: PP | AU138: 2
D139: PSC | F139: Poznámka k souboru cen: 1. Ceny jsou určeny pro dělící čáry bílé souvislé č. V1a, bílé přerušované č. V2a, žluté souvislé č. V12b, žluté přerušované č. V12c a vodící čáry bílé č. V4. 2. V cenách nejsou započteny náklady na: a) předznačení, tyto se oceňují cenami souboru cen 915 6.-11 Předznačení pro vodorovné značení, b) očištění vozovky, tyto se oceňují cenami souboru cen 938 90-9 . Odstranění bláta, prachu nebo hlinitého nánosu s povrchu podkladu nebo krytu části C 01 tohoto katalogu. 3. Množství měrných jednotek se u cen 915 11 a 915 12 určuje v m a u cen 915 13 v m2 stříkané plochy bez mezer. | AT139: PSC | AU139: 2
C140: 12 | D140: K | E140: 915611111 | F140: Předznačení vodorovného liniového značení | G140: m | H140: 121 | J140: =ROUND($I$140*$H$140,2) -> 0 | K140: CS ÚRS 2014 02 | N140: základní | Q140: 3.75e-06 | R140: =$Q$140*$H$140 -> 0.00045375 | S140: 0 | T140: =$S$140*$H$140 -> 0 | AR140: 4 | AT140: K | AU140: 2 | AY140: ROZPOCET | BE140: =IF($N$140="základní",$J$140,0) -> 0 | BF140: =IF($N$140="snížená",$J$140,0) -> 0 | BG140: =IF($N$140="zákl. přenesená",$J$140,0) -> 0 | BH140: =IF($N$140="sníž. přenesená",$J$140,0) -> 0 | BI140: =IF($N$140="nulová",$J$140,0) -> 0 | BJ140: 1 | BK140: =ROUND($I$140*$H$140,2) -> 0 | BL140: 4 | BM140: 2128042167
D141: PP | F141: Předznačení pro vodorovné značení stříkané barvou nebo prováděné z nátěrových hmot liniové dělicí čáry, vodicí proužky | AT141: PP | AU141: 2
D142: PSC | F142: Poznámka k souboru cen: 1. Množství měrných jednotek se určuje: a) pro cenu -1111 v m délky dělicí čáry nebo vodícího proužku (včetně mezer), b) pro cenu -1112 v m2 natírané nebo stříkané plochy. | AT142: PSC | AU142: 2
C143: 13 | D143: K | E143: 915621111 | F143: Předznačení vodorovného plošného značení | G143: m2 | H143: 82 | J143: =ROUND($I$143*$H$143,2) -> 0 | K143: CS ÚRS 2014 02 | N143: základní | Q143: 9.38e-06 | R143: =$Q$143*$H$143 -> 0.00076916 | S143: 0 | T143: =$S$143*$H$143 -> 0 | AR143: 4 | AT143: K | AU143: 2 | AY143: ROZPOCET | BE143: =IF($N$143="základní",$J$143,0) -> 0 | BF143: =IF($N$143="snížená",$J$143,0) -> 0 | BG143: =IF($N$143="zákl. přenesená",$J$143,0) -> 0 | BH143: =IF($N$143="sníž. přenesená",$J$143,0) -> 0 | BI143: =IF($N$143="nulová",$J$143,0) -> 0 | BJ143: 1 | BK143: =ROUND($I$143*$H$143,2) -> 0 | BL143: 4 | BM143: 1101293142
D144: PP | F144: Předznačení pro vodorovné značení stříkané barvou nebo prováděné z nátěrových hmot plošné šipky, symboly, nápisy | AT144: PP | AU144: 2
D145: PSC | F145: Poznámka k souboru cen: 1. Množství měrných jednotek se určuje: a) pro cenu -1111 v m délky dělicí čáry nebo vodícího proužku (včetně mezer), b) pro cenu -1112 v m2 natírané nebo stříkané plochy. | AT145: PSC | AU145: 2
C146: 14 | D146: K | E146: 938909311 | F146: Čištění vozovek metením strojně podkladu nebo krytu betonového nebo živičného | G146: m2 | H146: 1000 | J146: =ROUND($I$146*$H$146,2) -> 0 | K146: CS ÚRS 2014 02 | N146: základní | Q146: 0 | R146: =$Q$146*$H$146 -> 0 | S146: 0 | T146: =$S$146*$H$146 -> 0 | AR146: 4 | AT146: K | AU146: 2 | AY146: ROZPOCET | BE146: =IF($N$146="základní",$J$146,0) -> 0 | BF146: =IF($N$146="snížená",$J$146,0) -> 0 | BG146: =IF($N$146="zákl. přenesená",$J$146,0) -> 0 | BH146: =IF($N$146="sníž. přenesená",$J$146,0) -> 0 | BI146: =IF($N$146="nulová",$J$146,0) -> 0 | BJ146: 1 | BK146: =ROUND($I$146*$H$146,2) -> 0 | BL146: 4 | BM146: 2031327015
D147: PP | F147: Čištění vozovek metením bláta, prachu nebo hlinitého nánosu s odklizením na hromady na vzdálenost do 20 m nebo naložením na dopravní prostředek strojně povrchu podkladu nebo krytu betonového nebo živičného | AT147: PP | AU147: 2
D148: PSC | F148: Poznámka k souboru cen: 1. Ceny jsou určeny pro očištění: a) povrchu stávající vozovky, b) povrchu rozestavěné trvalé vozovky, předepíše-li projekt užívat nově zřizovanou vozovku po dobu výstavby ještě před zřízením konečného závěrečného krytu. | AT148: PSC | AU148: 2
D149: D | E149: 99 | F149: Přesun hmot | J149: =$BK$149 -> 0 | P149: =SUM($P$150:$P$152) -> 0 | R149: =SUM($R$150:$R$152) -> 0 | T149: =SUM($T$150:$T$152) -> 0 | AR149: 1 | AT149: D | AU149: 1 | AY149: ROZPOCET | BK149: =SUM($BK$150:$BK$152) -> 0
C150: 15 | D150: K | E150: 998225111 | F150: Přesun hmot pro pozemní komunikace s krytem z kamene, monolitickým betonovým nebo živičným | G150: t | H150: 0.44 | J150: =ROUND($I$150*$H$150,2) -> 0 | K150: CS ÚRS 2014 02 | N150: základní | Q150: 0 | R150: =$Q$150*$H$150 -> 0 | S150: 0 | T150: =$S$150*$H$150 -> 0 | AR150: 4 | AT150: K | AU150: 2 | AY150: ROZPOCET | BE150: =IF($N$150="základní",$J$150,0) -> 0 | BF150: =IF($N$150="snížená",$J$150,0) -> 0 | BG150: =IF($N$150="zákl. přenesená",$J$150,0) -> 0 | BH150: =IF($N$150="sníž. přenesená",$J$150,0) -> 0 | BI150: =IF($N$150="nulová",$J$150,0) -> 0 | BJ150: 1 | BK150: =ROUND($I$150*$H$150,2) -> 0 | BL150: 4 | BM150: 474939511
D151: PP | F151: Přesun hmot pro komunikace s krytem z kameniva, monolitickým betonovým nebo živičným dopravní vzdálenost do 200 m jakékoliv délky objektu | AT151: PP | AU151: 2
D152: PSC | F152: Poznámka k souboru cen: 1. Ceny lze použít i pro plochy letišť s krytem monolitickým betonovým nebo živičným. | AT152: PSC | AU152: 2

Sheet SO311 - SO 311 Dešťová k...
D1: List obsahuje: | F1: 1) Krycí list soupisu | G1: 2) Rekapitulace | J1: 3) Soupis prací | K1: Zpět na list: | L1: Rekapitulace stavby
AT2: {D68EA3AE-4AEE-49AC-883A-298A897F9EC9}
AT3: 2
D4: KRYCÍ LIST SOUPISU | M4: v --- níže se nacházejí doplnkové a pomocné údaje k sestavám --- v | AT4: False
D6: Stavba:
E7: ='Rekapitulace stavby'!$K$6 -> Město Sokolov - Záchytné parkoviště Michal
D8: Objekt:
E9: 2.E - 2. ETAPA
D10: Soupis:
E11: SO311 - SO 311 Dešťová kanalizace
D13: KSO: | F13: 827 21 | I13: CC-CZ: | J13: 7941-26
D14: Místo: | F14: Sokolov | I14: Datum: | J14: ='Rekapitulace stavby'!$AN$8 -> 09.09.2014
D16: Zadavatel: | I16: IČ:
E17: Město Sokolov | I17: DIČ:
D19: Uchazeč: | I19: IČ: | J19: =IF('Rekapitulace stavby'!$AN$13="Vyplň údaj","",IF('Rekapitulace stavby'!$AN$13="","",'Rekapitulace stavby'!$AN$13)) -> 
E20: =IF('Rekapitulace stavby'!$E$14="Vyplň údaj","",IF('Rekapitulace stavby'!$E$14="","",'Rekapitulace stavby'!$E$14)) ->  | I20: DIČ: | J20: =IF('Rekapitulace stavby'!$AN$14="Vyplň údaj","",IF('Rekapitulace stavby'!$AN$14="","",'Rekapitulace stavby'!$AN$14)) -> 
D22: Projektant: | I22: IČ: | J22: 18224920
E23: BPO spol. s r.o., Lidická 1239, 363 17 Ostrov | I23: DIČ: | J23: CZ18224920
D25: Poznámka:
D29: Cena bez DPH | J29: =ROUND($J$92,2) -> 0
F31: Základ daně | I31: Sazba daně | J31: Výše daně
D32: DPH | E32: základní | F32: =ROUND(SUM($BE$92:$BE$593),2) -> 0 | I32: 0.21 | J32: =ROUND(SUM($BE$92:$BE$593)*$I$32,2) -> 0
E33: snížená | F33: =ROUND(SUM($BF$92:$BF$593),2) -> 0 | I33: 0.15 | J33: =ROUND(SUM($BF$92:$BF$593)*$I$33,2) -> 0
E34: zákl. přenesená | F34: =ROUND(SUM($BG$92:$BG$593),2) -> 0 | I34: 0.21 | J34: 0
E35: sníž. přenesená | F35: =ROUND(SUM($BH$92:$BH$593),2) -> 0 | I35: 0.15 | J35: 0
E36: nulová | F36: =ROUND(SUM($BI$92:$BI$593),2) -> 0 | I36: 0 | J36: 0
D38: Cena s DPH | G38: v | H38: CZK | J38: =ROUND(SUM($J$29:$J$36),2) -> 0
C44: REKAPITULACE ČLENĚNÍ SOUPISU PRACÍ
C46: Stavba:
E47: =$E$7 -> Město Sokolov - Záchytné parkoviště Michal
C48: Objekt:
E49: 2.E - 2. ETAPA
C50: Soupis:
E51: =$E$11 -> SO311 - SO 311 Dešťová kanalizace
C53: Místo: | F53: =$F$14 -> Sokolov | I53: Datum: | J53: =IF($J$14="","",$J$14) -> 09.09.2014
C55: Zadavatel: | F55: =$E$17 -> Město Sokolov | I55: Projektant: | J55: =$E$23 -> BPO spol. s r.o., Lidická 1239, 363 17 Ostrov
C56: Uchazeč: | F56: =IF($E$20="","",$E$20) -> 
C58: Kód dílu - Popis | J58: Cena celkem [CZK]
C60: Náklady soupisu celkem | J60: =ROUND($J$92,2) -> 0 | AU60: -1
D61: KP - Kanalizační přípojky | J61: =ROUND($J$93,2) -> 0
D62: HSV - Práce a dodávky HSV | J62: =ROUND($J$94,2) -> 0
D63: 1 - Zemní práce | J63: =ROUND($J$95,2) -> 0
D64: 2 - Zakládání | J64: =ROUND($J$343,2) -> 0
D65: 38 - Různé kompletní konstrukce | J65: =ROUND($J$383,2) -> 0
D66: 4 - Vodorovné konstrukce | J66: =ROUND($J$406,2) -> 0
D67: 87 - Potrubí z trub plastických a skleněných | J67: =ROUND($J$437,2) -> 0
D68: 89 - Trubní vedení - ostatní konstrukce | J68: =ROUND($J$460,2) -> 0
D69: 89_Š - Kanalizační šachty | J69: =ROUND($J$497,2) -> 0
D70: 99 - Přesun hmot | J70: =ROUND($J$581,2) -> 0
C77: SOUPIS PRACÍ
C79: Stavba:
E80: =$E$7 -> Město Sokolov - Záchytné parkoviště Michal
C81: Objekt:
E82: 2.E - 2. ETAPA
C83: Soupis:
E84: =$E$11 -> SO311 - SO 311 Dešťová kanalizace
C86: Místo: | F86: =$F$14 -> Sokolov | I86: Datum: | J86: =IF($J$14="","",$J$14) -> 09.09.2014
C88: Zadavatel: | F88: =$E$17 -> Město Sokolov | I88: Projektant: | J88: =$E$23 -> BPO spol. s r.o., Lidická 1239, 363 17 Ostrov
C89: Uchazeč: | F89: =IF($E$20="","",$E$20) -> 
C91: PČ | D91: Typ | E91: Kód | F91: Popis | G91: MJ | H91: Množství | I91: J.cena [CZK] | J91: Cena celkem [CZK] | K91: Cenová soustava | M91: Poznámka | N91: DPH | O91: J. Nh [h] | P91: Nh celkem [h] | Q91: J. hmotnost [t] | R91: Hmotnost celkem [t] | S91: J. suť [t] | T91: Suť Celkem [t]
C92: Náklady soupisu celkem | J92: =$BK$92 -> 0 | P92: =$P$93 -> 0 | R92: =$R$93 -> 259.737548 | T92: =$T$93 -> 0 | AT92: D | AU92: -1 | BK92: =$BK$93 -> 0
D93: D | E93: KP | F93: Kanalizační přípojky | J93: =$BK$93 -> 0 | P93: =$P$94 -> 0 | R93: =$R$94 -> 259.737548 | T93: =$T$94 -> 0 | AR93: 1 | AT93: D | AU93: 0 | AY93: ROZPOCET | BK93: =$BK$94 -> 0
D94: D | E94: HSV | F94: Práce a dodávky HSV | J94: =$BK$94 -> 0 | P94: =$P$95+$P$343+$P$383+$P$406+$P$437+$P$460+$P$497+$P$581 -> 0 | R94: =$R$95+$R$343+$R$383+$R$406+$R$437+$R$460+$R$497+$R$581 -> 259.737548 | T94: =$T$95+$T$343+$T$383+$T$406+$T$437+$T$460+$T$497+$T$581 -> 0 | AR94: 1 | AT94: D | AU94: 1 | AY94: ROZPOCET | BK94: =$BK$95+$BK$343+$BK$383+$BK$406+$BK$437+$BK$460+$BK$497+$BK$581 -> 0
D95: D | E95: 1 | F95: Zemní práce | J95: =$BK$95 -> 0 | P95: =SUM($P$96:$P$342) -> 0 | R95: =SUM($R$96:$R$342) -> 91.46921802 | T95: =SUM($T$96:$T$342) -> 0 | AR95: 1 | AT95: D | AU95: 2 | AY95: ROZPOCET | BK95: =SUM($BK$96:$BK$342) -> 0
C96: 1 | D96: K | E96: 131201202 | F96: Hloubení jam zapažených v hornině tř. 3 objemu do 1000 m3 | G96: m3 | H96: 111.5 | J96: =ROUND($I$96*$H$96,2) -> 0 | K96: CS ÚRS 2014 02 | N96: základní | Q96: 0 | R96: =$Q$96*$H$96 -> 0 | S96: 0 | T96: =$S$96*$H$96 -> 0 | AR96: 4 | AT96: K | AU96: 3 | AY96: ROZPOCET | BE96: =IF($N$96="základní",$J$96,0) -> 0 | BF96: =IF($N$96="snížená",$J$96,0) -> 0 | BG96: =IF($N$96="zákl. přenesená",$J$96,0) -> 0 | BH96: =IF($N$96="sníž. přenesená",$J$96,0) -> 0 | BI96: =IF($N$96="nulová",$J$96,0) -> 0 | BJ96: 1 | BK96: =ROUND($I$96*$H$96,2) -> 0 | BL96: 4 | BM96: 445560966
D97: PP | F97: Hloubení zapažených jam a zářezů s urovnáním dna do předepsaného profilu a spádu v hornině tř. 3 přes 100 do 1 000 m3 | AT97: PP | AU97: 3
D98: PSC | F98: Poznámka k souboru cen: 1. V cenách jsou započteny i náklady na případné nutné přemístění výkopku ve výkopišti a na přehození výkopku na přilehlém terénu na vzdálenost do 3 m od okraje jámy nebo naložení na dopravní prostředek. 2. Hloubení zapažených jam hloubky přes 16 m se oceňuje individuálně. 3. Náklady na svislé přemístění výkopku nad 1 m hloubky se určí dle ustanovení článku č. 3161 všeobecných podmínek katalogu. | AT98: PSC | AU98: 3
D99: VV | F99: jáma pro retenční nádrž | AT99: VV | AU99: 3 | AV99: 1 | AW99: -1 | AX99: 0 | AY99: ROZPOCET
D100: VV | F100: 1,55*12,9*9,6+0,048 | H100: 192 | AT100: VV | AU100: 3 | AV100: 2 | AW100: -1 | AX100: 0 | AY100: ROZPOCET
D101: VV | F101: jáma pro jímku s odlučovačem | AT101: VV | AU101: 3 | AV101: 1 | AW101: -1 | AX101: 0 | AY101: ROZPOCET
D102: VV | F102: 3,5*3,5*2,5+0,375 | H102: 31 | AT102: VV | AU102: 3 | AV102: 2 | AW102: -1 | AX102: 0 | AY102: ROZPOCET
D103: VV | F103: Mezisoučet - 100% výkopku | H103: 223 | AT103: VV | AU103: 3 | AV103: 3 | AW103: -1 | AX103: 0 | AY103: ROZPOCET
D104: VV | F104: výpočet 50% | AT104: VV | AU104: 3 | AV104: 1 | AW104: -1 | AX104: 0 | AY104: ROZPOCET
D105: VV | F105: 223,0*0,50 | H105: 111.5 | AT105: VV | AU105: 3 | AV105: 2 | AW105: -1 | AX105: 0 | AY105: ROZPOCET
D106: VV | F106: Mezisoučet - 50% výkopku | H106: 111.5 | AT106: VV | AU106: 3 | AV106: 3 | AW106: -1 | AX106: 1 | AY106: ROZPOCET
D107: VV | F107: poznámka : | AT107: VV | AU107: 3 | AV107: 1 | AW107: -1 | AX107: 0 | AY107: ROZPOCET
D108: VV | F108: Sejmutí a zpětné rozprostření ornice včetně osetí | AT108: VV | AU108: 3 | AV108: 1 | AW108: -1 | AX108: 0 | AY108: ROZPOCET
D109: VV | F109: trávou v prostoru trasy kanalizace je vykázáno | AT109: VV | AU109: 3 | AV109: 1 | AW109: -1 | AX109: 0 | AY109: ROZPOCET
D110: VV | F110: celkovou výměrou v SO 111 Parkoviště | AT110: VV | AU110: 3 | AV110: 1 | AW110: -1 | AX110: 0 | AY110: ROZPOCET
C111: 2 | D111: K | E111: 131301202 | F111: Hloubení jam zapažených v hornině tř. 4 objemu do 1000 m3 | G111: m3 | H111: 111.5 | J111: =ROUND($I$111*$H$111,2) -> 0 | K111: CS ÚRS 2014 02 | N111: základní | Q111: 0 | R111: =$Q$111*$H$111 -> 0 | S111: 0 | T111: =$S$111*$H$111 -> 0 | AR111: 4 | AT111: K | AU111: 3 | AY111: ROZPOCET | BE111: =IF($N$111="základní",$J$111,0) -> 0 | BF111: =IF($N$111="snížená",$J$111,0) -> 0 | BG111: =IF($N$111="zákl. přenesená",$J$111,0) -> 0 | BH111: =IF($N$111="sníž. přenesená",$J$111,0) -> 0 | BI111: =IF($N$111="nulová",$J$111,0) -> 0 | BJ111: 1 | BK111: =ROUND($I$111*$H$111,2) -> 0 | BL111: 4 | BM111: 375740561
D112: PP | F112: Hloubení zapažených jam a zářezů s urovnáním dna do předepsaného profilu a spádu v hornině tř. 4 přes 100 do 1 000 m3 | AT112: PP | AU112: 3
D113: PSC | F113: Poznámka k souboru cen: 1. V cenách jsou započteny i náklady na případné nutné přemístění výkopku ve výkopišti a na přehození výkopku na přilehlém terénu na vzdálenost do 3 m od okraje jámy nebo naložení na dopravní prostředek. 2. Hloubení zapažených jam hloubky přes 16 m se oceňuje individuálně. 3. Náklady na svislé přemístění výkopku nad 1 m hloubky se určí dle ustanovení článku č. 3161 všeobecných podmínek katalogu. | AT113: PSC | AU113: 3
C114: 3 | D114: K | E114: 131201209 | F114: Příplatek za lepivost u hloubení jam zapažených v hornině tř. 3 | G114: m3 | H114: 55.75 | J114: =ROUND($I$114*$H$114,2) -> 0 | K114: CS ÚRS 2014 02 | N114: základní | Q114: 0 | R114: =$Q$114*$H$114 -> 0 | S114: 0 | T114: =$S$114*$H$114 -> 0 | AR114: 4 | AT114: K | AU114: 3 | AY114: ROZPOCET | BE114: =IF($N$114="základní",$J$114,0) -> 0 | BF114: =IF($N$114="snížená",$J$114,0) -> 0 | BG114: =IF($N$114="zákl. přenesená",$J$114,0) -> 0 | BH114: =IF($N$114="sníž. přenesená",$J$114,0) -> 0 | BI114: =IF($N$114="nulová",$J$114,0) -> 0 | BJ114: 1 | BK114: =ROUND($I$114*$H$114,2) -> 0 | BL114: 4 | BM114: 2020918875
D115: PP | F115: Hloubení zapažených jam a zářezů s urovnáním dna do předepsaného profilu a spádu Příplatek k cenám za lepivost horniny tř. 3 | AT115: PP | AU115: 3
D116: PSC | F116: Poznámka k souboru cen: 1. V cenách jsou započteny i náklady na případné nutné přemístění výkopku ve výkopišti a na přehození výkopku na přilehlém terénu na vzdálenost do 3 m od okraje jámy nebo naložení na dopravní prostředek. 2. Hloubení zapažených jam hloubky přes 16 m se oceňuje individuálně. 3. Náklady na svislé přemístění výkopku nad 1 m hloubky se určí dle ustanovení článku č. 3161 všeobecných podmínek katalogu. | AT116: PSC | AU116: 3
D117: VV | F117: lepivost 50% - pol.131201202 | AT117: VV | AU117: 3 | AV117: 1 | AW117: -1 | AX117: 0 | AY117: ROZPOCET
D118: VV | F118: 111,5*0,5 | H118: 55.75 | AT118: VV | AU118: 3 | AV118: 2 | AW118: -1 | AX118: 1 | AY118: ROZPOCET
C119: 4 | D119: K | E119: 131301209 | F119: Příplatek za lepivost u hloubení jam zapažených v hornině tř. 4 | G119: m3 | H119: 55.75 | J119: =ROUND($I$119*$H$119,2) -> 0 | K119: CS ÚRS 2014 02 | N119: základní | Q119: 0 | R119: =$Q$119*$H$119 -> 0 | S119: 0 | T119: =$S$119*$H$119 -> 0 | AR119: 4 | AT119: K | AU119: 3 | AY119: ROZPOCET | BE119: =IF($N$119="základní",$J$119,0) -> 0 | BF119: =IF($N$119="snížená",$J$119,0) -> 0 | BG119: =IF($N$119="zákl. přenesená",$J$119,0) -> 0 | BH119: =IF($N$119="sníž. přenesená",$J$119,0) -> 0 | BI119: =IF($N$119="nulová",$J$119,0) -> 0 | BJ119: 1 | BK119: =ROUND($I$119*$H$119,2) -> 0 | BL119: 4 | BM119: 1050219222
D120: PP | F120: Hloubení zapažených jam a zářezů s urovnáním dna do předepsaného profilu a spádu Příplatek k cenám za lepivost horniny tř. 4 | AT120: PP | AU120: 3
D121: PSC | F121: Poznámka k souboru cen: 1. V cenách jsou započteny i náklady na případné nutné přemístění výkopku ve výkopišti a na přehození výkopku na přilehlém terénu na vzdálenost do 3 m od okraje jámy nebo naložení na dopravní prostředek. 2. Hloubení zapažených jam hloubky přes 16 m se oceňuje individuálně. 3. Náklady na svislé přemístění výkopku nad 1 m hloubky se určí dle ustanovení článku č. 3161 všeobecných podmínek katalogu. | AT121: PSC | AU121: 3
D122: VV | F122: lepivost 50% - pol.131301202 | AT122: VV | AU122: 3 | AV122: 1 | AW122: -1 | AX122: 0 | AY122: ROZPOCET
D123: VV | F123: 111,5*0,5 | H123: 55.75 | AT123: VV | AU123: 3 | AV123: 2 | AW123: -1 | AX123: 1 | AY123: ROZPOCET
C124: 5 | D124: K | E124: 132201202 | F124: Hloubení rýh š do 2000 mm v hornině tř. 3 objemu do 1000 m3 | G124: m3 | H124: 276 | J124: =ROUND($I$124*$H$124,2) -> 0 | K124: CS ÚRS 2014 02 | N124: základní | Q124: 0 | R124: =$Q$124*$H$124 -> 0 | S124: 0 | T124: =$S$124*$H$124 -> 0 | AR124: 4 | AT124: K | AU124: 3 | AY124: ROZPOCET | BE124: =IF($N$124="základní",$J$124,0) -> 0 | BF124: =IF($N$124="snížená",$J$124,0) -> 0 | BG124: =IF($N$124="zákl. přenesená",$J$124,0) -> 0 | BH124: =IF($N$124="sníž. přenesená",$J$124,0) -> 0 | BI124: =IF($N$124="nulová",$J$124,0) -> 0 | BJ124: 1 | BK124: =ROUND($I$124*$H$124,2) -> 0 | BL124: 4 | BM124: 2013682601
D125: PP | F125: Hloubení zapažených i nezapažených rýh šířky přes 600 do 2 000 mm s urovnáním dna do předepsaného profilu a spádu v hornině tř. 3 přes 100 do 1 000 m3 | AT125: PP | AU125: 3
D126: PSC | F126: Poznámka k souboru cen: 1. V cenách jsou započteny i náklady na případné nutné přemístění výkopku ve výkopišti na vzdálenost do 3 m a na přehození výkopku na přilehlém terénu na vzdálenost do 5 m od okraje jámy nebo naložení na dopravní prostředek. 2. Hloubení rýh při lesnicko-technických melioracích se oceňuje: a) ve stržích cenami platnými pro objem výkopu do 100 m3, i když skutečný objem výkopu je větší, b) mimo strže pro příčná a podélná zpevnění dna a břehů pod obrysem výkopu pro koryta vodotečí, zejména pro konstrukce těles, stupňů, boků, předprahů, prahů, odháněk, výhonů a pro základy zdí, dlažeb, rovnanin, plůtků a hatí, pro jakoukoliv šířku rýhy, při objemu do 100 m3 cenami příslušnými pro objem výkopu do 100 m3 a při jakémkoliv objemu výkopu přes 100 m3 cenami příslušnými pro objem výkopu přes 100 do 1 000 m3. 3. Náklady na svislé přemístění výkopku nad 1 m hloubky se určí dle ustanovení článku č. 3161 všeobecných podmínek katalogu. 4. Předepisuje-li projekt hloubit rýhy 5 až 7 bez použití trhavin, oceňuje se toto hloubení: a) v suchu nebo mokru cenami 138 40-1201, 138 50-1201 a 138 60-1201 Dolamování hloubených vykopávek, b) v tekoucí vodě při jakékoliv její rychlosti individuálně. 5. Ceny nelze použít pro hloubení rýh a hloubky přes 16 m. Tyto práce se oceňují individuálně. | AT126: PSC | AU126: 3
D127: VV | F127: pro potrubí dešťové kanalizace | AT127: VV | AU127: 3 | AV127: 1 | AW127: -1 | AX127: 0 | AY127: ROZPOCET
D128: VV | F128: dle výkreu Podélný profil | AT128: VV | AU128: 3 | AV128: 1 | AW128: -1 | AX128: 0 | AY128: ROZPOCET
D129: VV | F129: 1,1*(1,62+1,52)/2*9,5 | H129: 16.407 | AT129: VV | AU129: 3 | AV129: 2 | AW129: -1 | AX129: 0 | AY129: ROZPOCET
D130: VV | F130: 1,0*(1,52+0,85)/2*(29,5-2,5-2,5-11,0) | H130: 15.998 | AT130: VV | AU130: 3 | AV130: 2 | AW130: -1 | AX130: 0 | AY130: ROZPOCET
D131: VV | F131: 1,0*(0,85+1,71)/2*(3,5-0,5) | H131: 3.84 | AT131: VV | AU131: 3 | AV131: 2 | AW131: -1 | AX131: 0 | AY131: ROZPOCET
D132: VV | F132: 1,1*(1,71+2,65)/2*(21,5-0,5) | H132: 50.358 | AT132: VV | AU132: 3 | AV132: 2 | AW132: -1 | AX132: 0 | AY132: ROZPOCET
D133: VV | F133: 1,1*(2,65+1,85)/2*1,2 | H133: 2.97 | AT133: VV | AU133: 3 | AV133: 2 | AW133: -1 | AX133: 0 | AY133: ROZPOCET
D134: VV | F134: 1,1*(1,82+1,67)/2*16,6 | H134: 31.864 | AT134: VV | AU134: 3 | AV134: 2 | AW134: -1 | AX134: 0 | AY134: ROZPOCET
D135: VV | F135: 1,1*(1,67+2,36)/2*(18,6-1) | H135: 39.01 | AT135: VV | AU135: 3 | AV135: 2 | AW135: -1 | AX135: 0 | AY135: ROZPOCET
D136: VV | F136: 1,1*(2,36+1,95)/2*(18,2-1) | H136: 40.773 | AT136: VV | AU136: 3 | AV136: 2 | AW136: -1 | AX136: 0 | AY136: ROZPOCET
D137: VV | F137: 0,78 | H137: 0.78 | AT137: VV | AU137: 3 | AV137: 2 | AW137: -1 | AX137: 0 | AY137: ROZPOCET
D138: VV | F138: Mezisoučet A | H138: 202 | AT138: VV | AU138: 3 | AV138: 3 | AW138: -1 | AX138: 0 | AY138: ROZPOCET
D139: VV | F139: odvodnění uličních vpustí | AT139: VV | AU139: 3 | AV139: 1 | AW139: -1 | AX139: 0 | AY139: ROZPOCET
D140: VV | F140: dle výkresu Přípojky od vpustí | AT140: VV | AU140: 3 | AV140: 1 | AW140: -1 | AX140: 0 | AY140: ROZPOCET
D141: VV | F141: 1,1*(1,96+1,34)/2*(4,0-1,0) | H141: 5.445 | AT141: VV | AU141: 3 | AV141: 2 | AW141: -1 | AX141: 0 | AY141: ROZPOCET
D142: VV | F142: 1,1*(2,65+1,65)/2*(14,0-2) | H142: 28.38 | AT142: VV | AU142: 3 | AV142: 2 | AW142: -1 | AX142: 0 | AY142: ROZPOCET
D143: VV | F143: 1,1*1,66*(3,0-1,0) | H143: 3.652 | AT143: VV | AU143: 3 | AV143: 2 | AW143: -1 | AX143: 0 | AY143: ROZPOCET
D144: VV | F144: 1,1*(2,65+2,16)*(24,0-2,0) | H144: 116.402 | AT144: VV | AU144: 3 | AV144: 2 | AW144: -1 | AX144: 0 | AY144: ROZPOCET
D145: VV | F145: 1,1*(2,53+1,91)/2*(3,0-1,0) | H145: 4.884 | AT145: VV | AU145: 3 | AV145: 2 | AW145: -1 | AX145: 0 | AY145: ROZPOCET
D146: VV | F146: 1,1*(2,12+1,65)/2*(14,0-2,0) | H146: 24.882 | AT146: VV | AU146: 3 | AV146: 2 | AW146: -1 | AX146: 0 | AY146: ROZPOCET
D147: VV | F147: 1,1*(2,03+1,65)/2*(3,0-1,0) | H147: 4.048 | AT147: VV | AU147: 3 | AV147: 2 | AW147: -1 | AX147: 0 | AY147: ROZPOCET
D148: VV | F148: 1,1*(2,12+1,8)/2*(6,5-2,0) | H148: 9.702 | AT148: VV | AU148: 3 | AV148: 2 | AW148: -1 | AX148: 0 | AY148: ROZPOCET
D149: VV | F149: 1,1*(1,95+1,75)/2*(9,0-2,0) | H149: 14.245 | AT149: VV | AU149: 3 | AV149: 2 | AW149: -1 | AX149: 0 | AY149: ROZPOCET
D150: VV | F150: 1,1*(1,95+1,6)/2*(13,5-2,0) | H150: 22.454 | AT150: VV | AU150: 3 | AV150: 2 | AW150: -1 | AX150: 0 | AY150: ROZPOCET
D151: VV | F151: 0,906 | H151: 0.906 | AT151: VV | AU151: 3 | AV151: 2 | AW151: -1 | AX151: 0 | AY151: ROZPOCET
D152: VV | F152: Mezisoučet B | H152: 235 | AT152: VV | AU152: 3 | AV152: 3 | AW152: -1 | AX152: 0 | AY152: ROZPOCET
D153: VV | F153: kanalizační šachty - nepažený výkop | AT153: VV | AU153: 3 | AV153: 1 | AW153: -1 | AX153: 0 | AY153: ROZPOCET
D154: VV | F154: 1,6*1,6*(1,8+1,25*2+3,0+2,5+2,3) | H154: 30.976 | AT154: VV | AU154: 3 | AV154: 2 | AW154: -1 | AX154: 0 | AY154: ROZPOCET
D155: VV | F155: 1,8*0,6*0,5*(1,6+0,6)*4 | H155: 4.752 | AT155: VV | AU155: 3 | AV155: 2 | AW155: -1 | AX155: 0 | AY155: ROZPOCET
D156: VV | F156: 1,25*0,6*0,5*(1,6+0,6)*4*2 | H156: 6.6 | AT156: VV | AU156: 3 | AV156: 2 | AW156: -1 | AX156: 0 | AY156: ROZPOCET
D157: VV | F157: 3,0*1,5*0,5*(1,6+1,5)*4*2 | H157: 55.8 | AT157: VV | AU157: 3 | AV157: 2 | AW157: -1 | AX157: 0 | AY157: ROZPOCET
D158: VV | F158: 2,5*1,25*0,5*(1,6+1,25)*4 | H158: 17.813 | AT158: VV | AU158: 3 | AV158: 2 | AW158: -1 | AX158: 0 | AY158: ROZPOCET
D159: VV | F159: 2,3*1,15*0,5*(1,6+1,15)*4 | H159: 14.548 | AT159: VV | AU159: 3 | AV159: 2 | AW159: -1 | AX159: 0 | AY159: ROZPOCET
D160: VV | F160: odpočet rýha v místě šachty | AT160: VV | AU160: 3 | AV160: 1 | AW160: -1 | AX160: 0 | AY160: ROZPOCET
D161: VV | F161: -1,1*0,6*(1,8+1,25*2+3,0+2,5+2,3)*2 | H161: -15.972 | AT161: VV | AU161: 3 | AV161: 2 | AW161: -1 | AX161: 0 | AY161: ROZPOCET
D162: VV | F162: 0,483 | H162: 0.483 | AT162: VV | AU162: 3 | AV162: 2 | AW162: -1 | AX162: 0 | AY162: ROZPOCET
D163: VV | F163: Mezisoučet C | H163: 115 | AT163: VV | AU163: 3 | AV163: 3 | AW163: -1 | AX163: 0 | AY163: ROZPOCET
D164: VV | F164: Součet - 100% výkopku | H164: 552 | AT164: VV | AU164: 3 | AV164: 4 | AW164: -1 | AX164: 0 | AY164: ROZPOCET
D165: VV | F165: výpočet 50% výkopku | AT165: VV | AU165: 3 | AV165: 1 | AW165: -1 | AX165: 0 | AY165: ROZPOCET
D166: VV | F166: 552,0*0,5 | H166: 276 | AT166: VV | AU166: 3 | AV166: 2 | AW166: -1 | AX166: 0 | AY166: ROZPOCET
D167: VV | F167: Součet - 50% výkopku | H167: 276 | AT167: VV | AU167: 3 | AV167: 4 | AW167: -1 | AX167: 1 | AY167: ROZPOCET
C168: 6 | D168: K | E168: 132301202 | F168: Hloubení rýh š do 2000 mm v hornině tř. 4 objemu do 1000 m3 | G168: m3 | H168: 276 | J168: =ROUND($I$168*$H$168,2) -> 0 | K168: CS ÚRS 2014 02 | N168: základní | Q168: 0 | R168: =$Q$168*$H$168 -> 0 | S168: 0 | T168: =$S$168*$H$168 -> 0 | AR168: 4 | AT168: K | AU168: 3 | AY168: ROZPOCET | BE168: =IF($N$168="základní",$J$168,0) -> 0 | BF168: =IF($N$168="snížená",$J$168,0) -> 0 | BG168: =IF($N$168="zákl. přenesená",$J$168,0) -> 0 | BH168: =IF($N$168="sníž. přenesená",$J$168,0) -> 0 | BI168: =IF($N$168="nulová",$J$168,0) -> 0 | BJ168: 1 | BK168: =ROUND($I$168*$H$168,2) -> 0 | BL168: 4 | BM168: 964801980
D169: PP | F169: Hloubení zapažených i nezapažených rýh šířky přes 600 do 2 000 mm s urovnáním dna do předepsaného profilu a spádu v hornině tř. 4 přes 100 do 1 000 m3 | AT169: PP | AU169: 3
D170: PSC | F170: Poznámka k souboru cen: 1. V cenách jsou započteny i náklady na případné nutné přemístění výkopku ve výkopišti na vzdálenost do 3 m a na přehození výkopku na přilehlém terénu na vzdálenost do 5 m od okraje jámy nebo naložení na dopravní prostředek. 2. Hloubení rýh při lesnicko-technických melioracích se oceňuje: a) ve stržích cenami platnými pro objem výkopu do 100 m3, i když skutečný objem výkopu je větší, b) mimo strže pro příčná a podélná zpevnění dna a břehů pod obrysem výkopu pro koryta vodotečí, zejména pro konstrukce těles, stupňů, boků, předprahů, prahů, odháněk, výhonů a pro základy zdí, dlažeb, rovnanin, plůtků a hatí, pro jakoukoliv šířku rýhy, při objemu do 100 m3 cenami příslušnými pro objem výkopu do 100 m3 a při jakémkoliv objemu výkopu přes 100 m3 cenami příslušnými pro objem výkopu přes 100 do 1 000 m3. 3. Náklady na svislé přemístění výkopku nad 1 m hloubky se určí dle ustanovení článku č. 3161 všeobecných podmínek katalogu. 4. Předepisuje-li projekt hloubit rýhy 5 až 7 bez použití trhavin, oceňuje se toto hloubení: a) v suchu nebo mokru cenami 138 40-1201, 138 50-1201 a 138 60-1201 Dolamování hloubených vykopávek, b) v tekoucí vodě při jakékoliv její rychlosti individuálně. 5. Ceny nelze použít pro hloubení rýh a hloubky přes 16 m. Tyto práce se oceňují individuálně. | AT170: PSC | AU170: 3
D171: VV | F171: dle pol.132201202 | AT171: VV | AU171: 3 | AV171: 1 | AW171: -1 | AX171: 0 | AY171: ROZPOCET
D172: VV | F172: 276,0 | H172: 276 | AT172: VV | AU172: 3 | AV172: 2 | AW172: -1 | AX172: 1 | AY172: ROZPOCET
C173: 7 | D173: K | E173: 132201209 | F173: Příplatek za lepivost k hloubení rýh š do 2000 mm v hornině tř. 3 | G173: m3 | H173: 138 | J173: =ROUND($I$173*$H$173,2) -> 0 | K173: CS ÚRS 2014 02 | N173: základní | Q173: 0 | R173: =$Q$173*$H$173 -> 0 | S173: 0 | T173: =$S$173*$H$173 -> 0 | AR173: 4 | AT173: K | AU173: 3 | AY173: ROZPOCET | BE173: =IF($N$173="základní",$J$173,0) -> 0 | BF173: =IF($N$173="snížená",$J$173,0) -> 0 | BG173: =IF($N$173="zákl. přenesená",$J$173,0) -> 0 | BH173: =IF($N$173="sníž. přenesená",$J$173,0) -> 0 | BI173: =IF($N$173="nulová",$J$173,0) -> 0 | BJ173: 1 | BK173: =ROUND($I$173*$H$173,2) -> 0 | BL173: 4 | BM173: -1733710650
D174: PP | F174: Hloubení zapažených i nezapažených rýh šířky přes 600 do 2 000 mm s urovnáním dna do předepsaného profilu a spádu v hornině tř. 3 Příplatek k cenám za lepivost horniny tř. 3 | AT174: PP | AU174: 3
D175: PSC | F175: Poznámka k souboru cen: 1. V cenách jsou započteny i náklady na případné nutné přemístění výkopku ve výkopišti na vzdálenost do 3 m a na přehození výkopku na přilehlém terénu na vzdálenost do 5 m od okraje jámy nebo naložení na dopravní prostředek. 2. Hloubení rýh při lesnicko-technických melioracích se oceňuje: a) ve stržích cenami platnými pro objem výkopu do 100 m3, i když skutečný objem výkopu je větší, b) mimo strže pro příčná a podélná zpevnění dna a břehů pod obrysem výkopu pro koryta vodotečí, zejména pro konstrukce těles, stupňů, boků, předprahů, prahů, odháněk, výhonů a pro základy zdí, dlažeb, rovnanin, plůtků a hatí, pro jakoukoliv šířku rýhy, při objemu do 100 m3 cenami příslušnými pro objem výkopu do 100 m3 a při jakémkoliv objemu výkopu přes 100 m3 cenami příslušnými pro objem výkopu přes 100 do 1 000 m3. 3. Náklady na svislé přemístění výkopku nad 1 m hloubky se určí dle ustanovení článku č. 3161 všeobecných podmínek katalogu. 4. Předepisuje-li projekt hloubit rýhy 5 až 7 bez použití trhavin, oceňuje se toto hloubení: a) v suchu nebo mokru cenami 138 40-1201, 138 50-1201 a 138 60-1201 Dolamování hloubených vykopávek, b) v tekoucí vodě při jakékoliv její rychlosti individuálně. 5. Ceny nelze použít pro hloubení rýh a hloubky přes 16 m. Tyto práce se oceňují individuálně. | AT175: PSC | AU175: 3
D176: VV | F176: lepivost 50% - pol.132201202 | AT176: VV | AU176: 3 | AV176: 1 | AW176: -1 | AX176: 0 | AY176: ROZPOCET
D177: VV | F177: 276,0*0,5 | H177: 138 | AT177: VV | AU177: 3 | AV177: 2 | AW177: -1 | AX177: 1 | AY177: ROZPOCET
C178: 8 | D178: K | E178: 132301209 | F178: Příplatek za lepivost k hloubení rýh š do 2000 mm v hornině tř. 4 | G178: m3 | H178: 138 | J178: =ROUND($I$178*$H$178,2) -> 0 | K178: CS ÚRS 2014 02 | N178: základní | Q178: 0 | R178: =$Q$178*$H$178 -> 0 | S178: 0 | T178: =$S$178*$H$178 -> 0 | AR178: 4 | AT178: K | AU178: 3 | AY178: ROZPOCET | BE178: =IF($N$178="základní",$J$178,0) -> 0 | BF178: =IF($N$178="snížená",$J$178,0) -> 0 | BG178: =IF($N$178="zákl. přenesená",$J$178,0) -> 0 | BH178: =IF($N$178="sníž. přenesená",$J$178,0) -> 0 | BI178: =IF($N$178="nulová",$J$178,0) -> 0 | BJ178: 1 | BK178: =ROUND($I$178*$H$178,2) -> 0 | BL178: 4 | BM178: -127521741
D179: PP | F179: Hloubení zapažených i nezapažených rýh šířky přes 600 do 2 000 mm s urovnáním dna do předepsaného profilu a spádu v hornině tř. 4 Příplatek k cenám za lepivost horniny tř. 4 | AT179: PP | AU179: 3
D180: PSC | F180: Poznámka k souboru cen: 1. V cenách jsou započteny i náklady na případné nutné přemístění výkopku ve výkopišti na vzdálenost do 3 m a na přehození výkopku na přilehlém terénu na vzdálenost do 5 m od okraje jámy nebo naložení na dopravní prostředek. 2. Hloubení rýh při lesnicko-technických melioracích se oceňuje: a) ve stržích cenami platnými pro objem výkopu do 100 m3, i když skutečný objem výkopu je větší, b) mimo strže pro příčná a podélná zpevnění dna a břehů pod obrysem výkopu pro koryta vodotečí, zejména pro konstrukce těles, stupňů, boků, předprahů, prahů, odháněk, výhonů a pro základy zdí, dlažeb, rovnanin, plůtků a hatí, pro jakoukoliv šířku rýhy, při objemu do 100 m3 cenami příslušnými pro objem výkopu do 100 m3 a při jakémkoliv objemu výkopu přes 100 m3 cenami příslušnými pro objem výkopu přes 100 do 1 000 m3. 3. Náklady na svislé přemístění výkopku nad 1 m hloubky se určí dle ustanovení článku č. 3161 všeobecných podmínek katalogu. 4. Předepisuje-li projekt hloubit rýhy 5 až 7 bez použití trhavin, oceňuje se toto hloubení: a) v suchu nebo mokru cenami 138 40-1201, 138 50-1201 a 138 60-1201 Dolamování hloubených vykopávek, b) v tekoucí vodě při jakékoliv její rychlosti individuálně. 5. Ceny nelze použít pro hloubení rýh a hloubky přes 16 m. Tyto práce se oceňují individuálně. | AT180: PSC | AU180: 3
D181: VV | F181: lepivost 50% - pol.132301202 | AT181: VV | AU181: 3 | AV181: 1 | AW181: -1 | AX181: 0 | AY181: ROZPOCET
D182: VV | F182: 276,0*0,5 | H182: 138 | AT182: VV | AU182: 3 | AV182: 2 | AW182: -1 | AX182: 1 | AY182: ROZPOCET
C183: 9 | D183: K | E183: 151101101 | F183: Zřízení příložného pažení a rozepření stěn rýh hl do 2 m | G183: m2 | H183: 316 | J183: =ROUND($I$183*$H$183,2) -> 0 | K183: CS ÚRS 2014 02 | N183: základní | Q183: 0.00069551 | R183: =$Q$183*$H$183 -> 0.21978116 | S183: 0 | T183: =$S$183*$H$183 -> 0 | AR183: 4 | AT183: K | AU183: 3 | AY183: ROZPOCET | BE183: =IF($N$183="základní",$J$183,0) -> 0 | BF183: =IF($N$183="snížená",$J$183,0) -> 0 | BG183: =IF($N$183="zákl. přenesená",$J$183,0) -> 0 | BH183: =IF($N$183="sníž. přenesená",$J$183,0) -> 0 | BI183: =IF($N$183="nulová",$J$183,0) -> 0 | BJ183: 1 | BK183: =ROUND($I$183*$H$183,2) -> 0 | BL183: 4 | BM183: -144449271
D184: PP | F184: Zřízení pažení a rozepření stěn rýh pro podzemní vedení pro všechny šířky rýhy příložné pro jakoukoliv mezerovitost, hloubky do 2 m | AT184: PP | AU184: 3
D185: PSC | F185: Poznámka k souboru cen: 1. Ceny jsou určeny pro roubení a rozepření stěn i jiných výkopů se svislými stěnami, pokud jsou tyto výkopy pro podzemní vedení rozměru do 1 250 mm. 2. Plocha mezer mezi pažinami příložného pažení se od plochy příložného pažení neodečítá; nezapažené plochy u pažení zátažného nebo hnaného se od plochy pažení odečítají. 3. Předepisuje-li projekt: a) ponechat pažení ve výkopu, oceňuje se toto pažení cenami souboru cen 151 . 0-19 Pažení stěn s ponecháním a rozepření stěn cenami souboru cen 151 . 0-13 Zřízení rozepření zapažených stěn výkopů, b) vzepření stěn, oceňuje se toto odstranění pažení stěn výkopu cenami souboru cen 151 . 0-12 Pažení stěn a vzepření stěn cenami souboru cen 151 . 0-14 odstranění vzepření stěn, c) kotvení stěn, oceňuje se toto Odstranění pažení stěn cenami souboru cen 151 . 0-12 Pažení stěn a kotvení stěn příslušnými cenami katalogu 800-2 Zvláštní zakládání objektů. | AT185: PSC | AU185: 3
D186: VV | F186: pro potrubí dešťové kanalizace | AT186: VV | AU186: 3 | AV186: 1 | AW186: -1 | AX186: 0 | AY186: ROZPOCET
D187: VV | F187: 2*(1,62+1,52)/2*9,5 | H187: 29.83 | AT187: VV | AU187: 3 | AV187: 2 | AW187: -1 | AX187: 0 | AY187: ROZPOCET
D188: VV | F188: 2*(1,82+1,67)/2*16,6 | H188: 57.934 | AT188: VV | AU188: 3 | AV188: 2 | AW188: -1 | AX188: 0 | AY188: ROZPOCET
D189: VV | F189: 2*(1,67+2,36)/2*(18,6-1) | H189: 70.928 | AT189: VV | AU189: 3 | AV189: 2 | AW189: -1 | AX189: 0 | AY189: ROZPOCET
D190: VV | F190: odvodnění uličních vpustí | AT190: VV | AU190: 3 | AV190: 1 | AW190: -1 | AX190: 0 | AY190: ROZPOCET
D191: VV | F191: 2*(1,96+1,34)/2*(4,0-1,0) | H191: 9.9 | AT191: VV | AU191: 3 | AV191: 2 | AW191: -1 | AX191: 0 | AY191: ROZPOCET
D192: VV | F192: 2*1,66*(3,0-1,0) | H192: 6.64 | AT192: VV | AU192: 3 | AV192: 2 | AW192: -1 | AX192: 0 | AY192: ROZPOCET
D193: VV | F193: 2*(2,12+1,65)/2*(14,0-2,0) | H193: 45.24 | AT193: VV | AU193: 3 | AV193: 2 | AW193: -1 | AX193: 0 | AY193: ROZPOCET
D194: VV | F194: 2*(2,03+1,65)/2*(3,0-1,0) | H194: 7.36 | AT194: VV | AU194: 3 | AV194: 2 | AW194: -1 | AX194: 0 | AY194: ROZPOCET
D195: VV | F195: 2*(2,12+1,8)/2*(6,5-2,0) | H195: 17.64 | AT195: VV | AU195: 3 | AV195: 2 | AW195: -1 | AX195: 0 | AY195: ROZPOCET
D196: VV | F196: 2*(1,95+1,75)/2*(9,0-2,0) | H196: 25.9 | AT196: VV | AU196: 3 | AV196: 2 | AW196: -1 | AX196: 0 | AY196: ROZPOCET
D197: VV | F197: 2*(1,95+1,6)/2*(13,5-2,0) | H197: 40.825 | AT197: VV | AU197: 3 | AV197: 2 | AW197: -1 | AX197: 0 | AY197: ROZPOCET
D198: VV | F198: 312,2*0,01+0,681 | H198: 3.803 | AT198: VV | AU198: 3 | AV198: 2 | AW198: -1 | AX198: 0 | AY198: ROZPOCET
D199: VV | F199: Součet | H199: 316 | AT199: VV | AU199: 3 | AV199: 4 | AW199: -1 | AX199: 1 | AY199: ROZPOCET
C200: 10 | D200: K | E200: 151101102 | F200: Zřízení příložného pažení a rozepření stěn rýh hl do 4 m | G200: m2 | H200: 448 | J200: =ROUND($I$200*$H$200,2) -> 0 | K200: CS ÚRS 2014 02 | N200: základní | Q200: 0.00055882 | R200: =$Q$200*$H$200 -> 0.25035136 | S200: 0 | T200: =$S$200*$H$200 -> 0 | AR200: 4 | AT200: K | AU200: 3 | AY200: ROZPOCET | BE200: =IF($N$200="základní",$J$200,0) -> 0 | BF200: =IF($N$200="snížená",$J$200,0) -> 0 | BG200: =IF($N$200="zákl. přenesená",$J$200,0) -> 0 | BH200: =IF($N$200="sníž. přenesená",$J$200,0) -> 0 | BI200: =IF($N$200="nulová",$J$200,0) -> 0 | BJ200: 1 | BK200: =ROUND($I$200*$H$200,2) -> 0 | BL200: 4 | BM200: 1248588933
D201: PP | F201: Zřízení pažení a rozepření stěn rýh pro podzemní vedení pro všechny šířky rýhy příložné pro jakoukoliv mezerovitost, hloubky do 4 m | AT201: PP | AU201: 3
D202: PSC | F202: Poznámka k souboru cen: 1. Ceny jsou určeny pro roubení a rozepření stěn i jiných výkopů se svislými stěnami, pokud jsou tyto výkopy pro podzemní vedení rozměru do 1 250 mm. 2. Plocha mezer mezi pažinami příložného pažení se od plochy příložného pažení neodečítá; nezapažené plochy u pažení zátažného nebo hnaného se od plochy pažení odečítají. 3. Předepisuje-li projekt: a) ponechat pažení ve výkopu, oceňuje se toto pažení cenami souboru cen 151 . 0-19 Pažení stěn s ponecháním a rozepření stěn cenami souboru cen 151 . 0-13 Zřízení rozepření zapažených stěn výkopů, b) vzepření stěn, oceňuje se toto odstranění pažení stěn výkopu cenami souboru cen 151 . 0-12 Pažení stěn a vzepření stěn cenami souboru cen 151 . 0-14 odstranění vzepření stěn, c) kotvení stěn, oceňuje se toto Odstranění pažení stěn cenami souboru cen 151 . 0-12 Pažení stěn a kotvení stěn příslušnými cenami katalogu 800-2 Zvláštní zakládání objektů. | AT202: PSC | AU202: 3
D203: VV | F203: pro potrubí dešťové kanalizace | AT203: VV | AU203: 3 | AV203: 1 | AW203: -1 | AX203: 0 | AY203: ROZPOCET
D204: VV | F204: 2*(1,71+2,65)/2*(21,5-0,5) | H204: 91.56 | AT204: VV | AU204: 3 | AV204: 2 | AW204: -1 | AX204: 0 | AY204: ROZPOCET
D205: VV | F205: 2*(2,65+1,85)/2*1,2 | H205: 5.4 | AT205: VV | AU205: 3 | AV205: 2 | AW205: -1 | AX205: 0 | AY205: ROZPOCET
D206: VV | F206: 2*(2,36+1,95)/2*(18,2-1) | H206: 74.132 | AT206: VV | AU206: 3 | AV206: 2 | AW206: -1 | AX206: 0 | AY206: ROZPOCET
D207: VV | F207: odvodnění uličních vpustí | AT207: VV | AU207: 3 | AV207: 1 | AW207: -1 | AX207: 0 | AY207: ROZPOCET
D208: VV | F208: 2*(2,65+1,65)/2*(14,0-2) | H208: 51.6 | AT208: VV | AU208: 3 | AV208: 2 | AW208: -1 | AX208: 0 | AY208: ROZPOCET
D209: VV | F209: 2*(2,65+2,16)*(24,0-2,0) | H209: 211.64 | AT209: VV | AU209: 3 | AV209: 2 | AW209: -1 | AX209: 0 | AY209: ROZPOCET
D210: VV | F210: 2*(2,53+1,91)/2*(3,0-1,0) | H210: 8.88 | AT210: VV | AU210: 3 | AV210: 2 | AW210: -1 | AX210: 0 | AY210: ROZPOCET
D211: VV | F211: 443,2*0,01+0,356 | H211: 4.788 | AT211: VV | AU211: 3 | AV211: 2 | AW211: -1 | AX211: 0 | AY211: ROZPOCET
D212: VV | F212: Součet | H212: 448 | AT212: VV | AU212: 3 | AV212: 4 | AW212: -1 | AX212: 1 | AY212: ROZPOCET
C213: 11 | D213: K | E213: 151101111 | F213: Odstranění příložného pažení a rozepření stěn rýh hl do 2 m | G213: m2 | H213: 316 | J213: =ROUND($I$213*$H$213,2) -> 0 | K213: CS ÚRS 2014 02 | N213: základní | Q213: 0 | R213: =$Q$213*$H$213 -> 0 | S213: 0 | T213: =$S$213*$H$213 -> 0 | AR213: 4 | AT213: K | AU213: 3 | AY213: ROZPOCET | BE213: =IF($N$213="základní",$J$213,0) -> 0 | BF213: =IF($N$213="snížená",$J$213,0) -> 0 | BG213: =IF($N$213="zákl. přenesená",$J$213,0) -> 0 | BH213: =IF($N$213="sníž. přenesená",$J$213,0) -> 0 | BI213: =IF($N$213="nulová",$J$213,0) -> 0 | BJ213: 1 | BK213: =ROUND($I$213*$H$213,2) -> 0 | BL213: 4 | BM213: 885936393
D214: PP | F214: Odstranění pažení a rozepření stěn rýh pro podzemní vedení s uložením materiálu na vzdálenost do 3 m od kraje výkopu příložné, hloubky do 2 m | AT214: PP | AU214: 3
C215: 12 | D215: K | E215: 151101112 | F215: Odstranění příložného pažení a rozepření stěn rýh hl do 4 m | G215: m2 | H215: 448 | J215: =ROUND($I$215*$H$215,2) -> 0 | K215: CS ÚRS 2014 02 | N215: základní | Q215: 0 | R215: =$Q$215*$H$215 -> 0 | S215: 0 | T215: =$S$215*$H$215 -> 0 | AR215: 4 | AT215: K | AU215: 3 | AY215: ROZPOCET | BE215: =IF($N$215="základní",$J$215,0) -> 0 | BF215: =IF($N$215="snížená",$J$215,0) -> 0 | BG215: =IF($N$215="zákl. přenesená",$J$215,0) -> 0 | BH215: =IF($N$215="sníž. přenesená",$J$215,0) -> 0 | BI215: =IF($N$215="nulová",$J$215,0) -> 0 | BJ215: 1 | BK215: =ROUND($I$215*$H$215,2) -> 0 | BL215: 4 | BM215: 818355846
D216: PP | F216: Odstranění pažení a rozepření stěn rýh pro podzemní vedení s uložením materiálu na vzdálenost do 3 m od kraje výkopu příložné, hloubky přes 2 do 4 m | AT216: PP | AU216: 3
C217: 13 | D217: K | E217: 151101201 | F217: Zřízení příložného pažení stěn výkopu hl do 4 m | G217: m2 | H217: 105 | J217: =ROUND($I$217*$H$217,2) -> 0 | K217: CS ÚRS 2014 02 | N217: základní | Q217: 0.000701 | R217: =$Q$217*$H$217 -> 0.073605 | S217: 0 | T217: =$S$217*$H$217 -> 0 | AR217: 4 | AT217: K | AU217: 3 | AY217: ROZPOCET | BE217: =IF($N$217="základní",$J$217,0) -> 0 | BF217: =IF($N$217="snížená",$J$217,0) -> 0 | BG217: =IF($N$217="zákl. přenesená",$J$217,0) -> 0 | BH217: =IF($N$217="sníž. přenesená",$J$217,0) -> 0 | BI217: =IF($N$217="nulová",$J$217,0) -> 0 | BJ217: 1 | BK217: =ROUND($I$217*$H$217,2) -> 0 | BL217: 4 | BM217: 1488777970
D218: PP | F218: Zřízení pažení stěn výkopu bez rozepření nebo vzepření příložné, hloubky do 4 m | AT218: PP | AU218: 3
D219: PSC | F219: Poznámka k souboru cen: 1. Ceny nelze použít pro oceňování rozepřeného pažení stěn rýh pro podzemní vedení; toto se oceňuje cenami souboru cen 151 . 0-11 Zřízení pažení a rozepření stěn rýh pro podzemní vedení pro všechny šířky rýhy. 2. Plocha mezer mezi pažinami příložného pažení se od plochy příložného pažení neodečítá; nezapažené plochy u pažení zátažného nebo hnaného se od plochy pažení odečítají. | AT219: PSC | AU219: 3
D220: VV | F220: jáma pro retenční nádrž | AT220: VV | AU220: 3 | AV220: 1 | AW220: -1 | AX220: 0 | AY220: ROZPOCET
D221: VV | F221: 1,55*(12,9+9,6)*2 | H221: 69.75 | AT221: VV | AU221: 3 | AV221: 2 | AW221: -1 | AX221: 0 | AY221: ROZPOCET
D222: VV | F222: jáma pro jímku s odlučovačem | AT222: VV | AU222: 3 | AV222: 1 | AW222: -1 | AX222: 0 | AY222: ROZPOCET
D223: VV | F223: 3,5*2,5*4 | H223: 35 | AT223: VV | AU223: 3 | AV223: 2 | AW223: -1 | AX223: 0 | AY223: ROZPOCET
D224: VV | F224: 0,25 | H224: 0.25 | AT224: VV | AU224: 3 | AV224: 2 | AW224: -1 | AX224: 0 | AY224: ROZPOCET
D225: VV | F225: Součet | H225: 105 | AT225: VV | AU225: 3 | AV225: 4 | AW225: -1 | AX225: 1 | AY225: ROZPOCET
C226: 14 | D226: K | E226: 151101211 | F226: Odstranění příložného pažení stěn hl do 4 m | G226: m2 | H226: 105 | J226: =ROUND($I$226*$H$226,2) -> 0 | K226: CS ÚRS 2014 02 | N226: základní | Q226: 0 | R226: =$Q$226*$H$226 -> 0 | S226: 0 | T226: =$S$226*$H$226 -> 0 | AR226: 4 | AT226: K | AU226: 3 | AY226: ROZPOCET | BE226: =IF($N$226="základní",$J$226,0) -> 0 | BF226: =IF($N$226="snížená",$J$226,0) -> 0 | BG226: =IF($N$226="zákl. přenesená",$J$226,0) -> 0 | BH226: =IF($N$226="sníž. přenesená",$J$226,0) -> 0 | BI226: =IF($N$226="nulová",$J$226,0) -> 0 | BJ226: 1 | BK226: =ROUND($I$226*$H$226,2) -> 0 | BL226: 4 | BM226: 729705512
D227: PP | F227: Odstranění pažení stěn výkopu s uložením pažin na vzdálenost do 3 m od okraje výkopu příložné, hloubky do 4 m | AT227: PP | AU227: 3
C228: 15 | D228: K | E228: 151101401 | F228: Zřízení vzepření stěn při pažení příložném hl do 4 m | G228: m2 | H228: 105 | J228: =ROUND($I$228*$H$228,2) -> 0 | K228: CS ÚRS 2014 02 | N228: základní | Q228: 1.41e-05 | R228: =$Q$228*$H$228 -> 0.0014805 | S228: 0 | T228: =$S$228*$H$228 -> 0 | AR228: 4 | AT228: K | AU228: 3 | AY228: ROZPOCET | BE228: =IF($N$228="základní",$J$228,0) -> 0 | BF228: =IF($N$228="snížená",$J$228,0) -> 0 | BG228: =IF($N$228="zákl. přenesená",$J$228,0) -> 0 | BH228: =IF($N$228="sníž. přenesená",$J$228,0) -> 0 | BI228: =IF($N$228="nulová",$J$228,0) -> 0 | BJ228: 1 | BK228: =ROUND($I$228*$H$228,2) -> 0 | BL228: 4 | BM228: -583650740
D229: PP | F229: Zřízení vzepření zapažených stěn výkopů s potřebným přepažováním při roubení příložném, hloubky do 4 m | AT229: PP | AU229: 3
D230: PSC | F230: Poznámka k souboru cen: 1. Ceny nelze použít pro kotvení zapažených stěn zvenku; toto kotvení se oceňuje příslušnými cenami katalogu 800-2 Zvláštní zakládání objektů. | AT230: PSC | AU230: 3
C231: 16 | D231: K | E231: 151101411 | F231: Odstranění vzepření stěn při pažení příložném hl do 4 m | G231: m2 | H231: 105 | J231: =ROUND($I$231*$H$231,2) -> 0 | K231: CS ÚRS 2014 02 | N231: základní | Q231: 0 | R231: =$Q$231*$H$231 -> 0 | S231: 0 | T231: =$S$231*$H$231 -> 0 | AR231: 4 | AT231: K | AU231: 3 | AY231: ROZPOCET | BE231: =IF($N$231="základní",$J$231,0) -> 0 | BF231: =IF($N$231="snížená",$J$231,0) -> 0 | BG231: =IF($N$231="zákl. přenesená",$J$231,0) -> 0 | BH231: =IF($N$231="sníž. přenesená",$J$231,0) -> 0 | BI231: =IF($N$231="nulová",$J$231,0) -> 0 | BJ231: 1 | BK231: =ROUND($I$231*$H$231,2) -> 0 | BL231: 4 | BM231: 1091800871
... 362 more rows

Sheet SO411 - SO 411 Veřejné o...
D1: List obsahuje: | F1: 1) Krycí list soupisu | G1: 2) Rekapitulace | J1: 3) Soupis prací | K1: Zpět na list: | L1: Rekapitulace stavby
AT2: {D2AEBDF9-2F55-4F16-8AE2-41D3C550F250}
AT3: 2
D4: KRYCÍ LIST SOUPISU | M4: v --- níže se nacházejí doplnkové a pomocné údaje k sestavám --- v | AT4: False
D6: Stavba:
E7: ='Rekapitulace stavby'!$K$6 -> Město Sokolov - Záchytné parkoviště Michal
D8: Objekt:
E9: 2.E - 2. ETAPA
D10: Soupis:
E11: SO411 - SO 411 Veřejné osvětlení
D13: KSO: | F13: 828 79 | I13: CC-CZ: | J13: 7941-26
D14: Místo: | F14: Sokolov | I14: Datum: | J14: ='Rekapitulace stavby'!$AN$8 -> 09.09.2014
D16: Zadavatel: | I16: IČ:
E17: Město Sokolov | I17: DIČ:
D19: Uchazeč: | I19: IČ: | J19: =IF('Rekapitulace stavby'!$AN$13="Vyplň údaj","",IF('Rekapitulace stavby'!$AN$13="","",'Rekapitulace stavby'!$AN$13)) -> 
E20: =IF('Rekapitulace stavby'!$E$14="Vyplň údaj","",IF('Rekapitulace stavby'!$E$14="","",'Rekapitulace stavby'!$E$14)) ->  | I20: DIČ: | J20: =IF('Rekapitulace stavby'!$AN$14="Vyplň údaj","",IF('Rekapitulace stavby'!$AN$14="","",'Rekapitulace stavby'!$AN$14)) -> 
D22: Projektant: | I22: IČ: | J22: 18224920
E23: BPO spol. s r.o., Lidická 1239, 363 17 Ostrov | I23: DIČ: | J23: CZ18224920
D25: Poznámka:
D29: Cena bez DPH | J29: =ROUND($J$87,2) -> 0
F31: Základ daně | I31: Sazba daně | J31: Výše daně
D32: DPH | E32: základní | F32: =ROUND(SUM($BE$87:$BE$111),2) -> 0 | I32: 0.21 | J32: =ROUND(SUM($BE$87:$BE$111)*$I$32,2) -> 0
E33: snížená | F33: =ROUND(SUM($BF$87:$BF$111),2) -> 0 | I33: 0.15 | J33: =ROUND(SUM($BF$87:$BF$111)*$I$33,2) -> 0
E34: zákl. přenesená | F34: =ROUND(SUM($BG$87:$BG$111),2) -> 0 | I34: 0.21 | J34: 0
E35: sníž. přenesená | F35: =ROUND(SUM($BH$87:$BH$111),2) -> 0 | I35: 0.15 | J35: 0
E36: nulová | F36: =ROUND(SUM($BI$87:$BI$111),2) -> 0 | I36: 0 | J36: 0
D38: Cena s DPH | G38: v | H38: CZK | J38: =ROUND(SUM($J$29:$J$36),2) -> 0
C44: REKAPITULACE ČLENĚNÍ SOUPISU PRACÍ
C46: Stavba:
E47: =$E$7 -> Město Sokolov - Záchytné parkoviště Michal
C48: Objekt:
E49: 2.E - 2. ETAPA
C50: Soupis:
E51: =$E$11 -> SO411 - SO 411 Veřejné osvětlení
C53: Místo: | F53: =$F$14 -> Sokolov | I53: Datum: | J53: =IF($J$14="","",$J$14) -> 09.09.2014
C55: Zadavatel: | F55: =$E$17 -> Město Sokolov | I55: Projektant: | J55: =$E$23 -> BPO spol. s r.o., Lidická 1239, 363 17 Ostrov
C56: Uchazeč: | F56: =IF($E$20="","",$E$20) -> 
C58: Kód dílu - Popis | J58: Cena celkem [CZK]
C60: Náklady soupisu celkem | J60: =ROUND($J$87,2) -> 0 | AU60: -1
D61: 01 - Montážní celkem | J61: =ROUND($J$88,2) -> 0
D62: 01_MA - Materiál montážní | J62: =ROUND($J$89,2) -> 0
D63: 01_MO - Montáž | J63: =ROUND($J$104,2) -> 0
D64: 02 - Revize | J64: =ROUND($J$108,2) -> 0
D65: 03 - Technická pomoc | J65: =ROUND($J$110,2) -> 0
C72: SOUPIS PRACÍ
C74: Stavba:
E75: =$E$7 -> Město Sokolov - Záchytné parkoviště Michal
C76: Objekt:
E77: 2.E - 2. ETAPA
C78: Soupis:
E79: =$E$11 -> SO411 - SO 411 Veřejné osvětlení
C81: Místo: | F81: =$F$14 -> Sokolov | I81: Datum: | J81: =IF($J$14="","",$J$14) -> 09.09.2014
C83: Zadavatel: | F83: =$E$17 -> Město Sokolov | I83: Projektant: | J83: =$E$23 -> BPO spol. s r.o., Lidická 1239, 363 17 Ostrov
C84: Uchazeč: | F84: =IF($E$20="","",$E$20) -> 
C86: PČ | D86: Typ | E86: Kód | F86: Popis | G86: MJ | H86: Množství | I86: J.cena [CZK] | J86: Cena celkem [CZK] | K86: Cenová soustava | M86: Poznámka | N86: DPH | O86: J. Nh [h] | P86: Nh celkem [h] | Q86: J. hmotnost [t] | R86: Hmotnost celkem [t] | S86: J. suť [t] | T86: Suť Celkem [t]
C87: Náklady soupisu celkem | J87: =$BK$87 -> 0 | P87: =$P$88+$P$108+$P$110 -> 0 | R87: =$R$88+$R$108+$R$110 -> 0 | T87: =$T$88+$T$108+$T$110 -> 0 | AT87: D | AU87: -1 | BK87: =$BK$88+$BK$108+$BK$110 -> 0
D88: D | E88: 01 | F88: Montážní celkem | J88: =$BK$88 -> 0 | P88: =$P$89+$P$104 -> 0 | R88: =$R$89+$R$104 -> 0 | T88: =$T$89+$T$104 -> 0 | AR88: 3 | AT88: D | AU88: 0 | AY88: ROZPOCET | BK88: =$BK$89+$BK$104 -> 0
D89: D | E89: 01_MA | F89: Materiál montážní | J89: =$BK$89 -> 0 | P89: =SUM($P$90:$P$103) -> 0 | R89: =SUM($R$90:$R$103) -> 0 | T89: =SUM($T$90:$T$103) -> 0 | AR89: 1 | AT89: D | AU89: 1 | AY89: ROZPOCET | BK89: =SUM($BK$90:$BK$103) -> 0
C90: 1 | D90: K | E90: 2100 | F90: Stožár VO uliční bezpaticový, pozink., výška 9,0 m | G90: kus | H90: 9 | J90: =ROUND($I$90*$H$90,2) -> 0 | N90: základní | Q90: 0 | R90: =$Q$90*$H$90 -> 0 | S90: 0 | T90: =$S$90*$H$90 -> 0 | AR90: 64 | AT90: K | AU90: 2 | AY90: ROZPOCET | BE90: =IF($N$90="základní",$J$90,0) -> 0 | BF90: =IF($N$90="snížená",$J$90,0) -> 0 | BG90: =IF($N$90="zákl. přenesená",$J$90,0) -> 0 | BH90: =IF($N$90="sníž. přenesená",$J$90,0) -> 0 | BI90: =IF($N$90="nulová",$J$90,0) -> 0 | BJ90: 1 | BK90: =ROUND($I$90*$H$90,2) -> 0 | BL90: 64 | BM90: 648612138
C91: 2 | D91: K | E91: 2110 | F91: Svítidlo na Vo 70 VV | G91: kus | H91: 12 | J91: =ROUND($I$91*$H$91,2) -> 0 | N91: základní | Q91: 0 | R91: =$Q$91*$H$91 -> 0 | S91: 0 | T91: =$S$91*$H$91 -> 0 | AR91: 64 | AT91: K | AU91: 2 | AY91: ROZPOCET | BE91: =IF($N$91="základní",$J$91,0) -> 0 | BF91: =IF($N$91="snížená",$J$91,0) -> 0 | BG91: =IF($N$91="zákl. přenesená",$J$91,0) -> 0 | BH91: =IF($N$91="sníž. přenesená",$J$91,0) -> 0 | BI91: =IF($N$91="nulová",$J$91,0) -> 0 | BJ91: 1 | BK91: =ROUND($I$91*$H$91,2) -> 0 | BL91: 64 | BM91: -1618552549
C92: 3 | D92: K | E92: 2120 | F92: Základ pod stožáry | G92: kus | H92: 9 | J92: =ROUND($I$92*$H$92,2) -> 0 | N92: základní | Q92: 0 | R92: =$Q$92*$H$92 -> 0 | S92: 0 | T92: =$S$92*$H$92 -> 0 | AR92: 64 | AT92: K | AU92: 2 | AY92: ROZPOCET | BE92: =IF($N$92="základní",$J$92,0) -> 0 | BF92: =IF($N$92="snížená",$J$92,0) -> 0 | BG92: =IF($N$92="zákl. přenesená",$J$92,0) -> 0 | BH92: =IF($N$92="sníž. přenesená",$J$92,0) -> 0 | BI92: =IF($N$92="nulová",$J$92,0) -> 0 | BJ92: 1 | BK92: =ROUND($I$92*$H$92,2) -> 0 | BL92: 64 | BM92: -1520671247
C93: 4 | D93: K | E93: 2130 | F93: Výzbroj do stožáru | G93: kus | H93: 9 | J93: =ROUND($I$93*$H$93,2) -> 0 | N93: základní | Q93: 0 | R93: =$Q$93*$H$93 -> 0 | S93: 0 | T93: =$S$93*$H$93 -> 0 | AR93: 64 | AT93: K | AU93: 2 | AY93: ROZPOCET | BE93: =IF($N$93="základní",$J$93,0) -> 0 | BF93: =IF($N$93="snížená",$J$93,0) -> 0 | BG93: =IF($N$93="zákl. přenesená",$J$93,0) -> 0 | BH93: =IF($N$93="sníž. přenesená",$J$93,0) -> 0 | BI93: =IF($N$93="nulová",$J$93,0) -> 0 | BJ93: 1 | BK93: =ROUND($I$93*$H$93,2) -> 0 | BL93: 64 | BM93: -1604993205
C94: 5 | D94: K | E94: 2140 | F94: Výložník jednoramenný | G94: kus | H94: 6 | J94: =ROUND($I$94*$H$94,2) -> 0 | N94: základní | Q94: 0 | R94: =$Q$94*$H$94 -> 0 | S94: 0 | T94: =$S$94*$H$94 -> 0 | AR94: 64 | AT94: K | AU94: 2 | AY94: ROZPOCET | BE94: =IF($N$94="základní",$J$94,0) -> 0 | BF94: =IF($N$94="snížená",$J$94,0) -> 0 | BG94: =IF($N$94="zákl. přenesená",$J$94,0) -> 0 | BH94: =IF($N$94="sníž. přenesená",$J$94,0) -> 0 | BI94: =IF($N$94="nulová",$J$94,0) -> 0 | BJ94: 1 | BK94: =ROUND($I$94*$H$94,2) -> 0 | BL94: 64 | BM94: 1178555606
C95: 6 | D95: K | E95: 2150 | F95: Výložník dvouramenný | G95: kus | H95: 3 | J95: =ROUND($I$95*$H$95,2) -> 0 | N95: základní | Q95: 0 | R95: =$Q$95*$H$95 -> 0 | S95: 0 | T95: =$S$95*$H$95 -> 0 | AR95: 64 | AT95: K | AU95: 2 | AY95: ROZPOCET | BE95: =IF($N$95="základní",$J$95,0) -> 0 | BF95: =IF($N$95="snížená",$J$95,0) -> 0 | BG95: =IF($N$95="zákl. přenesená",$J$95,0) -> 0 | BH95: =IF($N$95="sníž. přenesená",$J$95,0) -> 0 | BI95: =IF($N$95="nulová",$J$95,0) -> 0 | BJ95: 1 | BK95: =ROUND($I$95*$H$95,2) -> 0 | BL95: 64 | BM95: -1260418032
C96: 7 | D96: K | E96: 2160 | F96: Trubka HDPE | G96: m | H96: 295 | J96: =ROUND($I$96*$H$96,2) -> 0 | N96: základní | Q96: 0 | R96: =$Q$96*$H$96 -> 0 | S96: 0 | T96: =$S$96*$H$96 -> 0 | AR96: 64 | AT96: K | AU96: 2 | AY96: ROZPOCET | BE96: =IF($N$96="základní",$J$96,0) -> 0 | BF96: =IF($N$96="snížená",$J$96,0) -> 0 | BG96: =IF($N$96="zákl. přenesená",$J$96,0) -> 0 | BH96: =IF($N$96="sníž. přenesená",$J$96,0) -> 0 | BI96: =IF($N$96="nulová",$J$96,0) -> 0 | BJ96: 1 | BK96: =ROUND($I$96*$H$96,2) -> 0 | BL96: 64 | BM96: 1087827573
D97: PP | F97: Trubka HDPE | AT97: PP | AU97: 2
C98: 8 | D98: K | E98: 2170 | F98: Kabel pro VO CYKY 3x1,5 | G98: m | H98: 144 | J98: =ROUND($I$98*$H$98,2) -> 0 | N98: základní | Q98: 0 | R98: =$Q$98*$H$98 -> 0 | S98: 0 | T98: =$S$98*$H$98 -> 0 | AR98: 64 | AT98: K | AU98: 2 | AY98: ROZPOCET | BE98: =IF($N$98="základní",$J$98,0) -> 0 | BF98: =IF($N$98="snížená",$J$98,0) -> 0 | BG98: =IF($N$98="zákl. přenesená",$J$98,0) -> 0 | BH98: =IF($N$98="sníž. přenesená",$J$98,0) -> 0 | BI98: =IF($N$98="nulová",$J$98,0) -> 0 | BJ98: 1 | BK98: =ROUND($I$98*$H$98,2) -> 0 | BL98: 64 | BM98: 1241328298
C99: 9 | D99: K | E99: 2180 | F99: Kabel pro VO CYKY 4Bx10 | G99: m | H99: 320 | J99: =ROUND($I$99*$H$99,2) -> 0 | N99: základní | Q99: 0 | R99: =$Q$99*$H$99 -> 0 | S99: 0 | T99: =$S$99*$H$99 -> 0 | AR99: 64 | AT99: K | AU99: 2 | AY99: ROZPOCET | BE99: =IF($N$99="základní",$J$99,0) -> 0 | BF99: =IF($N$99="snížená",$J$99,0) -> 0 | BG99: =IF($N$99="zákl. přenesená",$J$99,0) -> 0 | BH99: =IF($N$99="sníž. přenesená",$J$99,0) -> 0 | BI99: =IF($N$99="nulová",$J$99,0) -> 0 | BJ99: 1 | BK99: =ROUND($I$99*$H$99,2) -> 0 | BL99: 64 | BM99: -1912100377
C100: 10 | D100: K | E100: 2190 | F100: FeZn | G100: m | H100: 295 | J100: =ROUND($I$100*$H$100,2) -> 0 | N100: základní | Q100: 0 | R100: =$Q$100*$H$100 -> 0 | S100: 0 | T100: =$S$100*$H$100 -> 0 | AR100: 64 | AT100: K | AU100: 2 | AY100: ROZPOCET | BE100: =IF($N$100="základní",$J$100,0) -> 0 | BF100: =IF($N$100="snížená",$J$100,0) -> 0 | BG100: =IF($N$100="zákl. přenesená",$J$100,0) -> 0 | BH100: =IF($N$100="sníž. přenesená",$J$100,0) -> 0 | BI100: =IF($N$100="nulová",$J$100,0) -> 0 | BJ100: 1 | BK100: =ROUND($I$100*$H$100,2) -> 0 | BL100: 64 | BM100: -221676228
D101: PP | F101: FeZn | AT101: PP | AU101: 2
C102: 11 | D102: K | E102: 2200 | F102: Zemní práce pro VO | G102: m | H102: 255 | J102: =ROUND($I$102*$H$102,2) -> 0 | N102: základní | Q102: 0 | R102: =$Q$102*$H$102 -> 0 | S102: 0 | T102: =$S$102*$H$102 -> 0 | AR102: 64 | AT102: K | AU102: 2 | AY102: ROZPOCET | BE102: =IF($N$102="základní",$J$102,0) -> 0 | BF102: =IF($N$102="snížená",$J$102,0) -> 0 | BG102: =IF($N$102="zákl. přenesená",$J$102,0) -> 0 | BH102: =IF($N$102="sníž. přenesená",$J$102,0) -> 0 | BI102: =IF($N$102="nulová",$J$102,0) -> 0 | BJ102: 1 | BK102: =ROUND($I$102*$H$102,2) -> 0 | BL102: 64 | BM102: 1883930825
C103: 12 | D103: K | E103: 2210 | F103: Překopy přes komunikaci | G103: m | H103: 40 | J103: =ROUND($I$103*$H$103,2) -> 0 | N103: základní | Q103: 0 | R103: =$Q$103*$H$103 -> 0 | S103: 0 | T103: =$S$103*$H$103 -> 0 | AR103: 64 | AT103: K | AU103: 2 | AY103: ROZPOCET | BE103: =IF($N$103="základní",$J$103,0) -> 0 | BF103: =IF($N$103="snížená",$J$103,0) -> 0 | BG103: =IF($N$103="zákl. přenesená",$J$103,0) -> 0 | BH103: =IF($N$103="sníž. přenesená",$J$103,0) -> 0 | BI103: =IF($N$103="nulová",$J$103,0) -> 0 | BJ103: 1 | BK103: =ROUND($I$103*$H$103,2) -> 0 | BL103: 64 | BM103: -1029498355
D104: D | E104: 01_MO | F104: Montáž | J104: =$BK$104 -> 0 | P104: =SUM($P$105:$P$107) -> 0 | R104: =SUM($R$105:$R$107) -> 0 | T104: =SUM($T$105:$T$107) -> 0 | AR104: 1 | AT104: D | AU104: 1 | AY104: ROZPOCET | BK104: =SUM($BK$105:$BK$107) -> 0
C105: 13 | D105: K | E105: 2300 | F105: Doprava | G105: % | J105: =ROUND($I$105*$H$105,2) -> 0 | N105: základní | Q105: 0 | R105: =$Q$105*$H$105 -> 0 | S105: 0 | T105: =$S$105*$H$105 -> 0 | AR105: 64 | AT105: K | AU105: 2 | AY105: ROZPOCET | BE105: =IF($N$105="základní",$J$105,0) -> 0 | BF105: =IF($N$105="snížená",$J$105,0) -> 0 | BG105: =IF($N$105="zákl. přenesená",$J$105,0) -> 0 | BH105: =IF($N$105="sníž. přenesená",$J$105,0) -> 0 | BI105: =IF($N$105="nulová",$J$105,0) -> 0 | BJ105: 1 | BK105: =ROUND($I$105*$H$105,2) -> 0 | BL105: 64 | BM105: 2042332943
C106: 14 | D106: K | E106: 2310 | F106: Montáž | G106: % | J106: =ROUND($I$106*$H$106,2) -> 0 | N106: základní | Q106: 0 | R106: =$Q$106*$H$106 -> 0 | S106: 0 | T106: =$S$106*$H$106 -> 0 | AR106: 64 | AT106: K | AU106: 2 | AY106: ROZPOCET | BE106: =IF($N$106="základní",$J$106,0) -> 0 | BF106: =IF($N$106="snížená",$J$106,0) -> 0 | BG106: =IF($N$106="zákl. přenesená",$J$106,0) -> 0 | BH106: =IF($N$106="sníž. přenesená",$J$106,0) -> 0 | BI106: =IF($N$106="nulová",$J$106,0) -> 0 | BJ106: 1 | BK106: =ROUND($I$106*$H$106,2) -> 0 | BL106: 64 | BM106: -114554705
C107: 15 | D107: K | E107: 2320 | F107: Demontáže | G107: Kč | H107: 1 | J107: =ROUND($I$107*$H$107,2) -> 0 | N107: základní | Q107: 0 | R107: =$Q$107*$H$107 -> 0 | S107: 0 | T107: =$S$107*$H$107 -> 0 | AR107: 64 | AT107: K | AU107: 2 | AY107: ROZPOCET | BE107: =IF($N$107="základní",$J$107,0) -> 0 | BF107: =IF($N$107="snížená",$J$107,0) -> 0 | BG107: =IF($N$107="zákl. přenesená",$J$107,0) -> 0 | BH107: =IF($N$107="sníž. přenesená",$J$107,0) -> 0 | BI107: =IF($N$107="nulová",$J$107,0) -> 0 | BJ107: 1 | BK107: =ROUND($I$107*$H$107,2) -> 0 | BL107: 64 | BM107: 154687818
D108: D | E108: 02 | F108: Revize | J108: =$BK$108 -> 0 | P108: =$P$109 -> 0 | R108: =$R$109 -> 0 | T108: =$T$109 -> 0 | AR108: 1 | AT108: D | AU108: 0 | AY108: ROZPOCET | BK108: =$BK$109 -> 0
C109: 16 | D109: K | E109: 2400 | F109: Revize | G109: % | J109: =ROUND($I$109*$H$109,2) -> 0 | N109: základní | Q109: 0 | R109: =$Q$109*$H$109 -> 0 | S109: 0 | T109: =$S$109*$H$109 -> 0 | AR109: 4 | AT109: K | AU109: 1 | AY109: ROZPOCET | BE109: =IF($N$109="základní",$J$109,0) -> 0 | BF109: =IF($N$109="snížená",$J$109,0) -> 0 | BG109: =IF($N$109="zákl. přenesená",$J$109,0) -> 0 | BH109: =IF($N$109="sníž. přenesená",$J$109,0) -> 0 | BI109: =IF($N$109="nulová",$J$109,0) -> 0 | BJ109: 1 | BK109: =ROUND($I$109*$H$109,2) -> 0 | BL109: 4 | BM109: 376422245
D110: D | E110: 03 | F110: Technická pomoc | J110: =$BK$110 -> 0 | P110: =$P$111 -> 0 | R110: =$R$111 -> 0 | T110: =$T$111 -> 0 | AR110: 1 | AT110: D | AU110: 0 | AY110: ROZPOCET | BK110: =$BK$111 -> 0
C111: 17 | D111: K | E111: 2500 | F111: Technická pomoc | G111: % | J111: =ROUND($I$111*$H$111,2) -> 0 | N111: základní | Q111: 0 | R111: =$Q$111*$H$111 -> 0 | S111: 0 | T111: =$S$111*$H$111 -> 0 | AR111: 4 | AT111: K | AU111: 1 | AY111: ROZPOCET | BE111: =IF($N$111="základní",$J$111,0) -> 0 | BF111: =IF($N$111="snížená",$J$111,0) -> 0 | BG111: =IF($N$111="zákl. přenesená",$J$111,0) -> 0 | BH111: =IF($N$111="sníž. přenesená",$J$111,0) -> 0 | BI111: =IF($N$111="nulová",$J$111,0) -> 0 | BJ111: 1 | BK111: =ROUND($I$111*$H$111,2) -> 0 | BL111: 4 | BM111: -2090938965

Sheet SO412 - SO 412 Kamerový ...
D1: List obsahuje: | F1: 1) Krycí list soupisu | G1: 2) Rekapitulace | J1: 3) Soupis prací | K1: Zpět na list: | L1: Rekapitulace stavby
AT2: {5D7137B4-0918-4BA2-AA7F-99E993F990A9}
AT3: 2
D4: KRYCÍ LIST SOUPISU | M4: v --- níže se nacházejí doplnkové a pomocné údaje k sestavám --- v | AT4: False
D6: Stavba:
E7: ='Rekapitulace stavby'!$K$6 -> Město Sokolov - Záchytné parkoviště Michal
D8: Objekt:
E9: 2.E - 2. ETAPA
D10: Soupis:
E11: SO412 - SO 412 Kamerový systém
D13: KSO: | F13: 828 79 | I13: CC-CZ: | J13: 7941-26
D14: Místo: | F14: Sokolov | I14: Datum: | J14: ='Rekapitulace stavby'!$AN$8 -> 09.09.2014
D16: Zadavatel: | I16: IČ:
E17: Město Sokolov | I17: DIČ:
D19: Uchazeč: | I19: IČ: | J19: =IF('Rekapitulace stavby'!$AN$13="Vyplň údaj","",IF('Rekapitulace stavby'!$AN$13="","",'Rekapitulace stavby'!$AN$13)) -> 
E20: =IF('Rekapitulace stavby'!$E$14="Vyplň údaj","",IF('Rekapitulace stavby'!$E$14="","",'Rekapitulace stavby'!$E$14)) ->  | I20: DIČ: | J20: =IF('Rekapitulace stavby'!$AN$14="Vyplň údaj","",IF('Rekapitulace stavby'!$AN$14="","",'Rekapitulace stavby'!$AN$14)) -> 
D22: Projektant: | I22: IČ: | J22: 18224920
E23: BPO spol. s r.o., Lidická 1239, 363 17 Ostrov | I23: DIČ: | J23: CZ18224920
D25: Poznámka:
D29: Cena bez DPH | J29: =ROUND($J$89,2) -> 0
F31: Základ daně | I31: Sazba daně | J31: Výše daně
D32: DPH | E32: základní | F32: =ROUND(SUM($BE$89:$BE$120),2) -> 0 | I32: 0.21 | J32: =ROUND(SUM($BE$89:$BE$120)*$I$32,2) -> 0
E33: snížená | F33: =ROUND(SUM($BF$89:$BF$120),2) -> 0 | I33: 0.15 | J33: =ROUND(SUM($BF$89:$BF$120)*$I$33,2) -> 0
E34: zákl. přenesená | F34: =ROUND(SUM($BG$89:$BG$120),2) -> 0 | I34: 0.21 | J34: 0
E35: sníž. přenesená | F35: =ROUND(SUM($BH$89:$BH$120),2) -> 0 | I35: 0.15 | J35: 0
E36: nulová | F36: =ROUND(SUM($BI$89:$BI$120),2) -> 0 | I36: 0 | J36: 0
D38: Cena s DPH | G38: v | H38: CZK | J38: =ROUND(SUM($J$29:$J$36),2) -> 0
C44: REKAPITULACE ČLENĚNÍ SOUPISU PRACÍ
C46: Stavba:
E47: =$E$7 -> Město Sokolov - Záchytné parkoviště Michal
C48: Objekt:
E49: 2.E - 2. ETAPA
C50: Soupis:
E51: =$E$11 -> SO412 - SO 412 Kamerový systém
C53: Místo: | F53: =$F$14 -> Sokolov | I53: Datum: | J53: =IF($J$14="","",$J$14) -> 09.09.2014
C55: Zadavatel: | F55: =$E$17 -> Město Sokolov | I55: Projektant: | J55: =$E$23 -> BPO spol. s r.o., Lidická 1239, 363 17 Ostrov
C56: Uchazeč: | F56: =IF($E$20="","",$E$20) -> 
C58: Kód dílu - Popis | J58: Cena celkem [CZK]
C60: Náklady soupisu celkem | J60: =ROUND($J$89,2) -> 0 | AU60: -1
D61: 01 - Montážní celkem | J61: =ROUND($J$90,2) -> 0
D62: 01_MA - Materiál montážní | J62: =ROUND($J$91,2) -> 0
D63: 01_DO - Dodávky | J63: =ROUND($J$100,2) -> 0
D64: 01_MO - Montáž | J64: =ROUND($J$112,2) -> 0
D65: 01_KS - Přenos kamerového signálu | J65: =ROUND($J$115,2) -> 0
D66: 02 - Revize | J66: =ROUND($J$117,2) -> 0
D67: 03 - Programování | J67: =ROUND($J$119,2) -> 0
C74: SOUPIS PRACÍ
C76: Stavba:
E77: =$E$7 -> Město Sokolov - Záchytné parkoviště Michal
C78: Objekt:
E79: 2.E - 2. ETAPA
C80: Soupis:
E81: =$E$11 -> SO412 - SO 412 Kamerový systém
C83: Místo: | F83: =$F$14 -> Sokolov | I83: Datum: | J83: =IF($J$14="","",$J$14) -> 09.09.2014
C85: Zadavatel: | F85: =$E$17 -> Město Sokolov | I85: Projektant: | J85: =$E$23 -> BPO spol. s r.o., Lidická 1239, 363 17 Ostrov
C86: Uchazeč: | F86: =IF($E$20="","",$E$20) -> 
C88: PČ | D88: Typ | E88: Kód | F88: Popis | G88: MJ | H88: Množství | I88: J.cena [CZK] | J88: Cena celkem [CZK] | K88: Cenová soustava | M88: Poznámka | N88: DPH | O88: J. Nh [h] | P88: Nh celkem [h] | Q88: J. hmotnost [t] | R88: Hmotnost celkem [t] | S88: J. suť [t] | T88: Suť Celkem [t]
C89: Náklady soupisu celkem | J89: =$BK$89 -> 0 | P89: =$P$90+$P$117+$P$119 -> 0 | R89: =$R$90+$R$117+$R$119 -> 0 | T89: =$T$90+$T$117+$T$119 -> 0 | AT89: D | AU89: -1 | BK89: =$BK$90+$BK$117+$BK$119 -> 0
D90: D | E90: 01 | F90: Montážní celkem | J90: =$BK$90 -> 0 | P90: =$P$91+$P$100+$P$112+$P$115 -> 0 | R90: =$R$91+$R$100+$R$112+$R$115 -> 0 | T90: =$T$91+$T$100+$T$112+$T$115 -> 0 | AR90: 3 | AT90: D | AU90: 0 | AY90: ROZPOCET | BK90: =$BK$91+$BK$100+$BK$112+$BK$115 -> 0
D91: D | E91: 01_MA | F91: Materiál montážní | J91: =$BK$91 -> 0 | P91: =SUM($P$92:$P$99) -> 0 | R91: =SUM($R$92:$R$99) -> 0 | T91: =SUM($T$92:$T$99) -> 0 | AR91: 1 | AT91: D | AU91: 1 | AY91: ROZPOCET | BK91: =SUM($BK$92:$BK$99) -> 0
C92: 1 | D92: K | E92: 1001 | F92: Kabel CYKY 3Cx2,5 | G92: m | H92: 1100 | J92: =ROUND($I$92*$H$92,2) -> 0 | N92: základní | Q92: 0 | R92: =$Q$92*$H$92 -> 0 | S92: 0 | T92: =$S$92*$H$92 -> 0 | AR92: 64 | AT92: K | AU92: 2 | AY92: ROZPOCET | BE92: =IF($N$92="základní",$J$92,0) -> 0 | BF92: =IF($N$92="snížená",$J$92,0) -> 0 | BG92: =IF($N$92="zákl. přenesená",$J$92,0) -> 0 | BH92: =IF($N$92="sníž. přenesená",$J$92,0) -> 0 | BI92: =IF($N$92="nulová",$J$92,0) -> 0 | BJ92: 1 | BK92: =ROUND($I$92*$H$92,2) -> 0 | BL92: 64 | BM92: 403269480
C93: 2 | D93: K | E93: 1002 | F93: Optický kabel | G93: m | H93: 1100 | J93: =ROUND($I$93*$H$93,2) -> 0 | N93: základní | Q93: 0 | R93: =$Q$93*$H$93 -> 0 | S93: 0 | T93: =$S$93*$H$93 -> 0 | AR93: 64 | AT93: K | AU93: 2 | AY93: ROZPOCET | BE93: =IF($N$93="základní",$J$93,0) -> 0 | BF93: =IF($N$93="snížená",$J$93,0) -> 0 | BG93: =IF($N$93="zákl. přenesená",$J$93,0) -> 0 | BH93: =IF($N$93="sníž. přenesená",$J$93,0) -> 0 | BI93: =IF($N$93="nulová",$J$93,0) -> 0 | BJ93: 1 | BK93: =ROUND($I$93*$H$93,2) -> 0 | BL93: 64 | BM93: 438855765
C94: 3 | D94: K | E94: 1003 | F94: Trubička optického kabelu | G94: m | H94: 1100 | J94: =ROUND($I$94*$H$94,2) -> 0 | N94: základní | Q94: 0 | R94: =$Q$94*$H$94 -> 0 | S94: 0 | T94: =$S$94*$H$94 -> 0 | AR94: 64 | AT94: K | AU94: 2 | AY94: ROZPOCET | BE94: =IF($N$94="základní",$J$94,0) -> 0 | BF94: =IF($N$94="snížená",$J$94,0) -> 0 | BG94: =IF($N$94="zákl. přenesená",$J$94,0) -> 0 | BH94: =IF($N$94="sníž. přenesená",$J$94,0) -> 0 | BI94: =IF($N$94="nulová",$J$94,0) -> 0 | BJ94: 1 | BK94: =ROUND($I$94*$H$94,2) -> 0 | BL94: 64 | BM94: 1272658268
C95: 4 | D95: K | E95: 1004 | F95: Chránička optického kabelu HDPE 40 mm | G95: m | H95: 295 | J95: =ROUND($I$95*$H$95,2) -> 0 | N95: základní | Q95: 0 | R95: =$Q$95*$H$95 -> 0 | S95: 0 | T95: =$S$95*$H$95 -> 0 | AR95: 64 | AT95: K | AU95: 2 | AY95: ROZPOCET | BE95: =IF($N$95="základní",$J$95,0) -> 0 | BF95: =IF($N$95="snížená",$J$95,0) -> 0 | BG95: =IF($N$95="zákl. přenesená",$J$95,0) -> 0 | BH95: =IF($N$95="sníž. přenesená",$J$95,0) -> 0 | BI95: =IF($N$95="nulová",$J$95,0) -> 0 | BJ95: 1 | BK95: =ROUND($I$95*$H$95,2) -> 0 | BL95: 64 | BM95: 1856094991
C96: 5 | D96: K | E96: 1005 | F96: Spojka na trubičky | G96: kus | H96: 10 | J96: =ROUND($I$96*$H$96,2) -> 0 | N96: základní | Q96: 0 | R96: =$Q$96*$H$96 -> 0 | S96: 0 | T96: =$S$96*$H$96 -> 0 | AR96: 64 | AT96: K | AU96: 2 | AY96: ROZPOCET | BE96: =IF($N$96="základní",$J$96,0) -> 0 | BF96: =IF($N$96="snížená",$J$96,0) -> 0 | BG96: =IF($N$96="zákl. přenesená",$J$96,0) -> 0 | BH96: =IF($N$96="sníž. přenesená",$J$96,0) -> 0 | BI96: =IF($N$96="nulová",$J$96,0) -> 0 | BJ96: 1 | BK96: =ROUND($I$96*$H$96,2) -> 0 | BL96: 64 | BM96: -72737490
C97: 6 | D97: K | E97: 1006 | F97: Ukončení kabelů | G97: kus | H97: 18 | J97: =ROUND($I$97*$H$97,2) -> 0 | N97: základní | Q97: 0 | R97: =$Q$97*$H$97 -> 0 | S97: 0 | T97: =$S$97*$H$97 -> 0 | AR97: 64 | AT97: K | AU97: 2 | AY97: ROZPOCET | BE97: =IF($N$97="základní",$J$97,0) -> 0 | BF97: =IF($N$97="snížená",$J$97,0) -> 0 | BG97: =IF($N$97="zákl. přenesená",$J$97,0) -> 0 | BH97: =IF($N$97="sníž. přenesená",$J$97,0) -> 0 | BI97: =IF($N$97="nulová",$J$97,0) -> 0 | BJ97: 1 | BK97: =ROUND($I$97*$H$97,2) -> 0 | BL97: 64 | BM97: -2110409997
C98: 18 | D98: K | E98: 1007 | F98: PPV | G98: % | J98: =ROUND($I$98*$H$98,2) -> 0 | N98: základní | Q98: 0 | R98: =$Q$98*$H$98 -> 0 | S98: 0 | T98: =$S$98*$H$98 -> 0 | AR98: 64 | AT98: K | AU98: 2 | AY98: ROZPOCET | BE98: =IF($N$98="základní",$J$98,0) -> 0 | BF98: =IF($N$98="snížená",$J$98,0) -> 0 | BG98: =IF($N$98="zákl. přenesená",$J$98,0) -> 0 | BH98: =IF($N$98="sníž. přenesená",$J$98,0) -> 0 | BI98: =IF($N$98="nulová",$J$98,0) -> 0 | BJ98: 1 | BK98: =ROUND($I$98*$H$98,2) -> 0 | BL98: 64 | BM98: -162144970
D99: PP | F99: Trubka HDPE | AT99: PP | AU99: 2
D100: D | E100: 01_DO | F100: Dodávky | J100: =$BK$100 -> 0 | P100: =SUM($P$101:$P$111) -> 0 | R100: =SUM($R$101:$R$111) -> 0 | T100: =SUM($T$101:$T$111) -> 0 | AR100: 1 | AT100: D | AU100: 1 | AY100: ROZPOCET | BK100: =SUM($BK$101:$BK$111) -> 0
C101: 19 | D101: K | E101: 1010 | F101: Kamera venkovní, otočná | G101: kus | H101: 1 | J101: =ROUND($I$101*$H$101,2) -> 0 | N101: základní | Q101: 0 | R101: =$Q$101*$H$101 -> 0 | S101: 0 | T101: =$S$101*$H$101 -> 0 | AR101: 4 | AT101: K | AU101: 2 | AY101: ROZPOCET | BE101: =IF($N$101="základní",$J$101,0) -> 0 | BF101: =IF($N$101="snížená",$J$101,0) -> 0 | BG101: =IF($N$101="zákl. přenesená",$J$101,0) -> 0 | BH101: =IF($N$101="sníž. přenesená",$J$101,0) -> 0 | BI101: =IF($N$101="nulová",$J$101,0) -> 0 | BJ101: 1 | BK101: =ROUND($I$101*$H$101,2) -> 0 | BL101: 4 | BM101: -1978570459
D102: PP | F102: FeZn | AT102: PP | AU102: 2
C103: 20 | D103: K | E103: 1011 | F103: Kamera venkovní, pevná | G103: kus | H103: 5 | J103: =ROUND($I$103*$H$103,2) -> 0 | N103: základní | Q103: 0 | R103: =$Q$103*$H$103 -> 0 | S103: 0 | T103: =$S$103*$H$103 -> 0 | AR103: 4 | AT103: K | AU103: 2 | AY103: ROZPOCET | BE103: =IF($N$103="základní",$J$103,0) -> 0 | BF103: =IF($N$103="snížená",$J$103,0) -> 0 | BG103: =IF($N$103="zákl. přenesená",$J$103,0) -> 0 | BH103: =IF($N$103="sníž. přenesená",$J$103,0) -> 0 | BI103: =IF($N$103="nulová",$J$103,0) -> 0 | BJ103: 1 | BK103: =ROUND($I$103*$H$103,2) -> 0 | BL103: 4 | BM103: 1787544838
C104: 21 | D104: K | E104: 1012 | F104: Napájecí zdroj kamery | G104: kus | H104: 6 | J104: =ROUND($I$104*$H$104,2) -> 0 | N104: základní | Q104: 0 | R104: =$Q$104*$H$104 -> 0 | S104: 0 | T104: =$S$104*$H$104 -> 0 | AR104: 4 | AT104: K | AU104: 2 | AY104: ROZPOCET | BE104: =IF($N$104="základní",$J$104,0) -> 0 | BF104: =IF($N$104="snížená",$J$104,0) -> 0 | BG104: =IF($N$104="zákl. přenesená",$J$104,0) -> 0 | BH104: =IF($N$104="sníž. přenesená",$J$104,0) -> 0 | BI104: =IF($N$104="nulová",$J$104,0) -> 0 | BJ104: 1 | BK104: =ROUND($I$104*$H$104,2) -> 0 | BL104: 4 | BM104: 1715298845
C105: 22 | D105: K | E105: 1013 | F105: Záložní zdroj | G105: kus | H105: 1 | J105: =ROUND($I$105*$H$105,2) -> 0 | N105: základní | Q105: 0 | R105: =$Q$105*$H$105 -> 0 | S105: 0 | T105: =$S$105*$H$105 -> 0 | AR105: 4 | AT105: K | AU105: 2 | AY105: ROZPOCET | BE105: =IF($N$105="základní",$J$105,0) -> 0 | BF105: =IF($N$105="snížená",$J$105,0) -> 0 | BG105: =IF($N$105="zákl. přenesená",$J$105,0) -> 0 | BH105: =IF($N$105="sníž. přenesená",$J$105,0) -> 0 | BI105: =IF($N$105="nulová",$J$105,0) -> 0 | BJ105: 1 | BK105: =ROUND($I$105*$H$105,2) -> 0 | BL105: 4 | BM105: -1352400831
C106: 23 | D106: K | E106: 1014 | F106: Technologigký domek | G106: kus | H106: 1 | J106: =ROUND($I$106*$H$106,2) -> 0 | N106: základní | Q106: 0 | R106: =$Q$106*$H$106 -> 0 | S106: 0 | T106: =$S$106*$H$106 -> 0 | AR106: 4 | AT106: K | AU106: 2 | AY106: ROZPOCET | BE106: =IF($N$106="základní",$J$106,0) -> 0 | BF106: =IF($N$106="snížená",$J$106,0) -> 0 | BG106: =IF($N$106="zákl. přenesená",$J$106,0) -> 0 | BH106: =IF($N$106="sníž. přenesená",$J$106,0) -> 0 | BI106: =IF($N$106="nulová",$J$106,0) -> 0 | BJ106: 1 | BK106: =ROUND($I$106*$H$106,2) -> 0 | BL106: 4 | BM106: 305120166
C107: 24 | D107: K | E107: 1015 | F107: Stožár VO sadový, pozinkovaný, výška 6,0 m | G107: kus | H107: 3 | J107: =ROUND($I$107*$H$107,2) -> 0 | N107: základní | Q107: 0 | R107: =$Q$107*$H$107 -> 0 | S107: 0 | T107: =$S$107*$H$107 -> 0 | AR107: 4 | AT107: K | AU107: 2 | AY107: ROZPOCET | BE107: =IF($N$107="základní",$J$107,0) -> 0 | BF107: =IF($N$107="snížená",$J$107,0) -> 0 | BG107: =IF($N$107="zákl. přenesená",$J$107,0) -> 0 | BH107: =IF($N$107="sníž. přenesená",$J$107,0) -> 0 | BI107: =IF($N$107="nulová",$J$107,0) -> 0 | BJ107: 1 | BK107: =ROUND($I$107*$H$107,2) -> 0 | BL107: 4 | BM107: 537684023
C108: 25 | D108: K | E108: 1016 | F108: Základ pro stožáry | G108: kus | H108: 3 | J108: =ROUND($I$108*$H$108,2) -> 0 | N108: základní | Q108: 0 | R108: =$Q$108*$H$108 -> 0 | S108: 0 | T108: =$S$108*$H$108 -> 0 | AR108: 4 | AT108: K | AU108: 2 | AY108: ROZPOCET | BE108: =IF($N$108="základní",$J$108,0) -> 0 | BF108: =IF($N$108="snížená",$J$108,0) -> 0 | BG108: =IF($N$108="zákl. přenesená",$J$108,0) -> 0 | BH108: =IF($N$108="sníž. přenesená",$J$108,0) -> 0 | BI108: =IF($N$108="nulová",$J$108,0) -> 0 | BJ108: 1 | BK108: =ROUND($I$108*$H$108,2) -> 0 | BL108: 4 | BM108: 1930294645
C109: 26 | D109: K | E109: 1017 | F109: Trubka HDPE DN 250 mm | G109: kus | H109: 3 | J109: =ROUND($I$109*$H$109,2) -> 0 | N109: základní | Q109: 0 | R109: =$Q$109*$H$109 -> 0 | S109: 0 | T109: =$S$109*$H$109 -> 0 | AR109: 4 | AT109: K | AU109: 2 | AY109: ROZPOCET | BE109: =IF($N$109="základní",$J$109,0) -> 0 | BF109: =IF($N$109="snížená",$J$109,0) -> 0 | BG109: =IF($N$109="zákl. přenesená",$J$109,0) -> 0 | BH109: =IF($N$109="sníž. přenesená",$J$109,0) -> 0 | BI109: =IF($N$109="nulová",$J$109,0) -> 0 | BJ109: 1 | BK109: =ROUND($I$109*$H$109,2) -> 0 | BL109: 4 | BM109: 1449941275
C110: 27 | D110: K | E110: 1018 | F110: Doprava | G110: % | J110: =ROUND($I$110*$H$110,2) -> 0 | N110: základní | Q110: 0 | R110: =$Q$110*$H$110 -> 0 | S110: 0 | T110: =$S$110*$H$110 -> 0 | AR110: 4 | AT110: K | AU110: 2 | AY110: ROZPOCET | BE110: =IF($N$110="základní",$J$110,0) -> 0 | BF110: =IF($N$110="snížená",$J$110,0) -> 0 | BG110: =IF($N$110="zákl. přenesená",$J$110,0) -> 0 | BH110: =IF($N$110="sníž. přenesená",$J$110,0) -> 0 | BI110: =IF($N$110="nulová",$J$110,0) -> 0 | BJ110: 1 | BK110: =ROUND($I$110*$H$110,2) -> 0 | BL110: 4 | BM110: 1329277208
C111: 28 | D111: K | E111: 1019 | F111: Přesun | G111: % | J111: =ROUND($I$111*$H$111,2) -> 0 | N111: základní | Q111: 0 | R111: =$Q$111*$H$111 -> 0 | S111: 0 | T111: =$S$111*$H$111 -> 0 | AR111: 4 | AT111: K | AU111: 2 | AY111: ROZPOCET | BE111: =IF($N$111="základní",$J$111,0) -> 0 | BF111: =IF($N$111="snížená",$J$111,0) -> 0 | BG111: =IF($N$111="zákl. přenesená",$J$111,0) -> 0 | BH111: =IF($N$111="sníž. přenesená",$J$111,0) -> 0 | BI111: =IF($N$111="nulová",$J$111,0) -> 0 | BJ111: 1 | BK111: =ROUND($I$111*$H$111,2) -> 0 | BL111: 4 | BM111: 958949786
D112: D | E112: 01_MO | F112: Montáž | J112: =$BK$112 -> 0 | P112: =SUM($P$113:$P$114) -> 0 | R112: =SUM($R$113:$R$114) -> 0 | T112: =SUM($T$113:$T$114) -> 0 | AR112: 1 | AT112: D | AU112: 1 | AY112: ROZPOCET | BK112: =SUM($BK$113:$BK$114) -> 0
C113: 13 | D113: K | E113: 1100 | F113: Montáž Kamerového systému | G113: Kč | H113: 1 | J113: =ROUND($I$113*$H$113,2) -> 0 | N113: základní | Q113: 0 | R113: =$Q$113*$H$113 -> 0 | S113: 0 | T113: =$S$113*$H$113 -> 0 | AR113: 64 | AT113: K | AU113: 2 | AY113: ROZPOCET | BE113: =IF($N$113="základní",$J$113,0) -> 0 | BF113: =IF($N$113="snížená",$J$113,0) -> 0 | BG113: =IF($N$113="zákl. přenesená",$J$113,0) -> 0 | BH113: =IF($N$113="sníž. přenesená",$J$113,0) -> 0 | BI113: =IF($N$113="nulová",$J$113,0) -> 0 | BJ113: 1 | BK113: =ROUND($I$113*$H$113,2) -> 0 | BL113: 64 | BM113: 963902769
C114: 14 | D114: K | E114: 1200 | F114: PPV | G114: % | J114: =ROUND($I$114*$H$114,2) -> 0 | N114: základní | Q114: 0 | R114: =$Q$114*$H$114 -> 0 | S114: 0 | T114: =$S$114*$H$114 -> 0 | AR114: 64 | AT114: K | AU114: 2 | AY114: ROZPOCET | BE114: =IF($N$114="základní",$J$114,0) -> 0 | BF114: =IF($N$114="snížená",$J$114,0) -> 0 | BG114: =IF($N$114="zákl. přenesená",$J$114,0) -> 0 | BH114: =IF($N$114="sníž. přenesená",$J$114,0) -> 0 | BI114: =IF($N$114="nulová",$J$114,0) -> 0 | BJ114: 1 | BK114: =ROUND($I$114*$H$114,2) -> 0 | BL114: 64 | BM114: -1527894757
D115: D | E115: 01_KS | F115: Přenos kamerového signálu | J115: =$BK$115 -> 0 | P115: =$P$116 -> 0 | R115: =$R$116 -> 0 | T115: =$T$116 -> 0 | AR115: 3 | AT115: D | AU115: 1 | AY115: ROZPOCET | BK115: =$BK$116 -> 0
C116: 29 | D116: K | E116: 1110 | F116: Přenos kamerového signálu | G116: Kč | H116: 1 | J116: =ROUND($I$116*$H$116,2) -> 0 | N116: základní | Q116: 0 | R116: =$Q$116*$H$116 -> 0 | S116: 0 | T116: =$S$116*$H$116 -> 0 | AR116: 64 | AT116: K | AU116: 2 | AY116: ROZPOCET | BE116: =IF($N$116="základní",$J$116,0) -> 0 | BF116: =IF($N$116="snížená",$J$116,0) -> 0 | BG116: =IF($N$116="zákl. přenesená",$J$116,0) -> 0 | BH116: =IF($N$116="sníž. přenesená",$J$116,0) -> 0 | BI116: =IF($N$116="nulová",$J$116,0) -> 0 | BJ116: 1 | BK116: =ROUND($I$116*$H$116,2) -> 0 | BL116: 64 | BM116: -1646906071
D117: D | E117: 02 | F117: Revize | J117: =$BK$117 -> 0 | P117: =$P$118 -> 0 | R117: =$R$118 -> 0 | T117: =$T$118 -> 0 | AR117: 1 | AT117: D | AU117: 0 | AY117: ROZPOCET | BK117: =$BK$118 -> 0
C118: 16 | D118: K | E118: 2001 | F118: Revize | G118: % | J118: =ROUND($I$118*$H$118,2) -> 0 | N118: základní | Q118: 0 | R118: =$Q$118*$H$118 -> 0 | S118: 0 | T118: =$S$118*$H$118 -> 0 | AR118: 4 | AT118: K | AU118: 1 | AY118: ROZPOCET | BE118: =IF($N$118="základní",$J$118,0) -> 0 | BF118: =IF($N$118="snížená",$J$118,0) -> 0 | BG118: =IF($N$118="zákl. přenesená",$J$118,0) -> 0 | BH118: =IF($N$118="sníž. přenesená",$J$118,0) -> 0 | BI118: =IF($N$118="nulová",$J$118,0) -> 0 | BJ118: 1 | BK118: =ROUND($I$118*$H$118,2) -> 0 | BL118: 4 | BM118: 834492038
D119: D | E119: 03 | F119: Programování | J119: =$BK$119 -> 0 | P119: =$P$120 -> 0 | R119: =$R$120 -> 0 | T119: =$T$120 -> 0 | AR119: 1 | AT119: D | AU119: 0 | AY119: ROZPOCET | BK119: =$BK$120 -> 0
C120: 17 | D120: K | E120: 3002 | F120: Programování | G120: % | J120: =ROUND($I$120*$H$120,2) -> 0 | N120: základní | Q120: 0 | R120: =$Q$120*$H$120 -> 0 | S120: 0 | T120: =$S$120*$H$120 -> 0 | AR120: 4 | AT120: K | AU120: 1 | AY120: ROZPOCET | BE120: =IF($N$120="základní",$J$120,0) -> 0 | BF120: =IF($N$120="snížená",$J$120,0) -> 0 | BG120: =IF($N$120="zákl. přenesená",$J$120,0) -> 0 | BH120: =IF($N$120="sníž. přenesená",$J$120,0) -> 0 | BI120: =IF($N$120="nulová",$J$120,0) -> 0 | BJ120: 1 | BK120: =ROUND($I$120*$H$120,2) -> 0 | BL120: 4 | BM120: 1636403328

Sheet VON-2E - Vedlejší rozpočr...
D1: List obsahuje: | F1: 1) Krycí list soupisu | G1: 2) Rekapitulace | J1: 3) Soupis prací | K1: Zpět na list: | L1: Rekapitulace stavby
AT2: {8C002770-634E-414C-A4A8-C1E29F904F84}
AT3: 2
D4: KRYCÍ LIST SOUPISU | M4: v --- níže se nacházejí doplnkové a pomocné údaje k sestavám --- v | AT4: False
D6: Stavba:
E7: ='Rekapitulace stavby'!$K$6 -> Město Sokolov - Záchytné parkoviště Michal
D8: Objekt:
E9: 2.E - 2. ETAPA
D10: Soupis:
E11: VON-2E - Vedlejší rozpočrové náklady (VRN) a Ostatní náklady (ON)
D13: KSO: | F13: 822 29 | I13: CC-CZ: | J13: 7941-26
D14: Místo: | F14: Sokolov | I14: Datum: | J14: ='Rekapitulace stavby'!$AN$8 -> 09.09.2014
D16: Zadavatel: | I16: IČ:
E17: Město Sokolov | I17: DIČ:
D19: Uchazeč: | I19: IČ: | J19: =IF('Rekapitulace stavby'!$AN$13="Vyplň údaj","",IF('Rekapitulace stavby'!$AN$13="","",'Rekapitulace stavby'!$AN$13)) -> 
E20: =IF('Rekapitulace stavby'!$E$14="Vyplň údaj","",IF('Rekapitulace stavby'!$E$14="","",'Rekapitulace stavby'!$E$14)) ->  | I20: DIČ: | J20: =IF('Rekapitulace stavby'!$AN$14="Vyplň údaj","",IF('Rekapitulace stavby'!$AN$14="","",'Rekapitulace stavby'!$AN$14)) -> 
D22: Projektant: | I22: IČ: | J22: 18224920
E23: BPO spol. s r.o., Lidická 1239, 363 17 Ostrov | I23: DIČ: | J23: CZ18224920
D25: Poznámka:
D29: Cena bez DPH | J29: =ROUND($J$89,2) -> 0
F31: Základ daně | I31: Sazba daně | J31: Výše daně
D32: DPH | E32: základní | F32: =ROUND(SUM($BE$89:$BE$115),2) -> 0 | I32: 0.21 | J32: =ROUND(SUM($BE$89:$BE$115)*$I$32,2) -> 0
E33: snížená | F33: =ROUND(SUM($BF$89:$BF$115),2) -> 0 | I33: 0.15 | J33: =ROUND(SUM($BF$89:$BF$115)*$I$33,2) -> 0
E34: zákl. přenesená | F34: =ROUND(SUM($BG$89:$BG$115),2) -> 0 | I34: 0.21 | J34: 0
E35: sníž. přenesená | F35: =ROUND(SUM($BH$89:$BH$115),2) -> 0 | I35: 0.15 | J35: 0
E36: nulová | F36: =ROUND(SUM($BI$89:$BI$115),2) -> 0 | I36: 0 | J36: 0
D38: Cena s DPH | G38: v | H38: CZK | J38: =ROUND(SUM($J$29:$J$36),2) -> 0
C44: REKAPITULACE ČLENĚNÍ SOUPISU PRACÍ
C46: Stavba:
E47: =$E$7 -> Město Sokolov - Záchytné parkoviště Michal
C48: Objekt:
E49: 2.E - 2. ETAPA
C50: Soupis:
E51: =$E$11 -> VON-2E - Vedlejší rozpočrové náklady (VRN) a Ostatní náklady (ON)
C53: Místo: | F53: =$F$14 -> Sokolov | I53: Datum: | J53: =IF($J$14="","",$J$14) -> 09.09.2014
C55: Zadavatel: | F55: =$E$17 -> Město Sokolov | I55: Projektant: | J55: =$E$23 -> BPO spol. s r.o., Lidická 1239, 363 17 Ostrov
C56: Uchazeč: | F56: =IF($E$20="","",$E$20) -> 
C58: Kód dílu - Popis | J58: Cena celkem [CZK]
C60: Náklady soupisu celkem | J60: =ROUND($J$89,2) -> 0 | AU60: -1
D61: VRN - Vedlejší rozpočtové náklady | J61: =ROUND($J$90,2) -> 0
D62: VRN 01 - Vedlejší rozpočtové náklady pro SO 111 | J62: =ROUND($J$91,2) -> 0
D63: VRN 03 - Vedlejší rozpočtové náklady pro SO 132 | J63: =ROUND($J$94,2) -> 0
D64: VRN 04 - Vedlejší rozpočtové náklady pro SO 311 | J64: =ROUND($J$97,2) -> 0
D65: VRN 05 - Vedlejší rozpočtové náklady pro SO 411 | J65: =ROUND($J$100,2) -> 0
D66: VRN 06 - Vedlejší rozpočtové náklady pro SO 412 | J66: =ROUND($J$103,2) -> 0
D67: ON - Ostatní náklady | J67: =ROUND($J$106,2) -> 0
C74: SOUPIS PRACÍ
C76: Stavba:
E77: =$E$7 -> Město Sokolov - Záchytné parkoviště Michal
C78: Objekt:
E79: 2.E - 2. ETAPA
C80: Soupis:
E81: =$E$11 -> VON-2E - Vedlejší rozpočrové náklady (VRN) a Ostatní náklady (ON)
C83: Místo: | F83: =$F$14 -> Sokolov | I83: Datum: | J83: =IF($J$14="","",$J$14) -> 09.09.2014
C85: Zadavatel: | F85: =$E$17 -> Město Sokolov | I85: Projektant: | J85: =$E$23 -> BPO spol. s r.o., Lidická 1239, 363 17 Ostrov
C86: Uchazeč: | F86: =IF($E$20="","",$E$20) -> 
C88: PČ | D88: Typ | E88: Kód | F88: Popis | G88: MJ | H88: Množství | I88: J.cena [CZK] | J88: Cena celkem [CZK] | K88: Cenová soustava | M88: Poznámka | N88: DPH | O88: J. Nh [h] | P88: Nh celkem [h] | Q88: J. hmotnost [t] | R88: Hmotnost celkem [t] | S88: J. suť [t] | T88: Suť Celkem [t]
C89: Náklady soupisu celkem | J89: =$BK$89 -> 0 | P89: =$P$90+$P$106 -> 0 | R89: =$R$90+$R$106 -> 0 | T89: =$T$90+$T$106 -> 0 | AT89: D | AU89: -1 | BK89: =$BK$90+$BK$106 -> 0
D90: D | E90: VRN | F90: Vedlejší rozpočtové náklady | J90: =$BK$90 -> 0 | P90: =$P$91+$P$94+$P$97+$P$100+$P$103 -> 0 | R90: =$R$91+$R$94+$R$97+$R$100+$R$103 -> 0 | T90: =$T$91+$T$94+$T$97+$T$100+$T$103 -> 0 | AR90: 5 | AT90: D | AU90: 0 | AY90: ROZPOCET | BK90: =$BK$91+$BK$94+$BK$97+$BK$100+$BK$103 -> 0
D91: D | E91: VRN 01 | F91: Vedlejší rozpočtové náklady pro SO 111 | J91: =$BK$91 -> 0 | P91: =SUM($P$92:$P$93) -> 0 | R91: =SUM($R$92:$R$93) -> 0 | T91: =SUM($T$92:$T$93) -> 0 | AR91: 5 | AT91: D | AU91: 1 | AY91: ROZPOCET | BK91: =SUM($BK$92:$BK$93) -> 0
C92: 1 | D92: K | E92: 01 | F92: Zařízení staveniště | G92: % | J92: =ROUND($I$92*$H$92,2) -> 0 | N92: základní | Q92: 0 | R92: =$Q$92*$H$92 -> 0 | S92: 0 | T92: =$S$92*$H$92 -> 0 | AR92: 4 | AT92: K | AU92: 2 | AY92: ROZPOCET | BE92: =IF($N$92="základní",$J$92,0) -> 0 | BF92: =IF($N$92="snížená",$J$92,0) -> 0 | BG92: =IF($N$92="zákl. přenesená",$J$92,0) -> 0 | BH92: =IF($N$92="sníž. přenesená",$J$92,0) -> 0 | BI92: =IF($N$92="nulová",$J$92,0) -> 0 | BJ92: 1 | BK92: =ROUND($I$92*$H$92,2) -> 0 | BL92: 4 | BM92: -1383526266
D93: PP | F93: Zařízení staveniště | AT93: PP | AU93: 2
D94: D | E94: VRN 03 | F94: Vedlejší rozpočtové náklady pro SO 132 | J94: =$BK$94 -> 0 | P94: =SUM($P$95:$P$96) -> 0 | R94: =SUM($R$95:$R$96) -> 0 | T94: =SUM($T$95:$T$96) -> 0 | AR94: 5 | AT94: D | AU94: 1 | AY94: ROZPOCET | BK94: =SUM($BK$95:$BK$96) -> 0
C95: 2 | D95: K | E95: 01 | F95: Zařízení staveniště | G95: % | J95: =ROUND($I$95*$H$95,2) -> 0 | N95: základní | Q95: 0 | R95: =$Q$95*$H$95 -> 0 | S95: 0 | T95: =$S$95*$H$95 -> 0 | AR95: 4 | AT95: K | AU95: 2 | AY95: ROZPOCET | BE95: =IF($N$95="základní",$J$95,0) -> 0 | BF95: =IF($N$95="snížená",$J$95,0) -> 0 | BG95: =IF($N$95="zákl. přenesená",$J$95,0) -> 0 | BH95: =IF($N$95="sníž. přenesená",$J$95,0) -> 0 | BI95: =IF($N$95="nulová",$J$95,0) -> 0 | BJ95: 1 | BK95: =ROUND($I$95*$H$95,2) -> 0 | BL95: 4 | BM95: -1592936811
D96: PP | F96: Zařízení staveniště | AT96: PP | AU96: 2
D97: D | E97: VRN 04 | F97: Vedlejší rozpočtové náklady pro SO 311 | J97: =$BK$97 -> 0 | P97: =SUM($P$98:$P$99) -> 0 | R97: =SUM($R$98:$R$99) -> 0 | T97: =SUM($T$98:$T$99) -> 0 | AR97: 5 | AT97: D | AU97: 1 | AY97: ROZPOCET | BK97: =SUM($BK$98:$BK$99) -> 0
C98: 3 | D98: K | E98: 01 | F98: Zařízení staveniště | G98: % | J98: =ROUND($I$98*$H$98,2) -> 0 | N98: základní | Q98: 0 | R98: =$Q$98*$H$98 -> 0 | S98: 0 | T98: =$S$98*$H$98 -> 0 | AR98: 4 | AT98: K | AU98: 2 | AY98: ROZPOCET | BE98: =IF($N$98="základní",$J$98,0) -> 0 | BF98: =IF($N$98="snížená",$J$98,0) -> 0 | BG98: =IF($N$98="zákl. přenesená",$J$98,0) -> 0 | BH98: =IF($N$98="sníž. přenesená",$J$98,0) -> 0 | BI98: =IF($N$98="nulová",$J$98,0) -> 0 | BJ98: 1 | BK98: =ROUND($I$98*$H$98,2) -> 0 | BL98: 4 | BM98: 747809699
D99: PP | F99: Zařízení staveniště | AT99: PP | AU99: 2
D100: D | E100: VRN 05 | F100: Vedlejší rozpočtové náklady pro SO 411 | J100: =$BK$100 -> 0 | P100: =SUM($P$101:$P$102) -> 0 | R100: =SUM($R$101:$R$102) -> 0 | T100: =SUM($T$101:$T$102) -> 0 | AR100: 5 | AT100: D | AU100: 1 | AY100: ROZPOCET | BK100: =SUM($BK$101:$BK$102) -> 0
C101: 4 | D101: K | E101: 01 | F101: Zařízení staveniště | G101: % | J101: =ROUND($I$101*$H$101,2) -> 0 | N101: základní | Q101: 0 | R101: =$Q$101*$H$101 -> 0 | S101: 0 | T101: =$S$101*$H$101 -> 0 | AR101: 4 | AT101: K | AU101: 2 | AY101: ROZPOCET | BE101: =IF($N$101="základní",$J$101,0) -> 0 | BF101: =IF($N$101="snížená",$J$101,0) -> 0 | BG101: =IF($N$101="zákl. přenesená",$J$101,0) -> 0 | BH101: =IF($N$101="sníž. přenesená",$J$101,0) -> 0 | BI101: =IF($N$101="nulová",$J$101,0) -> 0 | BJ101: 1 | BK101: =ROUND($I$101*$H$101,2) -> 0 | BL101: 4 | BM101: 1323213772
D102: PP | F102: Zařízení staveniště | AT102: PP | AU102: 2
D103: D | E103: VRN 06 | F103: Vedlejší rozpočtové náklady pro SO 412 | J103: =$BK$103 -> 0 | P103: =SUM($P$104:$P$105) -> 0 | R103: =SUM($R$104:$R$105) -> 0 | T103: =SUM($T$104:$T$105) -> 0 | AR103: 1 | AT103: D | AU103: 1 | AY103: ROZPOCET | BK103: =SUM($BK$104:$BK$105) -> 0
C104: 5 | D104: K | E104: 01 | F104: Zařízení staveniště | G104: % | J104: =ROUND($I$104*$H$104,2) -> 0 | N104: základní | Q104: 0 | R104: =$Q$104*$H$104 -> 0 | S104: 0 | T104: =$S$104*$H$104 -> 0 | AR104: 4 | AT104: K | AU104: 2 | AY104: ROZPOCET | BE104: =IF($N$104="základní",$J$104,0) -> 0 | BF104: =IF($N$104="snížená",$J$104,0) -> 0 | BG104: =IF($N$104="zákl. přenesená",$J$104,0) -> 0 | BH104: =IF($N$104="sníž. přenesená",$J$104,0) -> 0 | BI104: =IF($N$104="nulová",$J$104,0) -> 0 | BJ104: 1 | BK104: =ROUND($I$104*$H$104,2) -> 0 | BL104: 4 | BM104: -2015436386
D105: PP | F105: Zařízení staveniště | AT105: PP | AU105: 2
D106: D | E106: ON | F106: Ostatní náklady | J106: =$BK$106 -> 0 | P106: =SUM($P$107:$P$115) -> 0 | R106: =SUM($R$107:$R$115) -> 0 | T106: =SUM($T$107:$T$115) -> 0 | AR106: 4 | AT106: D | AU106: 0 | AY106: ROZPOCET | BK106: =SUM($BK$107:$BK$115) -> 0
